Workbook

Sheet SafetySummary (hidden)
GL4: NLF_ID | GM4: BLOG | GN4: ELOG
E7: Current File Name | F7: CAM Tool FS
E8: Current File Path | F8: C:\Temp\
E9: Run CAM Tool Crash Data for Desired Sections | F9: X
E10: Run Congestion Model Weighted Average Data for Desired Sections | F10: X | GL10: NLF_ID | GM10: Min(BTRS_LOG_POINTS6.LOGPOINT_COUNTY_NBR) | GN10: Max(BTRS_LOG_POINTS6.LOGPOINT_COUNTY_NBR) | GO10: Avg(BTRS_CONGESTION_SEGMENTS6.TOTAL_VOLUME_NBR) | GP10: Avg(BTRS_CONGESTION_SEGMENTS6.TRUCK_VOLUME_NBR) | GQ10: Avg(BTRS_CONGESTION_SEGMENTS6.VOLUME_CAPACITY_RATIO_NBR) | GR10: Min(BTRS_LOG_POINTS6.FUNCTIONAL_CLASS_CD) | GS10: Max(BTRS_LOG_POINTS6.FUNCTIONAL_CLASS_CD) | GT10: SUM(BTRS_LOG_POINTS6.SECTION_LENGTH_NBR)
E11: Run Road Inventory Segment Data (State & Local) for Desired Sections | F11: X
A12: 1 | E12: Run State System Basic Expanded Inventory Data for Desired Sections | F12: X | G12: 7 | H12: 8 | I12: 9 | J12: 10 | K12: 11 | L12: 12 | M12: 13 | N12: 14 | O12: 15 | P12: 16 | Q12: 17 | R12: 18 | S12: 19 | T12: 20 | U12: 21 | V12: 22 | W12: 23 | X12: 24 | Y12: 25 | Z12: 26 | AA12: 27 | AB12: 28 | AC12: 29 | AD12: 30 | AE12: 31 | AF12: 32 | AG12: 33 | AH12: 34 | AI12: 35 | AJ12: 36 | AK12: 37 | AL12: 38 | AM12: 39 | AN12: 40 | AO12: 41 | AP12: 42 | AQ12: 43 | AR12: 44 | AS12: 45 | AT12: 46 | AU12: 47 | AV12: 48 | AW12: 49 | AX12: 50 | AY12: 51 | AZ12: 52 | BA12: 53 | BB12: 54 | BC12: 55 | BD12: 56 | BE12: 57 | BF12: 58 | BG12: 59 | BH12: 60 | BI12: 61 | BJ12: 62 | BK12: 63 | BL12: 64 | BM12: 65 | BN12: 66 | BO12: 67 | BP12: 68 | BQ12: 69 | BR12: 70 | BS12: 71 | BT12: 72 | BU12: 73 | BV12: 74 | BW12: 75 | BX12: 76 | BY12: 77 | BZ12: 78 | CA12: 79 | CB12: 80 | CC12: 81 | CD12: 82 | CE12: 83 | CF12: 84 | CG12: 85 | CH12: 86 | CI12: 87 | CJ12: 88 | CK12: 89 | CL12: 90 | CM12: 91 | CN12: 92 | CO12: 93 | CP12: 94 | CQ12: 95 | CR12: 96 | CS12: 97 | CT12: 98 | CU12: 99 | CV12: 100 | CW12: 101 | CX12: 102 | CY12: 103 | CZ12: 104 | DA12: 105 | DB12: 106 | DC12: 107 | DD12: 108 | DE12: 109 | DF12: 110 | DG12: 111 | DH12: 112 | DI12: 113 | DJ12: 114 | DK12: 115 | DL12: 116 | DM12: 117 | DN12: 118 | DO12: 119 | DP12: 120 | DQ12: 121 | DR12: 122 | DS12: 123 | DT12: 124 | DU12: 125 | DV12: 126 | DW12: 127 | DX12: 128 | DY12: 129 | DZ12: 130 | EA12: 131 | EB12: 132 | EC12: 133 | ED12: 134 | EE12: 135 | EF12: 136 | EG12: 137 | EH12: 138 | EI12: 139 | EJ12: 140 | EK12: 141 | EL12: 142 | EM12: 143 | EN12: 144 | EO12: 145 | EP12: 146 | EQ12: 147 | ER12: 148 | ES12: 149 | ET12: 150 | EU12: 151 | EV12: 152 | EW12: 153 | EX12: 154 | EY12: 155 | EZ12: 156 | FA12: 157 | FB12: 158 | FC12: 159 | FD12: 160 | FE12: 161 | FF12: 162 | FG12: 163 | FH12: 164 | FI12: 165 | FJ12: 166 | FK12: 167 | FL12: 168 | FM12: 169 | FN12: 170 | FO12: 171 | FP12: 172 | FQ12: 173 | FR12: 174 | FS12: 175 | FT12: 176 | FU12: 177 | FV12: 178 | FW12: 179 | FX12: 180 | FY12: 181 | FZ12: 182 | GA12: 183 | GB12: 184 | GC12: 185 | GD12: 186 | GE12: 187 | GF12: 188 | GG12: 189 | GH12: 190 | GI12: 191 | GJ12: 192 | GK12: 193 | GL12: 194 | GM12: 195 | GN12: 196 | GO12: 197 | GP12: 198 | GQ12: 199 | GR12: 200 | GS12: 201 | GT12: 202 | GU12: 203 | GV12: 204 | GW12: 205 | GX12: 206
E13: Run Ellis Project Info for Desired Sections | F13: X
E14: Run Current Pavement Condition Data for Desired Sections | F14: X
E15: Run Current Bridge Condition Data for Desired Sections | F15: X | AF15: People | AH15: Crash Severity | AK15: Year | AU15: Day | BB15: Crash Type | BU15: Road Condition | BZ15: Light Condition | CE15: Location | CL15: Crash Month | CX15: Road Contour | DB15: Special Area | DD15: Animal Type | DG15: Contributing Factor_1 | ED15: Driver Alcohol_1 | EG15: Driver Alcohol_2 | EU15: =IF(K15="","",(ET15*1000000)/(#REF!*365*EY15*3)) ->  | GS15: =MID(GT15,(FIND("[",GT15)+1),(FIND("]",GT15)-1)-(FIND("[",GT15))) -> CAM Tool_GEA608_2014 revised.xlsm | GT15: =CELL("filename") -> L:\ODOT\16683-02_D12and3GES\13_103884_GEA-608_Buggy\Planning\Traffic\[CAM Tool_GEA608_2014 revised.xlsm]Crash Data
A16: 21 | B16: =IF(C16=C14,B14,B14+1) -> 0 | D16: Require User to Manually Select File Path and Name for Desired Sections Where a CAM Tool is "X"ed in Column B | K16: =IF(H16="","",IF(D16="I",1,H16-G16)) ->  | M16: =IF(GK16="","",HYPERLINK(GK16)) ->  | N16: Default is Blank - Logged | P16: =IF(GO16 = "","",GO16) ->  | Q16: =IF(GP16 = "","",GP16) ->  | R16: =IF(GQ16 = "","",GQ16) ->  | S16: =IF(GR16 = "","",GR16) ->  | T16: =IF(GS16 = "","",GS16) ->  | Y16: =IF(ISERROR((X16*1000000)/(K16*365*GO16*(J16-I16+1))),"",(X16*1000000)/(K16*365*GO16*(J16-I16+1))) ->  | Z16: =IF(D16="S",IF(ISERROR(X16/K16/(J16-I16+1)),"",X16/K16/(J16-I16+1)),"") ->  | AA16: =IF(X16="","",IF(ISERROR(AH16*'Safety App'!$AI$36+AI16*'Safety App'!$AI$37+AJ16*'Safety App'!$AI$38),0,AH16*'Safety App'!$AI$36+AI16*'Safety App'!$AI$37+AJ16*'Safety App'!$AI$38)) ->  | AF16: =SUM('Crash Data'!$AS$21:$AS$64998) -> 0 | AG16: =SUM('Crash Data'!$AT$21:$AT$64998) -> 0 | AH16: =COUNTIF('Crash Data'!$O$21:$O$64998,AH17) -> 0 | AI16: =COUNTIF('Crash Data'!$O$21:$O$64998,AI17) -> 5 | AJ16: =COUNTIF('Crash Data'!$O$21:$O$64998,AJ17) -> 14 | AK16: =COUNTIF('Crash Data'!$BD$21:$BD$64998,AK17) -> 0 | AL16: =COUNTIF('Crash Data'!$BD$21:$BD$64998,AL17) -> 0 | AM16: =COUNTIF('Crash Data'!$BD$21:$BD$64998,AM17) -> 0 | AN16: =COUNTIF('Crash Data'!$BD$21:$BD$64998,AN17) -> 0 | AO16: =COUNTIF('Crash Data'!$BD$21:$BD$64998,AO17) -> 0 | AP16: =COUNTIF('Crash Data'!$BD$21:$BD$64998,AP17) -> 0 | AQ16: =COUNTIF('Crash Data'!$BD$21:$BD$64998,AQ17) -> 0 | AR16: =COUNTIF('Crash Data'!$BD$21:$BD$64998,AR17) -> 0 | AS16: =COUNTIF('Crash Data'!$BD$21:$BD$64998,AS17) -> 0 | AT16: =COUNTIF('Crash Data'!$BD$21:$BD$64998,AT17) -> 0 | AU16: =COUNTIF('Crash Data'!$J$21:$J$64998,AU17) -> 0 | AV16: =COUNTIF('Crash Data'!$J$21:$J$64998,AV17) -> 1 | AW16: =COUNTIF('Crash Data'!$J$21:$J$64998,AW17) -> 1 | AX16: =COUNTIF('Crash Data'!$J$21:$J$64998,AX17) -> 2 | AY16: =COUNTIF('Crash Data'!$J$21:$J$64998,AY17) -> 7 | AZ16: =COUNTIF('Crash Data'!$J$21:$J$64998,AZ17) -> 5 | BA16: =COUNTIF('Crash Data'!$J$21:$J$64998,BA17) -> 3 | BB16: =COUNTIF('Crash Data'!$M$21:$M$64998,BB17) -> 4 | BC16: =COUNTIF('Crash Data'!$M$21:$M$64998,BC17) -> 5 | BD16: =COUNTIF('Crash Data'!$M$21:$M$64998,BD17) -> 4 | BE16: =COUNTIF('Crash Data'!$M$21:$M$64998,BE17) -> 2 | BF16: =COUNTIF('Crash Data'!$M$21:$M$64998,BF17) -> 2 | BG16: =COUNTIF('Crash Data'!$M$21:$M$64998,BG17) -> 0 | BH16: =COUNTIF('Crash Data'!$M$21:$M$64998,BH17) -> 2 | BI16: =COUNTIF('Crash Data'!$M$21:$M$64998,BI17) -> 0 | BJ16: =COUNTIF('Crash Data'!$M$21:$M$64998,BJ17) -> 0 | BK16: =COUNTIF('Crash Data'!$M$21:$M$64998,BK17) -> 0 | BL16: =COUNTIF('Crash Data'!$M$21:$M$64998,BL17) -> 0 | BM16: =COUNTIF('Crash Data'!$M$21:$M$64998,BM17) -> 0 | BN16: =COUNTIF('Crash Data'!$M$21:$M$64998,BN17) -> 0 | BO16: =COUNTIF('Crash Data'!$M$21:$M$64998,BO17) -> 0 | BP16: =COUNTIF('Crash Data'!$M$21:$M$64998,BP17) -> 0 | BQ16: =COUNTIF('Crash Data'!$M$21:$M$64998,BQ17) -> 0 | BR16: =COUNTIF('Crash Data'!$M$21:$M$64998,BR17) -> 0 | BS16: =COUNTIF('Crash Data'!$M$21:$M$64998,BS17) -> 0 | BT16: =COUNTIF('Crash Data'!$M$21:$M$64998,BT17) -> 0 | BU16: =COUNTIF('Crash Data'!$Q$21:$Q$64998,BU17) -> 8 | BV16: =COUNTIF('Crash Data'!$Q$21:$Q$64998,BV17) -> 3 | BW16: =COUNTIF('Crash Data'!$Q$21:$Q$64998,BW17) -> 7 | BX16: =COUNTIF('Crash Data'!$Q$21:$Q$64998,BX17) -> 1 | BY16: =COUNTIF('Crash Data'!$Q$21:$Q$64998,BY17) -> 0 | BZ16: =COUNTIF('Crash Data'!$L$21:$L$64998,BZ17) -> 13 | CA16: =COUNTIF('Crash Data'!$L$21:$L$64998,CA17) -> 1 | CB16: =COUNTIF('Crash Data'!$L$21:$L$64998,CB17) -> 2 | CC16: =COUNTIF('Crash Data'!$L$21:$L$64998,CC17) -> 0 | CD16: =COUNTIF('Crash Data'!$L$21:$L$64998,CD17) -> 2 | CE16: =COUNTIF('Crash Data'!$R$21:$R$64998,CE17) -> 0 | CF16: =COUNTIF('Crash Data'!$R$21:$R$64998,CF17) -> 0 | CG16: =COUNTIF('Crash Data'!$R$21:$R$64998,CG17) -> 0 | CH16: =COUNTIF('Crash Data'!$R$21:$R$64998,CH17) -> 0 | CI16: =COUNTIF('Crash Data'!$R$21:$R$64998,CI17) -> 0 | CJ16: =COUNTIF('Crash Data'!$R$21:$R$64998,CJ17) -> 0 | CK16: =COUNTIF('Crash Data'!$R$21:$R$64998,CK17) -> 0 | CL16: =COUNTIF('Crash Data'!$BE$21:$BE$64998,CL17) -> 5 | CM16: =COUNTIF('Crash Data'!$BE$21:$BE$64998,CM17) -> 4 | CN16: =COUNTIF('Crash Data'!$BE$21:$BE$64998,CN17) -> 0 | CO16: =COUNTIF('Crash Data'!$BE$21:$BE$64998,CO17) -> 1 | CP16: =COUNTIF('Crash Data'!$BE$21:$BE$64998,CP17) -> 4 | CQ16: =COUNTIF('Crash Data'!$BE$21:$BE$64998,CQ17) -> 0 | CR16: =COUNTIF('Crash Data'!$BE$21:$BE$64998,CR17) -> 0 | CS16: =COUNTIF('Crash Data'!$BE$21:$BE$64998,CS17) -> 0 | CT16: =COUNTIF('Crash Data'!$BE$21:$BE$64998,CT17) -> 0 | CU16: =COUNTIF('Crash Data'!$BE$21:$BE$64998,CU17) -> 3 | CV16: =COUNTIF('Crash Data'!$BE$21:$BE$64998,CV17) -> 2 | CW16: =COUNTIF('Crash Data'!$BE$21:$BE$64998,CW17) -> 0 | CX16: =COUNTIF('Crash Data'!$AR$21:$AR$64998,CX17) -> 5 | CY16: =COUNTIF('Crash Data'!$AR$21:$AR$64998,CY17) -> 13 | CZ16: =COUNTIF('Crash Data'!$AR$21:$AR$64998,CZ17) -> 0 | DA16: =COUNTIF('Crash Data'!$AR$21:$AR$64998,DA17) -> 1 | DB16: =COUNTIF('Crash Data'!$AO$21:$AO$64998,DB17) -> 0 | DC16: =COUNTIF('Crash Data'!$AO$21:$AO$64998,DC17) -> 0 | DD16: =COUNTIF('Crash Data'!$AP$21:$AP$64998,DD17) -> 1 | DE16: =COUNTIF('Crash Data'!$AP$21:$AP$64998,DE17) -> 1 | DF16: =COUNTIF('Crash Data'!$AP$21:$AP$64998,DF17) -> 0 | DG16: =COUNTIF('Crash Data'!$S$21:$S$64998,DG17) -> 0 | DH16: =COUNTIF('Crash Data'!$S$21:$S$64998,DH17) -> 2 | DI16: =COUNTIF('Crash Data'!$S$21:$S$64998,DI17) -> 4 | DJ16: =COUNTIF('Crash Data'!$S$21:$S$64998,DJ17) -> 0 | DK16: =COUNTIF('Crash Data'!$S$21:$S$64998,DK17) -> 0 | DL16: =COUNTIF('Crash Data'!$S$21:$S$64998,DL17) -> 0 | DM16: =COUNTIF('Crash Data'!$S$21:$S$64998,DM17) -> 0 | DN16: =COUNTIF('Crash Data'!$S$21:$S$64998,DN17) -> 0 | DO16: =COUNTIF('Crash Data'!$S$21:$S$64998,DO17) -> 0 | DP16: =COUNTIF('Crash Data'!$S$21:$S$64998,DP17) -> 0 | DQ16: =COUNTIF('Crash Data'!$S$21:$S$64998,DQ17) -> 0 | DR16: =COUNTIF('Crash Data'!$S$21:$S$64998,DR17) -> 0 | DS16: =COUNTIF('Crash Data'!$S$21:$S$64998,DS17) -> 0 | DT16: =COUNTIF('Crash Data'!$S$21:$S$64998,DT17) -> 0 | DU16: =COUNTIF('Crash Data'!$S$21:$S$64998,DU17) -> 0 | DV16: =COUNTIF('Crash Data'!$S$21:$S$64998,DV17) -> 0 | DW16: =COUNTIF('Crash Data'!$S$21:$S$64998,DW17) -> 0 | DX16: =COUNTIF('Crash Data'!$S$21:$S$64998,DX17) -> 0 | DY16: =COUNTIF('Crash Data'!$S$21:$S$64998,DY17) -> 0 | DZ16: =COUNTIF('Crash Data'!$S$21:$S$64998,DZ17) -> 0 | EA16: =COUNTIF('Crash Data'!$S$21:$S$64998,EA17) -> 0 | EB16: =COUNTIF('Crash Data'!$S$21:$S$64998,EB17) -> 0 | EC16: =COUNTIF('Crash Data'!$S$21:$S$64998,EC17) -> 0 | ED16: =COUNTIF('Crash Data'!$AB$21:$AB$64998,ED17) -> 0 | EE16: =COUNTIF('Crash Data'!$AB$21:$AB$64998,EE17) -> 0 | EF16: =COUNTIF('Crash Data'!$AB$21:$AB$64998,EF17) -> 0 | EG16: =COUNTIF('Crash Data'!$AM$21:$AM$64998,EG17) -> 0 | EH16: =COUNTIF('Crash Data'!$AM$21:$AM$64998,EH17) -> 0 | EI16: =COUNTIF('Crash Data'!$AM$21:$AM$64998,EI17) -> 0 | EQ16: =IF(C16=C15,"",C16) ->  | ER16: =IF(EQ16="","",IF(D16="I","Intersection","Section")) ->  | ES16: =IF($EQ16="","",SUMIF($C$18:$C$65536,$EQ16,$K$18:$K$65536)) ->  | ET16: =IF($EQ16="","",SUMIF($C$18:$C$65536,$EQ16,$X$18:$X$65536)) ->  | EU16: =IF(EQ16="","",IF(ISERROR((ET16*1000000)/(ES16*365*EY16*(J16-I16+1))),VALUE(0),(ET16*1000000)/(ES16*365*EY16*(J16-I16+1)))) ->  | EV16: =IFERROR(IF($EQ16="","",ET16/ES16/(J16-I16+1)),0) ->  | EW16: =IF($EQ16="","",SUMIF($C$18:$C$65536,$EQ16,$AA$18:$AA$65536)) ->  | EX16: =IF($EQ16="","",IF(ISERROR((SUMIF($C$18:$C$65536,$EQ16,$GU$18:$GU$65536)/ET16)),VALUE(0),(SUMIF($C$18:$C$65536,$EQ16,$GU$18:$GU$65536)/ET16))) ->  | EY16: =IFERROR(IF($EQ16="","",(SUMIF($C$18:$C$65536,$EQ16,$GV$18:$GV$65536)/$ES16)),0) ->  | EZ16: =IFERROR(IF($EQ16="","",IF(ISERROR(FA16/EY16),VALUE(0),FA16/EY16)),0) ->  | FA16: =IFERROR(IF($EQ16="","",(SUMIF($C$18:$C$65536,$EQ16,$GW$18:$GW$65536)/$ES16)),0) ->  | FB16: =IFERROR(IF($EQ16="","",(SUMIF($C$18:$C$65536,$EQ16,$GX$18:$GX$65536)/$ES16)),0) ->  | GI16: =IF(ISERROR(GI15+1),VALUE(1),GI15+1) -> 1 | GJ16: =IF(A16="","",C16&"_"&MID(F16,2,3)&MID(F16,5,2)&MID(F16,9,3)&IF(MID(F16,13,1)="*","",MID(F16,13,1))&IF(MID(F16,12,1)="*","",MID(F16,12,1))&"; "&G16&"-"&H16&"_"&GI16) -> _; -_1 | GK16: =IF(C16="","",L16&GJ16&".xlsm") ->  | GL16: Do not modify cells below | GU16: =IF(ISERROR(AB16*X16),VALUE(0),AB16*X16) -> 0 | GV16: =IF(ISERROR(GO16*K16),VALUE(0),GO16*K16) -> 0 | GW16: =IF(ISERROR(GP16*K16),VALUE(0),GP16*K16) -> 0 | GX16: =IF(ISERROR(GQ16*K16),VALUE(0),GQ16*K16) -> 0
A17: RunNewData | B17: CreateCamTool | C17: Project_ID (Do Not Leave Blank) | D17: Default is S - Section Intersection (I) Or Section (S) | E17: Rural Non-Freeway Urban Non-Freeway Freeway Default is Rural Non-Freeway RSI_Location_Type | F17: Example: SFRAUS00040**C NLF_ID | G17: BEGIN_LOG | H17: END_LOG | I17: BEGIN_YEAR | J17: END_YEAR | K17: Length | L17: FilePath | M17: File Hyperlink | N17: Logged Crashes Only (Default - Leave Blank) For Logged and Unlogged Enter "U" in This Column | O17: Run All Crashes (Default - Leave Blank) To Exclude Animal Crashes Enter "A" in This Column To Exclude Work Zone Crashes Enter "W" in This Column To Exclude Both Animal & Work Zone Crashes Enter "B" in This Column | P17: WAADT | Q17: WATADT | R17: WA_VC | S17: MinFC | T17: MaxFC | X17: Total Crashes | Y17: Crash Rate | Z17: Crash Density (Crashes Per Mile Per Year) | AA17: EPDO | AB17: RSI | AF17: Fatalities | AG17: Incapacitating Injuries | AH17: FATAL CRASH | AI17: INJURY CRASH | AJ17: PROPERTY DAMAGE CRASH | AK17: 2004 | AL17: 2005 | AM17: 2006 | AN17: 2007 | AO17: 2008 | AP17: 2009 | AQ17: 2010 | AR17: 2011 | AS17: 2012 | AT17: 2013 | AU17: SUNDAY | AV17: MONDAY | AW17: TUESDAY | AX17: WEDNESDAY | AY17: THURSDAY | AZ17: FRIDAY | BA17: SATURDAY | BB17: REAR END | BC17: FIXED OBJECT | BD17: ANGLE | BE17: SIDESWIPE - PASSING | BF17: ANIMAL | BG17: PARKED VEHICLE | BH17: LEFT TURN | BI17: BACKING | BJ17: SIDESWIPE - MEETING | BK17: OTHER NON-COLLISION | BL17: PEDESTRIAN | BM17: OVERTURNING | BN17: OTHER OBJECT | BO17: HEAD ON | BP17: PEDALCYCLES | BQ17: NOT STATED | BR17: TRAIN | BS17: OTHER NON-VEHICLE | BT17: FALLING FROM OR IN VEHICLE | BU17: ROAD - DRY | BV17: ROAD - WET | BW17: ROAD - SNOW | BX17: ROAD - ICE | BY17: ROAD - MUD/SAND | BZ17: DAYLIGHT | CA17: DARK - LIGHTED | CB17: DARK - NO LIGHTS | CC17: DUSK | CD17: DAWN | CE17: NON-INTERSECTION | CF17: INTERSECTION | CG17: INTERSECTION RELATED | CH17: DRIVEWAY ACCESS | CI17: BRIDGE PASSING OVER | CJ17: RAILROAD CROSSING | CK17: BRIDGE PASSING UNDER | CL17: 1 | CM17: 2 | CN17: 3 | CO17: 4 | CP17: 5 | CQ17: 6 | CR17: 7 | CS17: 8 | CT17: 9 | CU17: 10 | CV17: 11 | CW17: 12 | CX17: STRAIGHT - LEVEL | CY17: STRAIGHT - GRADE | CZ17: CURVE - LEVEL | DA17: CURVE - GRADE | DB17: ROAD CONSTRUCTION/MAINTENANCE AREA | DC17: SCHOOL ZONE | DD17: DEER HIT | DE17: OTHER ANIMAL | DF17: FARM ANIMAL HIT | DG17: FOLLOWING TOO CLOSE | DH17: FAILURE TO CONTROL | DI17: FAILURE TO YIELD | DJ17: NO DRIVER ERRORS | DK17: OTHER DRIVER ERROR | DL17: EXCESSIVE SPEED | DM17: DRIVER INATTENTION | DN17: IMPROPER BACKING | DO17: IMPROPER LANE CHANGE | DP17: RAN RED LIGHT | DQ17: DROVE OFF ROAD-REASON UNKNOWN | DR17: IMPROPER TURNING | DS17: LEFT OF CENTER | DT17: RAN STOP SIGN OR YIELD SIGN | DU17: VEHICLE DEFECT | DV17: IMPROPER PASSING | DW17: IMPROPER START FROM PARKED POS | DX17: LOAD SHIFT - FALL - SPILL | DY17: VIEW OBSTRUCTED | DZ17: STOPPED - PARKED ILLEGALLY | EA17: DOWNED TRAFFIC SIGN OR DEVICE | EB17: DEBRIS ON ROAD | EC17: PAVEMENT DEFECT | ED17: HBD - ABILITY IMPAIRED | EE17: HBD - ABILITY NOT IMPAIRED | EF17: HBD - ABILITY UNKNOWN | EG17: HBD - ABILITY IMPAIRED | EH17: HBD - ABILITY NOT IMPAIRED | EI17: HBD - ABILITY UNKNOWN | EQ17: PrjID | ER17: PrjType | ES17: SumPrjLen | ET17: SumPrjCrash | EU17: PrjCrRate | EV17: PrjCrDensity (Crashes Per Mile Per Year) | EW17: PrjEPDO | EX17: PrjRSI | EY17: PrjADT | EZ17: PrjPercentTruck | FA17: PrjTADT | FB17: PrjV/C | GI17: Row | GJ17: FileName | GK17: FileName_Path | GL17: NLF_ID | GM17: BLOG | GN17: ELOG | GO17: WAADT | GP17: WATADT | GQ17: WA_VC | GR17: MinFC | GS17: MaxFC | GT17: CongLen | GU17: RSI*Crashes | GV17: ADT*Miles | GW17: TADT*Miles | GX17: V/C*Miles
A18: X

Sheet RISeg (hidden)
E7: LocID | F7: NLF_ID | G7: LOGPOINT_COUNTY_BEGIN_NBR | H7: LOGPOINT_COUNTY_END_NBR | I7: SEGMENT_LENGTH_NBR | J7: FUNCTIONAL_CLASS_CD | K7: FED_AID_PRIMARY_CD | L7: NATIONAL_HIGHWAY_SYSTEM_CD | M7: PRIORITY_SYSTEM_CD | N7: AREA_CODE_NUM | O7: MUNICIPALITY_NME | P7: LANES_NBR | Q7: DIVIDED_HIGHWAY_IND | R7: MEDIAN_WIDTH_NBR | S7: FHWA_SURFACE_TYPE_CD | T7: SURFACE_WIDTH_NBR | U7: ROADWAY_WIDTH_NBR | V7: ACCESS_CONTROL_CD | W7: SPEED_LIMIT_NUM | X7: LANE_WIDTH_NBR | Y7: ADT_TOT

Sheet StateBasic (hidden)
E7: LocID | F7: NLF_ID | G7: LOGPOINT_COUNTY_BEGIN_NBR | H7: RI_STATE_BASIC.LOGPOINT_COUNTY_BEGIN_NBR+RI_STATE_BASIC.SEGMENT_LENGTH_NBR | I7: SEGMENT_LENGTH_NBR | J7: ADT_PSNGRCAR_TYPE_A_TRK_NBR | K7: ADT_TOT | L7: ADT_YR | M7: FUNCTIONAL_CLASS_CD | N7: LANES_NBR | O7: DIVIDED_HIGHWAY_IND | P7: PRIORITY_SYSTEM_CD | Q7: SPEED_LIMIT_NBR | R7: RT_NME_DIRECTION_PREFIX_CD | S7: RT_STREET_NME | T7: RT_NME_SUFFIX_CD | U7: RT_NME_DIRECTION_SUFFIX_CD | V7: RT_NME_SPEC_SUFFIX_CD | W7: MUNICIPALITY_NME | X7: ACCESS_CONTROL_CD | Y7: NATIONAL_HIGHWAY_SYSTEM_CD | Z7: MILE_CLASS_CD | AA7: POPULATION_NBR | AB7: NHS_INTERMODAL_NUM | AC7: FHWA_SURFACE_TYPE_CD | AD7: STD_SURFACE_CLASS_CD | AE7: SURFACE_WIDTH_NBR | AF7: ROADWAY_WIDTH_NBR | AG7: SHOULDER_LT_OUTSIDE_NBR | AH7: LT_SHD_SURFACE_CLASS_CD | AI7: LT_SURFACE_WIDTH_NBR | AJ7: SHOULDER_LT_INSIDE_NBR | AK7: SHOULDER_RT_INSIDE_NBR | AL7: RT_SHD_SURFACE_CLASS_CD | AM7: RT_SURFACE_WIDTH_NBR | AN7: SHOULDER_RT_OUTSIDE_NBR | AO7: MEDIAN_WIDTH_NBR | AP7: HPMS_MEDIAN_WIDTH_NBR | AQ7: MEDIAN_TYPE_CD

Sheet Ellis (hidden)
E7: LocID | F7: NLF_ID | G7: LOGPOINT_COUNTY_BEGIN_NBR | H7: LOGPOINT_COUNTY_END_NBR | I7: PID_NBR | J7: AWARD_ENC_REQ_SFY | K7: LOCATION_TYPE | L7: PRIMARY_LOCATION_IND | M7: LATITUDE_BEGIN_NBR | N7: LONGITUDE_BEGIN_NBR | O7: LATITUDE_END_NBR | P7: LONGITUDE_END_NBR | Q7: DISTRICT_NBR | R7: LOCALE_SHORT_NME | S7: PROJECT_NME | T7: PROJ_STATUS_TXT | U7: PROJ_LETTING_TYPE | V7: PRIMARY_WORK_CATEGORY | W7: TRAC_TIER_SHORT_NME | X7: PROGRAM_FAMILY_SHORT_NME | Y7: PROJECT_MGR_NME | Z7: ARRA_PROJECT_IND | AA7: MPO_STIMULUS_ALLOC | AB7: ODOT_STIMULUS_PROJ | AC7: RURAL_TRANSIT_STIMULUS_PROJ | AD7: URBAN_TRANSIT_STIMULUS_PROJ | AE7: AWARD_AMT | AF7: COMMITTED_EST_AMT | AG7: UNCOMMITTED_EST_AMT | AH7: TOTAL_EST_AMT | AI7: TOTAL_AWARD_EST_AMT | AJ7: COMMITTED_IND | AK7: ACT_CUR_AWARD_DT | AL7: PROJ_START_EST_DT | AM7: PROJ_START_ACTUAL_DT | AN7: PROJ_COMPL_EST_DT | AO7: PROJ_COMPL_ACTUAL_DT | AP7: ACTUAL_PRIORITY_MILES | AQ7: ACTUAL_URBAN_MILES | AR7: ACTUAL_GENERAL_MILES | AS7: TOTAL_LANE_MILES | AT7: SLM_MILES | AU7: IMPROVED_PCR | AV7: PVMNT_TRTMNT_CAT_LONG_NME | AW7: STRUCTURE_FILE_NBR | AX7: BRG_STAT_DESC | AY7: MAJOR_BRG_SW | AZ7: MAINT_RESP_DESC | BA7: MAIN_STRUC_TYPE | BB7: MAIN_SPAN_MATL_DESC | BC7: MAIN_SPAN_TYPE_DESC | BD7: MAIN_SPAN_DESC | BE7: DECK_AREA | BF7: OVRL_STR_LEN | BG7: SUFF_RATING | BH7: DEF_FUNC_RATING_DESC | BI7: BRG_DEF_CD_IND | BJ7: GENERAL_APPRAISAL_IND | BK7: FLOOR_CONDITION_IND | BL7: WEARING_SURFACE_IND | BM7: PAINT_IND | BN7: GENERAL_APPRAISAL_RATING | BO7: FLOOR_CONDITION_RATING | BP7: WEARING_SURFACE_RATING | BQ7: PAINT_CONDITION_RATING | BR7: SPOT_LOCATION_TYPE | BS7: SPOT_LOCATION_DESC

Sheet Pavement (hidden)
E7: LocID | F7: NLF_ID | G7: LOGPOINT_COUNTY_BEGIN_NBR | H7: LOGPOINT_COUNTY_END_NBR | I7: SEGMENT_LENGTH_NBR | J7: PCR_NBR | K7: DEDUCT_TOTAL_NBR | L7: DEDUCT_STRUCTURAL_NBR | M7: DIVIDED_UNDIVIDED_IND | N7: DIRECTION_TXT | O7: PAVEMENT_TYPE_CD | P7: PAVEMENT_TYPE_TXT | Q7: CODE_1 | R7: CODE_2 | S7: CODE_3 | T7: CODE_4 | U7: CODE_5 | V7: CODE_6 | W7: CODE_7 | X7: CODE_8 | Y7: CODE_9 | Z7: CODE_10 | AA7: CODE_11 | AB7: CODE_12 | AC7: CODE_13 | AD7: CODE_14 | AE7: CODE_15 | AF7: CODE_16 | AG7: CODE_17

Sheet Bridge (hidden)
E7: LocID | F7: NLF_ID_INV | G7: LOGPOINT_COUNTY_INV_NBR | H7: LATITUDE_INV_NBR | I7: LONGITUDE_INV_NBR | J7: sfn | K7: DECK_AREA | L7: GEN_APPRAISAL | M7: DECK_FLOOR | N7: DECK_WEAR_SURF | O7: PAINT | P7: DEFIC_FUNC_RATING | Q7: SUFF_RATING | R7: MAINT_RESP_CD | S7: OVRL_STR_LEN | T7: GEN_OPR_STATUS | U7: YR_BUILT | V7: MAIN_STRUC_TYPE

Sheet AssetSQL (hidden)
C11: 3 | D11: 4 | E11: 5 | F11: 6 | G11: 7 | H11: 8 | I11: 9 | J11: 10 | K11: 11 | L11: 12 | M11: 13 | N11: 14 | O11: 15 | P11: 16 | Q11: 17 | R11: 18 | S11: 19 | T11: 20 | U11: 21 | V11: 22 | W11: 23 | X11: 24 | Y11: 25 | Z11: 26 | AA11: 27 | AB11: 28 | AC11: 29 | AD11: 30 | AE11: 31 | AF11: 32 | AG11: 33 | AH11: 34 | AI11: 35 | AJ11: 36 | AK11: 37 | AL11: 38 | AM11: 39 | AN11: 40 | AO11: 41 | AP11: 42 | AQ11: 43 | AR11: 44 | AS11: 45 | AT11: 46 | AU11: 47 | AV11: 48 | AW11: 49 | AX11: 50 | AY11: 51 | AZ11: 52 | BA11: 53 | BB11: 54 | BC11: 55 | BD11: 56 | BE11: 57 | BF11: 58 | BG11: 59 | BH11: 60 | BI11: 61 | BJ11: 62 | BK11: 63 | BL11: 64 | BM11: 65 | BN11: 66 | BO11: 67 | BP11: 68 | BQ11: 69 | BR11: 70 | BS11: 71 | BT11: 72 | BU11: 73 | BV11: 74 | BW11: 75 | BX11: 76 | BY11: 77 | BZ11: 78 | CA11: 79 | CB11: 80 | CC11: 81 | CD11: 82 | CE11: 83 | CF11: 84 | CG11: 85 | CH11: 86 | CI11: 87 | CJ11: 88 | CK11: 89 | CL11: 90 | CM11: 91 | CN11: 92 | CO11: 93 | CP11: 94 | CQ11: 95 | CR11: 96 | CS11: 97 | CT11: 98 | CU11: 99 | CV11: 100 | CW11: 101 | CX11: 102 | CY11: 103 | CZ11: 104 | DA11: 105 | DB11: 106 | DC11: 107 | DD11: 108 | DE11: 109 | DF11: 110 | DG11: 111 | DH11: 112 | DI11: 113 | DJ11: 114 | DK11: 115 | DL11: 116 | DM11: 117 | DN11: 118 | DO11: 119 | DP11: 120 | DQ11: 121 | DR11: 122 | DS11: 123 | DT11: 124 | DU11: 125 | DV11: 126 | DW11: 127 | DX11: 128 | DY11: 129 | DZ11: 130 | EA11: 131 | EB11: 132 | EC11: 133 | ED11: 134 | EE11: 135 | EF11: 136 | EG11: 137 | EH11: 138 | EI11: 139 | EJ11: 140 | EK11: 141 | EL11: 142 | EM11: 143 | EN11: 144 | EO11: 145 | EP11: 146 | EQ11: 147 | ER11: 148 | ES11: 149 | ET11: 150 | EU11: 151 | EV11: 152 | EW11: 153 | EX11: 154 | EY11: 155 | EZ11: 156 | FA11: 157 | FB11: 158 | FC11: 159 | FD11: 160 | FE11: 161 | FF11: 162 | FG11: 163 | FH11: 164 | FI11: 165 | FJ11: 166 | FK11: 167 | FL11: 168 | FM11: 169 | FN11: 170 | FO11: 171 | FP11: 172 | FQ11: 173 | FR11: 174 | FS11: 175 | FT11: 176 | FU11: 177 | FV11: 178 | FW11: 179 | FX11: 180 | FY11: 181 | FZ11: 182 | GA11: 183 | GB11: 184 | GC11: 185 | GD11: 186 | GE11: 187 | GF11: 188 | GG11: 189 | GH11: 190 | GI11: 191 | GJ11: 192 | GK11: 193 | GL11: 194 | GM11: 195 | GN11: 196 | GO11: 197 | GP11: 198 | GQ11: 199 | GR11: 200 | GS11: 201
A18: RI Segments | AC18: State Basic | BW18: EllisProjLocation | ES18: Pavement | GB18: Bridge
A20: LocID | B20: NLF_ID | C20: LOGPOINT_COUNTY_BEGIN_NBR | D20: LOGPOINT_COUNTY_END_NBR | E20: SEGMENT_LENGTH_NBR | F20: FUNCTIONAL_CLASS_CD | G20: FED_AID_PRIMARY_CD | H20: NATIONAL_HIGHWAY_SYSTEM_CD | I20: PRIORITY_SYSTEM_CD | J20: AREA_CODE_NUM | K20: MUNICIPALITY_NME | L20: LANES_NBR | M20: DIVIDED_HIGHWAY_IND | N20: MEDIAN_WIDTH_NBR | O20: FHWA_SURFACE_TYPE_CD | P20: SURFACE_WIDTH_NBR | Q20: ROADWAY_WIDTH_NBR | R20: ACCESS_CONTROL_CD | S20: SPEED_LIMIT_NUM | T20: LANE_WIDTH_NBR | U20: ADT_TOT | AC20: LocID | AD20: NLF_ID | AE20: LOGPOINT_COUNTY_BEGIN_NBR | AF20: RI_STATE_BASIC.LOGPOINT_COUNTY_BEGIN_NBR+RI_STATE_BASIC.SEGMENT_LENGTH_NBR | AG20: SEGMENT_LENGTH_NBR | AH20: ADT_PSNGRCAR_TYPE_A_TRK_NBR | AI20: ADT_TOT | AJ20: ADT_YR | AK20: FUNCTIONAL_CLASS_CD | AL20: LANES_NBR | AM20: DIVIDED_HIGHWAY_IND | AN20: PRIORITY_SYSTEM_CD | AO20: SPEED_LIMIT_NBR | AP20: RT_NME_DIRECTION_PREFIX_CD | AQ20: RT_STREET_NME | AR20: RT_NME_SUFFIX_CD | AS20: RT_NME_DIRECTION_SUFFIX_CD | AT20: RT_NME_SPEC_SUFFIX_CD | AU20: MUNICIPALITY_NME | AV20: ACCESS_CONTROL_CD | AW20: NATIONAL_HIGHWAY_SYSTEM_CD | AX20: MILE_CLASS_CD | AY20: POPULATION_NBR | AZ20: NHS_INTERMODAL_NUM | BA20: FHWA_SURFACE_TYPE_CD | BB20: STD_SURFACE_CLASS_CD | BC20: SURFACE_WIDTH_NBR | BD20: ROADWAY_WIDTH_NBR | BE20: SHOULDER_LT_OUTSIDE_NBR | BF20: LT_SHD_SURFACE_CLASS_CD | BG20: LT_SURFACE_WIDTH_NBR | BH20: SHOULDER_LT_INSIDE_NBR | BI20: SHOULDER_RT_INSIDE_NBR | BJ20: RT_SHD_SURFACE_CLASS_CD | BK20: RT_SURFACE_WIDTH_NBR | BL20: SHOULDER_RT_OUTSIDE_NBR | BM20: MEDIAN_WIDTH_NBR | BN20: HPMS_MEDIAN_WIDTH_NBR | BO20: MEDIAN_TYPE_CD | BW20: LocID | BX20: NLF_ID | BY20: LOGPOINT_COUNTY_BEGIN_NBR | BZ20: LOGPOINT_COUNTY_END_NBR | CA20: PID_NBR | CB20: AWARD_ENC_REQ_SFY | CC20: LOCATION_TYPE | CD20: PRIMARY_LOCATION_IND | CE20: LATITUDE_BEGIN_NBR | CF20: LONGITUDE_BEGIN_NBR | CG20: LATITUDE_END_NBR | CH20: LONGITUDE_END_NBR | CI20: DISTRICT_NBR | CJ20: LOCALE_SHORT_NME | CK20: PROJECT_NME | CL20: PROJ_STATUS_TXT | CM20: PROJ_LETTING_TYPE | CN20: PRIMARY_WORK_CATEGORY | CO20: TRAC_TIER_SHORT_NME | CP20: PROGRAM_FAMILY_SHORT_NME | CQ20: PROJECT_MGR_NME | CR20: ARRA_PROJECT_IND | CS20: MPO_STIMULUS_ALLOC | CT20: ODOT_STIMULUS_PROJ | CU20: RURAL_TRANSIT_STIMULUS_PROJ | CV20: URBAN_TRANSIT_STIMULUS_PROJ | CW20: AWARD_AMT | CX20: COMMITTED_EST_AMT | CY20: UNCOMMITTED_EST_AMT | CZ20: TOTAL_EST_AMT | DA20: TOTAL_AWARD_EST_AMT | DB20: COMMITTED_IND | DC20: ACT_CUR_AWARD_DT | DD20: PROJ_START_EST_DT | DE20: PROJ_START_ACTUAL_DT | DF20: PROJ_COMPL_EST_DT | DG20: PROJ_COMPL_ACTUAL_DT | DH20: ACTUAL_PRIORITY_MILES | DI20: ACTUAL_URBAN_MILES | DJ20: ACTUAL_GENERAL_MILES | DK20: TOTAL_LANE_MILES | DL20: SLM_MILES | DM20: IMPROVED_PCR | DN20: PVMNT_TRTMNT_CAT_LONG_NME | DO20: STRUCTURE_FILE_NBR | DP20: BRG_STAT_DESC | DQ20: MAJOR_BRG_SW | DR20: MAINT_RESP_DESC | DS20: MAIN_STRUC_TYPE | DT20: MAIN_SPAN_MATL_DESC | DU20: MAIN_SPAN_TYPE_DESC | DV20: MAIN_SPAN_DESC | DW20: DECK_AREA | DX20: OVRL_STR_LEN | DY20: SUFF_RATING | DZ20: DEF_FUNC_RATING_DESC | EA20: BRG_DEF_CD_IND | EB20: GENERAL_APPRAISAL_IND | EC20: FLOOR_CONDITION_IND | ED20: WEARING_SURFACE_IND | EE20: PAINT_IND | EF20: GENERAL_APPRAISAL_RATING | EG20: FLOOR_CONDITION_RATING | EH20: WEARING_SURFACE_RATING | EI20: PAINT_CONDITION_RATING | EJ20: SPOT_LOCATION_TYPE | EK20: SPOT_LOCATION_DESC | ES20: LocID | ET20: NLF_ID | EU20: LOGPOINT_COUNTY_BEGIN_NBR | EV20: LOGPOINT_COUNTY_END_NBR | EW20: SEGMENT_LENGTH_NBR | EX20: PCR_NBR | EY20: DEDUCT_TOTAL_NBR | EZ20: DEDUCT_STRUCTURAL_NBR | FA20: DIVIDED_UNDIVIDED_IND | FB20: DIRECTION_TXT | FC20: PAVEMENT_TYPE_CD | FD20: PAVEMENT_TYPE_TXT | FE20: CODE_1 | FF20: CODE_2 | FG20: CODE_3 | FH20: CODE_4 | FI20: CODE_5 | FJ20: CODE_6 | FK20: CODE_7 | FL20: CODE_8 | FM20: CODE_9 | FN20: CODE_10 | FO20: CODE_11 | FP20: CODE_12 | FQ20: CODE_13 | FR20: CODE_14 | FS20: CODE_15 | FT20: CODE_16 | FU20: CODE_17 | GB20: LocID | GC20: NLF_ID_INV | GD20: LOGPOINT_COUNTY_INV_NBR | GE20: LATITUDE_INV_NBR | GF20: LONGITUDE_INV_NBR | GG20: sfn | GH20: DECK_AREA | GI20: GEN_APPRAISAL | GJ20: DECK_FLOOR | GK20: DECK_WEAR_SURF | GL20: PAINT | GM20: DEFIC_FUNC_RATING | GN20: SUFF_RATING | GO20: MAINT_RESP_CD | GP20: OVRL_STR_LEN | GQ20: GEN_OPR_STATUS | GR20: YR_BUILT | GS20: MAIN_STRUC_TYPE

Sheet CamSQL (hidden)
A3: =D12&"-"&D13&D14&" - ("&D15&"-"&D16&") "&"From "&D17&" to "&D18 -> CLE-IR-275R - (8.95-10.4) From 2007 to 2009
B11: 22 | C11: 3 | D11: 4 | E11: 5 | F11: 6 | G11: 7 | H11: 8 | I11: 9 | J11: 10 | K11: 11 | L11: 12 | M11: 13 | N11: 14 | O11: 15 | P11: 16 | Q11: 17 | R11: 18 | S11: 19 | T11: 20 | U11: 21 | V11: 22 | W11: 23 | X11: 24 | Y11: 25 | Z11: 26 | AA11: 27 | AB11: 28 | AC11: 29 | AD11: 30 | AE11: 31 | AF11: 32 | AG11: 33 | AH11: 34 | AI11: 35 | AJ11: 36 | AK11: 37 | AL11: 38 | AM11: 39 | AN11: 40 | AO11: 41 | AP11: 42 | AQ11: 43 | AR11: 44 | AS11: 45 | AT11: 46 | AU11: 47 | AV11: 48 | AW11: 49 | AX11: 50 | AY11: 51 | AZ11: 52 | BA11: 53 | BB11: 54 | BC11: 55 | BD11: 56 | BE11: 57 | BF11: 58 | BG11: 59 | BH11: 60 | BI11: 61 | BJ11: 62 | BK11: 63 | BL11: 64 | BM11: 65 | BN11: 66 | BO11: 67 | BP11: 68 | BQ11: 69 | BR11: 70 | BS11: 71 | BT11: 72 | BU11: 73 | BV11: 74 | BW11: 75 | BX11: 76 | BY11: 77 | BZ11: 78 | CA11: 79 | CB11: 80 | CC11: 81 | CD11: 82 | CE11: 83 | CF11: 84 | CG11: 85 | CH11: 86 | CI11: 87 | CJ11: 88 | CK11: 89 | CL11: 90 | CM11: 91 | CN11: 92 | CO11: 93 | CP11: 94 | CQ11: 95 | CR11: 96 | CS11: 97 | CT11: 98 | CU11: 99 | CV11: 100 | CW11: 101 | CX11: 102 | CY11: 103 | CZ11: 104 | DA11: 105 | DB11: 106 | DC11: 107 | DD11: 108 | DE11: 109 | DF11: 110 | DG11: 111 | DH11: 112 | DI11: 113 | DJ11: 114 | DK11: 115 | DL11: 116 | DM11: 117 | DN11: 118 | DO11: 119 | DP11: 120 | DQ11: 121 | DR11: 122 | DS11: 123 | DT11: 124 | DU11: 125 | DV11: 126 | DW11: 127 | DX11: 128 | DY11: 129 | DZ11: 130 | EA11: 131 | EB11: 132 | EC11: 133 | ED11: 134 | EE11: 135 | EF11: 136 | EG11: 137 | EH11: 138 | EI11: 139 | EJ11: 140 | EK11: 141 | EL11: 142 | EM11: 143 | EN11: 144 | EO11: 145 | EP11: 146 | EQ11: 147 | ER11: 148 | ES11: 149 | ET11: 150 | EU11: 151 | EV11: 152 | EW11: 153 | EX11: 154 | EY11: 155 | EZ11: 156 | FA11: 157 | FB11: 158 | FC11: 159 | FD11: 160 | FE11: 161 | FF11: 162 | FG11: 163 | FH11: 164 | FI11: 165 | FJ11: 166 | FK11: 167 | FL11: 168 | FM11: 169 | FN11: 170 | FO11: 171 | FP11: 172 | FQ11: 173 | FR11: 174 | FS11: 175 | FT11: 176 | FU11: 177 | FV11: 178 | FW11: 179 | FX11: 180 | FY11: 181 | FZ11: 182 | GA11: 183 | GB11: 184 | GC11: 185 | GD11: 186 | GE11: 187 | GF11: 188 | GG11: 189 | GH11: 190 | GI11: 191 | GJ11: 192 | GK11: 193 | GL11: 194 | GM11: 195 | GN11: 196 | GO11: 197 | GP11: 198 | GQ11: 199 | GR11: 200
B12: Slm!1County | C12: 1 | D12: =MID(H13,2,3) -> CLE | H12: NLF_ID | I12: BEGIN_LOG | J12: END_LOG | K12: BEGIN_YEAR | L12: END_YEAR
B13: Slm!2Route | C13: 1 | D13: =MID(H13,5,2)&"-"&MID(H13,9,3) -> IR-275 | H13: SCLEIR00275**C | I13: 8.95 | J13: 10.4 | K13: 2007 | L13: 2009
B14: Slm!31RouteSuffix | C14: 1 | D14: =IF(MID(H13,13,1)="*","R",(MID(H13,13,1))) -> R
B15: Slm!3Begin | C15: 1 | D15: =I13 -> 8.95
B16: Slm!4End | C16: 1 | D16: =J13 -> 10.4
B17: TCrashDte!1Begin | C17: 1 | D17: =K13 -> 2007
B18: TCrashDte!2End | C18: 1 | D18: =L13 -> 2009
A19: =IF(AQ19="","",HYPERLINK(AQ19,"Crash Report")) ->  | B19: Logged or Unlogged | C19: 1 | D19: L
A20: HYPERLINK | B20: ACCIDENTS_POINTS_NBR | C20: LOCAL_REPORT_NBR | D20: NLF_ID | E20: LOGPOINT_SLM_NBR | F20: CRASH_DT | G20: STREET1 | H20: STREET2_REFERENCE | I20: DISTANCE_OFFSET | J20: DAY_OF_WEEK_TXT | K20: HOUR_OF_DAY | L20: LIGHT_CONDITION_TXT | M20: TYPE_OF_CRASH_TXT | N20: NUMBER_OF_VEHICLES | O20: CRASH_SEVERITY_TXT | P20: WEATHER_CONDITION_TXT | Q20: ROAD_CONDITION_TXT | R20: LOCATION_TXT | S20: CONTRIBUTING_FACTOR1_TXT | T20: ACTION1_TXT | U20: OBJECT_STRUCK1_TXT | V20: VEHICLE_TYPE1_TXT | W20: DIRECTION_FROM1_TXT | X20: DIRECTION_TO1_TXT | Y20: DRIVER_AGE1 | Z20: DRIVER_GENDER1_TXT | AA20: TRAFFIC_CONTROL1_TXT | AB20: DRIVER_ALCOHOL1_TXT | AC20: DRIVER_DRUGS1_TXT | AD20: ESTIMATED_SPEED1_TXT | AE20: POSTED_SPEED1_TXT | AF20: CONTRIBUTING_FACTOR2_TXT | AG20: ACTION2_TXT | AH20: VEHICLE_TYPE2_TXT | AI20: DRIVER_AGE2 | AJ20: DRIVER_GENDER2_TXT | AK20: DIRECTION_FROM2_TXT | AL20: DIRECTION_TO2_TXT | AM20: DRIVER_ALCOHOL2_TXT | AN20: DRIVER_DRUGS2_TXT | AO20: SPECIAL_AREA_TXT | AP20: ANIMAL_TYPE_TXT | AQ20: FILENAME_NME | AR20: ROAD_CONTOUR_TXT | AS20: INJ_TYPE1_FATAL | AT20: INJ_TYPE2_SERIOUS_VISIBLE | AU20: INJ_TYPE3_MINOR_VISIBLE | AV20: INJ_TYPE4_NO_VISIBLE | AW20: DIRECTION_FROM_REF_TXT | AX20: DISTRICT_NBR | AY20: COUNTY_CD | AZ20: CITY_VILLAGE_TWP_CD | BA20: CITY_VILLAGE_TWP_NME | BB20: LATITUDE_NBR | BC20: LONGITUDE_NBR | BD20: TRAFFIC_CRASH_YEAR | BE20: CRASH_MONTH_NBR | BF20: TRAFFIC_CONTROL2_TXT | BG20: VIOLATOR_CD | BH20: FUNCTIONAL_CLASS_CD | BI20: CRASH_PREFIX_CD | BJ20: CRASH_LOCATION_TXT | BK20: CRASH_LOC_ROAD_TYPE_CD | BL20: TYPE_LOCATION_PT_USED_CD | BM20: DISTANCE_FROM_REF_NBR | BN20: DIRECTION_FROM_REF_CD | BO20: REFERENCE_PREFIX_CD | BP20: REFERENCE_POINT_TXT | BQ20: REFERENCE_TYPE_CD | BR20: REFERENCE_POINT_USED_CD | BS20: TYPE_OF_INTERSECTION_CD

Sheet ODPS_Data (hidden)
F20: DocumentNumber | G20: LocalReportNumber | H20: NCIC | I20: NumberOfUnits | J20: ErrorUnitNumber | K20: SeverityID | L20: HitSkipID | M20: COUNTYID | N20: FIPSPlaceCode | O20: CityVillageTownshipId | P20: CITY | Q20: CrashDate | R20: CrashTime | S20: CrashDay | T20: CrashPrefix | U20: LocationRoadName | V20: LocationRoadType | W20: DistanceFromReference | X20: DirectionReference | Y20: ReferencePrefix | Z20: ReferenceRoadName | AA20: ReferenceRoadType | AB20: ReferencePointUsedID | AC20: LATITUDE | AD20: LONGITUDE | AE20: WeatherConditionID | AF20: PrimaryRoadConditionID | AG20: SecondaryRoadConditionID | AH20: PrimaryLightConditionID | AI20: SecondaryLightConditionID | AJ20: RoadContourID | AK20: LocationFirstHarmfulEvent | AL20: CollisionTypeID | AM20: DividedUnDividedRoadway | AN20: DIVIDEDLANEDIRECTION | AO20: DistanceReferenceMeasurement | AP20: ReferenceRouteType | AQ20: ReferenceRouteNumber | AR20: LocationRouteType | AS20: LocationRouteNumber | AT20: IsIntersectionRelated | AU20: IsSchoolZoneRelated | AV20: LawEnforcementPresentID | AW20: IsWorkerPresent | AX20: WorkZoneLocationID | AY20: WorkZoneType | AZ20: ROADSURFACE | BA20: NUMBEROFLANES | BB20: CrashLocation | BC20: SchoolBusRelatedID | BD20: IsWorkZoneRelated | BE20: UnitNumber_1 | BF20: OCCUPANTS_1 | BG20: ISPROOFOFINSURANCESHOWN_1 | BH20: IsTowedFlag_1 | BI20: FromDirectionID_1 | BJ20: ToDirectionID_1 | BK20: MostDamagedAreaID_1 | BL20: DamageScaleID_1 | BM20: UnitTypeID_1 | BN20: UnitSpeed_1 | BO20: PostedSpeed_1 | BP20: PreCrashActionID_1 | BQ20: TrafficControlID_1 | BR20: CircumstanceID_1 | BS20: DefectCodeID_1 | BT20: SequenceEvent1ID_1 | BU20: SequenceEvent2ID_1 | BV20: SequenceEvent3ID_1 | BW20: SequenceEvent4ID_1 | BX20: SequenceEvent5ID_1 | BY20: SequenceEvent6ID_1 | BZ20: FirstHarmfulEventID_1 | CA20: MostHarmfulEventID_1 | CB20: ActionTypeID_1 | CC20: ImpactAreaID_1 | CD20: NonMotoristLocationID_1 | CE20: CargoBodyTypeID_1 | CF20: WeightClassID_1 | CG20: OLClass_1 | CH20: HasHMPlacard_1 | CI20: IsHazardousMaterialReleased_1 | CJ20: AGE_1 | CK20: GenderID_1 | CL20: InjuredTakenBy_1 | CM20: SafetyEquipmentTypeID_1 | CN20: AirbagDeployTypeID_1 | CO20: InjuryTypeID_1 | CP20: DriverConditionID_1 | CQ20: AlcoholDrugSuspectTypeID_1 | CR20: TrafficwayDescriptionId_1 | CS20: IsHitAndRun_1 | CT20: SpecialFunctionId_1 | CU20: CIRCUMSTANCE2ID_1 | CV20: DOTCompMotorCycleHelmet_1 | CW20: DriverDistractedBy1Id_1 | CX20: DriverDistractedBy2Id_1 | CY20: HandsFreeDeviceUsed_1 | CZ20: IsValidOPeratorLicense_1 | DA20: TypeOfUseID_1 | DB20: MotorcycleEndorsementID_1 | DC20: UnitNumber_2 | DD20: OCCUPANTS_2 | DE20: IsProofOfInsuranceShown_2 | DF20: IsTowedFlag_2 | DG20: FromDirectionID_2 | DH20: ToDirectionID_2 | DI20: MostDamagedAreaID_2 | DJ20: DamageScaleID_2 | DK20: UnitTypeID_2 | DL20: UnitSpeed_2 | DM20: PostedSpeed_2 | DN20: PreCrashActionID_2 | DO20: TrafficControlID_2 | DP20: CircumstanceID_2 | DQ20: DefectCodeID_2 | DR20: SequenceEvent1ID_2 | DS20: SequenceEvent2ID_2 | DT20: SequenceEvent3ID_2 | DU20: SequenceEvent4ID_2 | DV20: SequenceEvent5ID_2 | DW20: SequenceEvent6ID_2 | DX20: FirstHarmfulEventID_2 | DY20: MostHarmfulEventID_2 | DZ20: ActionTypeID_2 | EA20: ImpactAreaID_2 | EB20: NonMotoristLocationID_2 | EC20: CargoBodyTypeID_2 | ED20: WeightClassID_2 | EE20: OLClass_2 | EF20: HasHMPlacard_2 | EG20: IsHazardousMaterialReleased_2 | EH20: AGE_2 | EI20: GenderID_2 | EJ20: InjuredTakenBy_2 | EK20: SafetyEquipmentTypeID_2 | EL20: AirbagDeployTypeID_2 | EM20: InjuryTypeID_2 | EN20: DriverConditionID_2 | EO20: AlcoholDrugSuspectTypeID_2 | EP20: TrafficwayDescriptionId_2 | EQ20: IsHitAndRun_2 | ER20: SpecialFunctionId_2 | ES20: CIRCUMSTANCE2ID_2 | ET20: DOTCompMotorCycleHelmet_2 | EU20: DriverDistractedBy1Id_2 | EV20: DriverDistractedBy2Id_2 | EW20: HandsFreeDeviceUsed_2 | EX20: IsValidOPeratorLicense_2 | EY20: TypeOfUseID_2 | EZ20: MotorcycleEndorsementID_2 | FA20: UnitNumber_3 | FB20: OCCUPANTS_3 | FC20: IsProofOfInsuranceShown_3 | FD20: IsTowedFlag_3 | FE20: FromDirectionID_3 | FF20: ToDirectionID_3 | FG20: MostDamagedAreaID_3 | FH20: DamageScaleID_3 | FI20: UnitTypeID_3 | FJ20: UnitSpeed_3 | FK20: PostedSpeed_3 | FL20: PreCrashActionID_3 | FM20: TrafficControlID_3 | FN20: CircumstanceID_3 | FO20: DefectCodeID_3 | FP20: SequenceEvent1ID_3 | FQ20: SequenceEvent2ID_3 | FR20: SequenceEvent3ID_3 | FS20: SequenceEvent4ID_3 | FT20: SequenceEvent5ID_3 | FU20: SequenceEvent6ID_3 | FV20: FirstHarmfulEventID_3 | FW20: MostHarmfulEventID_3 | FX20: ActionTypeID_3 | FY20: ImpactAreaID_3 | FZ20: NonMotoristLocationID_3 | GA20: CargoBodyTypeID_3 | GB20: WeightClassID_3 | GC20: OLClass_3 | GD20: HasHMPlacard_3 | GE20: IsHazardousMaterialReleased_3 | GF20: AGE_3 | GG20: GenderID_3 | GH20: InjuredTakenBy_3 | GI20: SafetyEquipmentTypeID_3 | GJ20: AirbagDeployTypeID_3 | GK20: InjuryTypeID_3 | GL20: DriverConditionID_3 | GM20: AlcoholDrugSuspectTypeID_3 | GN20: TrafficwayDescriptionId_3 | GO20: IsHitAndRun_3 | GP20: SpecialFunctionId_3 | GQ20: Circumstance2Id_3 | GR20: DOTCompMotorCycleHelmet_3 | GS20: DriverDistractedBy1Id_3 | GT20: DriverDistractedBy2Id_3 | GU20: HandsFreeDeviceUsed_3 | GV20: IsValidOPeratorLicense_3 | GW20: TypeOfUseID_3 | GX20: MotorcycleEndorsementID_3 | GY20: PED_AGE | GZ20: PED_GenderID | HA20: PED_InjuredTakenBy | HB20: PED_InjuryTypeID | HC20: PED_ConditionID | HD20: PED_AlcoholDrugSuspectTypeID | HE20: PED_PreCrashActionID | HF20: PED_CircumstanceID | HG20: PED_ActionTypeID | HH20: PED_NonMotoristLocationID | HI20: TotalInjured | HJ20: TotalKilled | HK20: TotalInjuries_1 | HL20: TotalInjuries_2 | HM20: TotalInjuries_3 | HN20: TotalInjuries_4 | HO20: TotalInjuries_5 | HP20: TotalInjuries_6 | HQ20: Total_Pedestrians | HR20: Total_PedestrianInjuries | HS20: Total_PedestrianDeaths | HT20: IsAlcoholRelated | HU20: IsDrugRelated | HV20: AnimalRelated | HW20: IsBicycleRelated | HX20: IsMotorcycleRelated | HY20: IsSpeedRelated | HZ20: IsPedestrianRelated | IA20: IsSemiTruckRelated | IB20: IsSmallTruckRelated | IC20: IsYouthRelated | ID20: IsTeenRelated | IE20: IsDUI21Related | IF20: IsSeniorRelated | IG20: OD_DOCNO | IH20: NLF_ID | II20: DISTRICT | IJ20: OD_COUNTY | IK20: ROUTE_TYPE | IL20: ROUTE_SUFFIX | IM20: SLM_LOG | IN20: COUNTY_TRUE_LOG | IO20: STATE_TRUE_LOG | IP20: OD_LATITUDE | IQ20: OD_LONGITUDE | IR20: FIPS_CODE | IS20: FLIP_INDICATOR | IT20: PROBABLE_INTERSECT_REL | IU20: CRASH_TYPE

Sheet RefTables (hidden)
G1: Header | H1: Category Txt | I1: Code ID | J1: LookVal | K1: Code Text | L1: Active Inc | M1: Sort Nbr | N1: Code Text (NEW) | T1: ODPS Lookup | U1: Vehicle Type | X1: Contributing Circumstances | AA1: Action | AD1: Unit Speed Range
G2: CRASH_SEVERITY_CD | H2: CRASH_SEVERITY_CD_FRM | I2: 1 | J2: CRASH_SEVERITY_CD1 | K2: Fatal Crash | L2: N | N2: Fatal Crash | U2: Old | V2: New | X2: Old | Y2: New | AA2: Old | AB2: New | AD2: Range Num | AE2: Code
G3: CRASH_SEVERITY_CD | H3: CRASH_SEVERITY_CD_FRM | I3: 2 | J3: CRASH_SEVERITY_CD2 | K3: Injury Crash | L3: N | N3: Injury Crash | U3: 1 | V3: 1 | W3: Sub-Compact | X3: 1 | Y3: 1 | Z3: None | AA3: 1 | AB3: 1 | AC3: Straight Ahead | AD3: 0 | AE3: 1 | AF3: U1_UNIT_SPEED_RANGE_CD1 | AG3: Unit Speed 20 and Under
G4: CRASH_SEVERITY_CD | H4: CRASH_SEVERITY_CD_FRM | I4: 3 | J4: CRASH_SEVERITY_CD3 | K4: Property Damage Crash | L4: N | N4: Property Damage Only Crash | U4: 2 | V4: 2 | W4: Compact | X4: 2 | Y4: 2 | Z4: Failure To Yield | AA4: 2 | AB4: 2 | AC4: Backing | AD4: 21 | AE4: 2 | AF4: U1_UNIT_SPEED_RANGE_CD2 | AG4: Unit Speed 21-25
G5: SEVERITY_BY_TYPE_CD | H5: Crash Severity | I5: 1 | J5: SEVERITY_BY_TYPE_CD1 | K5: PDO/No Injury | L5: Y | M5: 5 | N5: PDO/No Injury | U5: 3 | V5: 3 | W5: Mid Size | X5: 3 | Y5: 3 | Z5: Ran Red Light | AA5: 3 | AB5: 3 | AC5: Changing Lanes | AD5: 26 | AE5: 3 | AF5: U1_UNIT_SPEED_RANGE_CD3 | AG5: Unit Speed 26-30
G6: SEVERITY_BY_TYPE_CD | H6: Crash Severity | I6: 2 | J6: SEVERITY_BY_TYPE_CD2 | K6: Possible | L6: Y | M6: 4 | N6: Possible | U6: 24 | V6: 12 | W6: Other Passenger Vehicle | X6: 3 | Y6: 4 | Z6: Ran Stop Sign | AA6: 4 | AB6: 4 | AC6: Overtaking/Passing | AD6: 31 | AE6: 4 | AF6: U1_UNIT_SPEED_RANGE_CD4 | AG6: Unit Speed 31-35
G7: SEVERITY_BY_TYPE_CD | H7: Crash Severity | I7: 3 | J7: SEVERITY_BY_TYPE_CD3 | K7: Non-Incapacitating | L7: Y | M7: 3 | N7: Non-Incapacitating | U7: 27 | V7: 12 | W7: Other Passenger Vehicle | X7: 4 | Y7: 5 | Z7: Exceeded Speed Limit | AA7: 5 | AB7: 5 | AC7: Making Right Turn | AD7: 36 | AE7: 5 | AF7: U1_UNIT_SPEED_RANGE_CD5 | AG7: Unit Speed 36-40
G8: SEVERITY_BY_TYPE_CD | H8: Crash Severity | I8: 4 | J8: SEVERITY_BY_TYPE_CD4 | K8: Incapacitating | L8: Y | M8: 2 | N8: Incapacitating | U8: 4 | V8: 4 | W8: Full Size | X8: 5 | Y8: 6 | Z8: Unsafe Speed | AA8: 6 | AB8: 6 | AC8: Making Left Turn | AD8: 41 | AE8: 6 | AF8: U1_UNIT_SPEED_RANGE_CD6 | AG8: Unit Speed 41-45
G9: SEVERITY_BY_TYPE_CD | H9: Crash Severity | I9: 5 | J9: SEVERITY_BY_TYPE_CD5 | K9: Fatal | L9: Y | M9: 1 | N9: Fatal | U9: 5 | V9: 5 | W9: Minivan | X9: 6 | Y9: 7 | Z9: Improper Turn | AA9: 7 | AB9: 7 | AC9: Making U-Turn | AD9: 46 | AE9: 7 | AF9: U1_UNIT_SPEED_RANGE_CD7 | AG9: Unit Speed 46-50
G10: CRASH_TYPE_CD | H10: Crash Type | I10: 0 | J10: CRASH_TYPE_CD0 | K10: Unknown | L10: Y | M10: 1 | N10: Unknown | U10: 6 | V10: 6 | W10: Sport Utility Vehicle | X10: 7 | Y10: 8 | Z10: Left Of Center | AA10: 8 | AB10: 8 | AC10: Entering Traffic Lane | AD10: 51 | AE10: 8 | AF10: U1_UNIT_SPEED_RANGE_CD8 | AG10: Unit Speed 51-55
G11: CRASH_TYPE_CD | H11: Crash Type | I11: 1 | J11: CRASH_TYPE_CD1 | K11: Head On | L11: Y | M11: 2 | N11: Head On | U11: 7 | V11: 7 | W11: Pickup | X11: 8 | Y11: 9 | Z11: Followed To Closely/ACDA | AA11: 9 | AB11: 9 | AC11: Leaving Traffic Lane | AD11: 56 | AE11: 9 | AF11: U1_UNIT_SPEED_RANGE_CD9 | AG11: Unit Speed 56-60
G12: CRASH_TYPE_CD | H12: Crash Type | I12: 2 | J12: CRASH_TYPE_CD2 | K12: Rear End | L12: Y | M12: 3 | N12: Rear End | U12: 8 | V12: 8 | W12: Van | X12: 9 | Y12: 10 | Z12: Improper Lane Change/Passing/Offroad | AA12: 10 | AB12: 10 | AC12: Parked | AD12: 61 | AE12: 10 | AF12: U1_UNIT_SPEED_RANGE_CD10 | AG12: Unit Speed 61-65
G13: CRASH_TYPE_CD | H13: Crash Type | I13: 3 | J13: CRASH_TYPE_CD3 | K13: Backing | L13: Y | M13: 4 | N13: Backing | U13: 18 | V13: 9 | W13: Motorcycle | X13: 10 | Y13: 11 | Z13: Improper Backing | AA13: 11 | AB13: 11 | AC13: Slowing Or Stopped In Traffic | AD13: 66 | AE13: 11 | AF13: U1_UNIT_SPEED_RANGE_CD11 | AG13: Unit Speed Over 65
G14: CRASH_TYPE_CD | H14: Crash Type | I14: 4 | J14: CRASH_TYPE_CD4 | K14: Sideswipe - Meeting | L14: Y | M14: 5 | N14: Sideswipe - Meeting | U14: 19 | V14: 10 | W14: Motorized Bicycle | X14: 11 | Y14: 12 | Z14: Improper Start From Parked Position | AA14: 12 | AB14: 12 | AC14: Driverless | AE14: 0 | AF14: U1_UNIT_SPEED_RANGE_CD0 | AG14: Unit Speed Not Stated
G15: CRASH_TYPE_CD | H15: Crash Type | I15: 5 | J15: CRASH_TYPE_CD5 | K15: Sideswipe - Passing | L15: Y | M15: 6 | N15: Sideswipe - Passing | U15: 32 | V15: 11 | W15: Snowmobile/ATV | X15: 12 | Y15: 13 | Z15: Stopped Or Parked Illegally | AA15: 13 | AB15: 14 | AC15: Other Motorist Action
G16: CRASH_TYPE_CD | H16: Crash Type | I16: 6 | J16: CRASH_TYPE_CD6 | K16: Angle | L16: Y | M16: 7 | N16: Angle | U16: 9 | V16: 13 | W16: Single Unit Truck Or Van 2 Axle, 6 Tires | X16: 13 | Y16: 14 | Z16: Operating Vehicle In Negligent Manner | AA16: 15 | AB16: 15 | AC16: Entering Or Crossing Specified Location
G17: CRASH_TYPE_CD | H17: Crash Type | I17: 7 | J17: CRASH_TYPE_CD7 | K17: Parked Vehicle | L17: Y | M17: 8 | N17: Parked Vehicle | U17: 10 | V17: 14 | W17: Single Unit Truck; 3+ Axles | X17: 14 | Y17: 15 | Z17: Swerving To Avoid | AA17: 16 | AB17: 16 | AC17: Walking, Running, Jogging, Playing, Cycling
G18: CRASH_TYPE_CD | H18: Crash Type | I18: 8 | J18: CRASH_TYPE_CD8 | K18: Pedestrian | L18: Y | M18: 9 | N18: Pedestrian | U18: 11 | V18: 15 | W18: Single Unit Truck/Trailer | X18: 15 | Y18: 17 | Z18: Failure To Control | AA18: 17 | AB18: 17 | AC18: Working
G19: CRASH_TYPE_CD | H19: Crash Type | I19: 9 | J19: CRASH_TYPE_CD9 | K19: Animal | L19: Y | M19: 10 | N19: Animal | U19: 12 | V19: 16 | W19: Truck/Tractor (Bobtail) | X19: 16 | Y19: 18 | Z19: Vision Obstruction | AA19: 20 | AB19: 17 | AC19: Working
G20: CRASH_TYPE_CD | H20: Crash Type | I20: 10 | J20: CRASH_TYPE_CD10 | K20: Train | L20: Y | M20: 11 | N20: Train | U20: 13 | V20: 17 | W20: Tractor/Semi-Trailer | X20: 19 | Y20: 19 | Z20: Operating Defective Equipment | AA20: 18 | AB20: 18 | AC20: Pushing Vehicle
G21: CRASH_TYPE_CD | H21: Crash Type | I21: 11 | J21: CRASH_TYPE_CD11 | K21: Pedalcycles | L21: Y | M21: 12 | N21: Pedalcycles | U21: 14 | V21: 18 | W21: Tractor/Double | X21: 20 | Y21: 20 | Z21: Load Shifting/Falling/Spilling | AA21: 19 | AB21: 19 | AC21: Approaching Or Leaving Vehicle
G22: CRASH_TYPE_CD | H22: Crash Type | I22: 12 | J22: CRASH_TYPE_CD12 | K22: Other Non-Vehicle | L22: Y | M22: 13 | N22: Other Non-Vehicle | U22: 15 | V22: 18 | W22: Tractor/Double | X22: 21 | Y22: 21 | Z22: Other Improper Action | AA22: 21 | AB22: 20 | AC22: Standing
G23: CRASH_TYPE_CD | H23: Crash Type | I23: 13 | J23: CRASH_TYPE_CD13 | K23: Fixed Object | L23: Y | M23: 14 | N23: Fixed Object | U23: 17 | V23: 19 | W23: Tractor/Triples | X23: 17 | Y23: 21 | Z23: Other Improper Action | AA23: 22 | AB23: 21 | AC23: Other Non-Motorist Action
G24: CRASH_TYPE_CD | H24: Crash Type | I24: 14 | J24: CRASH_TYPE_CD14 | K24: Other Object | L24: Y | M24: 15 | N24: Other Object | U24: 16 | V24: 20 | W24: Other Med/Heavy Vehicle | X24: 18 | Y24: 21 | Z24: Other Improper Action | AA24: 14 | AB24: 99 | AC24: Unknown
G25: CRASH_TYPE_CD | H25: Crash Type | I25: 15 | J25: CRASH_TYPE_CD15 | K25: Falling From Or In Vehicle | L25: Y | M25: 16 | N25: Falling From Or In Vehicle | U25: 25 | V25: 20 | W25: Other Med/Heavy Vehicle | X25: 23 | Y25: 22 | Z25: None Non-Motorist | AA25: 23 | AB25: 99 | AC25: Unknown
G26: CRASH_TYPE_CD | H26: Crash Type | I26: 16 | J26: CRASH_TYPE_CD16 | K26: Overturning | L26: Y | M26: 17 | N26: Overturning | U26: 26 | V26: 20 | W26: Other Med/Heavy Vehicle | X26: 24 | Y26: 23 | Z26: Improper Crossing
G27: CRASH_TYPE_CD | H27: Crash Type | I27: 17 | J27: CRASH_TYPE_CD17 | K27: Other Non-Collision | L27: Y | M27: 18 | N27: Other Non-Collision | U27: 28 | V27: 20 | W27: Other Med/Heavy Vehicle | X27: 25 | Y27: 24 | Z27: Darting
G28: CRASH_TYPE_CD | H28: Crash Type | I28: 18 | J28: CRASH_TYPE_CD18 | K28: Left Turn | L28: Y | M28: 19 | N28: Left Turn | U28: 29 | V28: 20 | W28: Other Med/Heavy Vehicle | X28: 26 | Y28: 25 | Z28: Lying And/Or Illegally In Roadway
G29: FUNCTIONAL_CLASS_CD | H29: FUNCTIONAL_CLASS_CD_FRM | I29: 1 | J29: FUNCTIONAL_CLASS_CD1 | K29: Principal Arterial-Interstate Rural | L29: N | N29: Principal Arterial-Interstate Rural | U29: 30 | V29: 20 | W29: Other Med/Heavy Vehicle | X29: 27 | Y29: 26 | Z29: Failure To Yield Right Of Way
G30: FUNCTIONAL_CLASS_CD | H30: FUNCTIONAL_CLASS_CD_FRM | I30: 2 | J30: FUNCTIONAL_CLASS_CD2 | K30: Principal Arterial-Other Rural | L30: N | N30: Principal Arterial-Other Rural | U30: 31 | V30: 20 | W30: Other Med/Heavy Vehicle | X30: 28 | Y30: 27 | Z30: Not Visible (Dark Clothing)
G31: FUNCTIONAL_CLASS_CD | H31: FUNCTIONAL_CLASS_CD_FRM | I31: 6 | J31: FUNCTIONAL_CLASS_CD6 | K31: Minor Arterial-Rural | L31: N | N31: Minor Arterial-Rural | U31: 33 | V31: 20 | W31: Other Med/Heavy Vehicle | X31: 29 | Y31: 28 | Z31: Inattentive
G32: FUNCTIONAL_CLASS_CD | H32: FUNCTIONAL_CLASS_CD_FRM | I32: 7 | J32: FUNCTIONAL_CLASS_CD7 | K32: Major Collector-Rural | L32: N | N32: Major Collector-Rural | U32: 20 | V32: 22 | W32: Bus (16+ Seats, Inc Driver) | X32: 30 | Y32: 29 | Z32: Failure To Obey Signs/Signals/Officer
G33: FUNCTIONAL_CLASS_CD | H33: FUNCTIONAL_CLASS_CD_FRM | I33: 8 | J33: FUNCTIONAL_CLASS_CD8 | K33: Minor Collector-Rural | L33: N | N33: Minor Collector-Rural | U33: 21 | V33: 22 | W33: Bus (16+ Seats, Inc Driver) | X33: 31 | Y33: 30 | Z33: Wrong Side Of The Road
G34: FUNCTIONAL_CLASS_CD | H34: FUNCTIONAL_CLASS_CD_FRM | I34: 9 | J34: FUNCTIONAL_CLASS_CD9 | K34: Local-Rural | L34: N | N34: MLocal-Rural | U34: 22 | V34: 22 | W34: Bus (16+ Seats, Inc Driver) | X34: 32 | Y34: 31 | Z34: Other Non-Motorist
G35: FUNCTIONAL_CLASS_CD | H35: FUNCTIONAL_CLASS_CD_FRM | I35: 11 | J35: FUNCTIONAL_CLASS_CD11 | K35: Principal Arterial-Interstate Urban | L35: N | N35: Principal Arterial-Interstate Urban | U35: 23 | V35: 22 | W35: Bus (16+ Seats, Inc Driver) | X35: 22 | Y35: 99 | Z35: Unknown
G36: FUNCTIONAL_CLASS_CD | H36: FUNCTIONAL_CLASS_CD_FRM | I36: 12 | J36: FUNCTIONAL_CLASS_CD12 | K36: Principal Arterial-Other Frwy Urban | L36: N | N36: Principal Arterial-Other Frwy Urban | U36: 35 | V36: 23 | W36: Animal With Rider | X36: 33 | Y36: 99 | Z36: Unknown
G37: FUNCTIONAL_CLASS_CD | H37: FUNCTIONAL_CLASS_CD_FRM | I37: 14 | J37: FUNCTIONAL_CLASS_CD14 | K37: Principal Arterial-Other Urban | L37: N | N37: Principal Arterial-Other Urban | U37: 36 | V37: 24 | W37: Animal With Buggy, Wagon, Surrey
G38: FUNCTIONAL_CLASS_CD | H38: FUNCTIONAL_CLASS_CD_FRM | I38: 16 | J38: FUNCTIONAL_CLASS_CD16 | K38: Minor Collector-Urban | L38: N | N38: Minor Collector-Urban | U38: 37 | V38: 25 | W38: Bicycle/Pedacyclist
G39: FUNCTIONAL_CLASS_CD | H39: FUNCTIONAL_CLASS_CD_FRM | I39: 17 | J39: FUNCTIONAL_CLASS_CD17 | K39: Collector-Urban | L39: N | N39: Collector-Urban | U39: 39 | V39: 25 | W39: Bicycle/Pedacyclist
G40: FUNCTIONAL_CLASS_CD | H40: FUNCTIONAL_CLASS_CD_FRM | I40: 19 | J40: FUNCTIONAL_CLASS_CD19 | K40: Local-Urban | L40: N | N40: Local-Urban | U40: 38 | V40: 26 | W40: Pedestrian/Skater
G41: DAY_IN_WEEK_CD | H41: WEEK_DAY_NBR_FRM | I41: 1 | J41: DAY_IN_WEEK_CD1 | K41: Sunday | L41: N | N41: Sunday | U41: 40 | V41: 26 | W41: Pedestrian/Skater
G42: DAY_IN_WEEK_CD | H42: WEEK_DAY_NBR_FRM | I42: 2 | J42: DAY_IN_WEEK_CD2 | K42: Monday | L42: N | N42: Monday | U42: 41 | V42: 27 | W42: Other Non-Motorist
G43: DAY_IN_WEEK_CD | H43: WEEK_DAY_NBR_FRM | I43: 3 | J43: DAY_IN_WEEK_CD3 | K43: Tuesday | L43: N | N43: Tuesday | U43: 34 | V43: 99 | W43: Unknown Or Hit/Skip
G44: DAY_IN_WEEK_CD | H44: WEEK_DAY_NBR_FRM | I44: 4 | J44: DAY_IN_WEEK_CD4 | K44: Wednesday | L44: N | N44: Wednesday | U44: 42 | V44: 99 | W44: Unknown Or Hit/Skip
G45: DAY_IN_WEEK_CD | H45: WEEK_DAY_NBR_FRM | I45: 5 | J45: DAY_IN_WEEK_CD5 | K45: Thursday | L45: N | N45: Thursday | V45: 21 | W45: Bus/Van (9-15 Seats Inc Driver)
G46: DAY_IN_WEEK_CD | H46: WEEK_DAY_NBR_FRM | I46: 6 | J46: DAY_IN_WEEK_CD6 | K46: Friday | L46: N | N46: Friday
G47: DAY_IN_WEEK_CD | H47: WEEK_DAY_NBR_FRM | I47: 7 | J47: DAY_IN_WEEK_CD7 | K47: Saturday | L47: N | N47: Saturday
G48: ODPS_CRASH_LOCATION_CD | H48: Crash Location | I48: 1 | J48: ODPS_CRASH_LOCATION_CD1 | K48: Not An Intersection | L48: Y | M48: 1 | N48: Not An Intersection
G49: ODPS_CRASH_LOCATION_CD | H49: Crash Location | I49: 2 | J49: ODPS_CRASH_LOCATION_CD2 | K49: Four-Way Intersection | L49: Y | M49: 2 | N49: Four-Way Intersection
G50: ODPS_CRASH_LOCATION_CD | H50: Crash Location | I50: 3 | J50: ODPS_CRASH_LOCATION_CD3 | K50: T-Intersection | L50: Y | M50: 3 | N50: T-Intersection
G51: ODPS_CRASH_LOCATION_CD | H51: Crash Location | I51: 4 | J51: ODPS_CRASH_LOCATION_CD4 | K51: Y-Intersection | L51: Y | M51: 4 | N51: Y-Intersection
G52: ODPS_CRASH_LOCATION_CD | H52: Crash Location | I52: 5 | J52: ODPS_CRASH_LOCATION_CD5 | K52: Traffic Circle/Roundabout | L52: Y | M52: 5 | N52: Traffic Circle/Roundabout
G53: ODPS_CRASH_LOCATION_CD | H53: Crash Location | I53: 6 | J53: ODPS_CRASH_LOCATION_CD6 | K53: 5 Or More Point Intersection | L53: Y | M53: 6 | N53: 5 Or More Point Intersection
G54: ODPS_CRASH_LOCATION_CD | H54: Crash Location | I54: 7 | J54: ODPS_CRASH_LOCATION_CD7 | K54: On Ramp | L54: Y | M54: 7 | N54: On Ramp
G55: ODPS_CRASH_LOCATION_CD | H55: Crash Location | I55: 8 | J55: ODPS_CRASH_LOCATION_CD8 | K55: Off Ramp | L55: Y | M55: 8 | N55: Off Ramp
G56: ODPS_CRASH_LOCATION_CD | H56: Crash Location | I56: 9 | J56: ODPS_CRASH_LOCATION_CD9 | K56: Crossover | L56: Y | M56: 9 | N56: Crossover
G57: ODPS_CRASH_LOCATION_CD | H57: Crash Location | I57: 10 | J57: ODPS_CRASH_LOCATION_CD10 | K57: Driveway/Alley Access | L57: Y | M57: 10 | N57: Driveway/Alley Access
G58: ODPS_CRASH_LOCATION_CD | H58: Crash Location | I58: 11 | J58: ODPS_CRASH_LOCATION_CD11 | K58: Railroad Grade Crossing | L58: Y | M58: 11 | N58: Railroad Grade Crossing
G59: ODPS_CRASH_LOCATION_CD | H59: Crash Location | I59: 12 | J59: ODPS_CRASH_LOCATION_CD12 | K59: Shared-Use Paths Or Trails | L59: Y | M59: 12 | N59: Shared-Use Paths Or Trails
G60: ODPS_CRASH_LOCATION_CD | H60: Crash Location | I60: 99 | J60: ODPS_CRASH_LOCATION_CD99 | K60: Unknown | L60: Y | M60: 13 | N60: Unknown
G61: WEATHER_COND_CD | H61: Weather Conditions | I61: 1 | J61: WEATHER_COND_CD1 | K61: Clear | L61: Y | M61: 1 | N61: Clear
G62: WEATHER_COND_CD | H62: Weather Conditions | I62: 2 | J62: WEATHER_COND_CD2 | K62: Cloudy | L62: Y | M62: 2 | N62: Cloudy
G63: WEATHER_COND_CD | H63: Weather Conditions | I63: 3 | J63: WEATHER_COND_CD3 | K63: Fog, Smog, Smoke | L63: Y | M63: 3 | N63: Fog, Smog, Smoke
G64: WEATHER_COND_CD | H64: Weather Conditions | I64: 4 | J64: WEATHER_COND_CD4 | K64: Rain | L64: Y | M64: 4 | N64: Rain
G65: WEATHER_COND_CD | H65: Weather Conditions | I65: 5 | J65: WEATHER_COND_CD5 | K65: Sleet, Hail | L65: Y | M65: 5 | N65: Sleet, Hail
G66: WEATHER_COND_CD | H66: Weather Conditions | I66: 6 | J66: WEATHER_COND_CD6 | K66: Snow | L66: Y | M66: 6 | N66: Snow
G67: WEATHER_COND_CD | H67: Weather Conditions | I67: 7 | J67: WEATHER_COND_CD7 | K67: Severe Crosswinds | L67: Y | M67: 7 | N67: Severe Crosswinds
G68: WEATHER_COND_CD | H68: Weather Conditions | I68: 8 | J68: WEATHER_COND_CD8 | K68: Blowing Sand, Soil, Dirt, Snow | L68: Y | M68: 8 | N68: Blowing Sand, Soil, Dirt, Snow
G69: WEATHER_COND_CD | H69: Weather Conditions | I69: 9 | J69: WEATHER_COND_CD9 | K69: Other/Unknown | L69: Y | M69: 9 | N69: Other/Unknown
G70: ROAD_COND_PRIMARY_CD | H70: Road Conditions | I70: 1 | J70: ROAD_COND_PRIMARY_CD1 | K70: Road - Dry | L70: Y | M70: 1 | N70: Dry
G71: ROAD_COND_PRIMARY_CD | H71: Road Conditions | I71: 2 | J71: ROAD_COND_PRIMARY_CD2 | K71: Road - Wet | L71: Y | M71: 2 | N71: Wet
G72: ROAD_COND_PRIMARY_CD | H72: Road Conditions | I72: 3 | J72: ROAD_COND_PRIMARY_CD3 | K72: Road - Snow | L72: Y | M72: 3 | N72: Snow
G73: ROAD_COND_PRIMARY_CD | H73: Road Conditions | I73: 4 | J73: ROAD_COND_PRIMARY_CD4 | K73: Road - Ice | L73: Y | M73: 4 | N73: Ice
G74: ROAD_COND_PRIMARY_CD | H74: Road Conditions | I74: 5 | J74: ROAD_COND_PRIMARY_CD5 | K74: Road - Mud/Sand | L74: Y | M74: 5 | N74: Sand, Mud, Dirt, Oil, Gravel
G75: ROAD_COND_PRIMARY_CD | H75: Road Conditions | I75: 6 | J75: ROAD_COND_PRIMARY_CD6 | K75: Road - Wet | L75: Y | M75: 6 | N75: Water (Standing, Moving)
G76: ROAD_COND_PRIMARY_CD | H76: Road Conditions | I76: 7 | J76: ROAD_COND_PRIMARY_CD7 | K76: Road - Snow | L76: Y | M76: 7 | N76: Slush
G77: ROAD_COND_PRIMARY_CD | H77: Road Conditions | I77: 8 | J77: ROAD_COND_PRIMARY_CD8 | K77: Other Road Condition | L77: Y | M77: 8 | N77: Debris
G78: ROAD_COND_PRIMARY_CD | H78: Road Conditions | I78: 9 | J78: ROAD_COND_PRIMARY_CD9 | K78: Other Road Condition | L78: Y | M78: 9 | N78: Ruts, Holes, Bumps, Uneven Pavement
G79: ROAD_COND_PRIMARY_CD | H79: Road Conditions | I79: 10 | J79: ROAD_COND_PRIMARY_CD10 | K79: Other Road Condition | L79: Y | M79: 10 | N79: Other
G80: ROAD_COND_PRIMARY_CD | H80: Road Conditions | I80: 99 | J80: ROAD_COND_PRIMARY_CD99 | K80: Road Condition Not Stated | L80: Y | M80: 11 | N80: Unknown
G81: LIGHT_COND_PRIMARY_CD | H81: Lighting Conditions | I81: 1 | J81: LIGHT_COND_PRIMARY_CD1 | K81: Daylight | L81: Y | M81: 1 | N81: Daylight
G82: LIGHT_COND_PRIMARY_CD | H82: Lighting Conditions | I82: 2 | J82: LIGHT_COND_PRIMARY_CD2 | K82: Dawn | L82: Y | M82: 2 | N82: Dawn
G83: LIGHT_COND_PRIMARY_CD | H83: Lighting Conditions | I83: 3 | J83: LIGHT_COND_PRIMARY_CD3 | K83: Dusk | L83: Y | M83: 3 | N83: Dusk
G84: LIGHT_COND_PRIMARY_CD | H84: Lighting Conditions | I84: 4 | J84: LIGHT_COND_PRIMARY_CD4 | K84: Dark - Lighted | L84: Y | M84: 4 | N84: Dark - Lighted Roadway
G85: LIGHT_COND_PRIMARY_CD | H85: Lighting Conditions | I85: 5 | J85: LIGHT_COND_PRIMARY_CD5 | K85: Dark - No Lights | L85: Y | M85: 5 | N85: Dark - Roadway Not Lighted
G86: LIGHT_COND_PRIMARY_CD | H86: Lighting Conditions | I86: 6 | J86: LIGHT_COND_PRIMARY_CD6 | K86: Dark - No Lights | L86: Y | M86: 6 | N86: Dark - Unknown Roadway Lighting
G87: LIGHT_COND_PRIMARY_CD | H87: Lighting Conditions | I87: 7 | J87: LIGHT_COND_PRIMARY_CD7 | K87: Other | L87: Y | M87: 7 | N87: Glare
G88: LIGHT_COND_PRIMARY_CD | H88: Lighting Conditions | I88: 8 | J88: LIGHT_COND_PRIMARY_CD8 | K88: Other | L88: Y | M88: 8 | N88: Other
G89: LIGHT_COND_PRIMARY_CD | H89: Lighting Conditions | I89: 9 | J89: LIGHT_COND_PRIMARY_CD9 | K89: Light Not Stated | L89: Y | M89: 9 | N89: Unknown
G90: ROAD_CONTOUR_CD | H90: Road Contours | I90: 1 | J90: ROAD_CONTOUR_CD1 | K90: Straight - Level | L90: Y | M90: 1 | N90: Straight Level
G91: ROAD_CONTOUR_CD | H91: Road Contours | I91: 2 | J91: ROAD_CONTOUR_CD2 | K91: Straight - Grade | L91: Y | M91: 2 | N91: Straight Grade
G92: ROAD_CONTOUR_CD | H92: Road Contours | I92: 3 | J92: ROAD_CONTOUR_CD3 | K92: Curve - Level | L92: Y | M92: 3 | N92: Curve Level
G93: ROAD_CONTOUR_CD | H93: Road Contours | I93: 4 | J93: ROAD_CONTOUR_CD4 | K93: Curve - Grade | L93: Y | M93: 4 | N93: Curve Grade
G94: ROAD_CONTOUR_CD | H94: Road Contours | I94: 9 | J94: ROAD_CONTOUR_CD9 | K94: Contour Not Stated | L94: Y | M94: 5 | N94: Unknown
G95: ODPS_SCHOOL_BUS_REL_CD | H95: ODPS_SCHOOL_BUS_REL_CD_FRM | I95: 1 | J95: ODPS_SCHOOL_BUS_REL_CD1 | K95: No | L95: N | N95: No
G96: ODPS_SCHOOL_BUS_REL_CD | H96: ODPS_SCHOOL_BUS_REL_CD_FRM | I96: 2 | J96: ODPS_SCHOOL_BUS_REL_CD2 | K96: School Bus Directly Involved | L96: N | N96: School Bus Directly Involved
G97: ODPS_SCHOOL_BUS_REL_CD | H97: ODPS_SCHOOL_BUS_REL_CD_FRM | I97: 3 | J97: ODPS_SCHOOL_BUS_REL_CD3 | K97: School Bus Indirectly Involved | L97: N | N97: School Bus Indirectly Involved
G98: ODPS_ANIMAL_REL_CD | H98: Animal Type | I98: 0 | J98: ODPS_ANIMAL_REL_CD0 | K98: Animal Not Stated | L98: Y | M98: 1 | N98: No Animal Involved
G99: ODPS_ANIMAL_REL_CD | H99: Animal Type | I99: 1 | J99: ODPS_ANIMAL_REL_CD1 | K99: Deer Hit | L99: Y | M99: 2 | N99: Animal-Deer
G100: ODPS_ANIMAL_REL_CD | H100: Animal Type | I100: 2 | J100: ODPS_ANIMAL_REL_CD2 | K100: Farm Animal Hit | L100: Y | M100: 3 | N100: Animal-Farm
G101: ODPS_ANIMAL_REL_CD | H101: Animal Type | I101: 3 | J101: ODPS_ANIMAL_REL_CD3 | K101: Other Animal | L101: Y | M101: 4 | N101: Animal-Other
G102: ODPS_LOC_IN_WORK_ZONE_CD | H102: ODPS_LOC_IN_WORK_ZONE_CD_FRM | I102: 0 | J102: ODPS_LOC_IN_WORK_ZONE_CD0 | K102: Unknown or Not in Work Zone | L102: N | N102: Unknown or Not in Work Zone
G103: ODPS_LOC_IN_WORK_ZONE_CD | H103: ODPS_LOC_IN_WORK_ZONE_CD_FRM | I103: 1 | J103: ODPS_LOC_IN_WORK_ZONE_CD1 | K103: Before First Work Zone Warning Sign | L103: N | N103: Before First Work Zone Warning Sign
G104: ODPS_LOC_IN_WORK_ZONE_CD | H104: ODPS_LOC_IN_WORK_ZONE_CD_FRM | I104: 2 | J104: ODPS_LOC_IN_WORK_ZONE_CD2 | K104: Advance Warning Area | L104: N | N104: Advance Warning Area
G105: ODPS_LOC_IN_WORK_ZONE_CD | H105: ODPS_LOC_IN_WORK_ZONE_CD_FRM | I105: 3 | J105: ODPS_LOC_IN_WORK_ZONE_CD3 | K105: Transition Area | L105: N | N105: Transition Area
G106: ODPS_LOC_IN_WORK_ZONE_CD | H106: ODPS_LOC_IN_WORK_ZONE_CD_FRM | I106: 4 | J106: ODPS_LOC_IN_WORK_ZONE_CD4 | K106: Activity Area | L106: N | N106: Activity Area
G107: ODPS_LOC_IN_WORK_ZONE_CD | H107: ODPS_LOC_IN_WORK_ZONE_CD_FRM | I107: 5 | J107: ODPS_LOC_IN_WORK_ZONE_CD5 | K107: Termination Area | L107: N | N107: Termination Area
H108: ODPS_WORK_ZONE_LAWENFOR_CD_FRM | I108: 0 | J108: 0 | K108: Unknown/Missing | L108: N | N108: Unknown/Missing
H109: ODPS_WORK_ZONE_LAWENFOR_CD_FRM | I109: 1 | J109: 1 | K109: No | L109: N | N109: No
H110: ODPS_WORK_ZONE_LAWENFOR_CD_FRM | I110: 2 | J110: 2 | K110: Officer Present | L110: N | N110: Officer Present
H111: ODPS_WORK_ZONE_LAWENFOR_CD_FRM | I111: 3 | J111: 3 | K111: Law Enforcement Vehicle Only | L111: N | N111: Law Enforcement Vehicle Only
G112: ODPS_TYPE_OF_WORK_ZONE_CD | H112: ODPS_TYPE_OF_WORK_ZONE_CD | I112: 0 | J112: ODPS_TYPE_OF_WORK_ZONE_CD0 | K112: Unknown or Not in Work Zone | L112: N | N112: Unknown or Not in Work Zone
G113: ODPS_TYPE_OF_WORK_ZONE_CD | H113: ODPS_TYPE_OF_WORK_ZONE_CD | I113: 1 | J113: ODPS_TYPE_OF_WORK_ZONE_CD1 | K113: Lane Closure | L113: N | N113: Lane Closure
G114: ODPS_TYPE_OF_WORK_ZONE_CD | H114: ODPS_TYPE_OF_WORK_ZONE_CD | I114: 2 | J114: ODPS_TYPE_OF_WORK_ZONE_CD2 | K114: Lane Shift/Crossover | L114: N | N114: Lane Shift/Crossover
G115: ODPS_TYPE_OF_WORK_ZONE_CD | H115: ODPS_TYPE_OF_WORK_ZONE_CD | I115: 3 | J115: ODPS_TYPE_OF_WORK_ZONE_CD3 | K115: Work On Shoulder or Median | L115: N | N115: Work On Shoulder or Median
G116: ODPS_TYPE_OF_WORK_ZONE_CD | H116: ODPS_TYPE_OF_WORK_ZONE_CD | I116: 4 | J116: ODPS_TYPE_OF_WORK_ZONE_CD4 | K116: Intermittent or Moving Work | L116: N | N116: Intermittent or Moving Work
G117: ODPS_TYPE_OF_WORK_ZONE_CD | H117: ODPS_TYPE_OF_WORK_ZONE_CD | I117: 5 | J117: ODPS_TYPE_OF_WORK_ZONE_CD5 | K117: Other | L117: N | N117: Other
G118: ODPS_REF_POINT_USED_CD | H118: ODPS_REF_POINT_USED_CD_FRM | I118: 0 | J118: ODPS_REF_POINT_USED_CD0 | K118: Street/Route Without Reference | L118: N | N118: Street/Route Without Reference
G119: ODPS_REF_POINT_USED_CD | H119: ODPS_REF_POINT_USED_CD_FRM | I119: 1 | J119: ODPS_REF_POINT_USED_CD1 | K119: Intersection | L119: N | N119: Intersection
G120: ODPS_REF_POINT_USED_CD | H120: ODPS_REF_POINT_USED_CD_FRM | I120: 2 | J120: ODPS_REF_POINT_USED_CD2 | K120: House Number | L120: N | N120: House Number
G121: ODPS_REF_POINT_USED_CD | H121: ODPS_REF_POINT_USED_CD_FRM | I121: 3 | J121: ODPS_REF_POINT_USED_CD3 | K121: Mile Post | L121: N | N121: Mile Post
G122: ODPS_REF_POINT_USED_CD | H122: ODPS_REF_POINT_USED_CD_FRM | I122: 4 | J122: ODPS_REF_POINT_USED_CD4 | K122: State Line | L122: N | N122: State Line
G123: ODPS_REF_POINT_USED_CD | H123: ODPS_REF_POINT_USED_CD_FRM | I123: 5 | J123: ODPS_REF_POINT_USED_CD5 | K123: County Line | L123: N | N123: County Line
G124: ODPS_REF_POINT_USED_CD | H124: ODPS_REF_POINT_USED_CD_FRM | I124: 6 | J124: ODPS_REF_POINT_USED_CD6 | K124: Township Boundary | L124: N | N124: Township Boundary
G125: ODPS_REF_POINT_USED_CD | H125: ODPS_REF_POINT_USED_CD_FRM | I125: 7 | J125: ODPS_REF_POINT_USED_CD7 | K125: Corporation Limit | L125: N | N125: Corporation Limit
G126: ODPS_REF_POINT_USED_CD | H126: ODPS_REF_POINT_USED_CD_FRM | I126: 8 | J126: ODPS_REF_POINT_USED_CD8 | K126: Place Name Without Reference | L126: N | N126: Place Name Without Reference
G127: ODPS_REF_POINT_USED_CD | H127: ODPS_REF_POINT_USED_CD_FRM | I127: 9 | J127: ODPS_REF_POINT_USED_CD9 | K127: Driveway | L127: N | N127: Driveway
G128: U1_DIRECTION_FROM_CD | H128: Direction From | I128: 1 | J128: U1_DIRECTION_FROM_CD1 | K128: North | L128: Y | M128: 1 | N128: North
G129: U1_DIRECTION_FROM_CD | H129: Direction From | I129: 2 | J129: U1_DIRECTION_FROM_CD2 | K129: South | L129: Y | M129: 2 | N129: South
G130: U1_DIRECTION_FROM_CD | H130: Direction From | I130: 3 | J130: U1_DIRECTION_FROM_CD3 | K130: East | L130: Y | M130: 3 | N130: East
G131: U1_DIRECTION_FROM_CD | H131: Direction From | I131: 4 | J131: U1_DIRECTION_FROM_CD4 | K131: West | L131: Y | M131: 4 | N131: West
G132: U1_DIRECTION_FROM_CD | H132: Direction From | I132: 5 | J132: U1_DIRECTION_FROM_CD5 | K132: Northeast | L132: Y | M132: 5 | N132: Northeast
G133: U1_DIRECTION_FROM_CD | H133: Direction From | I133: 6 | J133: U1_DIRECTION_FROM_CD6 | K133: Northwest | L133: Y | M133: 6 | N133: Northwest
G134: U1_DIRECTION_FROM_CD | H134: Direction From | I134: 7 | J134: U1_DIRECTION_FROM_CD7 | K134: Southeast | L134: Y | M134: 7 | N134: Southeast
G135: U1_DIRECTION_FROM_CD | H135: Direction From | I135: 8 | J135: U1_DIRECTION_FROM_CD8 | K135: Southwest | L135: Y | M135: 8 | N135: Southwest
G136: U1_DIRECTION_FROM_CD | H136: Direction From | I136: 9 | J136: U1_DIRECTION_FROM_CD9 | K136: Unknown | L136: Y | M136: 9 | N136: Unknown
G137: U1_DIRECTION_TO_CD | H137: Direction To | I137: 1 | J137: U1_DIRECTION_TO_CD1 | K137: North | L137: Y | M137: 1 | N137: North
G138: U1_DIRECTION_TO_CD | H138: Direction To | I138: 2 | J138: U1_DIRECTION_TO_CD2 | K138: South | L138: Y | M138: 2 | N138: South
G139: U1_DIRECTION_TO_CD | H139: Direction To | I139: 3 | J139: U1_DIRECTION_TO_CD3 | K139: East | L139: Y | M139: 3 | N139: East
G140: U1_DIRECTION_TO_CD | H140: Direction To | I140: 4 | J140: U1_DIRECTION_TO_CD4 | K140: West | L140: Y | M140: 4 | N140: West
G141: U1_DIRECTION_TO_CD | H141: Direction To | I141: 5 | J141: U1_DIRECTION_TO_CD5 | K141: Northeast | L141: Y | M141: 5 | N141: Northeast
G142: U1_DIRECTION_TO_CD | H142: Direction To | I142: 6 | J142: U1_DIRECTION_TO_CD6 | K142: Northwest | L142: Y | M142: 6 | N142: Northwest
G143: U1_DIRECTION_TO_CD | H143: Direction To | I143: 7 | J143: U1_DIRECTION_TO_CD7 | K143: Southeast | L143: Y | M143: 7 | N143: Southeast
G144: U1_DIRECTION_TO_CD | H144: Direction To | I144: 8 | J144: U1_DIRECTION_TO_CD8 | K144: Southwest | L144: Y | M144: 8 | N144: Southwest
G145: U1_DIRECTION_TO_CD | H145: Direction To | I145: 9 | J145: U1_DIRECTION_TO_CD9 | K145: Unknown | L145: Y | M145: 9 | N145: Unknown
G146: U1_TRAFFIC_WAY_DESC_CD | H146: U1_TRAFFIC_WAY_DESC_CD_FRM | I146: 0 | J146: U1_TRAFFIC_WAY_DESC_CD0 | K146: Old Data Not Available | L146: N | N146: Old Data Not Available
G147: U1_TRAFFIC_WAY_DESC_CD | H147: U1_TRAFFIC_WAY_DESC_CD_FRM | I147: 1 | J147: U1_TRAFFIC_WAY_DESC_CD1 | K147: Two-Way, Not Divided | L147: N | N147: Two-Way, Not Divided
G148: U1_TRAFFIC_WAY_DESC_CD | H148: U1_TRAFFIC_WAY_DESC_CD_FRM | I148: 2 | J148: U1_TRAFFIC_WAY_DESC_CD2 | K148: 2-Way, undiv, Continuous Left Turn Lane | L148: N | N148: 2-Way, undiv, Continuous Left Turn Lane
G149: U1_TRAFFIC_WAY_DESC_CD | H149: U1_TRAFFIC_WAY_DESC_CD_FRM | I149: 3 | J149: U1_TRAFFIC_WAY_DESC_CD3 | K149: 2-Way, Div, Unprotected Median >4 ft | L149: N | N149: 2-Way, Div, Unprotected Median >4 ft
G150: U1_TRAFFIC_WAY_DESC_CD | H150: U1_TRAFFIC_WAY_DESC_CD_FRM | I150: 4 | J150: U1_TRAFFIC_WAY_DESC_CD4 | K150: 2-Way, Div, Positive Median Barrier | L150: N | N150: 2-Way, Div, Positive Median Barrier
G151: U1_TRAFFIC_WAY_DESC_CD | H151: U1_TRAFFIC_WAY_DESC_CD_FRM | I151: 5 | J151: U1_TRAFFIC_WAY_DESC_CD5 | K151: One-Way Trafficway | L151: N | N151: One-Way Trafficway
G152: U1_TRAFFIC_WAY_DESC_CD | H152: U1_TRAFFIC_WAY_DESC_CD_FRM | I152: 9 | J152: U1_TRAFFIC_WAY_DESC_CD9 | K152: Unknown | L152: N | N152: Unknown
G153: U1_TRAFFIC_CONTROL_CD | H153: Traffic Control Type | I153: 1 | J153: U1_TRAFFIC_CONTROL_CD1 | K153: No Controls | L153: Y | M153: 1 | N153: No Controls
G154: U1_TRAFFIC_CONTROL_CD | H154: Traffic Control Type | I154: 2 | J154: U1_TRAFFIC_CONTROL_CD2 | K154: Stop Sign | L154: Y | M154: 2 | N154: Stop Sign
G155: U1_TRAFFIC_CONTROL_CD | H155: Traffic Control Type | I155: 3 | J155: U1_TRAFFIC_CONTROL_CD3 | K155: Yield Sign | L155: Y | M155: 3 | N155: Yield Sign
G156: U1_TRAFFIC_CONTROL_CD | H156: Traffic Control Type | I156: 4 | J156: U1_TRAFFIC_CONTROL_CD4 | K156: Traffic Signal | L156: Y | M156: 4 | N156: Traffic Signal
G157: U1_TRAFFIC_CONTROL_CD | H157: Traffic Control Type | I157: 5 | J157: U1_TRAFFIC_CONTROL_CD5 | K157: Traffic Flashers | L157: Y | M157: 5 | N157: Traffic Flashers
G158: U1_TRAFFIC_CONTROL_CD | H158: Traffic Control Type | I158: 6 | J158: U1_TRAFFIC_CONTROL_CD6 | K158: School Zone | L158: Y | M158: 6 | N158: School Zone
G159: U1_TRAFFIC_CONTROL_CD | H159: Traffic Control Type | I159: 7 | J159: U1_TRAFFIC_CONTROL_CD7 | K159: Railroad Crossbucks | L159: Y | M159: 7 | N159: Railroad Crossbucks
G160: U1_TRAFFIC_CONTROL_CD | H160: Traffic Control Type | I160: 8 | J160: U1_TRAFFIC_CONTROL_CD8 | K160: Railroad Flashers | L160: Y | M160: 8 | N160: Railroad Flashers
G161: U1_TRAFFIC_CONTROL_CD | H161: Traffic Control Type | I161: 9 | J161: U1_TRAFFIC_CONTROL_CD9 | K161: Railroad Gates | L161: Y | M161: 9 | N161: Railroad Gates
G162: U1_TRAFFIC_CONTROL_CD | H162: Traffic Control Type | I162: 10 | J162: U1_TRAFFIC_CONTROL_CD10 | K162: Construction Barricade | L162: Y | M162: 10 | N162: Construction Barricade
G163: U1_TRAFFIC_CONTROL_CD | H163: Traffic Control Type | I163: 11 | J163: U1_TRAFFIC_CONTROL_CD11 | K163: Person (Flagger, Officer) | L163: Y | M163: 11 | N163: Person (Flagger, Officer)
G164: U1_TRAFFIC_CONTROL_CD | H164: Traffic Control Type | I164: 12 | J164: U1_TRAFFIC_CONTROL_CD12 | K164: Pavement Markings | L164: Y | M164: 12 | N164: Pavement Markings
G165: U1_TRAFFIC_CONTROL_CD | H165: Traffic Control Type | I165: 13 | J165: U1_TRAFFIC_CONTROL_CD13 | K165: Crosswalk Lines | L165: Y | M165: 13 | N165: Crosswalk Lines
G166: U1_TRAFFIC_CONTROL_CD | H166: Traffic Control Type | I166: 14 | J166: U1_TRAFFIC_CONTROL_CD14 | K166: Walk/Do Not Walk | L166: Y | M166: 14 | N166: Walk/Do Not Walk
G167: U1_TRAFFIC_CONTROL_CD | H167: Traffic Control Type | I167: 15 | J167: U1_TRAFFIC_CONTROL_CD15 | K167: Other | L167: Y | M167: 15 | N167: Other
G168: U1_TRAFFIC_CONTROL_CD | H168: Traffic Control Type | I168: 16 | J168: U1_TRAFFIC_CONTROL_CD16 | K168: Not Reported | L168: Y | M168: 16 | N168: Not Reported
G169: U1_TYPE_OF_USE_CD | H169: Type of Use | I169: 0 | J169: U1_TYPE_OF_USE_CD0 | K169: Not Available | L169: Y | M169: 4 | N169: Not Available
G170: U1_TYPE_OF_USE_CD | H170: Type of Use | I170: 1 | J170: U1_TYPE_OF_USE_CD1 | K170: Personal | L170: Y | M170: 1 | N170: Personal
G171: U1_TYPE_OF_USE_CD | H171: Type of Use | I171: 2 | J171: U1_TYPE_OF_USE_CD2 | K171: Commercial | L171: Y | M171: 2 | N171: Commercial
G172: U1_TYPE_OF_USE_CD | H172: Type of Use | I172: 3 | J172: U1_TYPE_OF_USE_CD3 | K172: Government | L172: Y | M172: 3 | N172: Government
G173: U1_TYPE_OF_USE_CD | H173: Type of Use | I173: 9 | J173: U1_TYPE_OF_USE_CD9 | K173: Unknown | L173: Y | M173: 5 | N173: Unknown
G174: U1_TYPE_OF_UNIT_CD | H174: Type of Unit | I174: 1 | J174: U1_TYPE_OF_UNIT_CD1 | K174: Sub-Compact | L174: Y | M174: 1 | N174: Sub-Compact
G175: U1_TYPE_OF_UNIT_CD | H175: Type of Unit | I175: 2 | J175: U1_TYPE_OF_UNIT_CD2 | K175: Compact | L175: Y | M175: 2 | N175: Compact
G176: U1_TYPE_OF_UNIT_CD | H176: Type of Unit | I176: 3 | J176: U1_TYPE_OF_UNIT_CD3 | K176: Mid Size | L176: Y | M176: 3 | N176: Mid Size
G177: U1_TYPE_OF_UNIT_CD | H177: Type of Unit | I177: 4 | J177: U1_TYPE_OF_UNIT_CD4 | K177: Full Size | L177: Y | M177: 4 | N177: Full Size
G178: U1_TYPE_OF_UNIT_CD | H178: Type of Unit | I178: 5 | J178: U1_TYPE_OF_UNIT_CD5 | K178: Minivan | L178: Y | M178: 5 | N178: Minivan
G179: U1_TYPE_OF_UNIT_CD | H179: Type of Unit | I179: 6 | J179: U1_TYPE_OF_UNIT_CD6 | K179: Sport Utility Vehicle | L179: Y | M179: 6 | N179: Sport Utility Vehicle
G180: U1_TYPE_OF_UNIT_CD | H180: Type of Unit | I180: 7 | J180: U1_TYPE_OF_UNIT_CD7 | K180: Pickup | L180: Y | M180: 7 | N180: Pickup
G181: U1_TYPE_OF_UNIT_CD | H181: Type of Unit | I181: 8 | J181: U1_TYPE_OF_UNIT_CD8 | K181: Van | L181: Y | M181: 8 | N181: Van
G182: U1_TYPE_OF_UNIT_CD | H182: Type of Unit | I182: 9 | J182: U1_TYPE_OF_UNIT_CD9 | K182: Motorcycle | L182: Y | M182: 9 | N182: Motorcycle
G183: U1_TYPE_OF_UNIT_CD | H183: Type of Unit | I183: 10 | J183: U1_TYPE_OF_UNIT_CD10 | K183: Motorized Bicycle | L183: Y | M183: 10 | N183: Motorized Bicycle
G184: U1_TYPE_OF_UNIT_CD | H184: Type of Unit | I184: 11 | J184: U1_TYPE_OF_UNIT_CD11 | K184: Snowmobile/ATV | L184: Y | M184: 11 | N184: Snowmobile/ATV
G185: U1_TYPE_OF_UNIT_CD | H185: Type of Unit | I185: 12 | J185: U1_TYPE_OF_UNIT_CD12 | K185: Other Passenger Vehicle | L185: Y | M185: 12 | N185: Other Passenger Vehicle
G186: U1_TYPE_OF_UNIT_CD | H186: Type of Unit | I186: 13 | J186: U1_TYPE_OF_UNIT_CD13 | K186: Single Unit Truck Or Van 2 Axle, 6 Tires | L186: Y | M186: 13 | N186: Single Unit Truck Or Van 2 Axle, 6 Tires
G187: U1_TYPE_OF_UNIT_CD | H187: Type of Unit | I187: 14 | J187: U1_TYPE_OF_UNIT_CD14 | K187: Single Unit Truck; 3+ Axles | L187: Y | M187: 14 | N187: Single Unit Truck; 3+ Axles
G188: U1_TYPE_OF_UNIT_CD | H188: Type of Unit | I188: 15 | J188: U1_TYPE_OF_UNIT_CD15 | K188: Single Unit Truck/Trailer | L188: Y | M188: 15 | N188: Single Unit Truck/Trailer
G189: U1_TYPE_OF_UNIT_CD | H189: Type of Unit | I189: 16 | J189: U1_TYPE_OF_UNIT_CD16 | K189: Truck/Tractor (Bobtail) | L189: Y | M189: 16 | N189: Truck/Tractor (Bobtail)
G190: U1_TYPE_OF_UNIT_CD | H190: Type of Unit | I190: 17 | J190: U1_TYPE_OF_UNIT_CD17 | K190: Tractor/Semi-Trailer | L190: Y | M190: 17 | N190: Tractor/Semi-Trailer
G191: U1_TYPE_OF_UNIT_CD | H191: Type of Unit | I191: 18 | J191: U1_TYPE_OF_UNIT_CD18 | K191: Tractor/Double | L191: Y | M191: 18 | N191: Tractor/Double
G192: U1_TYPE_OF_UNIT_CD | H192: Type of Unit | I192: 19 | J192: U1_TYPE_OF_UNIT_CD19 | K192: Tractor/Triples | L192: Y | M192: 19 | N192: Tractor/Triples
G193: U1_TYPE_OF_UNIT_CD | H193: Type of Unit | I193: 20 | J193: U1_TYPE_OF_UNIT_CD20 | K193: Other Med/Heavy Vehicle | L193: Y | M193: 20 | N193: Other Med/Heavy Vehicle
G194: U1_TYPE_OF_UNIT_CD | H194: Type of Unit | I194: 21 | J194: U1_TYPE_OF_UNIT_CD21 | K194: Bus/Van (9-15 Seats Inc Driver) | L194: Y | M194: 21 | N194: Bus/Van (9-15 Seats Inc Driver)
G195: U1_TYPE_OF_UNIT_CD | H195: Type of Unit | I195: 22 | J195: U1_TYPE_OF_UNIT_CD22 | K195: Bus (16+ Seats, Inc Driver) | L195: Y | M195: 22 | N195: Bus (16+ Seats, Inc Driver)
G196: U1_TYPE_OF_UNIT_CD | H196: Type of Unit | I196: 23 | J196: U1_TYPE_OF_UNIT_CD23 | K196: Animal With Rider | L196: Y | M196: 23 | N196: Animal With Rider
G197: U1_TYPE_OF_UNIT_CD | H197: Type of Unit | I197: 24 | J197: U1_TYPE_OF_UNIT_CD24 | K197: Animal With Buggy, Wagon, Surrey | L197: Y | M197: 24 | N197: Animal With Buggy, Wagon, Surrey
G198: U1_TYPE_OF_UNIT_CD | H198: Type of Unit | I198: 25 | J198: U1_TYPE_OF_UNIT_CD25 | K198: Bicycle/Pedacyclist | L198: Y | M198: 25 | N198: Bicycle/Pedacyclist
G199: U1_TYPE_OF_UNIT_CD | H199: Type of Unit | I199: 26 | J199: U1_TYPE_OF_UNIT_CD26 | K199: Pedestrian/Skater | L199: Y | M199: 26 | N199: Pedestrian/Skater
G200: U1_TYPE_OF_UNIT_CD | H200: Type of Unit | I200: 27 | J200: U1_TYPE_OF_UNIT_CD27 | K200: Other Non-Motorist | L200: Y | M200: 27 | N200: Other Non-Motorist
... 480 more rows

Sheet Data (hidden)
F1: DOCUMENT_NBR | G1: NLF_ID | H1: COUNTY_LOG_NBR | I1: ODOT_LATITUDE_NBR | J1: ODOT_LONGITUDE_NBR | K1: STREET_ON_TXT | L1: REFERENCE_AT_TXT | M1: SEVERITY_BY_TYPE_CD | N1: CRASH_TYPE_CD | O1: ODPS_CRASH_LOCATION_CD | P1: OFFSET_DISTANCE_NBR | Q1: OFFSET_DIRECTION_CD | R1: CRASH_SEVERITY_CD | S1: FATALITIES_NBR | T1: INCAPAC_INJURIES_NBR | U1: NON_INCAPAC_INJURIES_NBR | V1: POSSIBLE_INJURIES_NBR | W1: ODOT_INTERSECTION_REL_IND | X1: FUNCTIONAL_CLASS_CD | Y1: ODOT_MAINTAINED_HWY_IND | Z1: FHWA_LANE_DEPARTURE_IND | AA1: DISTRICT_NBR | AB1: NLF_COUNTY_CD | AC1: CITY_VILLAGE_TWNSHP_CD | AD1: CITY_VILLAGE_TWNSHP_NME | AE1: CRASH_DT | AF1: CRASH_YR | AG1: MONTH_OF_CRASH_NBR | AH1: HOUR_OF_CRASH_NBR | AI1: MINUTE_OF_CRASH_NBR | AJ1: DAY_IN_WEEK_CD | AK1: ODPS_DIV_UNDIV_RDWY_CD | AL1: ODPS_DIVLANE_DIR_OF_TRAV_CD | AM1: WEATHER_COND_CD | AN1: ROAD_COND_PRIMARY_CD | AO1: ROAD_COND_PRIMARY_CD | AP1: LIGHT_COND_PRIMARY_CD | AQ1: ROAD_CONTOUR_CD | AR1: ODPS_ALCOHOL_IND | AS1: ODPS_DRUG_IND | AT1: ODPS_SCHOOL_BUS_REL_CD | AU1: ODPS_SCHOOL_ZONE_IND | AV1: ODPS_ANIMAL_REL_CD | AW1: ODPS_MOTORCYCLE_IND | AX1: ODPS_SPEED_IND | AY1: ODPS_BICYCLE_IND | AZ1: ODPS_PEDESTRIAN_IND | BA1: ODPS_WORK_ZONE_IND | BB1: ODPS_LOC_IN_WORK_ZONE_CD | BC1: ODPS_TYPE_OF_WORK_ZONE_CD | BD1: ODPS_LOC_ROAD_DIRECTION_CD | BE1: ODPS_LOC_ROAD_NAME_TXT | BF1: ODPS_LOC_ROAD_SUFFIX_CD | BG1: ODPS_LOC_ROUTE_PREFIX_CD | BH1: ODPS_LOC_ROUTE_NBR | BI1: ODPS_DIST_FROM_REF_NBR | BJ1: ODPS_DIST_FROM_REF_UNITS_CD | BK1: ODPS_DIR_FROM_REF_CD | BL1: ODPS_REF_DIRECTION_CD | BM1: ODPS_REF_GIVEN_TXT | BN1: ODPS_REF_SUFFIX_CD | BO1: ODPS_REF_ROUTE_PREFIX_CD | BP1: ODPS_REF_ROUTE_NBR | BQ1: ODPS_REF_POINT_USED_CD | BR1: LOCAL_REPORT_NUMBER_ID | BS1: U1_ODPS_UNIT_NBR | BT1: U1_DIRECTION_FROM_CD | BU1: U1_DIRECTION_TO_CD | BV1: U1_TRAFFIC_WAY_DESC_CD | BW1: U1_TRAFFIC_CONTROL_CD | BX1: U1_TYPE_OF_USE_CD | BY1: U1_TYPE_OF_UNIT_CD | BZ1: U1_SPECIAL_FUNCTION_CD | CA1: U1_UNIT_SPEED_RANGE_CD | CB1: U1_POSTED_SPEED_RANGE_CD | CC1: U1_PRECRASH_ACTION_CD | CD1: U1_CONT_CIR_PRIMARY_CD | CE1: U1_CONT_CIR_SECONDARY_CD | CF1: U1_SEQ_OF_EVENTS_1_CD | CG1: U1_SEQ_OF_EVENTS_2_CD | CH1: U1_SEQ_OF_EVENTS_3_CD | CI1: U1_SEQ_OF_EVENTS_4_CD | CJ1: U1_SEQ_OF_EVENTS_5_CD | CK1: U1_SEQ_OF_EVENTS_6_CD | CL1: U1_FIRST_HARMFUL_SEQ_NBR | CM1: U1_MOST_HARMFUL_SEQ_NBR | CN1: U1_COLLISION_ACTION_CD | CO1: U1_NON_MOTORIST_LOC_CD | CP1: U1_AGE_NBR | CQ1: U1_GENDER_CD | CR1: U1_ALCOH_DRUG_SUSPCTD_CD | CS1: U1_DISTRACTED_BY_1_CD | CT1: U1_DISTRACTED_BY_2_CD | CU1: U2_ODPS_UNIT_NBR | CV1: U2_DIRECTION_FROM_CD | CW1: U2_DIRECTION_TO_CD | CX1: U2_TRAFFIC_CONTROL_CD | CY1: U2_TYPE_OF_USE_CD | CZ1: U2_TYPE_OF_UNIT_CD | DA1: U2_SPECIAL_FUNCTION_CD | DB1: U2_UNIT_SPEED_RANGE_CD | DC1: U2_POSTED_SPEED_RANGE_CD | DD1: U2_PRECRASH_ACTION_CD | DE1: U2_CONT_CIR_PRIMARY_CD | DF1: U2_CONT_CIR_SECONDARY_CD | DG1: U2_SEQ_OF_EVENTS_1_CD | DH1: U2_SEQ_OF_EVENTS_2_CD | DI1: U2_SEQ_OF_EVENTS_3_CD | DJ1: U2_SEQ_OF_EVENTS_4_CD | DK1: U2_SEQ_OF_EVENTS_5_CD | DL1: U2_SEQ_OF_EVENTS_6_CD | DM1: U2_FIRST_HARMFUL_SEQ_NBR | DN1: U2_MOST_HARMFUL_SEQ_NBR | DO1: U2_NON_MOTORIST_LOC_CD | DP1: U2_AGE_NBR | DQ1: U2_GENDER_CD | DR1: U2_ALCOH_DRUG_SUSPCTD_CD | DS1: U2_DISTRACTED_BY_1_CD | DT1: U2_DISTRACTED_BY_2_CD | DU1: FILENAME_NME
D2: ODPS | E2: =ODPS_Data!E2 -> 0 | F2: =ODPS_Data!F2 -> 0 | G2: =ODPS_Data!IH2 -> 0 | H2: =ODPS_Data!IN2 -> 0 | I2: =ODPS_Data!IP2 -> 0 | J2: =ODPS_Data!IQ2 -> 0 | K2: =TRIM(ODPS_Data!T2&" "&ODPS_Data!U2&" "&ODPS_Data!V2) ->  | L2: =TRIM(ODPS_Data!Y2&" "&ODPS_Data!Z2&" "&ODPS_Data!AA2) ->  | M2: =IF(ODPS_Data!HO2*1>0,5,IF(ODPS_Data!HN2*1>0,4,IF(ODPS_Data!HM2*1>0,3,IF(ODPS_Data!HL2*1>0,2,1)))) -> 1 | N2: =ODPS_Data!IU2*1 -> 0 | O2: =IF(ODPS_Data!BB2*1>12,99,ODPS_Data!BB2) -> 0 | P2: =IF(ODPS_Data!W2="000000","",ODPS_Data!W2*1) -> 0 | Q2: =IF(ODPS_Data!X2="","",ODPS_Data!X2) ->  | R2: =IF(ODPS_Data!K2*1>3,3,ODPS_Data!K2) -> 0 | S2: =ODPS_Data!HO2*1 -> 0 | T2: =ODPS_Data!HN2*1 -> 0 | U2: =ODPS_Data!HM2*1 -> 0 | V2: =ODPS_Data!HL2*1 -> 0 | W2: =ODPS_Data!IT2 -> 0 | AA2: =ODPS_Data!II2 -> 0 | AB2: =ODPS_Data!IJ2 -> 0 | AC2: =ODPS_Data!O2 -> 0 | AD2: =ODPS_Data!P2 -> 0 | AE2: =RIGHT(ODPS_Data!Q2,4)&LEFT(ODPS_Data!Q2,4) ->  | AF2: =RIGHT(ODPS_Data!Q2,4)*1 ->  | AG2: =LEFT(ODPS_Data!Q2,2) ->  | AH2: =LEFT(ODPS_Data!R2,2) ->  | AI2: =RIGHT(ODPS_Data!R2,2) ->  | AJ2: =ODPS_Data!S2 -> 0 | AK2: =ODPS_Data!AM2 -> 0 | AL2: =ODPS_Data!AN2 -> 0 | AM2: =IF(ODPS_Data!AE2*1>9,9,ODPS_Data!AE2) -> 0 | AN2: =IF(ODPS_Data!AF2*1<>99,IF(ODPS_Data!AF2*1>10,10,ODPS_Data!AF2),99) -> 0 | AO2: =IF(ODPS_Data!AG2*1<>99,IF(ODPS_Data!AG2*1>10,10,ODPS_Data!AG2),99) -> 0 | AP2: =IF(ODPS_Data!AH2*1>9,9,ODPS_Data!AH2) -> 0 | AQ2: =IF(ODPS_Data!AJ2*1>4,9,ODPS_Data!AJ2) -> 0 | AR2: =ODPS_Data!HT2 -> 0 | AS2: =ODPS_Data!HU2 -> 0 | AT2: =ODPS_Data!BC2 -> 0 | AU2: =ODPS_Data!AU2 -> 0 | AV2: =ODPS_Data!HV2 -> 0 | AW2: =ODPS_Data!HX2 -> 0 | AX2: =ODPS_Data!HY2 -> 0 | AY2: =ODPS_Data!HW2 -> 0 | AZ2: =ODPS_Data!HZ2 -> 0 | BA2: =ODPS_Data!BD2 -> 0 | BB2: =ODPS_Data!AX2 -> 0 | BC2: =ODPS_Data!AY2 -> 0 | BD2: =IF(ODPS_Data!T2="","",ODPS_Data!T2) ->  | BE2: =ODPS_Data!U2 -> 0 | BF2: =ODPS_Data!V2 -> 0 | BI2: =IF(ODPS_Data!W2="000000","",ODPS_Data!W2) -> 0 | BK2: =IF(ODPS_Data!X2="","",ODPS_Data!X2) ->  | BL2: =IF(ODPS_Data!Y2="","",ODPS_Data!Y2) ->  | BM2: =IF(ODPS_Data!Z2="","",ODPS_Data!Z2) ->  | BN2: =IF(ODPS_Data!AA2="","",ODPS_Data!AA2) ->  | BQ2: =ODPS_Data!AB2 -> 0 | BR2: =ODPS_Data!G2 -> 0 | BS2: =ODPS_Data!BE2 -> 0 | BT2: =ODPS_Data!BI2 -> 0 | BU2: =ODPS_Data!BJ2 -> 0 | BV2: =IF(ODPS_Data!CR2*1>5,"",ODPS_Data!CR2) -> 0 | BW2: =IF(ODPS_Data!BQ2*1>15,16,ODPS_Data!BQ2) -> 0 | BX2: =IF(ODPS_Data!DA2*1>3,1,ODPS_Data!DA2) -> 0 | BY2: =IF(ODPS_Data!BL2*1>27,99,ODPS_Data!BL2) -> 0 | BZ2: =IF(ODPS_Data!CT2*1>21,22,ODPS_Data!CT2) -> 0 | CA2: =VLOOKUP(ODPS_Data!BN2*1,RefTables!$AD$3:$AG$13,2,TRUE) -> 1 | CB2: =VLOOKUP(ODPS_Data!BO2*1,RefTables!$AD$3:$AG$13,2,TRUE) -> 1 | CC2: =IF(ODPS_Data!BP2*1>21,99,ODPS_Data!BP2) -> 0 | CD2: =IF(ODPS_Data!BR2*1>31,99,ODPS_Data!BR2) -> 0 | CE2: =IF(ODPS_Data!CU2*1>31,99,ODPS_Data!CU2) -> 0 | CF2: =IF(ODPS_Data!BT2*1>52,99,ODPS_Data!BT2) -> 0 | CG2: =IF(ODPS_Data!BU2*1>52,99,ODPS_Data!BU2) -> 0 | CH2: =IF(ODPS_Data!BV2*1>52,99,ODPS_Data!BV2) -> 0 | CI2: =IF(ODPS_Data!BW2*1>52,99,ODPS_Data!BW2) -> 0 | CJ2: =IF(ODPS_Data!BX2*1>52,99,ODPS_Data!BX2) -> 0 | CK2: =IF(ODPS_Data!BY2*1>52,99,ODPS_Data!BY2) -> 0 | CL2: =ODPS_Data!BZ2 -> 0 | CM2: =ODPS_Data!CA2 -> 0 | CN2: =IF(ODPS_Data!CB2*1>5,9,ODPS_Data!CB2) -> 0 | CO2: =IF(ODPS_Data!CD2*1>12,99,ODPS_Data!CD2) -> 0 | CP2: =ODPS_Data!CJ2 -> 0 | CQ2: =ODPS_Data!CK2 -> 0 | CR2: =IF(ODPS_Data!CQ2*1=0,1,IF(ODPS_Data!CQ2*1>5,1,ODPS_Data!CQ2)) -> 1 | CS2: =IF(ODPS_Data!CW2*1>7,1,ODPS_Data!CW2) -> 0 | CT2: =IF(ODPS_Data!CX2*1>7,1,ODPS_Data!CX2) -> 0 | CU2: =IF(ODPS_Data!$DC2*1=0,"",ODPS_Data!$DC2) ->  | CV2: =IF(ODPS_Data!$DC2*1=0,"",ODPS_Data!DG2) ->  | CW2: =IF(ODPS_Data!$DC2*1=0,"",ODPS_Data!DH2) ->  | CX2: =IF(ODPS_Data!$DC2*1=0,"",IF(ODPS_Data!DO2*1>15,16,ODPS_Data!DO2)) ->  | CY2: =IF(ODPS_Data!$DC2*1=0,"",IF(ODPS_Data!EY2*1>3,1,ODPS_Data!EY2)) ->  | CZ2: =IF(ODPS_Data!$DC2*1=0,"",IF(ODPS_Data!DK2*1>27,99,ODPS_Data!DK2)) ->  | DA2: =IF(ODPS_Data!$DC2*1=0,"",IF(ODPS_Data!ER2*1>21,22,ODPS_Data!ER2)) ->  | DB2: =IF(ODPS_Data!$DC2*1=0,"",VLOOKUP(ODPS_Data!DL2*1,RefTables!$AD$3:$AG$13,2,TRUE)) ->  | DC2: =IF(ODPS_Data!$DC2*1=0,"",VLOOKUP(ODPS_Data!DM2*1,RefTables!$AD$3:$AG$13,2,TRUE)) ->  | DD2: =IF(ODPS_Data!$DC2*1=0,"",IF(ODPS_Data!DN2*1>21,99,ODPS_Data!DN2)) ->  | DE2: =IF(ODPS_Data!$DC2*1=0,"",IF(ODPS_Data!DP2*1>31,99,ODPS_Data!DP2)) ->  | DF2: =IF(ODPS_Data!$DC2*1=0,"",IF(ODPS_Data!ES2*1>31,99,ODPS_Data!ES2)) ->  | DG2: =IF(ODPS_Data!$DC2*1=0,"",IF(ODPS_Data!DR2*1>52,99,ODPS_Data!DR2)) ->  | DH2: =IF(ODPS_Data!$DC2*1=0,"",IF(ODPS_Data!DS2*1>52,99,ODPS_Data!DS2)) ->  | DI2: =IF(ODPS_Data!$DC2*1=0,"",IF(ODPS_Data!DT2*1>52,99,ODPS_Data!DT2)) ->  | DJ2: =IF(ODPS_Data!$DC2*1=0,"",IF(ODPS_Data!DU2*1>52,99,ODPS_Data!DU2)) ->  | DK2: =IF(ODPS_Data!$DC2*1=0,"",IF(ODPS_Data!DV2*1>52,99,ODPS_Data!DV2)) ->  | DL2: =IF(ODPS_Data!$DC2*1=0,"",IF(ODPS_Data!DW2*1>52,99,ODPS_Data!DW2)) ->  | DM2: =IF(ODPS_Data!$DC2*1=0,"",ODPS_Data!DX2) ->  | DN2: =IF(ODPS_Data!$DC2*1=0,"",ODPS_Data!DY2) ->  | DO2: =IF(ODPS_Data!$DC2*1=0,"",IF(ODPS_Data!EB2*1>12,99,ODPS_Data!EB2)) ->  | DP2: =IF(ODPS_Data!$DC2*1=0,"",ODPS_Data!EH2) ->  | DQ2: =IF(ODPS_Data!$DC2*1=0,"",ODPS_Data!EI2) ->  | DR2: =IF(ODPS_Data!$EO2*1=0,"",IF(ODPS_Data!EO2>5,1,ODPS_Data!EO2)) ->  | DS2: =IF(ODPS_Data!$DC2*1=0,"",IF(ODPS_Data!EU2*1>7,1,ODPS_Data!EU2)) ->  | DT2: =IF(ODPS_Data!$DC2*1=0,"",IF(ODPS_Data!EV2*1>7,1,ODPS_Data!EV2)) -> 
AO18: ROAD_COND_SECONDARY_CD | CE18: U1_CONT_CIR_SECONDARY_CD | CG18: U1_SEQ_OF_EVENTS_2_CD | CH18: U1_SEQ_OF_EVENTS_3_CD | CI18: U1_SEQ_OF_EVENTS_4_CD | CJ18: U1_SEQ_OF_EVENTS_5_CD | CK18: U1_SEQ_OF_EVENTS_6_CD | CT18: U1_DISTRACTED_BY_2_CD | DF18: U2_CONT_CIR_SECONDARY_CD | DH18: U2_SEQ_OF_EVENTS_2_CD | DI18: U2_SEQ_OF_EVENTS_3_CD | DJ18: U2_SEQ_OF_EVENTS_4_CD | DK18: U2_SEQ_OF_EVENTS_5_CD | DL18: U2_SEQ_OF_EVENTS_6_CD | DT18: U2_DISTRACTED_BY_2_CD
F19: 1 | G19: 4 | H19: 6 | I19: 7 | J19: 8 | K19: 22 | L19: 23 | M19: 10 | N19: 15 | O19: 31 | P19: 20 | Q19: 21 | R19: 9 | S19: 11 | T19: 12 | U19: 13 | V19: 14 | W19: 16 | X19: 17 | Y19: 18 | Z19: 19 | AA19: 3 | AB19: 5 | AC19: 24 | AD19: 25 | AE19: 26 | AF19: 2 | AG19: 27 | AH19: 28 | AI19: 29 | AJ19: 30 | AK19: 32 | AL19: 33 | AM19: 34 | AN19: 35 | AO19: 36 | AP19: 37 | AQ19: 38 | AR19: 39 | AS19: 40 | AT19: 41 | AU19: 42 | AV19: 43 | AW19: 44 | AX19: 45 | AY19: 46 | AZ19: 47 | BA19: 48 | BB19: 49 | BC19: 50 | BD19: 51 | BE19: 52 | BF19: 53 | BG19: 54 | BH19: 55 | BI19: 56 | BJ19: 57 | BK19: 58 | BL19: 59 | BM19: 60 | BN19: 61 | BO19: 62 | BP19: 63 | BQ19: 64 | BR19: 65 | BS19: 66 | BT19: 67 | BU19: 68 | BV19: 69 | BW19: 70 | BX19: 71 | BY19: 72 | BZ19: 73 | CA19: 74 | CB19: 75 | CC19: 76 | CD19: 77 | CE19: 78 | CF19: 79 | CG19: 80 | CH19: 81 | CI19: 82 | CJ19: 83 | CK19: 84 | CL19: 85 | CM19: 86 | CN19: 87 | CO19: 88 | CP19: 89 | CQ19: 90 | CR19: 91 | CS19: 92 | CT19: 93 | CU19: 94 | CV19: 95 | CW19: 96 | CX19: 97 | CY19: 98 | CZ19: 99 | DA19: 100 | DB19: 101 | DC19: 102 | DD19: 103 | DE19: 104 | DF19: 105 | DG19: 106 | DH19: 107 | DI19: 108 | DJ19: 109 | DK19: 110 | DL19: 111 | DM19: 112 | DN19: 113 | DO19: 114 | DP19: 115 | DQ19: 116 | DR19: 117 | DS19: 118 | DT19: 119 | DU19: 120
F20: DOCUMENT_NBR | G20: NLF_ID | H20: COUNTY_LOG_NBR | I20: ODOT_LATITUDE_NBR | J20: ODOT_LONGITUDE_NBR | K20: STREET_ON_TXT | L20: REFERENCE_AT_TXT | M20: SEVERITY_BY_TYPE_CD | N20: CRASH_TYPE_CD | O20: ODPS_CRASH_LOCATION_CD | P20: OFFSET_DISTANCE_NBR | Q20: OFFSET_DIRECTION_CD | R20: CRASH_SEVERITY_CD | S20: FATALITIES_NBR | T20: INCAPAC_INJURIES_NBR | U20: NON_INCAPAC_INJURIES_NBR | V20: POSSIBLE_INJURIES_NBR | W20: ODOT_INTERSECTION_REL_IND | X20: FUNCTIONAL_CLASS_CD | Y20: ODOT_MAINTAINED_HWY_IND | Z20: FHWA_LANE_DEPARTURE_IND | AA20: DISTRICT_NBR | AB20: NLF_COUNTY_CD | AC20: CITY_VILLAGE_TWNSHP_CD | AD20: CITY_VILLAGE_TWNSHP_NME | AE20: CRASH_DT | AF20: CRASH_YR | AG20: MONTH_OF_CRASH_NBR | AH20: HOUR_OF_CRASH_NBR | AI20: MINUTE_OF_CRASH_NBR | AJ20: DAY_IN_WEEK_CD | AK20: ODPS_DIV_UNDIV_RDWY_CD | AL20: ODPS_DIVLANE_DIR_OF_TRAV_CD | AM20: WEATHER_COND_CD | AN20: ROAD_COND_PRIMARY_CD | AO20: ROAD_COND_PRIMARY_CD | AP20: LIGHT_COND_PRIMARY_CD | AQ20: ROAD_CONTOUR_CD | AR20: ODPS_ALCOHOL_IND | AS20: ODPS_DRUG_IND | AT20: ODPS_SCHOOL_BUS_REL_CD | AU20: ODPS_SCHOOL_ZONE_IND | AV20: ODPS_ANIMAL_REL_CD | AW20: ODPS_MOTORCYCLE_IND | AX20: ODPS_SPEED_IND | AY20: ODPS_BICYCLE_IND | AZ20: ODPS_PEDESTRIAN_IND | BA20: ODPS_WORK_ZONE_IND | BB20: ODPS_LOC_IN_WORK_ZONE_CD | BC20: ODPS_TYPE_OF_WORK_ZONE_CD | BD20: ODPS_LOC_ROAD_DIRECTION_CD | BE20: ODPS_LOC_ROAD_NAME_TXT | BF20: ODPS_LOC_ROAD_SUFFIX_CD | BG20: ODPS_LOC_ROUTE_PREFIX_CD | BH20: ODPS_LOC_ROUTE_NBR | BI20: ODPS_DIST_FROM_REF_NBR | BJ20: ODPS_DIST_FROM_REF_UNITS_CD | BK20: ODPS_DIR_FROM_REF_CD | BL20: ODPS_REF_DIRECTION_CD | BM20: ODPS_REF_GIVEN_TXT | BN20: ODPS_REF_SUFFIX_CD | BO20: ODPS_REF_ROUTE_PREFIX_CD | BP20: ODPS_REF_ROUTE_NBR | BQ20: ODPS_REF_POINT_USED_CD | BR20: LOCAL_REPORT_NUMBER_ID | BS20: U1_ODPS_UNIT_NBR | BT20: U1_DIRECTION_FROM_CD | BU20: U1_DIRECTION_TO_CD | BV20: U1_TRAFFIC_WAY_DESC_CD | BW20: U1_TRAFFIC_CONTROL_CD | BX20: U1_TYPE_OF_USE_CD | BY20: U1_TYPE_OF_UNIT_CD | BZ20: U1_SPECIAL_FUNCTION_CD | CA20: U1_UNIT_SPEED_RANGE_CD | CB20: U1_POSTED_SPEED_RANGE_CD | CC20: U1_PRECRASH_ACTION_CD | CD20: U1_CONT_CIR_PRIMARY_CD | CE20: U1_CONT_CIR_PRIMARY_CD | CF20: U1_SEQ_OF_EVENTS_1_CD | CG20: U1_SEQ_OF_EVENTS_1_CD | CH20: U1_SEQ_OF_EVENTS_1_CD | CI20: U1_SEQ_OF_EVENTS_1_CD | CJ20: U1_SEQ_OF_EVENTS_1_CD | CK20: U1_SEQ_OF_EVENTS_1_CD | CL20: U1_FIRST_HARMFUL_SEQ_NBR | CM20: U1_MOST_HARMFUL_SEQ_NBR | CN20: U1_COLLISION_ACTION_CD | CO20: U1_NON_MOTORIST_LOC_CD | CP20: U1_AGE_NBR | CQ20: U1_GENDER_CD | CR20: U1_ALCOH_DRUG_SUSPCTD_CD | CS20: U1_DISTRACTED_BY_1_CD | CT20: U1_DISTRACTED_BY_1_CD | CU20: U2_ODPS_UNIT_NBR | CV20: U2_DIRECTION_FROM_CD | CW20: U2_DIRECTION_TO_CD | CX20: U2_TRAFFIC_CONTROL_CD | CY20: U2_TYPE_OF_USE_CD | CZ20: U2_TYPE_OF_UNIT_CD | DA20: U2_SPECIAL_FUNCTION_CD | DB20: U2_UNIT_SPEED_RANGE_CD | DC20: U2_POSTED_SPEED_RANGE_CD | DD20: U2_PRECRASH_ACTION_CD | DE20: U2_CONT_CIR_PRIMARY_CD | DF20: U2_CONT_CIR_PRIMARY_CD | DG20: U2_SEQ_OF_EVENTS_1_CD | DH20: U2_SEQ_OF_EVENTS_1_CD | DI20: U2_SEQ_OF_EVENTS_1_CD | DJ20: U2_SEQ_OF_EVENTS_1_CD | DK20: U2_SEQ_OF_EVENTS_1_CD | DL20: U2_SEQ_OF_EVENTS_1_CD | DM20: U2_FIRST_HARMFUL_SEQ_NBR | DN20: U2_MOST_HARMFUL_SEQ_NBR | DO20: U2_NON_MOTORIST_LOC_CD | DP20: U2_AGE_NBR | DQ20: U2_GENDER_CD | DR20: U2_ALCOH_DRUG_SUSPCTD_CD | DS20: U2_DISTRACTED_BY_1_CD | DT20: U2_DISTRACTED_BY_1_CD | DU20: FILENAME_NME

Sheet DataText (hidden)
B1: =IF(ISERROR(VLOOKUP(Data!B$20&Data!B1,RefTables!$J$2:$K$680,2,FALSE)),IF(Data!B1="","",Data!B1),VLOOKUP(Data!B$20&Data!B1,RefTables!$J$2:$K$680,2,FALSE)) ->  | C1: =IFERROR(VLOOKUP(Data!C$20&Data!C1,RefTables!$J$2:$K$680,2,FALSE),IF(Data!C1="","",Data!C1)) ->  | D1: =IFERROR(VLOOKUP(Data!D$20&Data!D1,RefTables!$J$2:$K$680,2,FALSE),IF(Data!D1="","",Data!D1)) ->  | E1: =IFERROR(VLOOKUP(Data!E$20&Data!E1,RefTables!$J$2:$K$680,2,FALSE),IF(Data!E1="","",Data!E1)) ->  | F1: =IFERROR(VLOOKUP(Data!F$20&Data!F1,RefTables!$J$2:$K$680,2,FALSE),IF(Data!F1="","",Data!F1)) -> DOCUMENT_NBR | G1: =IFERROR(VLOOKUP(Data!G$20&Data!G1,RefTables!$J$2:$K$680,2,FALSE),IF(Data!G1="","",Data!G1)) -> NLF_ID | H1: =IFERROR(VLOOKUP(Data!H$20&Data!H1,RefTables!$J$2:$K$680,2,FALSE),IF(Data!H1="","",Data!H1)) -> COUNTY_LOG_NBR | I1: =IFERROR(VLOOKUP(Data!I$20&Data!I1,RefTables!$J$2:$K$680,2,FALSE),IF(Data!I1="","",Data!I1)) -> ODOT_LATITUDE_NBR | J1: =IFERROR(VLOOKUP(Data!J$20&Data!J1,RefTables!$J$2:$K$680,2,FALSE),IF(Data!J1="","",Data!J1)) -> ODOT_LONGITUDE_NBR | K1: =IFERROR(VLOOKUP(Data!K$20&Data!K1,RefTables!$J$2:$K$680,2,FALSE),IF(Data!K1="","",Data!K1)) -> STREET_ON_TXT | L1: =IFERROR(VLOOKUP(Data!L$20&Data!L1,RefTables!$J$2:$K$680,2,FALSE),IF(Data!L1="","",Data!L1)) -> REFERENCE_AT_TXT | M1: =IFERROR(VLOOKUP(Data!M$20&Data!M1,RefTables!$J$2:$K$680,2,FALSE),IF(Data!M1="","",Data!M1)) -> SEVERITY_BY_TYPE_CD | N1: =IFERROR(VLOOKUP(Data!N$20&Data!N1,RefTables!$J$2:$K$680,2,FALSE),IF(Data!N1="","",Data!N1)) -> CRASH_TYPE_CD | O1: =IFERROR(VLOOKUP(Data!O$20&Data!O1,RefTables!$J$2:$K$680,2,FALSE),IF(Data!O1="","",Data!O1)) -> ODPS_CRASH_LOCATION_CD | P1: =IFERROR(VLOOKUP(Data!P$20&Data!P1,RefTables!$J$2:$K$680,2,FALSE),IF(Data!P1="","",Data!P1)) -> OFFSET_DISTANCE_NBR | Q1: =IFERROR(VLOOKUP(Data!Q$20&Data!Q1,RefTables!$J$2:$K$680,2,FALSE),IF(Data!Q1="","",Data!Q1)) -> OFFSET_DIRECTION_CD | R1: =IFERROR(VLOOKUP(Data!R$20&Data!R1,RefTables!$J$2:$K$680,2,FALSE),IF(Data!R1="","",Data!R1)) -> CRASH_SEVERITY_CD | S1: =IFERROR(VLOOKUP(Data!S$20&Data!S1,RefTables!$J$2:$K$680,2,FALSE),IF(Data!S1="","",Data!S1)) -> FATALITIES_NBR | T1: =IFERROR(VLOOKUP(Data!T$20&Data!T1,RefTables!$J$2:$K$680,2,FALSE),IF(Data!T1="","",Data!T1)) -> INCAPAC_INJURIES_NBR | U1: =IFERROR(VLOOKUP(Data!U$20&Data!U1,RefTables!$J$2:$K$680,2,FALSE),IF(Data!U1="","",Data!U1)) -> NON_INCAPAC_INJURIES_NBR | V1: =IFERROR(VLOOKUP(Data!V$20&Data!V1,RefTables!$J$2:$K$680,2,FALSE),IF(Data!V1="","",Data!V1)) -> POSSIBLE_INJURIES_NBR | W1: =IFERROR(VLOOKUP(Data!W$20&Data!W1,RefTables!$J$2:$K$680,2,FALSE),IF(Data!W1="","",Data!W1)) -> ODOT_INTERSECTION_REL_IND | X1: =IFERROR(VLOOKUP(Data!X$20&Data!X1,RefTables!$J$2:$K$680,2,FALSE),IF(Data!X1="","",Data!X1)) -> FUNCTIONAL_CLASS_CD | Y1: =IFERROR(VLOOKUP(Data!Y$20&Data!Y1,RefTables!$J$2:$K$680,2,FALSE),IF(Data!Y1="","",Data!Y1)) -> ODOT_MAINTAINED_HWY_IND | Z1: =IFERROR(VLOOKUP(Data!Z$20&Data!Z1,RefTables!$J$2:$K$680,2,FALSE),IF(Data!Z1="","",Data!Z1)) -> FHWA_LANE_DEPARTURE_IND | AA1: =IFERROR(VLOOKUP(Data!AA$20&Data!AA1,RefTables!$J$2:$K$680,2,FALSE),IF(Data!AA1="","",Data!AA1)) -> DISTRICT_NBR | AB1: =IFERROR(VLOOKUP(Data!AB$20&Data!AB1,RefTables!$J$2:$K$680,2,FALSE),IF(Data!AB1="","",Data!AB1)) -> NLF_COUNTY_CD | AC1: =IFERROR(VLOOKUP(Data!AC$20&Data!AC1,RefTables!$J$2:$K$680,2,FALSE),IF(Data!AC1="","",Data!AC1)) -> CITY_VILLAGE_TWNSHP_CD | AD1: =IFERROR(VLOOKUP(Data!AD$20&Data!AD1,RefTables!$J$2:$K$680,2,FALSE),IF(Data!AD1="","",Data!AD1)) -> CITY_VILLAGE_TWNSHP_NME | AE1: =IFERROR(VLOOKUP(Data!AE$20&Data!AE1,RefTables!$J$2:$K$680,2,FALSE),IF(Data!AE1="","",Data!AE1)) -> CRASH_DT | AF1: =IFERROR(VLOOKUP(Data!AF$20&Data!AF1,RefTables!$J$2:$K$680,2,FALSE),IF(Data!AF1="","",Data!AF1)) -> CRASH_YR | AG1: =IFERROR(VLOOKUP(Data!AG$20&Data!AG1,RefTables!$J$2:$K$680,2,FALSE),IF(Data!AG1="","",Data!AG1)) -> MONTH_OF_CRASH_NBR | AH1: =IFERROR(VLOOKUP(Data!AH$20&Data!AH1,RefTables!$J$2:$K$680,2,FALSE),IF(Data!AH1="","",Data!AH1)) -> HOUR_OF_CRASH_NBR | AI1: =IFERROR(VLOOKUP(Data!AI$20&Data!AI1,RefTables!$J$2:$K$680,2,FALSE),IF(Data!AI1="","",Data!AI1)) -> MINUTE_OF_CRASH_NBR | AJ1: =IFERROR(VLOOKUP(Data!AJ$20&Data!AJ1,RefTables!$J$2:$K$680,2,FALSE),IF(Data!AJ1="","",Data!AJ1)) -> DAY_IN_WEEK_CD | AK1: =IFERROR(VLOOKUP(Data!AK$20&Data!AK1,RefTables!$J$2:$K$680,2,FALSE),IF(Data!AK1="","",Data!AK1)) -> ODPS_DIV_UNDIV_RDWY_CD | AL1: =IFERROR(VLOOKUP(Data!AL$20&Data!AL1,RefTables!$J$2:$K$680,2,FALSE),IF(Data!AL1="","",Data!AL1)) -> ODPS_DIVLANE_DIR_OF_TRAV_CD | AM1: =IFERROR(VLOOKUP(Data!AM$20&Data!AM1,RefTables!$J$2:$K$680,2,FALSE),IF(Data!AM1="","",Data!AM1)) -> WEATHER_COND_CD | AN1: =IFERROR(VLOOKUP(Data!AN$20&Data!AN1,RefTables!$J$2:$K$680,2,FALSE),IF(Data!AN1="","",Data!AN1)) -> ROAD_COND_PRIMARY_CD | AO1: =IFERROR(VLOOKUP(Data!AO$20&Data!AO1,RefTables!$J$2:$K$680,2,FALSE),IF(Data!AO1="","",Data!AO1)) -> ROAD_COND_PRIMARY_CD | AP1: =IFERROR(VLOOKUP(Data!AP$20&Data!AP1,RefTables!$J$2:$K$680,2,FALSE),IF(Data!AP1="","",Data!AP1)) -> LIGHT_COND_PRIMARY_CD | AQ1: =IFERROR(VLOOKUP(Data!AQ$20&Data!AQ1,RefTables!$J$2:$K$680,2,FALSE),IF(Data!AQ1="","",Data!AQ1)) -> ROAD_CONTOUR_CD | AR1: =IFERROR(VLOOKUP(Data!AR$20&Data!AR1,RefTables!$J$2:$K$680,2,FALSE),IF(Data!AR1="","",Data!AR1)) -> ODPS_ALCOHOL_IND | AS1: =IFERROR(VLOOKUP(Data!AS$20&Data!AS1,RefTables!$J$2:$K$680,2,FALSE),IF(Data!AS1="","",Data!AS1)) -> ODPS_DRUG_IND | AT1: =IFERROR(VLOOKUP(Data!AT$20&Data!AT1,RefTables!$J$2:$K$680,2,FALSE),IF(Data!AT1="","",Data!AT1)) -> ODPS_SCHOOL_BUS_REL_CD | AU1: =IFERROR(VLOOKUP(Data!AU$20&Data!AU1,RefTables!$J$2:$K$680,2,FALSE),IF(Data!AU1="","",Data!AU1)) -> ODPS_SCHOOL_ZONE_IND | AV1: =IFERROR(VLOOKUP(Data!AV$20&Data!AV1,RefTables!$J$2:$K$680,2,FALSE),IF(Data!AV1="","",Data!AV1)) -> ODPS_ANIMAL_REL_CD | AW1: =IFERROR(VLOOKUP(Data!AW$20&Data!AW1,RefTables!$J$2:$K$680,2,FALSE),IF(Data!AW1="","",Data!AW1)) -> ODPS_MOTORCYCLE_IND | AX1: =IFERROR(VLOOKUP(Data!AX$20&Data!AX1,RefTables!$J$2:$K$680,2,FALSE),IF(Data!AX1="","",Data!AX1)) -> ODPS_SPEED_IND | AY1: =IFERROR(VLOOKUP(Data!AY$20&Data!AY1,RefTables!$J$2:$K$680,2,FALSE),IF(Data!AY1="","",Data!AY1)) -> ODPS_BICYCLE_IND | AZ1: =IFERROR(VLOOKUP(Data!AZ$20&Data!AZ1,RefTables!$J$2:$K$680,2,FALSE),IF(Data!AZ1="","",Data!AZ1)) -> ODPS_PEDESTRIAN_IND | BA1: =IFERROR(VLOOKUP(Data!BA$20&Data!BA1,RefTables!$J$2:$K$680,2,FALSE),IF(Data!BA1="","",Data!BA1)) -> ODPS_WORK_ZONE_IND | BB1: =IFERROR(VLOOKUP(Data!BB$20&Data!BB1,RefTables!$J$2:$K$680,2,FALSE),IF(Data!BB1="","",Data!BB1)) -> ODPS_LOC_IN_WORK_ZONE_CD | BC1: =IFERROR(VLOOKUP(Data!BC$20&Data!BC1,RefTables!$J$2:$K$680,2,FALSE),IF(Data!BC1="","",Data!BC1)) -> ODPS_TYPE_OF_WORK_ZONE_CD | BD1: =IFERROR(VLOOKUP(Data!BD$20&Data!BD1,RefTables!$J$2:$K$680,2,FALSE),IF(Data!BD1="","",Data!BD1)) -> ODPS_LOC_ROAD_DIRECTION_CD | BE1: =IFERROR(VLOOKUP(Data!BE$20&Data!BE1,RefTables!$J$2:$K$680,2,FALSE),IF(Data!BE1="","",Data!BE1)) -> ODPS_LOC_ROAD_NAME_TXT | BF1: =IFERROR(VLOOKUP(Data!BF$20&Data!BF1,RefTables!$J$2:$K$680,2,FALSE),IF(Data!BF1="","",Data!BF1)) -> ODPS_LOC_ROAD_SUFFIX_CD | BG1: =IFERROR(VLOOKUP(Data!BG$20&Data!BG1,RefTables!$J$2:$K$680,2,FALSE),IF(Data!BG1="","",Data!BG1)) -> ODPS_LOC_ROUTE_PREFIX_CD | BH1: =IFERROR(VLOOKUP(Data!BH$20&Data!BH1,RefTables!$J$2:$K$680,2,FALSE),IF(Data!BH1="","",Data!BH1)) -> ODPS_LOC_ROUTE_NBR | BI1: =IFERROR(VLOOKUP(Data!BI$20&Data!BI1,RefTables!$J$2:$K$680,2,FALSE),IF(Data!BI1="","",Data!BI1)) -> ODPS_DIST_FROM_REF_NBR | BJ1: =IFERROR(VLOOKUP(Data!BJ$20&Data!BJ1,RefTables!$J$2:$K$680,2,FALSE),IF(Data!BJ1="","",Data!BJ1)) -> ODPS_DIST_FROM_REF_UNITS_CD | BK1: =IFERROR(VLOOKUP(Data!BK$20&Data!BK1,RefTables!$J$2:$K$680,2,FALSE),IF(Data!BK1="","",Data!BK1)) -> ODPS_DIR_FROM_REF_CD | BL1: =IFERROR(VLOOKUP(Data!BL$20&Data!BL1,RefTables!$J$2:$K$680,2,FALSE),IF(Data!BL1="","",Data!BL1)) -> ODPS_REF_DIRECTION_CD | BM1: =IFERROR(VLOOKUP(Data!BM$20&Data!BM1,RefTables!$J$2:$K$680,2,FALSE),IF(Data!BM1="","",Data!BM1)) -> ODPS_REF_GIVEN_TXT | BN1: =IFERROR(VLOOKUP(Data!BN$20&Data!BN1,RefTables!$J$2:$K$680,2,FALSE),IF(Data!BN1="","",Data!BN1)) -> ODPS_REF_SUFFIX_CD | BO1: =IFERROR(VLOOKUP(Data!BO$20&Data!BO1,RefTables!$J$2:$K$680,2,FALSE),IF(Data!BO1="","",Data!BO1)) -> ODPS_REF_ROUTE_PREFIX_CD | BP1: =IFERROR(VLOOKUP(Data!BP$20&Data!BP1,RefTables!$J$2:$K$680,2,FALSE),IF(Data!BP1="","",Data!BP1)) -> ODPS_REF_ROUTE_NBR | BQ1: =IFERROR(VLOOKUP(Data!BQ$20&Data!BQ1,RefTables!$J$2:$K$680,2,FALSE),IF(Data!BQ1="","",Data!BQ1)) -> ODPS_REF_POINT_USED_CD | BR1: =IFERROR(VLOOKUP(Data!BR$20&Data!BR1,RefTables!$J$2:$K$680,2,FALSE),IF(Data!BR1="","",Data!BR1)) -> LOCAL_REPORT_NUMBER_ID | BS1: =IFERROR(VLOOKUP(Data!BS$20&Data!BS1,RefTables!$J$2:$K$680,2,FALSE),IF(Data!BS1="","",Data!BS1)) -> U1_ODPS_UNIT_NBR | BT1: =IFERROR(VLOOKUP(Data!BT$20&Data!BT1,RefTables!$J$2:$K$680,2,FALSE),IF(Data!BT1="","",Data!BT1)) -> U1_DIRECTION_FROM_CD | BU1: =IFERROR(VLOOKUP(Data!BU$20&Data!BU1,RefTables!$J$2:$K$680,2,FALSE),IF(Data!BU1="","",Data!BU1)) -> U1_DIRECTION_TO_CD | BV1: =IFERROR(VLOOKUP(Data!BV$20&Data!BV1,RefTables!$J$2:$K$680,2,FALSE),IF(Data!BV1="","",Data!BV1)) -> U1_TRAFFIC_WAY_DESC_CD | BW1: =IFERROR(VLOOKUP(Data!BW$20&Data!BW1,RefTables!$J$2:$K$680,2,FALSE),IF(Data!BW1="","",Data!BW1)) -> U1_TRAFFIC_CONTROL_CD | BX1: =IFERROR(VLOOKUP(Data!BX$20&Data!BX1,RefTables!$J$2:$K$680,2,FALSE),IF(Data!BX1="","",Data!BX1)) -> U1_TYPE_OF_USE_CD | BY1: =IFERROR(VLOOKUP(Data!BY$20&Data!BY1,RefTables!$J$2:$K$680,2,FALSE),IF(Data!BY1="","",Data!BY1)) -> U1_TYPE_OF_UNIT_CD | BZ1: =IFERROR(VLOOKUP(Data!BZ$20&Data!BZ1,RefTables!$J$2:$K$680,2,FALSE),IF(Data!BZ1="","",Data!BZ1)) -> U1_SPECIAL_FUNCTION_CD | CA1: =IFERROR(VLOOKUP(Data!CA$20&Data!CA1,RefTables!$J$2:$K$680,2,FALSE),IF(Data!CA1="","",Data!CA1)) -> U1_UNIT_SPEED_RANGE_CD | CB1: =IFERROR(VLOOKUP(Data!CB$20&Data!CB1,RefTables!$J$2:$K$680,2,FALSE),IF(Data!CB1="","",Data!CB1)) -> U1_POSTED_SPEED_RANGE_CD | CC1: =IFERROR(VLOOKUP(Data!CC$20&Data!CC1,RefTables!$J$2:$K$680,2,FALSE),IF(Data!CC1="","",Data!CC1)) -> U1_PRECRASH_ACTION_CD | CD1: =IFERROR(VLOOKUP(Data!CD$20&Data!CD1,RefTables!$J$2:$K$680,2,FALSE),IF(Data!CD1="","",Data!CD1)) -> U1_CONT_CIR_PRIMARY_CD | CE1: =IFERROR(VLOOKUP(Data!CE$20&Data!CE1,RefTables!$J$2:$K$680,2,FALSE),IF(Data!CE1="","",Data!CE1)) -> U1_CONT_CIR_SECONDARY_CD | CF1: =IFERROR(VLOOKUP(Data!CF$20&Data!CF1,RefTables!$J$2:$K$680,2,FALSE),IF(Data!CF1="","",Data!CF1)) -> U1_SEQ_OF_EVENTS_1_CD | CG1: =IFERROR(VLOOKUP(Data!CG$20&Data!CG1,RefTables!$J$2:$K$680,2,FALSE),IF(Data!CG1="","",Data!CG1)) -> U1_SEQ_OF_EVENTS_2_CD | CH1: =IFERROR(VLOOKUP(Data!CH$20&Data!CH1,RefTables!$J$2:$K$680,2,FALSE),IF(Data!CH1="","",Data!CH1)) -> U1_SEQ_OF_EVENTS_3_CD | CI1: =IFERROR(VLOOKUP(Data!CI$20&Data!CI1,RefTables!$J$2:$K$680,2,FALSE),IF(Data!CI1="","",Data!CI1)) -> U1_SEQ_OF_EVENTS_4_CD | CJ1: =IFERROR(VLOOKUP(Data!CJ$20&Data!CJ1,RefTables!$J$2:$K$680,2,FALSE),IF(Data!CJ1="","",Data!CJ1)) -> U1_SEQ_OF_EVENTS_5_CD | CK1: =IFERROR(VLOOKUP(Data!CK$20&Data!CK1,RefTables!$J$2:$K$680,2,FALSE),IF(Data!CK1="","",Data!CK1)) -> U1_SEQ_OF_EVENTS_6_CD | CL1: =IFERROR(VLOOKUP(Data!CL$20&Data!CL1,RefTables!$J$2:$K$680,2,FALSE),IF(Data!CL1="","",Data!CL1)) -> U1_FIRST_HARMFUL_SEQ_NBR | CM1: =IFERROR(VLOOKUP(Data!CM$20&Data!CM1,RefTables!$J$2:$K$680,2,FALSE),IF(Data!CM1="","",Data!CM1)) -> U1_MOST_HARMFUL_SEQ_NBR | CN1: =IFERROR(VLOOKUP(Data!CN$20&Data!CN1,RefTables!$J$2:$K$680,2,FALSE),IF(Data!CN1="","",Data!CN1)) -> U1_COLLISION_ACTION_CD | CO1: =IFERROR(VLOOKUP(Data!CO$20&Data!CO1,RefTables!$J$2:$K$680,2,FALSE),IF(Data!CO1="","",Data!CO1)) -> U1_NON_MOTORIST_LOC_CD | CP1: =IFERROR(VLOOKUP(Data!CP$20&Data!CP1,RefTables!$J$2:$K$680,2,FALSE),IF(Data!CP1="","",Data!CP1)) -> U1_AGE_NBR | CQ1: =IFERROR(VLOOKUP(Data!CQ$20&Data!CQ1,RefTables!$J$2:$K$680,2,FALSE),IF(Data!CQ1="","",Data!CQ1)) -> U1_GENDER_CD | CR1: =IFERROR(VLOOKUP(Data!CR$20&Data!CR1,RefTables!$J$2:$K$680,2,FALSE),IF(Data!CR1="","",Data!CR1)) -> U1_ALCOH_DRUG_SUSPCTD_CD | CS1: =IFERROR(VLOOKUP(Data!CS$20&Data!CS1,RefTables!$J$2:$K$680,2,FALSE),IF(Data!CS1="","",Data!CS1)) -> U1_DISTRACTED_BY_1_CD | CT1: =IFERROR(VLOOKUP(Data!CT$20&Data!CT1,RefTables!$J$2:$K$680,2,FALSE),IF(Data!CT1="","",Data!CT1)) -> U1_DISTRACTED_BY_2_CD | CU1: =IFERROR(VLOOKUP(Data!CU$20&Data!CU1,RefTables!$J$2:$K$680,2,FALSE),IF(Data!CU1="","",Data!CU1)) -> U2_ODPS_UNIT_NBR | CV1: =IFERROR(VLOOKUP(Data!CV$20&Data!CV1,RefTables!$J$2:$K$680,2,FALSE),IF(Data!CV1="","",Data!CV1)) -> U2_DIRECTION_FROM_CD | CW1: =IFERROR(VLOOKUP(Data!CW$20&Data!CW1,RefTables!$J$2:$K$680,2,FALSE),IF(Data!CW1="","",Data!CW1)) -> U2_DIRECTION_TO_CD | CX1: =IFERROR(VLOOKUP(Data!CX$20&Data!CX1,RefTables!$J$2:$K$680,2,FALSE),IF(Data!CX1="","",Data!CX1)) -> U2_TRAFFIC_CONTROL_CD | CY1: =IFERROR(VLOOKUP(Data!CY$20&Data!CY1,RefTables!$J$2:$K$680,2,FALSE),IF(Data!CY1="","",Data!CY1)) -> U2_TYPE_OF_USE_CD | CZ1: =IFERROR(VLOOKUP(Data!CZ$20&Data!CZ1,RefTables!$J$2:$K$680,2,FALSE),IF(Data!CZ1="","",Data!CZ1)) -> U2_TYPE_OF_UNIT_CD | DA1: =IFERROR(VLOOKUP(Data!DA$20&Data!DA1,RefTables!$J$2:$K$680,2,FALSE),IF(Data!DA1="","",Data!DA1)) -> U2_SPECIAL_FUNCTION_CD | DB1: =IFERROR(VLOOKUP(Data!DB$20&Data!DB1,RefTables!$J$2:$K$680,2,FALSE),IF(Data!DB1="","",Data!DB1)) -> U2_UNIT_SPEED_RANGE_CD | DC1: =IFERROR(VLOOKUP(Data!DC$20&Data!DC1,RefTables!$J$2:$K$680,2,FALSE),IF(Data!DC1="","",Data!DC1)) -> U2_POSTED_SPEED_RANGE_CD | DD1: =IFERROR(VLOOKUP(Data!DD$20&Data!DD1,RefTables!$J$2:$K$680,2,FALSE),IF(Data!DD1="","",Data!DD1)) -> U2_PRECRASH_ACTION_CD | DE1: =IFERROR(VLOOKUP(Data!DE$20&Data!DE1,RefTables!$J$2:$K$680,2,FALSE),IF(Data!DE1="","",Data!DE1)) -> U2_CONT_CIR_PRIMARY_CD | DF1: =IFERROR(VLOOKUP(Data!DF$20&Data!DF1,RefTables!$J$2:$K$680,2,FALSE),IF(Data!DF1="","",Data!DF1)) -> U2_CONT_CIR_SECONDARY_CD | DG1: =IFERROR(VLOOKUP(Data!DG$20&Data!DG1,RefTables!$J$2:$K$680,2,FALSE),IF(Data!DG1="","",Data!DG1)) -> U2_SEQ_OF_EVENTS_1_CD | DH1: =IFERROR(VLOOKUP(Data!DH$20&Data!DH1,RefTables!$J$2:$K$680,2,FALSE),IF(Data!DH1="","",Data!DH1)) -> U2_SEQ_OF_EVENTS_2_CD | DI1: =IFERROR(VLOOKUP(Data!DI$20&Data!DI1,RefTables!$J$2:$K$680,2,FALSE),IF(Data!DI1="","",Data!DI1)) -> U2_SEQ_OF_EVENTS_3_CD | DJ1: =IFERROR(VLOOKUP(Data!DJ$20&Data!DJ1,RefTables!$J$2:$K$680,2,FALSE),IF(Data!DJ1="","",Data!DJ1)) -> U2_SEQ_OF_EVENTS_4_CD | DK1: =IFERROR(VLOOKUP(Data!DK$20&Data!DK1,RefTables!$J$2:$K$680,2,FALSE),IF(Data!DK1="","",Data!DK1)) -> U2_SEQ_OF_EVENTS_5_CD | DL1: =IFERROR(VLOOKUP(Data!DL$20&Data!DL1,RefTables!$J$2:$K$680,2,FALSE),IF(Data!DL1="","",Data!DL1)) -> U2_SEQ_OF_EVENTS_6_CD | DM1: =IFERROR(VLOOKUP(Data!DM$20&Data!DM1,RefTables!$J$2:$K$680,2,FALSE),IF(Data!DM1="","",Data!DM1)) -> U2_FIRST_HARMFUL_SEQ_NBR | DN1: =IFERROR(VLOOKUP(Data!DN$20&Data!DN1,RefTables!$J$2:$K$680,2,FALSE),IF(Data!DN1="","",Data!DN1)) -> U2_MOST_HARMFUL_SEQ_NBR | DO1: =IFERROR(VLOOKUP(Data!DO$20&Data!DO1,RefTables!$J$2:$K$680,2,FALSE),IF(Data!DO1="","",Data!DO1)) -> U2_NON_MOTORIST_LOC_CD | DP1: =IFERROR(VLOOKUP(Data!DP$20&Data!DP1,RefTables!$J$2:$K$680,2,FALSE),IF(Data!DP1="","",Data!DP1)) -> U2_AGE_NBR | DQ1: =IFERROR(VLOOKUP(Data!DQ$20&Data!DQ1,RefTables!$J$2:$K$680,2,FALSE),IF(Data!DQ1="","",Data!DQ1)) -> U2_GENDER_CD | DR1: =IFERROR(VLOOKUP(Data!DR$20&Data!DR1,RefTables!$J$2:$K$680,2,FALSE),IF(Data!DR1="","",Data!DR1)) -> U2_ALCOH_DRUG_SUSPCTD_CD | DS1: =IFERROR(VLOOKUP(Data!DS$20&Data!DS1,RefTables!$J$2:$K$680,2,FALSE),IF(Data!DS1="","",Data!DS1)) -> U2_DISTRACTED_BY_1_CD | DT1: =IFERROR(VLOOKUP(Data!DT$20&Data!DT1,RefTables!$J$2:$K$680,2,FALSE),IF(Data!DT1="","",Data!DT1)) -> U2_DISTRACTED_BY_2_CD | DU1: =IFERROR(VLOOKUP(Data!DU$20&Data!DU1,RefTables!$J$2:$K$680,2,FALSE),IF(Data!DU1="","",Data!DU1)) -> FILENAME_NME
D2: Codes | E2: =IF(Data!E2="","",Data!E2) -> 0 | F2: =IF(Data!F2="","",Data!F2) -> 0 | G2: =IF(Data!G2="","",Data!G2) -> 0 | H2: =IF(Data!H2="","",Data!H2) -> 0 | I2: =IF(Data!I2="","",Data!I2) -> 0 | J2: =IF(Data!J2="","",Data!J2) -> 0 | K2: =IF(Data!K2="","",Data!K2) ->  | L2: =IF(Data!L2="","",Data!L2) ->  | M2: =IF(Data!M2="","",Data!M2) -> 1 | N2: =IF(Data!N2="","",Data!N2) -> 0 | O2: =IF(Data!O2="","",Data!O2) -> 0 | P2: =IF(Data!P2="","",Data!P2) -> 0 | Q2: =IF(Data!Q2="","",Data!Q2) ->  | R2: =IF(Data!R2="","",Data!R2) -> 0 | S2: =IF(Data!S2="","",Data!S2) -> 0 | T2: =IF(Data!T2="","",Data!T2) -> 0 | U2: =IF(Data!U2="","",Data!U2) -> 0 | V2: =IF(Data!V2="","",Data!V2) -> 0 | W2: =IF(Data!W2="","",Data!W2) -> 0 | X2: =IF(Data!X2="","",Data!X2) ->  | Y2: =IF(Data!Y2="","",Data!Y2) ->  | Z2: =IF(Data!Z2="","",Data!Z2) ->  | AA2: =IF(Data!AA2="","",Data!AA2) -> 0 | AB2: =IF(Data!AB2="","",Data!AB2) -> 0 | AC2: =IF(Data!AC2="","",Data!AC2) -> 0 | AD2: =IF(Data!AD2="","",Data!AD2) -> 0 | AE2: =IF(Data!AE2="","",Data!AE2) ->  | AF2: =IF(Data!AF2="","",Data!AF2) ->  | AG2: =IF(Data!AG2="","",Data!AG2) ->  | AH2: =IF(Data!AH2="","",Data!AH2) ->  | AI2: =IF(Data!AI2="","",Data!AI2) ->  | AJ2: =IF(Data!AJ2="","",Data!AJ2) -> 0 | AK2: =IF(Data!AK2="","",Data!AK2) -> 0 | AL2: =IF(Data!AL2="","",Data!AL2) -> 0 | AM2: =IF(Data!AM2="","",Data!AM2) -> 0 | AN2: =IF(Data!AN2="","",Data!AN2) -> 0 | AO2: =IF(Data!AO2="","",Data!AO2) -> 0 | AP2: =IF(Data!AP2="","",Data!AP2) -> 0 | AQ2: =IF(Data!AQ2="","",Data!AQ2) -> 0 | AR2: =IF(Data!AR2="","",Data!AR2) -> 0 | AS2: =IF(Data!AS2="","",Data!AS2) -> 0 | AT2: =IF(Data!AT2="","",Data!AT2) -> 0 | AU2: =IF(Data!AU2="","",Data!AU2) -> 0 | AV2: =IF(Data!AV2="","",Data!AV2) -> 0 | AW2: =IF(Data!AW2="","",Data!AW2) -> 0 | AX2: =IF(Data!AX2="","",Data!AX2) -> 0 | AY2: =IF(Data!AY2="","",Data!AY2) -> 0 | AZ2: =IF(Data!AZ2="","",Data!AZ2) -> 0 | BA2: =IF(Data!BA2="","",Data!BA2) -> 0 | BB2: =IF(Data!BB2="","",Data!BB2) -> 0 | BC2: =IF(Data!BC2="","",Data!BC2) -> 0 | BD2: =IF(Data!BD2="","",Data!BD2) ->  | BE2: =IF(Data!BE2="","",Data!BE2) -> 0 | BF2: =IF(Data!BF2="","",Data!BF2) -> 0 | BG2: =IF(Data!BG2="","",Data!BG2) ->  | BH2: =IF(Data!BH2="","",Data!BH2) ->  | BI2: =IF(Data!BI2="","",Data!BI2) -> 0 | BJ2: =IF(Data!BJ2="","",Data!BJ2) ->  | BK2: =IF(Data!BK2="","",Data!BK2) ->  | BL2: =IF(Data!BL2="","",Data!BL2) ->  | BM2: =IF(Data!BM2="","",Data!BM2) ->  | BN2: =IF(Data!BN2="","",Data!BN2) ->  | BO2: =IF(Data!BO2="","",Data!BO2) ->  | BP2: =IF(Data!BP2="","",Data!BP2) ->  | BQ2: =IF(Data!BQ2="","",Data!BQ2) -> 0 | BR2: =IF(Data!BR2="","",Data!BR2) -> 0 | BS2: =IF(Data!BS2="","",Data!BS2) -> 0 | BT2: =IF(Data!BT2="","",Data!BT2) -> 0 | BU2: =IF(Data!BU2="","",Data!BU2) -> 0 | BV2: =IF(Data!BV2="","",Data!BV2) -> 0 | BW2: =IF(Data!BW2="","",Data!BW2) -> 0 | BX2: =IF(Data!BX2="","",Data!BX2) -> 0 | BY2: =IF(Data!BY2="","",Data!BY2) -> 0 | BZ2: =IF(Data!BZ2="","",Data!BZ2) -> 0 | CA2: =IF(Data!CA3="","",Data!CA3) ->  | CB2: =IF(Data!CB2="","",Data!CB2) -> 1 | CC2: =IF(Data!CC2="","",Data!CC2) -> 0 | CD2: =IF(Data!CD2="","",Data!CD2) -> 0 | CE2: =IF(Data!CE2="","",Data!CE2) -> 0 | CF2: =IF(Data!CF2="","",Data!CF2) -> 0 | CG2: =IF(Data!CG2="","",Data!CG2) -> 0 | CH2: =IF(Data!CH2="","",Data!CH2) -> 0 | CI2: =IF(Data!CI2="","",Data!CI2) -> 0 | CJ2: =IF(Data!CJ2="","",Data!CJ2) -> 0 | CK2: =IF(Data!CK2="","",Data!CK2) -> 0 | CL2: =IF(Data!CL2="","",Data!CL2) -> 0 | CM2: =IF(Data!CM2="","",Data!CM2) -> 0 | CN2: =IF(Data!CN2="","",Data!CN2) -> 0 | CO2: =IF(Data!CO2="","",Data!CO2) -> 0 | CP2: =IF(Data!CP2="","",Data!CP2) -> 0 | CQ2: =IF(Data!CQ2="","",Data!CQ2) -> 0 | CR2: =IF(Data!CR2="","",Data!CR2) -> 1 | CS2: =IF(Data!CS2="","",Data!CS2) -> 0 | CT2: =IF(Data!CT2="","",Data!CT2) -> 0 | CU2: =IF(Data!CU2="","",Data!CU2) ->  | CV2: =IF(Data!CV2="","",Data!CV2) ->  | CW2: =IF(Data!CW2="","",Data!CW2) ->  | CX2: =IF(Data!CX2="","",Data!CX2) ->  | CY2: =IF(Data!CY2="","",Data!CY2) ->  | CZ2: =IF(Data!CZ2="","",Data!CZ2) ->  | DA2: =IF(Data!DA2="","",Data!DA2) ->  | DB2: =IF(Data!DB2="","",Data!DB2) ->  | DC2: =IF(Data!DC2="","",Data!DC2) ->  | DD2: =IF(Data!DD2="","",Data!DD2) ->  | DE2: =IF(Data!DE2="","",Data!DE2) ->  | DF2: =IF(Data!DF2="","",Data!DF2) ->  | DG2: =IF(Data!DG2="","",Data!DG2) ->  | DH2: =IF(Data!DH2="","",Data!DH2) ->  | DI2: =IF(Data!DI2="","",Data!DI2) ->  | DJ2: =IF(Data!DJ2="","",Data!DJ2) ->  | DK2: =IF(Data!DK2="","",Data!DK2) ->  | DL2: =IF(Data!DL2="","",Data!DL2) ->  | DM2: =IF(Data!DM2="","",Data!DM2) ->  | DN2: =IF(Data!DN2="","",Data!DN2) ->  | DO2: =IF(Data!DO2="","",Data!DO2) ->  | DP2: =IF(Data!DP2="","",Data!DP2) ->  | DQ2: =IF(Data!DQ2="","",Data!DQ2) ->  | DR2: =IF(Data!DR2="","",Data!DR2) ->  | DS2: =IF(Data!DS2="","",Data!DS2) ->  | DT2: =IF(Data!DT2="","",Data!DT2) ->  | DU2: =IF(Data!DU2="","",Data!DU2) -> 
F3: 2 | G3: 4 | H3: 5 | I3: 54 | J3: 55 | K3: 7 | L3: 8 | M3: X | N3: 13 | O3: 18 | P3: 9 | Q3: 49 | R3: 15 | S3: 45 | T3: 46 | U3: 47 | V3: 48 | W3: 116 | X3: X | Y3: X | Z3: X | AA3: 50 | AB3: 51 | AC3: 52 | AD3: 53 | AE3: 6 | AF3: 56 | AG3: 57 | AH3: 11 | AI3: X | AJ3: 10 | AK3: X | AL3: X | AM3: 16 | AN3: 17 | AO3: X | AP3: 12 | AQ3: 44 | AR3: X | AS3: X | AT3: X | AU3: X | AV3: 42 | AW3: X | AX3: X | AY3: X | AZ3: X | BA3: X | BB3: 41 | BC3: X | BD3: X | BE3: X | BF3: X | BG3: X | BH3: X | BI3: X | BJ3: X | BK3: X | BL3: X | BM3: X | BN3: X | BO3: X | BP3: X | BQ3: X | BR3: 3 | BS3: X | BT3: 23 | BU3: 24 | BV3: X | BW3: 27 | BX3: X | BY3: 22 | BZ3: X | CA3: 30 | CB3: 31 | CC3: 20 | CD3: 19 | CE3: X | CF3: X | CG3: X | CH3: X | CI3: X | CJ3: X | CK3: X | CL3: X | CM3: X | CN3: X | CO3: X | CP3: 25 | CQ3: 26 | CR3: 28 | CS3: X | CT3: X | CU3: X | CV3: 37 | CW3: 38 | CX3: X | CY3: X | CZ3: 34 | DA3: X | DB3: X | DC3: X | DD3: 33 | DE3: 32 | DF3: X | DG3: X | DH3: X | DI3: X | DJ3: X | DK3: X | DL3: X | DM3: X | DN3: X | DO3: X | DP3: 35 | DQ3: 36 | DR3: 39 | DS3: X | DT3: X | DU3: 43
D16: ="http://hsip.dot.state.oh.us/report/?docnbr="&IF(LEN(F16)=11,F16,"20"&F16) -> http://hsip.dot.state.oh.us/report/?docnbr=20
A17: 1 | B17: 2 | C17: 3 | D17: 4 | E17: 5 | F17: 6 | G17: 7 | H17: 8 | I17: 9 | J17: 10 | K17: 11 | L17: 12 | M17: 13 | N17: 14 | O17: 15 | P17: 16 | Q17: 17 | R17: 18 | S17: 19 | T17: 20 | U17: 21 | V17: 22 | W17: 23 | X17: 24 | Y17: 25 | Z17: 26 | AA17: 27 | AB17: 28 | AC17: 29 | AD17: 30 | AE17: 31 | AF17: 32 | AG17: 33 | AH17: 34 | AI17: 35 | AJ17: 36 | AK17: 37 | AL17: 38 | AM17: 39 | AN17: 40 | AO17: 41 | AP17: 42 | AQ17: 43 | AR17: 44 | AS17: 45 | AT17: 46 | AU17: 47 | AV17: 48 | AW17: 49 | AX17: 50 | AY17: 51 | AZ17: 52 | BA17: 53 | BB17: 54 | BC17: 55 | BD17: 56 | BE17: 57 | BF17: 58 | BG17: 59 | BH17: 60 | BI17: 61 | BJ17: 62 | BK17: 63 | BL17: 64 | BM17: 65 | BN17: 66 | BO17: 67 | BP17: 68 | BQ17: 69 | BR17: 70 | BS17: 71 | BT17: 72 | BU17: 73 | BV17: 74 | BW17: 75 | BX17: 76 | BY17: 77 | BZ17: 78 | CA17: 79 | CB17: 80 | CC17: 81 | CD17: 82 | CE17: 83 | CF17: 84 | CG17: 85 | CH17: 86 | CI17: 87 | CJ17: 88 | CK17: 89 | CL17: 90 | CM17: 91 | CN17: 92 | CO17: 93 | CP17: 94 | CQ17: 95 | CR17: 96 | CS17: 97 | CT17: 98 | CU17: 99 | CV17: 100 | CW17: 101 | CX17: 102 | CY17: 103 | CZ17: 104 | DA17: 105 | DB17: 106 | DC17: 107 | DD17: 108 | DE17: 109 | DF17: 110 | DG17: 111 | DH17: 112 | DI17: 113 | DJ17: 114 | DK17: 115 | DL17: 116 | DM17: 117 | DN17: 118 | DO17: 119 | DP17: 120 | DQ17: 121 | DR17: 122 | DS17: 123 | DT17: 124 | DU17: 125
E19: =IF(AF19*1>2010,HYPERLINK(D19,"Crash Report"),IF(DU19="","",HYPERLINK(DU19,"Crash Report"))) -> Crash Report | F19: 1 | G19: 2 | H19: 3 | I19: 4 | J19: 5 | K19: 6 | L19: 7 | M19: 8 | N19: 9 | O19: 10 | P19: 11 | Q19: 12 | R19: 13 | S19: 14 | T19: 15 | U19: 16 | V19: 17 | W19: 18 | X19: 19 | Y19: 20 | Z19: 21 | AA19: 22 | AB19: 23 | AC19: 24 | AD19: 25 | AE19: 26 | AF19: 27 | AG19: 28 | AH19: 29 | AI19: 30 | AJ19: 31 | AK19: 32 | AL19: 33 | AM19: 34 | AN19: 35 | AO19: 36 | AP19: 37 | AQ19: 38 | AR19: 39 | AS19: 40 | AT19: 41 | AU19: 42 | AV19: 43 | AW19: 44 | AX19: 45 | AY19: 46 | AZ19: 47 | BA19: 48 | BB19: 49 | BC19: 50 | BD19: 51 | BE19: 52 | BF19: 53 | BG19: 54 | BH19: 55 | BI19: 56 | BJ19: 57 | BK19: 58 | BL19: 59 | BM19: 60 | BN19: 61 | BO19: 62 | BP19: 63 | BQ19: 64 | BR19: 65 | BS19: 66 | BT19: 67 | BU19: 68 | BV19: 69 | BW19: 70 | BX19: 71 | BY19: 72 | BZ19: 73 | CA19: 74 | CB19: 75 | CC19: 76 | CD19: 77 | CE19: 78 | CF19: 79 | CG19: 80 | CH19: 81 | CI19: 82 | CJ19: 83 | CK19: 84 | CL19: 85 | CM19: 86 | CN19: 87 | CO19: 88 | CP19: 89 | CQ19: 90 | CR19: 91 | CS19: 92 | CT19: 93 | CU19: 94 | CV19: 95 | CW19: 96 | CX19: 97 | CY19: 98 | CZ19: 99 | DA19: 100 | DB19: 101 | DC19: 102 | DD19: 103 | DE19: 104 | DF19: 105 | DG19: 106 | DH19: 107 | DI19: 108 | DJ19: 109 | DK19: 110 | DL19: 111 | DM19: 112 | DN19: 113 | DO19: 114 | DP19: 115 | DQ19: 116 | DR19: 117 | DS19: 118 | DT19: 119 | DU19: 120
D20: PUBLIC_URL | E20: HYPERLINK | F20: DOCUMENT_NBR | G20: NLF_ID | H20: COUNTY_LOG_NBR | I20: ODOT_LATITUDE_NBR | J20: ODOT_LONGITUDE_NBR | K20: STREET_ON_TXT | L20: REFERENCE_AT_TXT | M20: SEVERITY_BY_TYPE_CD | N20: CRASH_TYPE_CD | O20: ODPS_CRASH_LOCATION_CD | P20: OFFSET_DISTANCE_NBR | Q20: OFFSET_DIRECTION_CD | R20: CRASH_SEVERITY_CD | S20: FATALITIES_NBR | T20: INCAPAC_INJURIES_NBR | U20: NON_INCAPAC_INJURIES_NBR | V20: POSSIBLE_INJURIES_NBR | W20: ODOT_INTERSECTION_REL_IND | X20: FUNCTIONAL_CLASS_CD | Y20: ODOT_MAINTAINED_HWY_IND | Z20: FHWA_LANE_DEPARTURE_IND | AA20: DISTRICT_NBR | AB20: NLF_COUNTY_CD | AC20: CITY_VILLAGE_TWNSHP_CD | AD20: CITY_VILLAGE_TWNSHP_NME | AE20: CRASH_DT | AF20: CRASH_YR | AG20: MONTH_OF_CRASH_NBR | AH20: HOUR_OF_CRASH_NBR | AI20: MINUTE_OF_CRASH_NBR | AJ20: DAY_IN_WEEK_CD | AK20: ODPS_DIV_UNDIV_RDWY_CD | AL20: ODPS_DIVLANE_DIR_OF_TRAV_CD | AM20: WEATHER_COND_CD | AN20: ROAD_COND_PRIMARY_CD | AO20: ROAD_COND_SECONDARY_CD | AP20: LIGHT_COND_PRIMARY_CD | AQ20: ROAD_CONTOUR_CD | AR20: ODPS_ALCOHOL_IND | AS20: ODPS_DRUG_IND | AT20: ODPS_SCHOOL_BUS_REL_CD | AU20: ODPS_SCHOOL_ZONE_IND | AV20: ODPS_ANIMAL_REL_CD | AW20: ODPS_MOTORCYCLE_IND | AX20: ODPS_SPEED_IND | AY20: ODPS_BICYCLE_IND | AZ20: ODPS_PEDESTRIAN_IND | BA20: ODPS_WORK_ZONE_IND | BB20: ODPS_LOC_IN_WORK_ZONE_CD | BC20: ODPS_TYPE_OF_WORK_ZONE_CD | BD20: ODPS_LOC_ROAD_DIRECTION_CD | BE20: ODPS_LOC_ROAD_NAME_TXT | BF20: ODPS_LOC_ROAD_SUFFIX_CD | BG20: ODPS_LOC_ROUTE_PREFIX_CD | BH20: ODPS_LOC_ROUTE_NBR | BI20: ODPS_DIST_FROM_REF_NBR | BJ20: ODPS_DIST_FROM_REF_UNITS_CD | BK20: ODPS_DIR_FROM_REF_CD | BL20: ODPS_REF_DIRECTION_CD | BM20: ODPS_REF_GIVEN_TXT | BN20: ODPS_REF_SUFFIX_CD | BO20: ODPS_REF_ROUTE_PREFIX_CD | BP20: ODPS_REF_ROUTE_NBR | BQ20: ODPS_REF_POINT_USED_CD | BR20: LOCAL_REPORT_NUMBER_ID | BS20: U1_ODPS_UNIT_NBR | BT20: U1_DIRECTION_FROM_CD | BU20: U1_DIRECTION_TO_CD | BV20: U1_TRAFFIC_WAY_DESC_CD | BW20: U1_TRAFFIC_CONTROL_CD | BX20: U1_TYPE_OF_USE_CD | BY20: U1_TYPE_OF_UNIT_CD | BZ20: U1_SPECIAL_FUNCTION_CD | CA20: U1_UNIT_SPEED_RANGE_CD | CB20: U1_POSTED_SPEED_RANGE_CD | CC20: U1_PRECRASH_ACTION_CD | CD20: U1_CONT_CIR_PRIMARY_CD | CE20: U1_CONT_CIR_SECONDARY_CD | CF20: U1_SEQ_OF_EVENTS_1_CD | CG20: U1_SEQ_OF_EVENTS_2_CD | CH20: U1_SEQ_OF_EVENTS_3_CD | CI20: U1_SEQ_OF_EVENTS_4_CD | CJ20: U1_SEQ_OF_EVENTS_5_CD | CK20: U1_SEQ_OF_EVENTS_6_CD | CL20: U1_FIRST_HARMFUL_SEQ_NBR | CM20: U1_MOST_HARMFUL_SEQ_NBR | CN20: U1_COLLISION_ACTION_CD | CO20: U1_NON_MOTORIST_LOC_CD | CP20: U1_AGE_NBR | CQ20: U1_GENDER_CD | CR20: U1_ALCOH_DRUG_SUSPCTD_CD | CS20: U1_DISTRACTED_BY_1_CD | CT20: U1_DISTRACTED_BY_2_CD | CU20: U2_ODPS_UNIT_NBR | CV20: U2_DIRECTION_FROM_CD | CW20: U2_DIRECTION_TO_CD | CX20: U2_TRAFFIC_CONTROL_CD | CY20: U2_TYPE_OF_USE_CD | CZ20: U2_TYPE_OF_UNIT_CD | DA20: U2_SPECIAL_FUNCTION_CD | DB20: U2_UNIT_SPEED_RANGE_CD | DC20: U2_POSTED_SPEED_RANGE_CD | DD20: U2_PRECRASH_ACTION_CD | DE20: U2_CONT_CIR_PRIMARY_CD | DF20: U2_CONT_CIR_SECONDARY_CD | DG20: U2_SEQ_OF_EVENTS_1_CD | DH20: U2_SEQ_OF_EVENTS_2_CD | DI20: U2_SEQ_OF_EVENTS_3_CD | DJ20: U2_SEQ_OF_EVENTS_4_CD | DK20: U2_SEQ_OF_EVENTS_5_CD | DL20: U2_SEQ_OF_EVENTS_6_CD | DM20: U2_FIRST_HARMFUL_SEQ_NBR | DN20: U2_MOST_HARMFUL_SEQ_NBR | DO20: U2_NON_MOTORIST_LOC_CD | DP20: U2_AGE_NBR | DQ20: U2_GENDER_CD | DR20: U2_ALCOH_DRUG_SUSPCTD_CD | DS20: U2_DISTRACTED_BY_1_CD | DT20: U2_DISTRACTED_BY_2_CD | DU20: FILENAME_NME

Sheet GCAT_Queries
C2: Cells in Yellow Require User Input
B5: Query Form Exports
C7: Copy export from GCAT and paste into cells below - DO NOT MODIFY ONCE QUERY IS PASTED IN | E7: Prepared by | F7: Date | G7: Comments/Notes for record tracking
B8: Query Example | C8: [{"id":3000,"element":"Year","val1":2012,"val4":2012,"val9":"query_form_when_occurred_year","val10":"QueryForm","group":"When Occurred"},{"id":3001,"element":"Year","val1":2011,"val4":2011,"val9":"query_form_when_occurred_year","val10":"QueryForm","group":"When Occurred"},{"id":3002,"element":"Year","val1":2010,"val4":2010,"val9":"query_form_when_occurred_year","val10":"QueryForm","group":"When Occurred"},{"id":3003,"element":"Hands Free Device","val1":"All","val9":"driver_vehicle_hands_free","val10":"QueryForm","group":"Driver / Vehicle"},{"id":3004,"element":"Loc / Unloc Crashes?","val1":"Located","val4":"Located","val9":"location_locatedUnlocatedBoth","val10":"QueryForm","group":"Location"}] | E8: MM | F8: 2013-01-01 | G8: Add any necessary comments in these boxes
B9: Query Export 1
B10: Query Export 2
B11: Query Export 3
B12: Query Export 4
B15: Shape Exports
C17: Copy export from GCAT and paste into cells below - DO NOT MODIFY ONCE QUERY IS PASTED IN | E17: Prepared by | F17: Date | G17: Comments/Notes for record tracking
B18: Shape Example | C18: [{"id":0,"type":"circle","distance":1206.841,"points":[{"latitude":40.457499,"longitude":-82.696646,"lat_lon":"40.457499, -82.696646"}]}] | E18: MM | F18: 2013-01-01 | G18: Add any necessary comments in these boxes
B19: Shape Export 1
B20: Shape Export 2
B21: Shape Export 3
B22: Shape Export 4

Sheet Map
E7: 1. Copy/Paste GCAT image(s) from updated map into this frame
E8: 2. Once image is inserted, right click and select 'bring to front'

Sheet Crash Data
H1: N | U1: ="http://hsip.dot.state.oh.us/report/?docnbr="&IF(LEN(B1)=11,B1,"20"&B1) -> http://hsip.dot.state.oh.us/report/?docnbr=20 | CQ1: Toggle Map | CR1: N
B2: version: 20160211
A3: =D12&"-"&D13&D14&" - ("&D15&"-"&D16&") "&"From "&MID(D17,5,2)&"/"&MID(D17,7,2)&"/"&LEFT(D17,4)&" to "&MID(D18,5,2)&"/"&MID(D18,7,2)&"/"&LEFT(D18,4) -> - - (-) From // to //
B11: 41
GB14: =DecisionTree!AA2 -> 0 | GC14: =DecisionTree!AB2 -> 0 | GD14: =DecisionTree!AC2 -> 0 | GE14: =DecisionTree!AD2 -> 0 | GF14: =DecisionTree!AE2 -> 0 | GG14: =DecisionTree!AF2 -> 0 | GH14: =DecisionTree!AG2 -> 0 | GI14: =DecisionTree!AH2 -> 0
BV15: NO | BW15: YES | BX15: NO | BY15: YES | BZ15: NO | CA15: YES | CB15: NO | CC15: YES | CD15: NO | CE15: YES | CF15: NO | CG15: YES | CH15: NO | CI15: YES | CJ15: NO | CK15: YES | CL15: NO | CM15: YES | CN15: NO | CO15: YES | GB15: =IF(DecisionTree!A31="","?",DecisionTree!A31) -> ? | GC15: =IF(DecisionTree!C9="","?",DecisionTree!C9) -> ? | GD15: =IF(DecisionTree!F3="","?",DecisionTree!F3) -> ? | GE15: =IF(DecisionTree!F27="","?",DecisionTree!F27) -> ? | GF15: =IF(DecisionTree!N5="","?",DecisionTree!N5) -> ? | GG15: =IF(DecisionTree!N17="","?",DecisionTree!N17) -> ? | GH15: =IF(DecisionTree!N29="","?",DecisionTree!N29) -> ? | GI15: =IF(DecisionTree!N41="","?",DecisionTree!N41) -> ?
BV16: Rear End | BW16: Rear End | BX16: Left Turn | BY16: Left Turn | BZ16: Right Turn | CA16: Right Turn | CB16: Angle | CC16: Angle | CD16: Head on | CE16: Head On | CF16: Sideswipe - Passing | CG16: Sideswipe - Passing | CH16: Fixed Object | CI16: Fixed Object | CJ16: RAN OFF RD | CK16: RAN OFF RD | CL16: Pedestrian | CM16: Pedestrian | CN16: Other | CO16: Other | GB16: =IF(DecisionTree!A32="","?",DecisionTree!A32) -> ? | GC16: =IF(DecisionTree!C10="","?",DecisionTree!C10) -> ? | GD16: =IF(DecisionTree!F4="","?",DecisionTree!F4) -> ? | GE16: =IF(DecisionTree!F28="","?",DecisionTree!F28) -> ? | GF16: =IF(DecisionTree!N6="","?",DecisionTree!N6) -> ? | GG16: =IF(DecisionTree!N18="","?",DecisionTree!N18) -> ? | GH16: =IF(DecisionTree!N30="","?",DecisionTree!N30) -> ? | GI16: =IF(DecisionTree!N42="","?",DecisionTree!N42) -> ?
BF17: =IF(BD17="","",IF(OR(O17="INJURY CRASH",O17="FATAL CRASH"),"YES","NO")) ->  | BG17: =IF(BD17="","",IF(OR(Q17="ROAD - SNOW",Q17="ROAD - ICE"),"YES","NO")) ->  | BH17: =IF(BD17="","",IF(OR(L17="DAWN",L17="DUSK"),"YES","NO")) ->  | BI17: =IF(BD17="","",IF(OR(L17="DARK - NO LIGHTS",L17="DARK - LIGHTED"),"YES","NO")) ->  | BJ17: =IF(BD17="","",IF(AND(BF17="NO",L17="DAYLIGHT"),$BD17,"")) ->  | BK17: =IF(BD17="","",IF(AND(BF17="YES",L17="DAYLIGHT"),$BD17,"")) ->  | BL17: =IF(BD17="","",IF(AND(BF17="NO",BH17="YES"),$BD17,"")) ->  | BM17: =IF(BD17="","",IF(AND(BD17=2012,BF17="YES",BH17="YES"),$BD17,"")) ->  | BN17: =IF(BD17="","",IF(AND(BF17="NO",BI17="YES"),$BD17,"")) ->  | BO17: =IF(BD17="","",IF(AND(BF17="YES",BI17="YES"),$BD17,"")) ->  | BP17: =IF(BD17="","",IF(AND(BF17="NO",Q17="ROAD - DRY"),$BD17,"")) ->  | BQ17: =IF(BD17="","",IF(AND(BF17="YES",Q17="ROAD - DRY"),$BD17,"")) ->  | BR17: =IF(BD17="","",IF(AND(BF17="NO",Q17="ROAD - WET"),$BD17,"")) ->  | BS17: =IF(BD17="","",IF(AND(,BF17="YES",Q17="ROAD - WET"),$BD17,"")) ->  | BT17: =IF(BD17="","",IF(AND(BF17="NO",BG17="YES"),$BD17,"")) ->  | BU17: =IF(BD17="","",IF(AND(,BF17="YES",BG17="YES"),$BD17,"")) ->  | BV17: =IF($BD17="","",IF(AND($BF17=BV$15,$M17=BV$16),$BD17,"")) ->  | BW17: =IF($BD17="","",IF(AND($BF17=BW$15,$M17=BW$16),$BD17,"")) ->  | CN17: =IF(BD17="","",IF(AND(BF17="NO",CP17="1"),BD17,"")) ->  | CO17: =IF(BD17="","",IF(AND(BF17="YES",CP17="1"),BD17,"")) ->  | CP17: =IF(BD17="","",IF(COUNT(BV17:CM17)>=1,"","1")) ->  | CT17: =IF($DP$18="",MID(DP17&$DS$18&DS17&$DQ$18&DQ17&$DR$18&DR17&$DT$18&DT17&$DU$18&DU17&$CY$18&CY17&$CZ$18&CZ17&$CX$18&CX17&$DE$18&DE17&$DF$18&DF17&$DG$18&DG17&$DH$18&DH17&$DV$18&DV17,2,150),DP17&$DS$18&DS17&$DQ$18&DQ17&$DR$18&DR17&$DT$18&DT17&$DU$18&DU17&$CY$18&CY17&$CZ$18&CZ17&$CX$18&CX17&$DE$18&DE17&$DF$18&DF17&$DG$18&DG17&$DH$18&DH17&$DV$18&DV17) ->  | CX17: =IF(CX21="","",CX20) ->  | CY17: =IF(CY21="","",CY20) ->  | CZ17: =IF(CZ21="","",CZ20) ->  | DE17: =IF(DE21="","",DE20) ->  | DF17: =IF(DF21="","",DF20) ->  | DG17: =IF(DG21="","",DG20) ->  | DH17: =IF(DH21="","",DH20) ->  | DP17: =IF(DP21="","",DP20) ->  | DV17: =IF(DV21="","",DV20) ->  | DW17: =IF(DW21="","",DW20) ->  | DX17: =IF(DX21="","",DX20) ->  | GB17: =IF(DecisionTree!A33="","?",DecisionTree!A33) -> ? | GC17: =IF(DecisionTree!C11="","?",DecisionTree!C11) -> ? | GD17: =IF(DecisionTree!F5="","?",DecisionTree!F5) -> ? | GE17: =IF(DecisionTree!F29="","?",DecisionTree!F29) -> ? | GF17: =IF(DecisionTree!N7="","?",DecisionTree!N7) -> ? | GG17: =IF(DecisionTree!N19="","?",DecisionTree!N19) -> ? | GH17: =IF(DecisionTree!N31="","?",DecisionTree!N31) -> ? | GI17: =IF(DecisionTree!N43="","?",DecisionTree!N43) -> ?
BJ18: TIME OF DAY | BP18: ROADWAY CONDITION | BV18: CRASH TYPE | DP18: / | GB18: =IF(ISERROR(IF(OR($GB$15=OFFSET($A18:$AZ18,0,$GB$14-1,1,1),$GB$16=OFFSET($A18:$AZ18,0,$GB$14-1,1,1),$GB$17=OFFSET($A18:$AZ18,0,$GB$14-1,1,1)),1,"X")),1,IF(OR($GB$15=OFFSET($A18:$AZ18,0,$GB$14-1,1,1),$GB$16=OFFSET($A18:$AZ18,0,$GB$14-1,1,1),$GB$17=OFFSET($A18:$AZ18,0,$GB$14-1,1,1)),1,"X")) -> 1 | GC18: =IF(OR($GC$15=OFFSET($A18:$AZ18,0,$GC$14-1,1,1),$GC$16=OFFSET($A18:$AZ18,0,$GC$14-1,1,1),$GC$17=OFFSET($A18:$AZ18,0,$GC$14-1,1,1)),1,"X") ->  | GD18: =IF(OR($GD$15=OFFSET($A18:$AZ18,0,$GD$14-1,1,1),$GD$16=OFFSET($A18:$AZ18,0,$GD$14-1,1,1),$GD$17=OFFSET($A18:$AZ18,0,$GD$14-1,1,1)),1,"X") ->  | GE18: =IF(OR($GE$15=OFFSET($A18:$AZ18,0,$GE$14-1,1,1),$GE$16=OFFSET($A18:$AZ18,0,$GE$14-1,1,1),$GE$17=OFFSET($A18:$AZ18,0,$GE$14-1,1,1)),1,"X") ->  | GF18: =IF(OR($GF$15=OFFSET($A18:$AZ18,0,$GF$14-1,1,1),$GF$16=OFFSET($A18:$AZ18,0,$GF$14-1,1,1),$GF$17=OFFSET($A18:$AZ18,0,$GF$14-1,1,1)),1,"X") ->  | GG18: =IF(OR($GG$15=OFFSET($A18:$AZ18,0,$GG$14-1,1,1),$GG$16=OFFSET($A18:$AZ18,0,$GG$14-1,1,1),$GG$17=OFFSET($A18:$AZ18,0,$GG$14-1,1,1)),1,"X") ->  | GH18: =IF(OR($GH$15=OFFSET($A18:$AZ18,0,$GH$14-1,1,1),$GH$16=OFFSET($A18:$AZ18,0,$GH$14-1,1,1),$GH$17=OFFSET($A18:$AZ18,0,$GH$14-1,1,1)),1,"X") ->  | GI18: =IF(OR($GI$15=OFFSET($A18:$AZ18,0,$GI$14-1,1,1),$GI$16=OFFSET($A18:$AZ18,0,$GI$14-1,1,1),$GI$17=OFFSET($A18:$AZ18,0,$GI$14-1,1,1)),1,"X") -> 
A19: =IF(BD19*1>2010,HYPERLINK(U19,"Crash Report"),IF(AQ19="","",HYPERLINK(AQ19,"Crash Report"))) ->  | BJ19: DAY | BL19: DAWN/DUSK | BN19: DARK | BP19: DRY | BR19: WET | BT19: SNOW / ICE | BV19: REAR END | BX19: LEFT | BZ19: RIGHT | CB19: ANGLE | CD19: HEAD ON | CF19: SS PASS | CH19: FIXED OBJ | CJ19: RAN OFF RD | CL19: PEDESTRIAN | CN19: OTHER | CQ19: =+HYPERLINK(CONCATENATE("http://pathweb.pathwayservices.com/ohio/?nlfid='",+D19,"'&logpoint=",+E19),"Pathweb") -> Pathweb | CR19: =HYPERLINK(CONCATENATE("http://maps.google.com/maps?q=",+BB19,",+",+BC19,"+(Crash+Location)&iwloc=A&hl=en"),"Google Maps") -> Google Maps | CS19: =HYPERLINK(CONCATENATE("http://data.mashedworld.com/dualmaps/map.htm?x=",BC19,"&y=",BB19,"&z=15&gm=0&ve=5&gc=0&bz=1&bd=0&mw=1&sv=1&svb=0&svp=0&svz=0&svm=2&svf=0"),"Mashed Map") -> Mashed Map | CT19: =IF($DP$18="",MID(DP19&$DS$18&DS19&$DQ$18&DQ19&$DR$18&DR19&$DT$18&DT19&$DU$18&DU19&$CY$18&CY19&$CZ$18&CZ19&$CX$18&CX19&$DE$18&DE19&$DF$18&DF19&$DG$18&DG19&$DH$18&DH19&$DV$18&DV19&$DW$18&DW19&$DX$18&DX19,2,150),DP19&$DS$18&DS19&$DQ$18&DQ19&$DR$18&DR19&$DT$18&DT19&$DU$18&DU19&$CY$18&CY19&$CZ$18&CZ19&$CX$18&CX19&$DE$18&DE19&$DF$18&DF19&$DG$18&DG19&$DH$18&DH19&$DV$18&DV19&$DW$18&DW19&$DX$18&DX19) -> 0 | CX19: =IF($CX$18="","",LEFT(J19,2)) ->  | CY19: =IF($CY$18="","",RIGHT(BD19,2)) ->  | CZ19: =IF($CZ$18="","",LEFT(O19,1)) ->  | DA19: =IF(W19="","",UPPER(LEFT(W19,6))) ->  | DB19: =IF(AK19="","",UPPER(LEFT(AK19,6))) ->  | DC19: =IF(X19="","",UPPER(LEFT(X19,6))) ->  | DD19: =IF(AL19="","",UPPER(LEFT(AL19,6))) ->  | DE19: =IF($DE$18="","",G19) ->  | DF19: =IF($DF$18="","",E19) ->  | DG19: =IF($DG$18="","",H19) ->  | DH19: =IF($DH$18="","",I19/100) ->  | DK19: =IF(M19="","",UPPER(M19)) ->  | DP19: =IF($DP$18="","",CU19) -> 0 | DQ19: =IF($DQ$18="","",MID(F19,5,2)&"-"&MID(F19,7,2)&"-"&RIGHT(BD19,2)) ->  | DR19: =IF($DR$18="","",K19) ->  | DS19: =IF($DS$18="","",B19) ->  | DT19: =IF($DT$18="","",IF(L19="DARK - LIGHTED","N",IF(L19="DARK - NO LIGHTS","N",IF(L19="DAYLIGHT","D","O")))) ->  | DU19: =IF($DU$18="","",IF(Q19="ROAD - WET","W",IF(Q19="ROAD - SNOW","S",IF(Q19="ROAD - ICE","I",IF(Q19="ROAD - DRY","D","O"))))) ->  | DV19: =IF($DV$18="","",LEFT(AW19,6)) ->  | DW19: =IF($DW$18="","",IF(W19="","U",VLOOKUP(W19,'Collision Diagram'!$BG$82:$BH$90,2,FALSE))&" to "&IF(X19="","U",VLOOKUP(X19,'Collision Diagram'!$BG$82:$BH$90,2,FALSE))) ->  | DX19: =IF($DX$18="","",IF(AK19="","U",VLOOKUP(AK19,'Collision Diagram'!$BG$82:$BH$90,2,FALSE))&" to "&IF(AL19="","U",VLOOKUP(AL19,'Collision Diagram'!$BG$82:$BH$90,2,FALSE))) -> 
A20: HYPERLINK | B20: ACCIDENTS_POINTS_NBR | C20: LOCAL_REPORT_NBR | D20: NLF ID | E20: LOGPOINT_SLM_NBR | F20: CRASH_DT | G20: STREET1 | H20: STREET2_REFERENCE | I20: DISTANCE_OFFSET | J20: DAY_OF_WEEK_TXT | K20: HOUR_OF_DAY | L20: LIGHT_CONDITION_TXT | M20: TYPE_OF_CRASH_TXT | N20: NUMBER_OF_VEHICLES | O20: CRASH_SEVERITY_TXT | P20: WEATHER_CONDITION_TXT | Q20: ROAD_CONDITION_TXT | R20: LOCATION_TXT | S20: CONTRIBUTING_FACTOR1_TXT | T20: ACTION1_TXT | U20: PUBLIC_URL | V20: VEHICLE_TYPE1_TXT | W20: DIRECTION_FROM1_TXT | X20: DIRECTION_TO1_TXT | Y20: DRIVER_AGE1 | Z20: DRIVER_GENDER1_TXT | AA20: TRAFFIC_CONTROL1_TXT | AB20: DRIVER_ALCOHOL1_TXT | AC20: DRIVER_DRUGS1_TXT | AD20: ESTIMATED_SPEED1_TXT | AE20: POSTED_SPEED1_TXT | AF20: CONTRIBUTING_FACTOR2_TXT | AG20: ACTION2_TXT | AH20: VEHICLE_TYPE2_TXT | AI20: DRIVER_AGE2 | AJ20: DRIVER_GENDER2_TXT | AK20: DIRECTION_FROM2_TXT | AL20: DIRECTION_TO2_TXT | AM20: DRIVER_ALCOHOL2_TXT | AN20: DRIVER_DRUGS2_TXT | AO20: SPECIAL_AREA_TXT | AP20: ANIMAL_TYPE_TXT | AQ20: Filename Nme | AR20: ROAD_CONTOUR_TXT | AS20: INJ_TYPE1_FATAL | AT20: INJ_TYPE2_SERIOUS_VISIBLE | AU20: INJ_TYPE3_MINOR_VISIBLE | AV20: INJ_TYPE4_NO_VISIBLE | AW20: DIRECTION_FROM_REF_TXT | AX20: DISTRICT_NBR | AY20: COUNTY_CD | AZ20: City Village Twp Cd | BA20: City Village Twp Nme | BB20: Latitude Nbr | BC20: Longitude Nbr | BD20: TRAFFIC_CRASH_YEAR | BE20: CRASH_MONTH_NBR | BF20: INJ/FAT | BG20: SNOW/ICE | BH20: DAWN/DUSK | BI20: DARK | BJ20: PDO | BK20: I/F | BL20: PDO | BM20: I/F | BN20: PDO | BO20: I/F | BP20: PDO | BQ20: I/F | BR20: PDO | BS20: I/F | BT20: PDO | BU20: I/F | BV20: PDO | BW20: I/F | BX20: PDO | BY20: I/F | BZ20: PDO | CA20: I/F | CB20: PDO | CC20: I/F | CD20: PDO | CE20: I/F | CF20: PDO | CG20: I/F | CH20: PDO | CI20: I/F | CJ20: PDO | CK20: I/F | CL20: PDO | CM20: I/F | CN20: PDO | CO20: I/F | CP20: OTHER CRASH TYPE | CQ20: Roadview | CR20: Google | CS20: Mashed Map | CT20: Label | CU20: ID | CV20: TYPE | CW20: Zone | CX20: Day | CY20: Year | CZ20: Severity | DA20: DFrom1 | DB20: DFrom2 | DC20: DTo1 | DD20: DTo2 | DE20: StreetOn | DF20: LogPoint | DG20: StreetAt | DH20: Offset | DI20: Box | DJ20: Symbol | DK20: CrashType | DL20: ODOT_INTERSECTION_REL_IND | DP20: RowID | DQ20: Date | DR20: Hour | DS20: DocNum | DT20: Light Cond | DU20: Road Cond | DV20: OffsetDirection | DW20: Direction1FromTo | DX20: Direction2FromTo | GB20: Level 1 | GC20: Level2 | GD20: Level3A | GE20: Level3B | GF20: Level4A | GG20: Level4B | GH20: Level4C | GI20: Level4D
A21: =IF(BD21*1>2010,HYPERLINK(U21,"Crash Report"),IF(AQ21="","",HYPERLINK(AQ21,"Crash Report"))) -> Crash Report | B21: 20166027827 | C21: 28-0248-28 | D21: SGEASR00608**C | E21: 3.7 | F21: 20160226 | G21: SR0608R | H21: MP004.00 | I21: 0.4 | J21: Friday | K21: 0 | L21: Dark - No Lights | M21: Fixed Object | O21: Injury Crash | P21: Cloudy | Q21: Road - Snow | R21: Not An Intersection | S21: Improper Lane Change/Passing/Offroad | T21: Straight Ahead | U21: ="http://hsip.dot.state.oh.us/report/?docnbr="&IF(LEN(B21)=11,B21,"20"&B21) -> http://hsip.dot.state.oh.us/report/?docnbr=20166027827 | V21: Mid Size | W21: South | X21: North | Y21: 22 | Z21: F | AA21: Pavement Markings | AB21: None | AD21: Unit Speed 41-45 | AE21: Posted Speed 41-45 | AO21: Unknown or Not in Work Zone | AP21: Animal Not Stated | AR21: Straight - Grade | AS21: 0 | AT21: 0 | AU21: 1 | AV21: 0 | AW21: S | AX21: 12 | AY21: GEA | AZ21: 2 | BA21: Middlefield | BB21: 41.48511 | BC21: -81.081785 | BD21: 2016 | BE21: 2 | CQ21: =+HYPERLINK(CONCATENATE("http://pathweb.pathwayservices.com/ohio/?nlfid='",+D21,"'&logpoint=",+E21),"Pathweb") -> Pathweb | CR21: =HYPERLINK(CONCATENATE("http://maps.google.com/maps?q=",+BB21,",+",+BC21,"+(Crash+Location)&iwloc=A&hl=en"),"Google Maps") -> Google Maps | CS21: =HYPERLINK(CONCATENATE("http://data.mashedworld.com/dualmaps/map.htm?x=",BC21,"&y=",BB21,"&z=15&gm=0&ve=5&gc=0&bz=1&bd=0&mw=1&sv=1&svb=0&svp=0&svz=0&svm=2&svf=0"),"Mashed Map") -> Mashed Map | DL21: N
A22: Crash Report | B22: 20146057830 | C22: 28-0532-28 | D22: SGEASR00608**C | E22: 3.08 | F22: 20140530 | G22: SR0608R | H22: MP003.00 | I22: 0.1 | J22: Friday | K22: 23 | L22: Dark - No Lights | M22: Sideswipe - Passing | O22: Property Damage Crash | P22: Clear | Q22: Road - Dry | R22: Not An Intersection | S22: Improper Lane Change/Passing/Offroad | T22: Overtaking/Passing | U22: http://hsip.dot.state.oh.us/report/?docnbr=20146057830 | V22: Pickup | W22: South | X22: North | Y22: 18 | Z22: M | AA22: Pavement Markings | AB22: None | AD22: Unit Speed 46-50 | AE22: Posted Speed 41-45 | AF22: None | AG22: Straight Ahead | AH22: Full Size | AI22: 21 | AJ22: M | AK22: South | AL22: North | AM22: None | AO22: Unknown or Not in Work Zone | AP22: Animal Not Stated | AR22: Straight - Level | AS22: 0 | AT22: 0 | AU22: 0 | AV22: 0 | AW22: N | AX22: 12 | AY22: GEA | AZ22: 3 | BA22: Middlefield (Township of) | BB22: 41.476452 | BC22: -81.078084 | BD22: 2014 | BE22: 5 | CQ22: Pathweb | CR22: Google Maps | CS22: Mashed Map | DL22: N
A23: Crash Report | B23: 20166138836 | C23: 28-0973-28 | D23: SGEASR00608**C | E23: 3.08 | F23: 20161014 | G23: SR0608R | H23: MP003.00 | I23: 0.1 | J23: Friday | K23: 11 | L23: Daylight | M23: Left Turn | O23: Injury Crash | P23: Clear | Q23: Road - Dry | R23: Not An Intersection | S23: Improper Turn | T23: Making Left Turn | U23: http://hsip.dot.state.oh.us/report/?docnbr=20166138836 | V23: Sport Utility Vehicle | W23: North | X23: East | Y23: 67 | Z23: M | AA23: Pavement Markings | AB23: None | AD23: Unit Speed 20 and Under | AE23: Posted Speed 41-45 | AF23: None | AG23: Straight Ahead | AH23: Sport Utility Vehicle | AI23: 68 | AJ23: M | AK23: South | AL23: North | AM23: None | AO23: Unknown or Not in Work Zone | AP23: Animal Not Stated | AR23: Straight - Level | AS23: 0 | AT23: 0 | AU23: 3 | AV23: 0 | AW23: N | AX23: 12 | AY23: GEA | AZ23: 3 | BA23: Middlefield (Township of) | BB23: 41.476452 | BC23: -81.078084 | BD23: 2016 | BE23: 10 | CQ23: Pathweb | CR23: Google Maps | CS23: Mashed Map | DL23: Y
A24: Crash Report | B24: 20167012957 | C24: G16-02133 | D24: SGEASR00608**C | E24: 3.91 | F24: 20160216 | G24: SR0608R | H24: CR0014 | I24: 0.11 | J24: Tuesday | K24: 6 | L24: Dawn | M24: Fixed Object | O24: Property Damage Crash | P24: Snow | Q24: Road - Snow | R24: Not An Intersection | S24: Failure To Control | T24: Straight Ahead | U24: http://hsip.dot.state.oh.us/report/?docnbr=20167012957 | V24: Sub-Compact | W24: North | X24: South | Y24: 28 | Z24: F | AA24: Pavement Markings | AB24: None | AD24: Unit Speed 20 and Under | AE24: Posted Speed 51-55 | AO24: Unknown or Not in Work Zone | AP24: Animal Not Stated | AQ24: \\WEBIMG01\HSIPPRD$\2016\ODPS_SCANS\201670129572849714.PDF | AR24: Straight - Grade | AS24: 0 | AT24: 0 | AU24: 0 | AV24: 0 | AW24: S | AX24: 12 | AY24: GEA | AZ24: 3 | BA24: MIDDLEFIELD | BB24: 41.48794 | BC24: -81.083519 | BD24: 2016 | BE24: 2 | CQ24: Pathweb | CR24: Google Maps | CS24: Mashed Map | DL24: N
A25: Crash Report | B25: 20166062701 | C25: 28-0468-28 | D25: SGEASR00608**C | E25: 4.02 | F25: 20160512 | G25: SR0608R | H25: CR0014 | I25: 0 | J25: Thursday | K25: 6 | L25: Daylight | M25: Angle | O25: Property Damage Crash | P25: Fog, Smog, Smoke | Q25: Road - Wet | R25: Four-Way Intersection | S25: Failure To Yield | T25: Straight Ahead | U25: http://hsip.dot.state.oh.us/report/?docnbr=20166062701 | V25: Mid Size | W25: East | X25: West | Y25: 25 | Z25: M | AA25: Stop Sign | AB25: None | AD25: Unit Speed 20 and Under | AE25: Posted Speed 41-45 | AF25: None | AG25: Straight Ahead | AH25: Pickup | AI25: 58 | AJ25: M | AK25: North | AL25: South | AM25: None | AO25: Unknown or Not in Work Zone | AP25: Animal Not Stated | AR25: Straight - Grade | AS25: 0 | AT25: 0 | AU25: 0 | AV25: 0 | AX25: 12 | AY25: GEA | AZ25: 2 | BA25: Middlefield | BB25: 41.489424 | BC25: -81.084421 | BD25: 2016 | BE25: 5 | CQ25: Pathweb | CR25: Google Maps | CS25: Mashed Map | DL25: Y
A26: Crash Report | B26: 20166147276 | C26: 28-1035-28 | D26: SGEASR00608**C | E26: 4.02 | F26: 20161029 | G26: SR0608R | H26: CR0014 | I26: 0 | J26: Saturday | K26: 13 | L26: Daylight | M26: Angle | O26: Injury Crash | P26: Clear | Q26: Road - Dry | R26: Four-Way Intersection | S26: Failure To Yield | T26: Straight Ahead | U26: http://hsip.dot.state.oh.us/report/?docnbr=20166147276 | V26: Compact | W26: East | X26: West | Y26: 27 | Z26: F | AA26: Stop Sign | AB26: None | AD26: Unit Speed 20 and Under | AE26: Posted Speed 51-55 | AF26: None | AG26: Straight Ahead | AH26: Sub-Compact | AI26: 63 | AJ26: M | AK26: North | AL26: South | AM26: None | AO26: Unknown or Not in Work Zone | AP26: Animal Not Stated | AR26: Straight - Grade | AS26: 0 | AT26: 0 | AU26: 0 | AV26: 2 | AX26: 12 | AY26: GEA | AZ26: 3 | BA26: Middlefield | BB26: 41.489424 | BC26: -81.084421 | BD26: 2016 | BE26: 10 | CQ26: Pathweb | CR26: Google Maps | CS26: Mashed Map | DL26: Y
A27: Crash Report | B27: 20166157260 | C27: 28-1093-28 | D27: SGEASR00608**C | E27: 4 | F27: 20161112 | G27: SR0608R | H27: MP004.00 | I27: 0.1 | J27: Saturday | K27: 15 | L27: Daylight | M27: Sideswipe - Passing | O27: Property Damage Crash | P27: Clear | Q27: Road - Dry | R27: Not An Intersection | S27: Followed Too Closely/ACDA | T27: Straight Ahead | U27: http://hsip.dot.state.oh.us/report/?docnbr=20166157260 | V27: Minivan | W27: South | X27: North | Y27: 34 | Z27: F | AA27: Pavement Markings | AB27: None | AD27: Unit Speed 26-30 | AE27: Posted Speed 41-45 | AF27: None | AG27: Making Left Turn | AH27: Mid Size | AI27: 66 | AJ27: M | AK27: South | AL27: West | AM27: None | AO27: Unknown or Not in Work Zone | AP27: Animal Not Stated | AR27: Straight - Grade | AS27: 0 | AT27: 0 | AU27: 0 | AV27: 0 | AW27: S | AX27: 12 | AY27: GEA | AZ27: 3 | BA27: Middlefield | BB27: 41.489154 | BC27: -81.084258 | BD27: 2016 | BE27: 11 | CQ27: Pathweb | CR27: Google Maps | CS27: Mashed Map | DL27: Y
A28: Crash Report | B28: 20146041458 | C28: 28-0378-28 | D28: SGEASR00608**C | E28: 4.02 | F28: 20140409 | G28: SR0608R | H28: CR0014 | I28: 0 | J28: Wednesday | K28: 13 | L28: Daylight | M28: Left Turn | O28: Property Damage Crash | P28: Clear | Q28: Road - Dry | R28: Four-Way Intersection | S28: Failure To Yield | T28: Making Left Turn | U28: http://hsip.dot.state.oh.us/report/?docnbr=20146041458 | V28: Minivan | W28: East | X28: South | Y28: 41 | Z28: M | AA28: Stop Sign | AB28: None | AD28: Unit Speed 20 and Under | AE28: Posted Speed 41-45 | AF28: None | AG28: Straight Ahead | AH28: Minivan | AI28: 82 | AJ28: M | AK28: West | AL28: East | AM28: None | AO28: Unknown or Not in Work Zone | AP28: Animal Not Stated | AR28: Curve - Grade | AS28: 0 | AT28: 0 | AU28: 0 | AV28: 0 | AX28: 12 | AY28: GEA | AZ28: 3 | BA28: Middlefield | BB28: 41.489424 | BC28: -81.084421 | BD28: 2014 | BE28: 4 | CQ28: Pathweb | CR28: Google Maps | CS28: Mashed Map | DL28: Y
A29: Crash Report | B29: 20166020424 | C29: 28-0175-28 | D29: SGEASR00608**C | E29: 4.1 | F29: 20160210 | G29: SR0608R | H29: MP004.00 | I29: 0 | J29: Wednesday | K29: 13 | L29: Daylight | M29: Fixed Object | O29: Property Damage Crash | P29: Snow | Q29: Road - Snow | R29: Not An Intersection | S29: Followed Too Closely/ACDA | T29: Straight Ahead | U29: http://hsip.dot.state.oh.us/report/?docnbr=20166020424 | V29: Sport Utility Vehicle | W29: North | X29: South | Y29: 24 | Z29: F | AA29: Pavement Markings | AB29: None | AD29: Unit Speed 31-35 | AE29: Posted Speed 41-45 | AO29: Unknown or Not in Work Zone | AP29: Animal Not Stated | AR29: Straight - Grade | AS29: 0 | AT29: 0 | AU29: 0 | AV29: 0 | AW29: N | AX29: 12 | AY29: GEA | AZ29: 3 | BA29: Middlefield | BB29: 41.490471 | BC29: -81.085051 | BD29: 2016 | BE29: 2 | CQ29: Pathweb | CR29: Google Maps | CS29: Mashed Map | DL29: N
A30: Crash Report | B30: 20146011183 | C30: 28-0099-28 | D30: SGEASR00608**C | E30: 4.02 | F30: 20140123 | G30: SR0608R | H30: CR0014 | I30: 0 | J30: Thursday | K30: 16 | L30: Daylight | M30: Angle | O30: Property Damage Crash | P30: Snow | Q30: Road - Ice | R30: Not An Intersection | S30: Improper Turn | T30: Making Right Turn | U30: http://hsip.dot.state.oh.us/report/?docnbr=20146011183 | V30: Mid Size | W30: North | X30: West | Y30: 41 | Z30: F | AA30: Pavement Markings | AB30: None | AD30: Unit Speed 20 and Under | AE30: Posted Speed 41-45 | AF30: None | AG30: Slowing Or Stopped In Traffic | AH30: Sport Utility Vehicle | AI30: 51 | AJ30: F | AK30: West | AL30: East | AM30: None | AO30: Unknown or Not in Work Zone | AP30: Animal Not Stated | AR30: Straight - Grade | AS30: 0 | AT30: 0 | AU30: 0 | AV30: 0 | AX30: 12 | AY30: GEA | AZ30: 3 | BA30: Middlefield (Township of) | BB30: 41.489424 | BC30: -81.084421 | BD30: 2014 | BE30: 1 | CQ30: Pathweb | CR30: Google Maps | CS30: Mashed Map | DL30: Y
A31: Crash Report | B31: 20146011244 | C31: 28-0127-28 | D31: SGEASR00608**C | E31: 4.2 | F31: 20140123 | G31: SR0608R | H31: MP004.00 | I31: 0.1 | J31: Thursday | K31: 16 | L31: Daylight | M31: Rear End | O31: Property Damage Crash | P31: Snow | Q31: Road - Snow | R31: Not An Intersection | S31: Followed Too Closely/ACDA | T31: Straight Ahead | U31: http://hsip.dot.state.oh.us/report/?docnbr=20146011244 | V31: Single Unit Truck; 3+ Axles | W31: North | X31: South | Y31: 30 | Z31: M | AA31: Pavement Markings | AB31: None | AD31: Unit Speed 21-25 | AE31: Posted Speed 41-45 | AF31: None | AG31: Slowing Or Stopped In Traffic | AH31: Minivan | AI31: 43 | AJ31: F | AK31: North | AL31: South | AM31: None | AO31: Unknown or Not in Work Zone | AP31: Animal Not Stated | AR31: Straight - Grade | AS31: 0 | AT31: 0 | AU31: 0 | AV31: 0 | AW31: N | AX31: 12 | AY31: GEA | AZ31: 3 | BA31: Middlefield | BB31: 41.49178 | BC31: -81.08584 | BD31: 2014 | BE31: 1 | CQ31: Pathweb | CR31: Google Maps | CS31: Mashed Map | DL31: N
A32: Crash Report | B32: 20146011250 | C32: 28-0101-28 | D32: SGEASR00608**C | E32: 4.2 | F32: 20140123 | G32: SR0608R | H32: MP004.00 | I32: 0.1 | J32: Thursday | K32: 16 | L32: Daylight | M32: Rear End | O32: Property Damage Crash | P32: Snow | Q32: Road - Snow | R32: Not An Intersection | S32: Unsafe Speed | T32: Straight Ahead | U32: http://hsip.dot.state.oh.us/report/?docnbr=20146011250 | V32: Compact | W32: North | X32: South | Y32: 45 | Z32: F | AA32: Pavement Markings | AB32: None | AD32: Unit Speed 21-25 | AE32: Posted Speed 41-45 | AF32: None | AG32: Slowing Or Stopped In Traffic | AH32: Single Unit Truck; 3+ Axles | AI32: 30 | AJ32: M | AK32: North | AL32: South | AM32: None | AO32: Unknown or Not in Work Zone | AP32: Animal Not Stated | AR32: Straight - Grade | AS32: 0 | AT32: 0 | AU32: 0 | AV32: 0 | AW32: N | AX32: 12 | AY32: GEA | AZ32: 3 | BA32: Middlefield | BB32: 41.49178 | BC32: -81.08584 | BD32: 2014 | BE32: 1 | CQ32: Pathweb | CR32: Google Maps | CS32: Mashed Map | DL32: N
A33: Crash Report | B33: 20146047224 | C33: 28-0439-28 | D33: SGEASR00608**C | E33: 4.3 | F33: 20140503 | G33: SR0608R | H33: MP004.00 | I33: 0.2 | J33: Saturday | K33: 13 | L33: Daylight | M33: Angle | O33: Injury Crash | P33: Rain | Q33: Road - Wet | R33: Driveway/Alley Access | S33: Failure To Yield | T33: Entering Traffic Lane | U33: http://hsip.dot.state.oh.us/report/?docnbr=20146047224 | V33: Mid Size | W33: Southwest | X33: Northwest | Y33: 44 | Z33: F | AA33: Pavement Markings | AB33: None | AD33: Unit Speed 20 and Under | AE33: Posted Speed 41-45 | AF33: None | AG33: Straight Ahead | AH33: Full Size | AI33: 71 | AJ33: F | AK33: Southeast | AL33: Northwest | AM33: None | AO33: Unknown or Not in Work Zone | AP33: Animal Not Stated | AR33: Straight - Grade | AS33: 0 | AT33: 0 | AU33: 0 | AV33: 1 | AW33: N | AX33: 12 | AY33: GEA | AZ33: 3 | BA33: Middlefield | BB33: 41.493009 | BC33: -81.086821 | BD33: 2014 | BE33: 5 | CQ33: Pathweb | CR33: Google Maps | CS33: Mashed Map | DL33: N
A34: Crash Report | B34: 20146115574 | C34: 28-1047-28 | D34: SGEASR00608**C | E34: 3.08 | F34: 20141027 | G34: SR0608R | H34: MP003.00 | I34: 0.1 | J34: Monday | K34: 11 | L34: Daylight | M34: Animal | O34: Property Damage Crash | P34: Clear | Q34: Road - Dry | R34: Not An Intersection | S34: Improper Lane Change/Passing/Offroad | T34: Overtaking/Passing | U34: http://hsip.dot.state.oh.us/report/?docnbr=20146115574 | V34: Pickup | W34: Southeast | X34: Northwest | Y34: 44 | Z34: M | AA34: Pavement Markings | AB34: None | AD34: Unit Speed 36-40 | AE34: Posted Speed 41-45 | AF34: None Non-Motorist | AG34: Other Non-Motorist Action | AH34: Animal With Buggy, Wagon, Surrey | AI34: 61 | AJ34: F | AK34: Southeast | AL34: Northwest | AM34: None | AO34: Unknown or Not in Work Zone | AP34: Other Animal | AR34: Straight - Level | AS34: 0 | AT34: 0 | AU34: 0 | AV34: 0 | AW34: N | AX34: 12 | AY34: GEA | AZ34: 3 | BA34: Middlefield | BB34: 41.476452 | BC34: -81.078084 | BD34: 2014 | BE34: 10 | CQ34: Pathweb | CR34: Google Maps | CS34: Mashed Map | DL34: N
A35: Crash Report | B35: 20146001667 | C35: 28-0011-28 | D35: SGEASR00608**C | E35: 4 | F35: 20140102 | G35: SR0608R | H35: MP004.00 | I35: 0.1 | J35: Thursday | K35: 12 | L35: Daylight | M35: Fixed Object | O35: Property Damage Crash | P35: Snow | Q35: Road - Snow | R35: Not An Intersection | S35: Unsafe Speed | T35: Straight Ahead | U35: http://hsip.dot.state.oh.us/report/?docnbr=20146001667 | V35: Pickup | W35: North | X35: South | Y35: 66 | Z35: M | AA35: Pavement Markings | AB35: None | AD35: Unit Speed 20 and Under | AE35: Posted Speed 41-45 | AO35: Unknown or Not in Work Zone | AP35: Animal Not Stated | AR35: Straight - Grade | AS35: 0 | AT35: 0 | AU35: 0 | AV35: 0 | AW35: S | AX35: 12 | AY35: GEA | AZ35: 3 | BA35: Middlefield | BB35: 41.489154 | BC35: -81.084258 | BD35: 2014 | BE35: 1 | CQ35: Pathweb | CR35: Google Maps | CS35: Mashed Map | DL35: N
A36: Crash Report | B36: 20147004370 | C36: G14-00968 | D36: SGEASR00608**C | E36: 3.99 | F36: 20140123 | G36: SR0608R | H36: CR0014 | I36: 0.03 | J36: Thursday | K36: 15 | L36: Daylight | M36: Fixed Object | O36: Property Damage Crash | P36: Snow | Q36: Road - Snow | R36: Not An Intersection | S36: Failure To Control | T36: Straight Ahead | U36: http://hsip.dot.state.oh.us/report/?docnbr=20147004370 | V36: Mid Size | W36: North | X36: South | Y36: 17 | Z36: F | AA36: Pavement Markings | AB36: None | AD36: Unit Speed 36-40 | AE36: Posted Speed 41-45 | AO36: Unknown or Not in Work Zone | AP36: Animal Not Stated | AQ36: \\WEBIMG01\HSIPPRD$\2014\ODPS_SCANS\201470043702849714.PDF | AR36: Straight - Grade | AS36: 0 | AT36: 0 | AU36: 0 | AV36: 0 | AW36: S | AX36: 12 | AY36: GEA | AZ36: 3 | BA36: MIDDLEFIELD | BB36: 41.489019 | BC36: -81.084177 | BD36: 2014 | BE36: 1 | CQ36: Pathweb | CR36: Google Maps | CS36: Mashed Map | DL36: N
A37: Crash Report | B37: 20147014590 | C37: 614-02648 | D37: SGEASR00608**C | E37: 4.32 | F37: 20140228 | G37: SR0608R | H37: CR0014 | I37: 0.3 | J37: Friday | K37: 8 | L37: Dawn | M37: Rear End | O37: Injury Crash | P37: Cloudy | Q37: Road - Dry | R37: Four-Way Intersection | S37: Followed Too Closely/ACDA | T37: Straight Ahead | U37: http://hsip.dot.state.oh.us/report/?docnbr=20147014590 | V37: Mid Size | W37: South | X37: North | Y37: 34 | Z37: M | AA37: Pavement Markings | AB37: None | AD37: Unit Speed 31-35 | AE37: Posted Speed 51-55 | AF37: None | AG37: Unknown | AH37: Van | AI37: 44 | AJ37: M | AK37: South | AL37: West | AM37: None | AO37: Unknown or Not in Work Zone | AP37: Animal Not Stated | AQ37: \\WEBIMG01\HSIPPRD$\2014\ODPS_SCANS\201470145902849714.PDF | AR37: Straight - Level | AS37: 0 | AT37: 0 | AU37: 1 | AV37: 0 | AW37: N | AX37: 12 | AY37: GEA | AZ37: 3 | BA37: MIDDLEFIELD | BB37: 41.493248 | BC37: -81.087034 | BD37: 2014 | BE37: 2 | CQ37: Pathweb | CR37: Google Maps | CS37: Mashed Map | DL37: Y
A38: Crash Report | B38: 20147073939 | C38: G14-16710 | D38: SGEASR00608**C | E38: 3.1 | F38: 20141120 | G38: SR0608R | H38: CR0041 | I38: 0.18 | J38: Thursday | K38: 20 | L38: Dark - Lighted | M38: Animal | O38: Property Damage Crash | P38: Snow | Q38: Road - Wet | R38: Not An Intersection | S38: None | T38: Straight Ahead | U38: http://hsip.dot.state.oh.us/report/?docnbr=20147073939 | V38: Sport Utility Vehicle | W38: South | X38: North | Y38: 43 | Z38: M | AA38: No Controls | AB38: None | AD38: Unit Speed 41-45 | AE38: Posted Speed 41-45 | AO38: Unknown or Not in Work Zone | AP38: Deer Hit | AQ38: \\WEBIMG01\HSIPPRD$\2014\ODPS_SCANS\201470739392849714.PDF | AR38: Straight - Level | AS38: 0 | AT38: 0 | AU38: 0 | AV38: 0 | AW38: S | AX38: 12 | AY38: GEA | AZ38: 3 | BA38: MIDDLEFIELD | BB38: 41.476728 | BC38: -81.07819 | BD38: 2014 | BE38: 11 | CQ38: Pathweb | CR38: Google Maps | CS38: Mashed Map | DL38: N
A39: Crash Report | B39: 20157032549 | C39: G15-06200 | D39: SGEASR00608**C | E39: 4.02 | F39: 20150515 | G39: SR0608R | H39: CR0014 | I39: 0 | J39: Friday | K39: 6 | L39: Light Not Stated | M39: Rear End | O39: Property Damage Crash | P39: Cloudy | Q39: Road - Dry | R39: Four-Way Intersection | S39: Followed Too Closely/ACDA | T39: Straight Ahead | U39: http://hsip.dot.state.oh.us/report/?docnbr=20157032549 | V39: Sport Utility Vehicle | W39: South | X39: North | Y39: 36 | Z39: M | AA39: Pavement Markings | AB39: None | AD39: Unit Speed 31-35 | AE39: Posted Speed 41-45 | AF39: None | AG39: Straight Ahead | AH39: Mid Size | AI39: 52 | AJ39: F | AK39: South | AL39: North | AM39: None | AO39: Unknown or Not in Work Zone | AP39: Animal Not Stated | AQ39: \\WEBIMG01\HSIPPRD$\2015\ODPS_SCANS\201570325492849714.PDF | AR39: Straight - Grade | AS39: 0 | AT39: 0 | AU39: 0 | AV39: 0 | AX39: 12 | AY39: GEA | AZ39: 3 | BA39: MIDDLEFIELD | BB39: 41.489424 | BC39: -81.084421 | BD39: 2015 | BE39: 5 | CQ39: Pathweb | CR39: Google Maps | CS39: Mashed Map | DL39: Y

Sheet Data Analysis
A1: ='Crash Data'!A3 -> - - (-) From // to // | K1: =A1 -> - - (-) From // to //
K3: SEVERITY | L3: CRASH_SEVERITY
B4: Number | K4: TRAFFIC_CRASH_YEAR | L4: Injury Crash | M4: Property Damage Crash
A5: Total | B5: 21 | K5: 2014 | L5: 4 | M5: 9
K6: 2015 | L6: 0 | M6: 1
K7: 2016 | L7: 3 | M7: 4
K8: Grand Total | L8: 7 | M8: 14
A9: CRASH_SEVERITY | B9: Number | C9: CRASH_SEVERITY | D9: % | F9: TRAFFIC_CRASH_YEAR | G9: Number | H9: TRAFFIC_CRASH_YEAR | I9: %
A10: Injury Crash | B10: 7 | C10: Injury Crash | D10: 0.3333333333 | F10: 2014 | G10: 13 | H10: 2014 | I10: 0.619047619
A11: Property Damage Crash | B11: 14 | C11: Property Damage Crash | D11: 0.6666666667 | F11: 2015 | G11: 1 | H11: 2015 | I11: 0.04761904762
A12: Grand Total | B12: 21 | C12: Grand Total | D12: 1 | F12: 2016 | G12: 7 | H12: 2016 | I12: 0.3333333333
F13: Grand Total | G13: 21 | H13: Grand Total | I13: 1
A17: DAY_OF_WEEK | B17: Number | C17: DAY_OF_WEEK | D17: %
A18: Thursday | B18: 7 | C18: Thursday | D18: 0.3333333333
A19: Friday | B19: 5 | C19: Friday | D19: 0.2380952381
A20: Wednesday | B20: 3 | C20: Wednesday | D20: 0.1428571429
A21: Saturday | B21: 3 | C21: Saturday | D21: 0.1428571429
A22: Monday | B22: 2 | C22: Monday | D22: 0.09523809524 | K22: TRAFFIC_CRASH_YEAR | L22: Fatalities | M22: Incapacitating Injuries
A23: Tuesday | B23: 1 | C23: Tuesday | D23: 0.04761904762 | K23: 2014 | L23: 0 | M23: 0
A24: Grand Total | B24: 21 | C24: Grand Total | D24: 1 | K24: 2015 | L24: 0 | M24: 0
K25: 2016 | L25: 0 | M25: 0
K26: Grand Total | L26: 0 | M26: 0
A29: HOUR_OF_DAY | B29: Number | C29: HOUR_OF_DAY | D29: % | F29: TYPE_OF_CRASH | G29: Number | H29: TYPE_OF_CRASH | I29: %
A30: 0 | B30: 1 | C30: 0 | D30: 0.04761904762 | F30: Rear End | G30: 6 | H30: Rear End | I30: 0.2857142857
A31: 6 | B31: 3 | C31: 6 | D31: 0.1428571429 | F31: Fixed Object | G31: 5 | H31: Fixed Object | I31: 0.2380952381
A32: 8 | B32: 1 | C32: 8 | D32: 0.04761904762 | F32: Angle | G32: 4 | H32: Angle | I32: 0.1904761905
A33: 9 | B33: 1 | C33: 9 | D33: 0.04761904762 | F33: Left Turn | G33: 2 | H33: Left Turn | I33: 0.09523809524
A34: 11 | B34: 2 | C34: 11 | D34: 0.09523809524 | F34: Animal | G34: 2 | H34: Animal | I34: 0.09523809524
A35: 12 | B35: 1 | C35: 12 | D35: 0.04761904762 | F35: Sideswipe - Passing | G35: 2 | H35: Sideswipe - Passing | I35: 0.09523809524
A36: 13 | B36: 4 | C36: 13 | D36: 0.1904761905 | F36: Grand Total | G36: 21 | H36: Grand Total | I36: 1
A37: 14 | B37: 1 | C37: 14 | D37: 0.04761904762
A38: 15 | B38: 2 | C38: 15 | D38: 0.09523809524
A39: 16 | B39: 3 | C39: 16 | D39: 0.1428571429
A40: 20 | B40: 1 | C40: 20 | D40: 0.04761904762 | K40: TRAFFIC_CRASH_YEAR | L40: INJ_TYPE2_SERIOUS_VISIBLE | M40: INJ_TYPE3_MINOR_VISIBLE | N40: INJ_TYPE4_NO_VISIBLE
A41: 23 | B41: 1 | C41: 23 | D41: 0.04761904762 | K41: 2014 | L41: 0 | M41: 3 | N41: 2
A42: Grand Total | B42: 21 | C42: Grand Total | D42: 1 | K42: 2015 | L42: 0 | M42: 0 | N42: 0
K43: 2016 | L43: 0 | M43: 4 | N43: 2
K44: Grand Total | L44: 0 | M44: 7 | N44: 4
A58: WEATHER_CONDITION | B58: Number | C58: WEATHER_CONDITION | D58: % | F58: ROAD_CONDITION | G58: Number | H58: ROAD_CONDITION | I58: % | K58: TYPE_OF_CRASH | L58: CRASH_SEVERITY | M58: Number
A59: Snow | B59: 8 | C59: Snow | D59: 0.380952381 | F59: Road - Dry | G59: 10 | H59: Road - Dry | I59: 0.4761904762 | K59: Rear End | L59: Injury Crash | M59: 3
A60: Clear | B60: 7 | C60: Clear | D60: 0.3333333333 | F60: Road - Snow | G60: 7 | H60: Road - Snow | I60: 0.3333333333 | L60: Property Damage Crash | M60: 3
A61: Cloudy | B61: 4 | C61: Cloudy | D61: 0.1904761905 | F61: Road - Wet | G61: 3 | H61: Road - Wet | I61: 0.1428571429 | K61: Rear End Total | M61: 6
A62: Rain | B62: 1 | C62: Rain | D62: 0.04761904762 | F62: Road - Ice | G62: 1 | H62: Road - Ice | I62: 0.04761904762 | K62: Fixed Object | L62: Injury Crash | M62: 1
A63: Fog, Smog, Smoke | B63: 1 | C63: Fog, Smog, Smoke | D63: 0.04761904762 | F63: Grand Total | G63: 21 | H63: Grand Total | I63: 1 | L63: Property Damage Crash | M63: 4
A64: Grand Total | B64: 21 | C64: Grand Total | D64: 1 | K64: Fixed Object Total | M64: 5
K65: Angle | L65: Injury Crash | M65: 2
L66: Property Damage Crash | M66: 2
K67: Angle Total | M67: 4
K68: Left Turn | L68: Injury Crash | M68: 1
L69: Property Damage Crash | M69: 1
K70: Left Turn Total | M70: 2
A71: LIGHT_CONDITION | B71: Number | C71: LIGHT_CONDITION | D71: % | F71: NUMBER_OF_VEHICLES | G71: Number | H71: NUMBER_OF_VEHICLES | I71: % | K71: Animal | L71: Property Damage Crash | M71: 2
A72: Daylight | B72: 15 | C72: Daylight | D72: 0.7142857143 | F72: (blank) | G72: 21 | H72: (blank) | I72: 1 | K72: Animal Total | M72: 2
A73: Dark - No Lights | B73: 2 | C73: Dark - No Lights | D73: 0.09523809524 | F73: Grand Total | G73: 21 | H73: Grand Total | I73: 1 | K73: Sideswipe - Passing | L73: Property Damage Crash | M73: 2
A74: Dawn | B74: 2 | C74: Dawn | D74: 0.09523809524 | K74: Sideswipe - Passing Total | M74: 2
A75: Light Not Stated | B75: 1 | C75: Light Not Stated | D75: 0.04761904762 | K75: Grand Total | M75: 21
A76: Dark - Lighted | B76: 1 | C76: Dark - Lighted | D76: 0.04761904762
A77: Grand Total | B77: 21 | C77: Grand Total | D77: 1
A85: LOCATION | B85: Number | C85: LOCATION | D85: % | F85: CRASH_MONTH_NBR | G85: Number | H85: CRASH_MONTH_NBR | I85: %
A86: Not An Intersection | B86: 14 | C86: Not An Intersection | D86: 0.6666666667 | F86: 1 | G86: 5 | H86: 1 | I86: 0.2380952381
A87: Four-Way Intersection | B87: 5 | C87: Four-Way Intersection | D87: 0.2380952381 | F87: 2 | G87: 4 | H87: 2 | I87: 0.1904761905
A88: T-Intersection | B88: 1 | C88: T-Intersection | D88: 0.04761904762 | F88: 4 | G88: 2 | H88: 4 | I88: 0.09523809524
A89: Driveway/Alley Access | B89: 1 | C89: Driveway/Alley Access | D89: 0.04761904762 | F89: 5 | G89: 4 | H89: 5 | I89: 0.1904761905
A90: Grand Total | B90: 21 | C90: Grand Total | D90: 1 | F90: 9 | G90: 1 | H90: 9 | I90: 0.04761904762
F91: 10 | G91: 3 | H91: 10 | I91: 0.1428571429
F92: 11 | G92: 2 | H92: 11 | I92: 0.09523809524
F93: Grand Total | G93: 21 | H93: Grand Total | I93: 1
A102: ROAD_CONTOUR | B102: Number | C102: ROAD_CONTOUR | D102: %
A103: Straight - Grade | B103: 13 | C103: Straight - Grade | D103: 0.619047619
A104: Straight - Level | B104: 7 | C104: Straight - Level | D104: 0.3333333333
A105: Curve - Grade | B105: 1 | C105: Curve - Grade | D105: 0.04761904762
A106: Grand Total | B106: 21 | C106: Grand Total | D106: 1
A113: SPECIAL_AREA | B113: Number | C113: SPECIAL_AREA | D113: % | F113: ANIMAL_TYPE | G113: Number | H113: ANIMAL_TYPE | I113: %
A114: Unknown or Not in Work Zone | B114: 21 | C114: Unknown or Not in Work Zone | D114: 1 | F114: Animal Not Stated | G114: 19 | H114: Animal Not Stated | I114: 0.9047619048
A115: Grand Total | B115: 21 | C115: Grand Total | D115: 1 | F115: Deer Hit | G115: 1 | H115: Deer Hit | I115: 0.04761904762
F116: Other Animal | G116: 1 | H116: Other Animal | I116: 0.04761904762
F117: Grand Total | G117: 21 | H117: Grand Total | I117: 1
A122: ACTION1 | B122: Number | C122: ACTION1 | D122: % | F122: CONTRIBUTING_FACTOR1 | G122: Number | H122: CONTRIBUTING_FACTOR1 | I122: %
A123: Straight Ahead | B123: 14 | C123: Straight Ahead | D123: 0.6666666667 | F123: Followed Too Closely/ACDA | G123: 6 | H123: Followed Too Closely/ACDA | I123: 0.2857142857
A124: Making Left Turn | B124: 2 | C124: Making Left Turn | D124: 0.09523809524 | F124: Failure To Yield | G124: 4 | H124: Failure To Yield | I124: 0.1904761905
A125: Overtaking/Passing | B125: 2 | C125: Overtaking/Passing | D125: 0.09523809524 | F125: Improper Lane Change/Passing/Offroad | G125: 3 | H125: Improper Lane Change/Passing/Offroad | I125: 0.1428571429
A126: Making Right Turn | B126: 1 | C126: Making Right Turn | D126: 0.04761904762 | F126: Unsafe Speed | G126: 2 | H126: Unsafe Speed | I126: 0.09523809524
A127: Entering Traffic Lane | B127: 1 | C127: Entering Traffic Lane | D127: 0.04761904762 | F127: Improper Turn | G127: 2 | H127: Improper Turn | I127: 0.09523809524
A128: Slowing Or Stopped In Traffic | B128: 1 | C128: Slowing Or Stopped In Traffic | D128: 0.04761904762 | F128: Failure To Control | G128: 2 | H128: Failure To Control | I128: 0.09523809524
A129: Grand Total | B129: 21 | C129: Grand Total | D129: 1 | F129: None | G129: 1 | H129: None | I129: 0.04761904762
F130: Unknown | G130: 1 | H130: Unknown | I130: 0.04761904762
F131: Grand Total | G131: 21 | H131: Grand Total | I131: 1
B150: Number | D150: %
A151: Total | B151: 21 | C151: Total | D151: 1
F157: TRAFFIC_CONTROL1 | G157: Number | H157: TRAFFIC_CONTROL1 | I157: %
F158: Pavement Markings | G158: 15 | H158: Pavement Markings | I158: 0.7142857143
F159: Stop Sign | G159: 5 | H159: Stop Sign | I159: 0.2380952381
F160: No Controls | G160: 1 | H160: No Controls | I160: 0.04761904762
F161: Grand Total | G161: 21 | H161: Grand Total | I161: 1
A171: DRIVER_ALCOHOL1 | B171: Number | C171: DRIVER_ALCOHOL1 | D171: %
A172: None | B172: 21 | C172: None | D172: 1
A173: Grand Total | B173: 21 | C173: Grand Total | D173: 1
F176: DRIVER_DRUGS1 | G176: Number | H176: DRIVER_DRUGS1 | I176: %
F177: (blank) | G177: 21 | H177: (blank) | I177: 1
F178: Grand Total | G178: 21 | H178: Grand Total | I178: 1
A182: DIRECTION_FROM1 | B182: Number | C182: DIRECTION_FROM1 | D182: % | F182: DIRECTION_TO1 | G182: Number | H182: DIRECTION_TO1 | I182: % | K182: TYPE_OF_CRASH | L182: CRASH_SEVERITY | M182: TRAFFIC_CRASH_YEAR | N182: Number
A183: North | B183: 8 | C183: North | D183: 0.380952381 | F183: South | G183: 7 | H183: South | I183: 0.3333333333 | K183: Animal | L183: Property Damage Crash | M183: 2014 | N183: 2
A184: South | B184: 6 | C184: South | D184: 0.2857142857 | F184: North | G184: 6 | H184: North | I184: 0.2857142857 | K184: Animal Total | N184: 2
A185: East | B185: 5 | C185: East | D185: 0.2380952381 | F185: West | G185: 5 | H185: West | I185: 0.2380952381
A186: Southeast | B186: 1 | C186: Southeast | D186: 0.04761904762 | F186: Northwest | G186: 2 | H186: Northwest | I186: 0.09523809524 | K186: Fixed Object | L186: Injury Crash | M186: 2016 | N186: 1
A187: Southwest | B187: 1 | C187: Southwest | D187: 0.04761904762 | F187: East | G187: 1 | H187: East | I187: 0.04761904762 | L187: Property Damage Crash | M187: 2016 | N187: 2
A188: Grand Total | B188: 21 | C188: Grand Total | D188: 1 | F188: Grand Total | G188: 21 | H188: Grand Total | I188: 1 | M188: 2014 | N188: 2
K189: Fixed Object Total | N189: 5
K191: Sideswipe - Passing | L191: Property Damage Crash | M191: 2016 | N191: 1
M192: 2014 | N192: 1
K193: Sideswipe - Passing Total | N193: 2
K195: Rear End | L195: Injury Crash | M195: 2014 | N195: 3
L196: Property Damage Crash | M196: 2014 | N196: 2
A197: POSTED_SPEED1 | B197: Number | C197: POSTED_SPEED1 | D197: % | F197: ESTIMATED_SPEED1 | G197: Number | H197: ESTIMATED_SPEED1 | I197: % | M197: 2015 | N197: 1
A198: Posted Speed 41-45 | B198: 17 | C198: Posted Speed 41-45 | D198: 0.8095238095 | F198: Unit Speed 20 and Under | G198: 10 | H198: Unit Speed 20 and Under | I198: 0.4761904762 | K198: Rear End Total | N198: 6
A199: Posted Speed 51-55 | B199: 4 | C199: Posted Speed 51-55 | D199: 0.1904761905 | F199: Unit Speed 31-35 | G199: 3 | H199: Unit Speed 31-35 | I199: 0.1428571429
A200: Grand Total | B200: 21 | C200: Grand Total | D200: 1 | F200: Unit Speed 21-25 | G200: 2 | H200: Unit Speed 21-25 | I200: 0.09523809524 | K200: Left Turn | L200: Injury Crash | M200: 2016 | N200: 1
F201: Unit Speed 36-40 | G201: 2 | H201: Unit Speed 36-40 | I201: 0.09523809524 | L201: Property Damage Crash | M201: 2014 | N201: 1
F202: Unit Speed 41-45 | G202: 2 | H202: Unit Speed 41-45 | I202: 0.09523809524 | K202: Left Turn Total | N202: 2
F203: Unit Speed 46-50 | G203: 1 | H203: Unit Speed 46-50 | I203: 0.04761904762
F204: Unit Speed 26-30 | G204: 1 | H204: Unit Speed 26-30 | I204: 0.04761904762 | K204: Angle | L204: Injury Crash | M204: 2016 | N204: 1
F205: Grand Total | G205: 21 | H205: Grand Total | I205: 1 | M205: 2014 | N205: 1
L206: Property Damage Crash | M206: 2016 | N206: 1
M207: 2014 | N207: 1
K208: Angle Total | N208: 4
K210: Grand Total | N210: 21
A214: VEHICLE_TYPE1 | B214: Number | C214: VEHICLE_TYPE1 | D214: % | F214: VEHICLE_TYPE2 | G214: Number | H214: VEHICLE_TYPE2 | I214: %
A215: Mid Size | B215: 7 | C215: Mid Size | D215: 0.3333333333 | G215: 6 | I215: 0.2857142857
A216: Sport Utility Vehicle | B216: 5 | C216: Sport Utility Vehicle | D216: 0.2380952381 | F216: Minivan | G216: 3 | H216: Minivan | I216: 0.1428571429
A217: Pickup | B217: 3 | C217: Pickup | D217: 0.1428571429 | F217: Mid Size | G217: 3 | H217: Mid Size | I217: 0.1428571429
A218: Minivan | B218: 2 | C218: Minivan | D218: 0.09523809524 | F218: Sport Utility Vehicle | G218: 2 | H218: Sport Utility Vehicle | I218: 0.09523809524
A219: Compact | B219: 2 | C219: Compact | D219: 0.09523809524 | F219: Full Size | G219: 2 | H219: Full Size | I219: 0.09523809524
A220: Single Unit Truck; 3+ Axles | B220: 1 | C220: Single Unit Truck; 3+ Axles | D220: 0.04761904762 | F220: Sub-Compact | G220: 1 | H220: Sub-Compact | I220: 0.04761904762
A221: Sub-Compact | B221: 1 | C221: Sub-Compact | D221: 0.04761904762 | F221: Single Unit Truck; 3+ Axles | G221: 1 | H221: Single Unit Truck; 3+ Axles | I221: 0.04761904762
A222: Grand Total | B222: 21 | C222: Grand Total | D222: 1 | F222: Animal With Buggy, Wagon, Surrey | G222: 1 | H222: Animal With Buggy, Wagon, Surrey | I222: 0.04761904762
F223: Van | G223: 1 | H223: Van | I223: 0.04761904762
F224: Pickup | G224: 1 | H224: Pickup | I224: 0.04761904762
F225: Grand Total | G225: 21 | H225: Grand Total | I225: 1
A249: ACTION2 | B249: Number | C249: ACTION2 | D249: % | F249: CONTRIBUTING_FACTOR2 | G249: Number | H249: CONTRIBUTING_FACTOR2 | I249: %
A250: Straight Ahead | B250: 7 | C250: Straight Ahead | D250: 0.3333333333 | F250: None | G250: 14 | H250: None | I250: 0.6666666667
B251: 6 | D251: 0.2857142857 | G251: 6 | I251: 0.2857142857
A252: Slowing Or Stopped In Traffic | B252: 5 | C252: Slowing Or Stopped In Traffic | D252: 0.2380952381 | F252: None Non-Motorist | G252: 1 | H252: None Non-Motorist | I252: 0.04761904762
A253: Making Left Turn | B253: 1 | C253: Making Left Turn | D253: 0.04761904762 | F253: Grand Total | G253: 21 | H253: Grand Total | I253: 1
A254: Unknown | B254: 1 | C254: Unknown | D254: 0.04761904762
A255: Other Non-Motorist Action | B255: 1 | C255: Other Non-Motorist Action | D255: 0.04761904762
A256: Grand Total | B256: 21 | C256: Grand Total | D256: 1
A277: DIRECTION_FROM2 | B277: Number | C277: DIRECTION_FROM2 | D277: % | F277: DIRECTION_TO2 | G277: Number | H277: DIRECTION_TO2 | I277: %
B278: 6 | D278: 0.2857142857 | G278: 6 | I278: 0.2857142857
A279: South | B279: 5 | C279: South | D279: 0.2380952381 | F279: South | G279: 5 | H279: South | I279: 0.2380952381
A280: North | B280: 4 | C280: North | D280: 0.1904761905 | F280: North | G280: 3 | H280: North | I280: 0.1428571429
A281: West | B281: 2 | C281: West | D281: 0.09523809524 | F281: West | G281: 3 | H281: West | I281: 0.1428571429
A282: Southeast | B282: 2 | C282: Southeast | D282: 0.09523809524 | F282: Northwest | G282: 2 | H282: Northwest | I282: 0.09523809524
A283: East | B283: 2 | C283: East | D283: 0.09523809524 | F283: East | G283: 2 | H283: East | I283: 0.09523809524
A284: Grand Total | B284: 21 | C284: Grand Total | D284: 1 | F284: Grand Total | G284: 21 | H284: Grand Total | I284: 1
A293: DRIVER_ALCOHOL2 | B293: Number | C293: DRIVER_ALCOHOL2 | D293: % | F293: DRIVER_DRUGS2 | G293: Number | H293: DRIVER_DRUGS2 | I293: %
A294: None | B294: 15 | C294: None | D294: 0.7142857143 | F294: (blank) | G294: 21 | H294: (blank) | I294: 1
B295: 6 | D295: 0.2857142857 | F295: Grand Total | G295: 21 | H295: Grand Total | I295: 1
A296: Grand Total | B296: 21 | C296: Grand Total | D296: 1

Sheet Graphical Analysis
A1: ='Crash Data'!A3 -> - - (-) From // to // | M1: =A1 -> - - (-) From // to // | Y1: =A1 -> - - (-) From // to //

Sheet Histograms
A1: Default Bin Size is 0.1 Miles | D1: ='Crash Data'!$A$3 -> - - (-) From // to // | AG1: Click for Histogram 1 Graph | AJ1: Click for Histogram 2 Graph | AO1: Click for Histogram 3 Graph | BH1: Click for Histogram 4 Graph | BP1: Click for Histogram 5 Graph | BZ1: Click for Histogram 6 Graph | CF1: Click for Histogram 7 Graph | DG1: Click for Histogram 8 Graph | DZ1: Click for Histogram 9 Graph | EJ1: Click for Histogram 10 Graph | FK1: Click for Histogram 11 Graph
A2: Click Buttons Below to Modify | D2: Histogram 1 | AG2: Count of ACCIDENTS_POINTS_NBR | AJ2: Count of ACCIDENTS_POINTS_NBR | AK2: CRASH_SEVERITY_TXT | AO2: Count of ACCIDENTS_POINTS_NBR | AP2: TYPE_OF_CRASH_TXT | BH2: Count of ACCIDENTS_POINTS_NBR | BI2: ROAD_CONDITION_TXT | BP2: Count of ACCIDENTS_POINTS_NBR | BQ2: LIGHT_CONDITION_TXT | BZ2: Count of ACCIDENTS_POINTS_NBR | CA2: ANIMAL_TYPE_TXT | CF2: Count of ACCIDENTS_POINTS_NBR | CG2: CONTRIBUTING_FACTOR1_TXT | DG2: Count of ACCIDENTS_POINTS_NBR | DH2: ACTION1_TXT | DZ2: Count of ACCIDENTS_POINTS_NBR | EA2: DAY_OF_WEEK_TXT | EJ2: Count of ACCIDENTS_POINTS_NBR | EK2: HOUR_OF_DAY | FK2: Count of ACCIDENTS_POINTS_NBR | FM2: TYPE_OF_CRASH_TXT
AG3: LOGPOINT_SLM_NBR | AH3: Total | AJ3: LOGPOINT_SLM_NBR | AK3: Property Damage Crash | AL3: Injury Crash | AO3: LOGPOINT_SLM_NBR | AP3: Rear End | AQ3: Fixed Object | AR3: Angle | AS3: Sideswipe - Passing | AT3: Animal | AU3: Left Turn | BH3: LOGPOINT_SLM_NBR | BI3: Road - Dry | BJ3: Road - Snow | BK3: Road - Wet | BL3: Road - Ice | BP3: LOGPOINT_SLM_NBR | BQ3: Daylight | BR3: Dawn | BS3: Dark - No Lights | BT3: Dark - Lighted | BU3: Light Not Stated | BZ3: LOGPOINT_SLM_NBR | CA3: Animal Not Stated | CB3: Other Animal | CC3: Deer Hit | CF3: LOGPOINT_SLM_NBR | CG3: Followed Too Closely/ACDA | CH3: Failure To Yield | CI3: Improper Lane Change/Passing/Offroad | CJ3: Unsafe Speed | CK3: Failure To Control | CL3: Improper Turn | CM3: None | CN3: Unknown | DG3: LOGPOINT_SLM_NBR | DH3: Straight Ahead | DI3: Making Left Turn | DJ3: Overtaking/Passing | DK3: Slowing Or Stopped In Traffic | DL3: Entering Traffic Lane | DM3: Making Right Turn | DZ3: LOGPOINT_SLM_NBR | EA3: Thursday | EB3: Wednesday | EC3: Saturday | ED3: Friday | EE3: Monday | EF3: Tuesday | EJ3: LOGPOINT_SLM_NBR | EK3: 0 | EL3: 6 | EM3: 8 | EN3: 9 | EO3: 11 | EP3: 12 | EQ3: 13 | ER3: 14 | ES3: 15 | ET3: 16 | EU3: 20 | EV3: 23 | FK3: LOGPOINT_SLM_NBR | FL3: DIRECTION_TO1_TXT | FM3: Rear End | FN3: Fixed Object | FO3: Angle | FP3: Sideswipe - Passing | FQ3: Animal | FR3: Left Turn
AG4: 3.08-3.18 | AH4: 4 | AJ4: 3.08-3.18 | AK4: 3 | AL4: 1 | AO4: 3.08-3.18 | AS4: 1 | AT4: 2 | AU4: 1 | BH4: 3.08-3.18 | BI4: 3 | BK4: 1 | BP4: 3.08-3.18 | BQ4: 2 | BS4: 1 | BT4: 1 | BZ4: 3.08-3.18 | CA4: 2 | CB4: 1 | CC4: 1 | CF4: 3.08-3.18 | CI4: 2 | CL4: 1 | CM4: 1 | DG4: 3.08-3.18 | DH4: 1 | DI4: 1 | DJ4: 2 | DZ4: 3.08-3.18 | EA4: 1 | ED4: 2 | EE4: 1 | EJ4: 3.08-3.18 | EO4: 2 | EU4: 1 | EV4: 1 | FK4: 3.08-3.18 | FL4: East | FR4: 1
AG5: 3.28-3.38 | AH5: 2 | AJ5: 3.28-3.38 | AL5: 2 | AO5: 3.28-3.38 | AP5: 2 | BH5: 3.28-3.38 | BI5: 2 | BP5: 3.28-3.38 | BQ5: 2 | BZ5: 3.28-3.38 | CA5: 2 | CF5: 3.28-3.38 | CG5: 1 | CN5: 1 | DG5: 3.28-3.38 | DH5: 1 | DK5: 1 | DZ5: 3.28-3.38 | EB5: 1 | EE5: 1 | EJ5: 3.28-3.38 | EN5: 1 | ER5: 1 | FL5: North | FP5: 1 | FQ5: 1
AG6: 3.68-3.78 | AH6: 1 | AJ6: 3.68-3.78 | AL6: 1 | AO6: 3.68-3.78 | AQ6: 1 | BH6: 3.68-3.78 | BJ6: 1 | BP6: 3.68-3.78 | BS6: 1 | BZ6: 3.68-3.78 | CA6: 1 | CF6: 3.68-3.78 | CI6: 1 | DG6: 3.68-3.78 | DH6: 1 | DZ6: 3.68-3.78 | ED6: 1 | EJ6: 3.68-3.78 | EK6: 1 | FL6: Northwest | FQ6: 1
AA7: Copy and paste this call-out box for use on the chart | AG7: 3.88-3.98 | AH7: 1 | AJ7: 3.88-3.98 | AK7: 1 | AO7: 3.88-3.98 | AQ7: 1 | BH7: 3.88-3.98 | BJ7: 1 | BP7: 3.88-3.98 | BR7: 1 | BZ7: 3.88-3.98 | CA7: 1 | CF7: 3.88-3.98 | CK7: 1 | DG7: 3.88-3.98 | DH7: 1 | DZ7: 3.88-3.98 | EF7: 1 | EJ7: 3.88-3.98 | EL7: 1 | FK7: 3.08-3.18 Total | FP7: 1 | FQ7: 2 | FR7: 1
AG8: 3.98-4.08 | AH8: 8 | AJ8: 3.98-4.08 | AK8: 7 | AL8: 1 | AO8: 3.98-4.08 | AP8: 1 | AQ8: 2 | AR8: 3 | AS8: 1 | AU8: 1 | BH8: 3.98-4.08 | BI8: 4 | BJ8: 2 | BK8: 1 | BL8: 1 | BP8: 3.98-4.08 | BQ8: 7 | BU8: 1 | BZ8: 3.98-4.08 | CA8: 8 | CF8: 3.98-4.08 | CG8: 2 | CH8: 3 | CJ8: 1 | CK8: 1 | CL8: 1 | DG8: 3.98-4.08 | DH8: 6 | DI8: 1 | DM8: 1 | DZ8: 3.98-4.08 | EA8: 4 | EB8: 1 | EC8: 2 | ED8: 1 | EJ8: 3.98-4.08 | EL8: 2 | EP8: 1 | EQ8: 2 | ES8: 2 | ET8: 1 | FK8: 3.28-3.38 | FL8: West | FM8: 2
AG9: 4.08-4.18 | AH9: 1 | AJ9: 4.08-4.18 | AK9: 1 | AO9: 4.08-4.18 | AQ9: 1 | BH9: 4.08-4.18 | BJ9: 1 | BP9: 4.08-4.18 | BQ9: 1 | BZ9: 4.08-4.18 | CA9: 1 | CF9: 4.08-4.18 | CG9: 1 | DG9: 4.08-4.18 | DH9: 1 | DZ9: 4.08-4.18 | EB9: 1 | EJ9: 4.08-4.18 | EQ9: 1 | FK9: 3.28-3.38 Total | FM9: 2
AG10: 4.18-4.28 | AH10: 2 | AJ10: 4.18-4.28 | AK10: 2 | AO10: 4.18-4.28 | AP10: 2 | BH10: 4.18-4.28 | BJ10: 2 | BP10: 4.18-4.28 | BQ10: 2 | BZ10: 4.18-4.28 | CA10: 2 | CF10: 4.18-4.28 | CG10: 1 | CJ10: 1 | DG10: 4.18-4.28 | DH10: 2 | DZ10: 4.18-4.28 | EA10: 2 | EJ10: 4.18-4.28 | ET10: 2 | FK10: 3.68-3.78 | FL10: North | FN10: 1
AG11: 4.28-4.38 | AH11: 2 | AJ11: 4.28-4.38 | AL11: 2 | AO11: 4.28-4.38 | AP11: 1 | AR11: 1 | BH11: 4.28-4.38 | BI11: 1 | BK11: 1 | BP11: 4.28-4.38 | BQ11: 1 | BR11: 1 | BZ11: 4.28-4.38 | CA11: 2 | CF11: 4.28-4.38 | CG11: 1 | CH11: 1 | DG11: 4.28-4.38 | DH11: 1 | DL11: 1 | DZ11: 4.28-4.38 | EC11: 1 | ED11: 1 | EJ11: 4.28-4.38 | EM11: 1 | EQ11: 1 | FK11: 3.68-3.78 Total | FN11: 1
AG12: Grand Total | AH12: 21 | AJ12: Grand Total | AK12: 14 | AL12: 7 | AO12: Grand Total | AP12: 6 | AQ12: 5 | AR12: 4 | AS12: 2 | AT12: 2 | AU12: 2 | BH12: Grand Total | BI12: 10 | BJ12: 7 | BK12: 3 | BL12: 1 | BP12: Grand Total | BQ12: 15 | BR12: 2 | BS12: 2 | BT12: 1 | BU12: 1 | BZ12: Grand Total | CA12: 19 | CB12: 1 | CC12: 1 | CF12: Grand Total | CG12: 6 | CH12: 4 | CI12: 3 | CJ12: 2 | CK12: 2 | CL12: 2 | CM12: 1 | CN12: 1 | DG12: Grand Total | DH12: 14 | DI12: 2 | DJ12: 2 | DK12: 1 | DL12: 1 | DM12: 1 | DZ12: Grand Total | EA12: 7 | EB12: 3 | EC12: 3 | ED12: 5 | EE12: 2 | EF12: 1 | EJ12: Grand Total | EK12: 1 | EL12: 3 | EM12: 1 | EN12: 1 | EO12: 2 | EP12: 1 | EQ12: 4 | ER12: 1 | ES12: 2 | ET12: 3 | EU12: 1 | EV12: 1 | FK12: 3.88-3.98 | FL12: South | FN12: 1
FK13: 3.88-3.98 Total | FN13: 1
FK14: 3.98-4.08 | FL14: West | FO14: 3
FL15: North | FM15: 1 | FP15: 1
FL16: South | FN16: 2 | FR16: 1
FK17: 3.98-4.08 Total | FM17: 1 | FN17: 2 | FO17: 3 | FP17: 1 | FR17: 1
FK18: 4.08-4.18 | FL18: South | FN18: 1
FK19: 4.08-4.18 Total | FN19: 1
FK20: 4.18-4.28 | FL20: South | FM20: 2
FK21: 4.18-4.28 Total | FM21: 2
FK22: 4.28-4.38 | FL22: North | FM22: 1
FL23: Northwest | FO23: 1
FK24: 4.28-4.38 Total | FM24: 1 | FO24: 1
A25: Click to go to Histogram 1 data | FK25: Grand Total | FM25: 6 | FN25: 5 | FO25: 4 | FP25: 2 | FQ25: 2 | FR25: 2
A26: Click to go to Histogram 2 data
A27: Click to go to Histogram 3 data
A28: Click to go to Histogram 4 data
A29: Click to go to Histogram 5 data
A30: Click to go to Histogram 6 data
A31: Click to go to Histogram 7 data
A32: Click to go to Histogram 8 data
A33: Click to go to Histogram 9 data
A34: Click to go to Histogram 10 data
A35: Click to go to Histogram 11 data
A36: Click to go to Histogram 12 data
D58: =$D$1 -> - - (-) From // to //
D59: Histogram 2
AA66: Copy and paste this call-out box for use on the chart
A82: Click to go to Histogram 1 data
A83: Click to go to Histogram 2 data
A84: Click to go to Histogram 3 data
A85: Click to go to Histogram 4 data
A86: Click to go to Histogram 5 data
A87: Click to go to Histogram 6 data
A88: Click to go to Histogram 7 data
A89: Click to go to Histogram 8 data
A90: Click to go to Histogram 9 data
A91: Click to go to Histogram 10 data
A92: Click to go to Histogram 11 data
A93: Click to go to Histogram 12 data
D115: =$D$1 -> - - (-) From // to //
D116: Histogram 3
AA122: Copy and paste this call-out box for use on the chart
A139: Click to go to Histogram 1 data
A140: Click to go to Histogram 2 data
A141: Click to go to Histogram 3 data
A142: Click to go to Histogram 4 data
A143: Click to go to Histogram 5 data
A144: Click to go to Histogram 6 data
A145: Click to go to Histogram 7 data
A146: Click to go to Histogram 8 data
A147: Click to go to Histogram 9 data
A148: Click to go to Histogram 10 data
A149: Click to go to Histogram 11 data
A150: Click to go to Histogram 12 data
D172: =$D$1 -> - - (-) From // to //
D173: Histogram 4
AA177: Copy and paste this call-out box for use on the chart
A196: Click to go to Histogram 1 data
A197: Click to go to Histogram 2 data
A198: Click to go to Histogram 3 data
A199: Click to go to Histogram 4 data
A200: Click to go to Histogram 5 data
A201: Click to go to Histogram 6 data
A202: Click to go to Histogram 7 data
A203: Click to go to Histogram 8 data
A204: Click to go to Histogram 9 data
A205: Click to go to Histogram 10 data
A206: Click to go to Histogram 11 data
A207: Click to go to Histogram 12 data
D229: =$D$1 -> - - (-) From // to //
D230: Histogram 5
AA234: Copy and paste this call-out box for use on the chart
A253: Click to go to Histogram 1 data
A254: Click to go to Histogram 2 data
A255: Click to go to Histogram 3 data
A256: Click to go to Histogram 4 data
A257: Click to go to Histogram 5 data
A258: Click to go to Histogram 6 data
A259: Click to go to Histogram 7 data
A260: Click to go to Histogram 8 data
A261: Click to go to Histogram 9 data
A262: Click to go to Histogram 10 data
A263: Click to go to Histogram 11 data
A264: Click to go to Histogram 12 data
D286: =$D$1 -> - - (-) From // to //
D287: Histogram 6
AA294: Copy and paste this call-out box for use on the chart
A310: Click to go to Histogram 1 data
A311: Click to go to Histogram 2 data
A312: Click to go to Histogram 3 data
A313: Click to go to Histogram 4 data
A314: Click to go to Histogram 5 data
A315: Click to go to Histogram 6 data
A316: Click to go to Histogram 7 data
A317: Click to go to Histogram 8 data
A318: Click to go to Histogram 9 data
A319: Click to go to Histogram 10 data
A320: Click to go to Histogram 11 data
A321: Click to go to Histogram 12 data
D343: =$D$1 -> - - (-) From // to //
D344: Histogram 7
AA350: Copy and paste this call-out box for use on the chart
A367: Click to go to Histogram 1 data
A368: Click to go to Histogram 2 data
A369: Click to go to Histogram 3 data
A370: Click to go to Histogram 4 data
A371: Click to go to Histogram 5 data
A372: Click to go to Histogram 6 data
A373: Click to go to Histogram 7 data
A374: Click to go to Histogram 8 data
A375: Click to go to Histogram 9 data
A376: Click to go to Histogram 10 data
A377: Click to go to Histogram 11 data
A378: Click to go to Histogram 12 data
D400: =$D$1 -> - - (-) From // to //
D401: Histogram 8
AA414: Copy and paste this call-out box for use on the chart
A424: Click to go to Histogram 1 data
A425: Click to go to Histogram 2 data
A426: Click to go to Histogram 3 data
A427: Click to go to Histogram 4 data
A428: Click to go to Histogram 5 data
A429: Click to go to Histogram 6 data
A430: Click to go to Histogram 7 data
A431: Click to go to Histogram 8 data
A432: Click to go to Histogram 9 data
A433: Click to go to Histogram 10 data
A434: Click to go to Histogram 11 data
A435: Click to go to Histogram 12 data
D457: =$D$1 -> - - (-) From // to //
D458: Histogram 9
AA467: Copy and paste this call-out box for use on the chart
A482: Click to go to Histogram 1 data
A483: Click to go to Histogram 2 data
A484: Click to go to Histogram 3 data
A485: Click to go to Histogram 4 data
A486: Click to go to Histogram 5 data
A487: Click to go to Histogram 6 data
A488: Click to go to Histogram 7 data
A489: Click to go to Histogram 8 data
A490: Click to go to Histogram 9 data
A491: Click to go to Histogram 10 data
A492: Click to go to Histogram 11 data
A493: Click to go to Histogram 12 data
D514: =$D$1 -> - - (-) From // to //
D515: Histogram 10
AA522: Copy and paste this call-out box for use on the chart
A538: Click to go to Histogram 1 data
A539: Click to go to Histogram 2 data
A540: Click to go to Histogram 3 data
A541: Click to go to Histogram 4 data
A542: Click to go to Histogram 5 data
A543: Click to go to Histogram 6 data
A544: Click to go to Histogram 7 data
A545: Click to go to Histogram 8 data
A546: Click to go to Histogram 9 data
A547: Click to go to Histogram 10 data
A548: Click to go to Histogram 11 data
A549: Click to go to Histogram 12 data
D571: =$D$1 -> - - (-) From // to //
D572: Histogram 11
AA579: Copy and paste this call-out box for use on the chart
A596: Click to go to Histogram 1 data
A597: Click to go to Histogram 2 data
A598: Click to go to Histogram 3 data
A599: Click to go to Histogram 4 data
A600: Click to go to Histogram 5 data
A601: Click to go to Histogram 6 data
A602: Click to go to Histogram 7 data
A603: Click to go to Histogram 8 data
A604: Click to go to Histogram 9 data
A605: Click to go to Histogram 10 data
A606: Click to go to Histogram 11 data
A607: Click to go to Histogram 12 data
D628: =$D$1 -> - - (-) From // to //
D629: Histogram 12
AA634: Copy and paste this call-out box for use on the chart
A652: Click to go to Histogram 1 data
A653: Click to go to Histogram 2 data
A654: Click to go to Histogram 3 data
A655: Click to go to Histogram 4 data
A656: Click to go to Histogram 5 data
A657: Click to go to Histogram 6 data
A658: Click to go to Histogram 7 data
A659: Click to go to Histogram 8 data
A660: Click to go to Histogram 9 data
A661: Click to go to Histogram 10 data
A662: Click to go to Histogram 11 data
... 13 more rows

Sheet DecisionTree
AA1: =A30 -> 0 | AB1: =C8 -> 0 | AC1: =F2 -> 0 | AD1: =F26 -> 0 | AE1: =N4 -> 0 | AF1: =N16 -> 0 | AG1: =N28 -> 0 | AH1: =N40 -> 0 | AJ1: xxxxxx | AK1: xxxxxx | AL1: xxxxxx | AM1: xxxxxx | AN1: xxxxxx | AO1: xxxxxx | AP1: xxxxxx | AQ1: xxxxxx
AA2: =IFERROR(MATCH(AA1,'Crash Data'!$20:$20,0),0) -> 0 | AB2: =IFERROR(MATCH(AB1,'Crash Data'!$20:$20,0),0) -> 0 | AC2: =IFERROR(MATCH(AC1,'Crash Data'!$20:$20,0),0) -> 0 | AD2: =IFERROR(MATCH(AD1,'Crash Data'!$20:$20,0),0) -> 0 | AE2: =IFERROR(MATCH(AE1,'Crash Data'!$20:$20,0),0) -> 0 | AF2: =IFERROR(MATCH(AF1,'Crash Data'!$20:$20,0),0) -> 0 | AG2: =IFERROR(MATCH(AG1,'Crash Data'!$20:$20,0),0) -> 0 | AH2: =IFERROR(MATCH(AH1,'Crash Data'!$20:$20,0),0) -> 0 | AJ2: Attributes
Z3: =COUNTA('Crash Data'!B21:B999998) -> 19 | AA3: Level 1 | AB3: Level2 | AC3: Level3A | AD3: Level3B | AE3: Level4A | AF3: Level4B | AG3: Level4C | AH3: Level4D | AJ3: Level 1 | AK3: Level2 | AL3: Level3A | AM3: Level3B | AN3: Level4A | AO3: Level4B | AP3: Level4C | AQ3: Level4D
K4: =IF(N4="","",N4) ->  | AA4: 0 | AB4: 0 | AC4: 0 | AD4: 0 | AE4: 0 | AF4: 0 | AG4: 0 | AH4: 0
K5: Crashes: | L5: =COUNTIFS('Crash Data'!GB20:GB999998,1,'Crash Data'!GC20:GC999998,1,'Crash Data'!GD20:GD999998,1,'Crash Data'!GF20:GF999998,1) -> 0
K6: % of Crashes: | L6: =ROUND(L5/$C$26,4) -> 
H7: =IF(F2="","",F2) -> 
H8: Crashes: | I8: =COUNTIFS('Crash Data'!GB20:GB999998,1,'Crash Data'!GC20:GC999998,1,'Crash Data'!GD20:GD999998,1) -> 0
H9: % of Crashes: | I9: =ROUND(I8/$C$26,4) -> 
K10: Other
K11: Crashes: | L11: =I8-L5 -> 0
K12: % of Crashes: | L12: =ROUND(L11/$C$26,4) -> 
E13: =IF(C8="","",C8) -> 
E14: Crashes: | F14: =COUNTIFS('Crash Data'!GB20:GB999998,1,'Crash Data'!GC20:GC999998,1) -> 0
E15: % of Crashes: | F15: =ROUND(F14/$C$26,4) -> 
K16: =IF(N16="","",N16) -> 
K17: Crashes: | L17: =COUNTIFS('Crash Data'!GB20:GB999998,1,'Crash Data'!GC20:GC999998,1,'Crash Data'!GD20:GD999998,"X",'Crash Data'!GG20:GG999998,1) -> 0
K18: % of Crashes: | L18: =ROUND(L17/$C$26,4) -> 
H19: Other
H20: Crashes: | I20: =F14-I8 -> 0
H21: % of Crashes: | I21: =ROUND(I20/$C$26,4) -> 
K22: Other
K23: Crashes: | L23: =I20-L17 -> 0
K24: % of Crashes: | L24: =ROUND(L23/$C$26,4) -> 
B25: =IF(A30="","Total Crashes",A30) -> Total Crashes
B26: Crashes: | C26: =COUNTIFS('Crash Data'!GB21:GB999998,1) -> 0
B27: % of Crashes: | C27: =ROUND(C26/Z3,4) -> 0
K28: =IF(N28="","",N28) -> 
K29: Crashes: | L29: =COUNTIFS('Crash Data'!GB20:GB999998,1,'Crash Data'!GC20:GC999998,"X",'Crash Data'!GE20:GE999998,1,'Crash Data'!GH20:GH999998,1) -> 0
K30: % of Crashes: | L30: =ROUND(L29/$C$26,4) -> 
H31: =IF(F26="","",F26) -> 
H32: Crashes: | I32: =COUNTIFS('Crash Data'!GB20:GB999998,1,'Crash Data'!GC20:GC999998,"X",'Crash Data'!GE20:GE999998,1) -> 0
H33: % of Crashes: | I33: =ROUND(I32/$C$26,4) -> 
K34: Other
K35: Crashes: | L35: =I32-L29 -> 0
K36: % of Crashes: | L36: =ROUND(L35/$C$26,4) -> 
E37: Other
E38: Crashes: | F38: =C26-F14 -> 0
E39: % of Crashes: | F39: =ROUND(F38/$C$26,4) -> 
K40: =IF(N40="","",N40) -> 
K41: Crashes: | L41: =COUNTIFS('Crash Data'!GB20:GB999998,1,'Crash Data'!GC20:GC999998,"X",'Crash Data'!GE20:GE999998,"X",'Crash Data'!GI20:GI999998,1) -> 0
K42: % of Crashes: | L42: =ROUND(L41/$C$26,4) -> 
H43: Other
H44: Crashes: | I44: =F38-I32 -> 0
H45: % of Crashes: | I45: =ROUND(I44/$C$26,4) -> 
K46: Other
K47: Crashes: | L47: =I44-L41 -> 0
K48: % of Crashes: | L48: =ROUND(L47/$C$26,4) -> 

Sheet Collision Diagram
AP1: =LEFT(AO1,1) ->  | AQ1: =RIGHT(AO1,1) -> 
AP2: =LEFT(AO2,1) ->  | AQ2: =RIGHT(AO2,1) -> 
AP3: =LEFT(AO3,2) ->  | AQ3: =RIGHT(AO3,2) -> 
AP4: =LEFT(AO4,2) ->  | AQ4: =RIGHT(AO4,2) -> 
AP6: =LEFT(AO6,1) ->  | AQ6: =RIGHT(AO6,2) -> 
BF81: Do Not Modify
BF82: REAR END | BG82: NORTH | BH82: N
BF83: FIXED OBJECT | BG83: SOUTH | BH83: S
BF84: ANGLE | BG84: EAST | BH84: E
BF85: ANIMAL | BG85: WEST | BH85: W
BF86: SIDESWIPE - PASSING | BG86: NORTHEAST | BH86: NE
BF87: HEAD ON | BG87: NORTHWEST | BH87: NW
BF88: SIDESWIPE - MEETING | BG88: SOUTHWEST | BH88: SW
BF89: BACKING | BG89: SOUTHEAST | BH89: SE
BF90: PEDESTRIAN | BG90: UNKNOWN | BH90: U
BF91: PARKED VEHICLE
BF92: LEFT TURN
BF93: RIGHT TURN

Sheet Diagram Data
A1: =IF('Crash Data'!$CU19="","",'Crash Data'!$CU19) ->  | B1: =IF('Crash Data'!$O19="","",IF('Crash Data'!$O19="PROPERTY DAMAGE CRASH","PDO",'Crash Data'!$O19)) ->  | C1: =IF('Crash Data'!$M19="","",'Crash Data'!$M19) ->  | D1: =IF('Crash Data'!$F19="","",'Crash Data'!$F19) ->  | E1: =IF('Crash Data'!$K19="","",'Crash Data'!$K19) ->  | F1: =IF('Crash Data'!$J19="","",'Crash Data'!$J19) ->  | G1: =IF('Crash Data'!$L19="","",'Crash Data'!$L19) ->  | H1: =IF('Crash Data'!$Q19="","",'Crash Data'!$Q19) ->  | I1: =IF('Crash Data'!$R19="","",'Crash Data'!$R19) ->  | J1: =IF('Crash Data'!$S19="","",'Crash Data'!$S19) ->  | K1: =IF('Crash Data'!$T19="","",'Crash Data'!$T19) ->  | L1: =IF('Crash Data'!$W19="","",'Crash Data'!$W19) ->  | M1: =IF('Crash Data'!$X19="","",'Crash Data'!$X19) ->  | N1: =IF('Crash Data'!$U19="","",IF('Crash Data'!$U19="NOTHING STRUCK","",'Crash Data'!$U19)) ->  | O1: =IF('Crash Data'!$AB19="","",IF('Crash Data'!$AB19="NO ALCOHOL DETECTED","",'Crash Data'!$AB19)) ->  | P1: =IF('Crash Data'!$AF19="","",IF('Crash Data'!$AF19="NO DRIVER ERRORS","",'Crash Data'!$AF19)) ->  | Q1: =IF('Crash Data'!$AG19="","",'Crash Data'!$AG19) ->  | R1: =IF('Crash Data'!$AK19="","",'Crash Data'!$AK19) ->  | S1: =IF('Crash Data'!$AL19="","",'Crash Data'!$AL19) ->  | T1: =IF('Crash Data'!$AM19="","",IF('Crash Data'!$AM19="NO ALCOHOL DETECTED","",'Crash Data'!$AM19)) ->  | U1: =IF('Crash Data'!$AR19="","",'Crash Data'!$AR19) ->  | V1: =IF('Crash Data'!$AS19="","",'Crash Data'!$AS19) ->  | W1: =IF('Crash Data'!$AT19="","",'Crash Data'!$AT19) ->  | X1: =IF('Crash Data'!$AU19="","",'Crash Data'!$AU19) ->  | Y1: =IF('Crash Data'!$AV19="","",'Crash Data'!$AV19) ->  | Z1: =IF('Crash Data'!$B19="","",'Crash Data'!$B19) ->  | AA1: =IF('Crash Data'!$C19="","",'Crash Data'!$C19) ->  | AB1: =IF('Crash Data'!$D19="","",'Crash Data'!$D19) ->  | AC1: =IF('Crash Data'!$E19="","",'Crash Data'!$E19) ->  | AD1: =IF('Crash Data'!$G19="","",'Crash Data'!$G19) ->  | AE1: =IF('Crash Data'!$H19="","",'Crash Data'!$H19) ->  | AF1: =IF('Crash Data'!$I19="","",'Crash Data'!$I19) ->  | AG1: =IF('Crash Data'!$AW19="","",'Crash Data'!$AW19) ->  | AH1: =IF('Crash Data'!$N19="","",'Crash Data'!$N19) ->  | AI1: =IF('Crash Data'!$P19="","",'Crash Data'!$P19) ->  | AJ1: =IF('Crash Data'!$V19="","",'Crash Data'!$V19) ->  | AK1: =IF('Crash Data'!$Y19="","",'Crash Data'!$Y19) ->  | AL1: =IF('Crash Data'!$Z19="","",'Crash Data'!$Z19) ->  | AM1: =IF('Crash Data'!$AA19="","",'Crash Data'!$AA19) ->  | AN1: =IF('Crash Data'!$AC19="","",IF('Crash Data'!$AC19="NO DRUGS DETECTED","",'Crash Data'!$AC19)) ->  | AO1: =IF('Crash Data'!$AD19="","",'Crash Data'!$AD19) ->  | AP1: =IF('Crash Data'!$AE19="","",'Crash Data'!$AE19) ->  | AQ1: =IF('Crash Data'!$AH19="","",'Crash Data'!$AH19) ->  | AR1: =IF('Crash Data'!$AI19="","",'Crash Data'!$AI19) ->  | AS1: =IF('Crash Data'!$AJ19="","",'Crash Data'!$AJ19) ->  | AT1: =IF('Crash Data'!$AN19="","",IF('Crash Data'!$AN19="NO DRUGS DETECTED","",'Crash Data'!$AN19)) ->  | AU1: =IF('Crash Data'!$AO19="","",IF('Crash Data'!$AO19="SPECIAL AREA - NOT STATED","",'Crash Data'!$AO19)) ->  | AV1: =IF('Crash Data'!$BD19="","",'Crash Data'!$BD19) ->  | AW1: =IF('Crash Data'!$BE19="","",'Crash Data'!$BE19) -> 
A2: ROW ID | B2: CRASH SEVERITY | C2: TYPE OF CRASH | D2: CRASH DT | E2: HOUR | F2: DAY | G2: LIGHT CONDITION | H2: ROAD CONDITION | I2: LOCATION | J2: CONTRIBUTING FACTOR1 | K2: ACTION1 | L2: DIRECTION FROM1 | M2: DIRECTION TO1 | N2: OBJECT STRUCK1 | O2: DRIVER ALCOHOL1 | P2: CONTRIBUTING FACTOR2 | Q2: ACTION2 | R2: DIRECTION FROM2 | S2: DIRECTION TO2 | T2: DRIVER ALCOHOL2 | U2: ROAD CONTOUR | V2: FATAL | W2: SERIOUS INJ | X2: MINOR INJ | Y2: NO VISIBLE INJ | Z2: ACCIDENT NBR | AA2: LOCAL REPORT NBR | AB2: NLFID | AC2: LOGPOINT | AD2: STREET1 | AE2: STREET2 REFERENCE | AF2: DISTANCE OFFSET | AG2: DIRECTION FROM REF | AH2: NUMBER OF VEHICLES | AI2: WEATHER CONDITION | AJ2: VEHICLE TYPE1 | AK2: DRIVER AGE1 | AL2: DRIVER GENDER1 | AM2: TRAFFIC CONTROL1 | AN2: DRIVER DRUGS1 | AO2: ESTIMATED SPEED1 | AP2: POSTED SPEED1 | AQ2: VEHICLE TYPE2 | AR2: DRIVER AGE2 | AS2: DRIVER GENDER2 | AT2: DRIVER DRUGS2 | AU2: SPECIAL AREA | AV2: YEAR | AW2: MONTH

Sheet Resurfacing Analysis (hidden)
C1: ='Crash Data'!A3 -> - - (-) From // to // | S1: This Pivot Table is used only if the data is | CB1: State System Resurfacing Crash Analysis - Rural | CH1: =IF(D4="ODOT Let Project","ODOT Central Office","ODOT District Office") -> ODOT District Office
C2: Section NLFID | S2: imported is from the GCAT 2.0 system | CB2: ADT Range | CC2: Data Values
C3: Section System - State or Local | CC3: A | CD3: B | CE3: C | CF3: D
C4: Project Let Type - ODOT or Local | BZ4: StateRural | CA4: 400 | CB4: 400 - 1,000 | CC4: 4 | CD4: 4 | CE4: 4 | CF4: 2.5
C5: Section Begin Log | D5: =IF('Crash Data'!$D$15="","None",'Crash Data'!$D$15+0) -> None | E5: Update and Run Analysis | BZ5: StateRural | CA5: 1001 | CB5: 1,001 - 2,000 | CC5: 4 | CD5: 4 | CE5: 4 | CF5: 2
C6: Section End Log | D6: =IF('Crash Data'!$D$16="","None",'Crash Data'!$D$16+0) -> None | BZ6: StateRural | CA6: 2001 | CB6: 2,001 - 3,000 | CC6: 4 | CD6: 4 | CE6: 4 | CF6: 1.75
C7: Bin Lenth (Miles) | D7: 0.5 | E7: Default = 0.5 Miles | BZ7: StateRural | CA7: 3001 | CB7: 3,001 - 6,000 | CC7: 4 | CD7: 4 | CE7: 4 | CF7: 1.5
S8: TYPE_OF_CRASH_TXT | T8: (All) | Z8: TYPE_OF_CRASH_TXT | AA8: (All) | BZ8: StateRural | CA8: 6000.01 | CB8: > 6,000 | CC8: 5 | CD8: 4 | CE8: 4 | CF8: 1
A9: Must Enter Data for Fields in Yellow! | S9: ODOT_INTERSECTION_REL_IND | T9: Y | W9: TYPE_OF_CRASH_TXT | X9: (All) | Z9: Excludes Animal Crashes | CB9: State System Resurfacing Crash Analysis - Urban
S10: =IF(S7="","Total Crashes (Excludes Animal Crashes)","Intersection Related (Excludes Animal Crashes)") -> Total Crashes (Excludes Animal Crashes) | W10: Excludes Animal Crashes | Z10: Count | AA10: LOCATION_TXT2 | AB10: LOCATION_TXT | CB10: ADT Range | CC10: Data Values
K11: Threshold Values | S11: Count | W11: Count | AJ11: Count | AK11: Crash Type | CC11: W | CD11: X | CE11: Y | CF11: Z
A12: Section Comments | B12: Exception Indicator | C12: Section | D12: Section Type (Rural/Urban) | E12: ADT | F12: Non-Intersection Crashes (w/o Animal) | G12: Intersection Related Crashes (w/o Animal) | H12: Total Crashes (w/o Animal) | I12: Crash Rate "R" - MVMT (w/o Animal) | K12: =IF(D13="","",IF(D13="Rural","A","W")) ->  | L12: =IF(D13="","",IF(D13="Rural","B","X")) ->  | M12: =IF(D13="","",IF(D13="Rural","C","Y")) ->  | N12: =IF(D13="","",IF(D13="Rural","D","Z")) ->  | P12: =IF(D13="","",IF(D13="Rural","A & B Check","W & X Check")) ->  | Q12: =IF(D13="","",IF(D13="Rural","C Check","Y Check")) ->  | R12: =IF(D13="","",IF(D13="Rural","D Check","Z Check")) ->  | S12: LOGPOINT_SLM_NBR | T12: Total | W12: LOGPOINT_SLM_NBR | X12: Total | Z12: LOGPOINT_SLM_NBR | AJ12: LOGPOINT_SLM_NBR | AK12: ANIMAL | BZ12: StateUrban | CA12: 400 | CB12: 400 - 6,000 | CC12: 4 | CD12: 4 | CE12: 4 | CF12: 3.5
B13: =IF(AND(P13="No",Q13="No"),"",IF(P13="Yes","Send Crash Summary to "&$CH$1,IF(AND(P13="No",Q13="Yes",R13="Yes"),"Send Crash Summary to "&$CH$1,""))) ->  | C13: =IF(W13="","",VLOOKUP(W13,$W$13:$X$500,1,FALSE)) -> <99.77 | F13: =IF(C13="","",H13-G13) -> 0 | G13: =IF(C13="","",IF($S$7="GCAT",VLOOKUP(W13,$S$13:$T$500,2,FALSE),IF($AA$11="IntersectionRelated",VLOOKUP(W13,$Z$13:$AF$500,2,FALSE),"0"))) -> 0 | H13: =IF(W13="","",VLOOKUP(W13,$W$13:$X$500,2,FALSE)) -> 0 | I13: =IF(C13="","",IF(C13="Total","",1000000*((H13))/(365*3*$D$7*E13))) ->  | K13: =IF($C13="","",IF($E13<400,"",IF($D$3&$D13="StateRural",VLOOKUP($E13,$CA$4:$CF$8,3,TRUE),IF($D$3&$D13="StateUrban",VLOOKUP($E13,$CA$12:$CF$16,3,TRUE),IF($D$3&$D13="LocalRural",VLOOKUP($E13,$CA$20:$CF$22,3,TRUE),IF($D$3&$D13="LocalUrban",VLOOKUP($E13,$CA$26:$CF$30,3,TRUE))))))) ->  | L13: =IF($C13="","",IF($E13<400,"",IF($D$3&$D13="StateRural",VLOOKUP($E13,$CA$4:$CF$8,4,TRUE),IF($D$3&$D13="StateUrban",VLOOKUP($E13,$CA$12:$CF$16,4,TRUE),IF($D$3&$D13="LocalRural",VLOOKUP($E13,$CA$20:$CF$22,4,TRUE),IF($D$3&$D13="LocalUrban",VLOOKUP($E13,$CA$26:$CF$30,4,TRUE))))))) ->  | M13: =IF($C13="","",IF($E13<400,"",IF($D$3&$D13="StateRural",VLOOKUP($E13,$CA$4:$CF$8,5,TRUE),IF($D$3&$D13="StateUrban",VLOOKUP($E13,$CA$12:$CF$16,5,TRUE),IF($D$3&$D13="LocalRural",VLOOKUP($E13,$CA$20:$CF$22,5,TRUE),IF($D$3&$D13="LocalUrban",VLOOKUP($E13,$CA$26:$CF$30,5,TRUE))))))) ->  | N13: =IF($C13="","",IF($E13<400,"",IF($D$3&$D13="StateRural",VLOOKUP($E13,$CA$4:$CF$8,6,TRUE),IF($D$3&$D13="StateUrban",VLOOKUP($E13,$CA$12:$CF$16,6,TRUE),IF($D$3&$D13="LocalRural",VLOOKUP($E13,$CA$20:$CF$22,6,TRUE),IF($D$3&$D13="LocalUrban",VLOOKUP($E13,$CA$26:$CF$30,6,TRUE))))))) ->  | P13: =IF(K13="","",IF(AND(F13>K13,G13>L13),"Yes","No")) ->  | Q13: =IF(M13="","",IF(H13>M13,"Yes","No")) ->  | R13: =IF(N13="","",IF(I13>N13,"Yes","No")) ->  | S13: <99.77 | T13: 0 | W13: <99.77 | X13: 0 | Z13: <99.77 | AJ13: <99.77 | AK13: 0 | BZ13: StateUrban | CA13: 6001 | CB13: 6,001 - 10,000 | CC13: 6 | CD13: 7 | CE13: 4 | CF13: 3.5
C14: =IF(W14="","",VLOOKUP(W14,$W$13:$X$500,1,FALSE)) -> 99.77-100.27 | F14: 0 | G14: =IF(C14="","",IF($S$7="GCAT",VLOOKUP(W14,$S$13:$T$500,2,FALSE),IF($AA$11="IntersectionRelated",VLOOKUP(W14,$Z$13:$AF$500,2,FALSE),"0"))) -> 0 | H14: 0 | P14: =IF(K14="","",IF(AND(F14>K14,G14>L14),"Yes","No")) ->  | Q14: =IF(M14="","",IF(H14>M14,"Yes","No")) ->  | R14: =IF(N14="","",IF(I14>N14,"Yes","No")) ->  | S14: 99.77-100.27 | T14: 0 | W14: 99.77-100.27 | X14: 0 | Z14: 99.77-100.27 | AJ14: 99.77-100.27 | AK14: 0 | BZ14: StateUrban | CA14: 10001 | CB14: 10,001 - 15,000 | CC14: 11 | CD14: 14 | CE14: 4 | CF14: 4.25
C15: >100.27 | F15: 0 | G15: 0 | H15: 0 | S15: >100.27 | T15: 0 | W15: >100.27 | X15: 0 | Z15: >100.27 | AJ15: >100.27 | AK15: 0 | BZ15: StateUrban | CA15: 15001 | CB15: 15,001 - 30,000 | CC15: 19 | CD15: 22 | CE15: 4 | CF15: 4.25
C16: Total | F16: 0 | G16: 0 | H16: 0 | S16: Total | T16: 0 | W16: Total | X16: 0 | Z16: Total | AJ16: Total | AK16: 0 | BZ16: StateUrban | CA16: 30000.01 | CB16: > 30,000 | CC16: 35 | CD16: 9 | CE16: 4 | CF16: 1.25
CB17: Local Roads Resurfacing Crash Analysis - Rural
CB18: ADT Range | CC18: Data Values
CC19: A | CD19: B | CE19: C | CF19: D
BZ20: LocalRural | CA20: 400 | CB20: 400 - 1,000 | CC20: 4 | CD20: 4 | CE20: 4 | CF20: 5.5
BZ21: LocalRural | CA21: 1001 | CB21: 1,001 - 1,500 | CC21: 4 | CD21: 4 | CE21: 4 | CF21: 3.25
BZ22: LocalRural | CA22: 1500.01 | CB22: > 1,500 | CC22: 4 | CD22: 4 | CE22: 4 | CF22: 2
CB23: Local Roads Resurfacing Crash Analysis - Urban
CB24: ADT Range | CC24: Data Values
CC25: W | CD25: X | CE25: Y | CF25: Z
BZ26: LocalUrban | CA26: 400 | CB26: 400 - 2,500 | CC26: 4 | CD26: 4 | CE26: 4 | CF26: 6.75
BZ27: LocalUrban | CA27: 2501 | CB27: 2,501 - 5,000 | CC27: 4 | CD27: 4 | CE27: 4 | CF27: 4.25
BZ28: LocalUrban | CA28: 5001 | CB28: 5,001 - 7,500 | CC28: 5 | CD28: 5 | CE28: 4 | CF28: 4.25
BZ29: LocalUrban | CA29: 7501 | CB29: 7,501 - 10,000 | CC29: 7 | CD29: 7 | CE29: 4 | CF29: 3.75
BZ30: LocalUrban | CA30: 10000.01 | CB30: > 10,000 | CC30: 13 | CD30: 12 | CE30: 4 | CF30: 4
B77: =IF(AND(P77="No",Q77="No"),"",IF(P77="Yes","Send Crash Summary to "&$CH$1,IF(AND(P77="No",Q77="Yes",R77="Yes"),"Send Crash Summary to "&$CH$1,""))) ->  | F77: =IF(C77="","",H77-G77) ->  | H77: =IF(W77="","",VLOOKUP(W77,$W$13:$X$500,2,FALSE)) ->  | I77: =IF(C77="","",IF(C77="Total","",1000000*((H77))/(365*3*$D$7*E77))) ->  | K77: =IF($C77="","",IF($E77<400,"",IF($D$3&$D77="StateRural",VLOOKUP($E77,$CA$4:$CF$8,3,TRUE),IF($D$3&$D77="StateUrban",VLOOKUP($E77,$CA$12:$CF$16,3,TRUE),IF($D$3&$D77="LocalRural",VLOOKUP($E77,$CA$20:$CF$22,3,TRUE),IF($D$3&$D77="LocalUrban",VLOOKUP($E77,$CA$26:$CF$30,3,TRUE))))))) ->  | L77: =IF($C77="","",IF($E77<400,"",IF($D$3&$D77="StateRural",VLOOKUP($E77,$CA$4:$CF$8,4,TRUE),IF($D$3&$D77="StateUrban",VLOOKUP($E77,$CA$12:$CF$16,4,TRUE),IF($D$3&$D77="LocalRural",VLOOKUP($E77,$CA$20:$CF$22,4,TRUE),IF($D$3&$D77="LocalUrban",VLOOKUP($E77,$CA$26:$CF$30,4,TRUE))))))) ->  | M77: =IF($C77="","",IF($E77<400,"",IF($D$3&$D77="StateRural",VLOOKUP($E77,$CA$4:$CF$8,5,TRUE),IF($D$3&$D77="StateUrban",VLOOKUP($E77,$CA$12:$CF$16,5,TRUE),IF($D$3&$D77="LocalRural",VLOOKUP($E77,$CA$20:$CF$22,5,TRUE),IF($D$3&$D77="LocalUrban",VLOOKUP($E77,$CA$26:$CF$30,5,TRUE))))))) ->  | N77: =IF($C77="","",IF($E77<400,"",IF($D$3&$D77="StateRural",VLOOKUP($E77,$CA$4:$CF$8,6,TRUE),IF($D$3&$D77="StateUrban",VLOOKUP($E77,$CA$12:$CF$16,6,TRUE),IF($D$3&$D77="LocalRural",VLOOKUP($E77,$CA$20:$CF$22,6,TRUE),IF($D$3&$D77="LocalUrban",VLOOKUP($E77,$CA$26:$CF$30,6,TRUE))))))) -> 
C78: =IF(W78="","",VLOOKUP(W78,$W$13:$X$500,1,FALSE)) ->  | G78: =IF(C78="","",IF($S$7="GCAT",VLOOKUP(W78,$S$13:$T$500,2,FALSE),IF($AA$11="IntersectionRelated",VLOOKUP(W78,$Z$13:$AF$500,2,FALSE),"0"))) ->  | P78: =IF(K78="","",IF(AND(F78>K78,G78>L78),"Yes","No")) ->  | Q78: =IF(M78="","",IF(H78>M78,"Yes","No")) ->  | R78: =IF(N78="","",IF(I78>N78,"Yes","No")) -> 
B141: =IF(AND(P141="No",Q141="No"),"",IF(P141="Yes","Send Crash Summary to "&$CH$1,IF(AND(P141="No",Q141="Yes",R141="Yes"),"Send Crash Summary to "&$CH$1,""))) ->  | F141: =IF(C141="","",H141-G141) ->  | H141: =IF(W141="","",VLOOKUP(W141,$W$13:$X$500,2,FALSE)) ->  | I141: =IF(C141="","",IF(C141="Total","",1000000*((H141))/(365*3*$D$7*E141))) ->  | K141: =IF($C141="","",IF($E141<400,"",IF($D$3&$D141="StateRural",VLOOKUP($E141,$CA$4:$CF$8,3,TRUE),IF($D$3&$D141="StateUrban",VLOOKUP($E141,$CA$12:$CF$16,3,TRUE),IF($D$3&$D141="LocalRural",VLOOKUP($E141,$CA$20:$CF$22,3,TRUE),IF($D$3&$D141="LocalUrban",VLOOKUP($E141,$CA$26:$CF$30,3,TRUE))))))) ->  | L141: =IF($C141="","",IF($E141<400,"",IF($D$3&$D141="StateRural",VLOOKUP($E141,$CA$4:$CF$8,4,TRUE),IF($D$3&$D141="StateUrban",VLOOKUP($E141,$CA$12:$CF$16,4,TRUE),IF($D$3&$D141="LocalRural",VLOOKUP($E141,$CA$20:$CF$22,4,TRUE),IF($D$3&$D141="LocalUrban",VLOOKUP($E141,$CA$26:$CF$30,4,TRUE))))))) ->  | M141: =IF($C141="","",IF($E141<400,"",IF($D$3&$D141="StateRural",VLOOKUP($E141,$CA$4:$CF$8,5,TRUE),IF($D$3&$D141="StateUrban",VLOOKUP($E141,$CA$12:$CF$16,5,TRUE),IF($D$3&$D141="LocalRural",VLOOKUP($E141,$CA$20:$CF$22,5,TRUE),IF($D$3&$D141="LocalUrban",VLOOKUP($E141,$CA$26:$CF$30,5,TRUE))))))) ->  | N141: =IF($C141="","",IF($E141<400,"",IF($D$3&$D141="StateRural",VLOOKUP($E141,$CA$4:$CF$8,6,TRUE),IF($D$3&$D141="StateUrban",VLOOKUP($E141,$CA$12:$CF$16,6,TRUE),IF($D$3&$D141="LocalRural",VLOOKUP($E141,$CA$20:$CF$22,6,TRUE),IF($D$3&$D141="LocalUrban",VLOOKUP($E141,$CA$26:$CF$30,6,TRUE))))))) -> 
C142: =IF(W142="","",VLOOKUP(W142,$W$13:$X$500,1,FALSE)) ->  | G142: =IF(C142="","",IF($S$7="GCAT",VLOOKUP(W142,$S$13:$T$500,2,FALSE),IF($AA$11="IntersectionRelated",VLOOKUP(W142,$Z$13:$AF$500,2,FALSE),"0"))) ->  | P142: =IF(K142="","",IF(AND(F142>K142,G142>L142),"Yes","No")) ->  | Q142: =IF(M142="","",IF(H142>M142,"Yes","No")) ->  | R142: =IF(N142="","",IF(I142>N142,"Yes","No")) -> 
B205: =IF(AND(P205="No",Q205="No"),"",IF(P205="Yes","Send Crash Summary to "&$CH$1,IF(AND(P205="No",Q205="Yes",R205="Yes"),"Send Crash Summary to "&$CH$1,""))) ->  | F205: =IF(C205="","",H205-G205) ->  | H205: =IF(W205="","",VLOOKUP(W205,$W$13:$X$500,2,FALSE)) ->  | I205: =IF(C205="","",IF(C205="Total","",1000000*((H205))/(365*3*$D$7*E205))) ->  | K205: =IF($C205="","",IF($E205<400,"",IF($D$3&$D205="StateRural",VLOOKUP($E205,$CA$4:$CF$8,3,TRUE),IF($D$3&$D205="StateUrban",VLOOKUP($E205,$CA$12:$CF$16,3,TRUE),IF($D$3&$D205="LocalRural",VLOOKUP($E205,$CA$20:$CF$22,3,TRUE),IF($D$3&$D205="LocalUrban",VLOOKUP($E205,$CA$26:$CF$30,3,TRUE))))))) ->  | L205: =IF($C205="","",IF($E205<400,"",IF($D$3&$D205="StateRural",VLOOKUP($E205,$CA$4:$CF$8,4,TRUE),IF($D$3&$D205="StateUrban",VLOOKUP($E205,$CA$12:$CF$16,4,TRUE),IF($D$3&$D205="LocalRural",VLOOKUP($E205,$CA$20:$CF$22,4,TRUE),IF($D$3&$D205="LocalUrban",VLOOKUP($E205,$CA$26:$CF$30,4,TRUE))))))) ->  | M205: =IF($C205="","",IF($E205<400,"",IF($D$3&$D205="StateRural",VLOOKUP($E205,$CA$4:$CF$8,5,TRUE),IF($D$3&$D205="StateUrban",VLOOKUP($E205,$CA$12:$CF$16,5,TRUE),IF($D$3&$D205="LocalRural",VLOOKUP($E205,$CA$20:$CF$22,5,TRUE),IF($D$3&$D205="LocalUrban",VLOOKUP($E205,$CA$26:$CF$30,5,TRUE))))))) ->  | N205: =IF($C205="","",IF($E205<400,"",IF($D$3&$D205="StateRural",VLOOKUP($E205,$CA$4:$CF$8,6,TRUE),IF($D$3&$D205="StateUrban",VLOOKUP($E205,$CA$12:$CF$16,6,TRUE),IF($D$3&$D205="LocalRural",VLOOKUP($E205,$CA$20:$CF$22,6,TRUE),IF($D$3&$D205="LocalUrban",VLOOKUP($E205,$CA$26:$CF$30,6,TRUE))))))) -> 
C206: =IF(W206="","",VLOOKUP(W206,$W$13:$X$500,1,FALSE)) ->  | G206: =IF(C206="","",IF($S$7="GCAT",VLOOKUP(W206,$S$13:$T$500,2,FALSE),IF($AA$11="IntersectionRelated",VLOOKUP(W206,$Z$13:$AF$500,2,FALSE),"0"))) ->  | P206: =IF(K206="","",IF(AND(F206>K206,G206>L206),"Yes","No")) ->  | Q206: =IF(M206="","",IF(H206>M206,"Yes","No")) ->  | R206: =IF(N206="","",IF(I206>N206,"Yes","No")) -> 

Sheet Rate Calc Sheet
B4: County: | C4: ='Crash Data'!D12 -> 0 | P4: Entering Leg 1 | T4: Entering Leg 1 | U4: 3400 | X4: Entering Leg 1
B5: R1: | C5: ='Crash Data'!G21 -> SR0608R | P5: Entering Leg 2 | T5: Entering Leg 2 | U5: 5600 | X5: Entering Leg 2
B6: R1 Log: | C6: ='Crash Data'!D15 -> 0 | P6: Entering Leg 3 | T6: Entering Leg 3 | U6: 6250 | X6: Entering Leg 3
B7: R2: | C7: ='Crash Data'!H21 -> MP004.00 | T7: Entering Leg 4 | U7: 2300 | X7: Entering Leg 4
B8: Crash Year Data: | C8: =LEFT('Crash Data'!D17,4)&"-"&LEFT('Crash Data'!D18,4) -> - | P8: Entering Vehicles | Q8: =SUM(Q4:R6) -> 0 | X8: Entering Leg 5
T9: Entering Vehicles | U9: =SUM(U4:V7) -> 17550
X10: Entering Vehicles | Y10: =SUM(Y4:Z8) -> 0
A12: Enter Number of Crashes for Intersection: | F12: =GETPIVOTDATA("DAY_OF_WEEK",'Data Analysis'!$A$4) -> 21
A13: Enter Number of Years for Crash Data: | F13: 3
A14: Enter Number of Intersection Entering Vehicles:
A15: Number of Days in Year: | F15: 365
A17: Crash Rate per Million Entering Vehicles (MEV): | F17: =(F12*1000000)/(F14*F13*F15) -> 
F19: *Statewide crash Rates are only available for sections. Intersections are excluded.
B23: County: | C23: ='Crash Data'!D12 -> 0
B24: Route: | C24: ='Crash Data'!G21 -> SR0608R
B25: BLog: | C25: ='Crash Data'!D15 -> 0
B26: ELog: | C26: ='Crash Data'!D16 -> 0
B27: Crash Year Data: | C27: =LEFT('Crash Data'!D17,4)&"-"&LEFT('Crash Data'!D18,4) -> -
A31: Enter Number of Crashes on Section: | F31: =GETPIVOTDATA("DAY_OF_WEEK",'Data Analysis'!$A$4) -> 21
A32: Enter Number of Years for Crash Data: | F32: 3
A33: Enter Average Daily Traffic on Section (ADT):
A34: Enter Length of Section in Miles | F34: =C26-C25 -> 0
A35: Number of Days in Year: | F35: 365 | I35: *Statewide crash rates are only available for sections. Intersections are excluded.
A37: Crash Rate per Million Vehicle Miles Traveled (MVMT): | F37: =(F31*1000000)/(F33*F35*F32*F34) -> 

Sheet Severity Calc Sheet
A1: Select Location Type: | C1: Rural Non-Freeway
B3: RSI Value = | C3: =IFERROR(C25/(A25+B25),0) -> 39879.37431
D4: 2014 Relative Severity Index
A5: User Override | B5: Auto Fill | C5: Crash Type Severity Calc | D5: Crash Type # | E5: Crash Type | F5: Rural Non-Freeway | G5: Urban Non-Freeway | H5: Freeway
B6: =IF(A$6:A$24="",COUNTIF('Crash Data'!M$21:M$64998,"Not Stated*"),"") -> 0 | C6: =IF(C$1=F$5,IF(A6="",B6*F6,A6*F6),IF(C$1=G$5,IF(A6="",B6*G6,A6*G6),IF(C$1=H$5,IF(A6="",B6*H6,A6*H6)))) -> 0 | D6: 0 | E6: Not stated | F6: 47469.11592 | G6: 35589.36923 | H6: 19151.22991
B7: =IF(A$6:A$24="",COUNTIF('Crash Data'!M$21:M$64998,"Head On*"),"") -> 0 | C7: 0 | D7: 1 | E7: Head on | F7: 265345.4789 | G7: 84093.52907 | H7: 252797.7217
B8: =IF(A$6:A$24="",COUNTIF('Crash Data'!M$21:M$64998,"Rear End*"),"") -> 4 | C8: 113886.8456 | D8: 2 | E8: Rear end | F8: 28471.7114 | G8: 19500.50471 | H8: 23612.81133
B9: =IF(A$6:A$24="",COUNTIF('Crash Data'!M$21:M$64998,"Backing*"),"") -> 0 | C9: 0 | D9: 3 | E9: Backing | F9: 14031.51113 | G9: 11254.04929 | H9: 15691.36909
B10: =IF(A$6:A$24="",COUNTIF('Crash Data'!M$21:M$64998,"Sideswipe - meeting*"),"") -> 0 | C10: 0 | D10: 4 | E10: Sideswipe - meeting | F10: 59768.37824 | G10: 32812.19207 | H10: 60099.94767
B11: =IF(A$6:A$24="",COUNTIF('Crash Data'!M$21:M$64998,"Sideswipe - passing*"),"") -> 2 | C11: 53201.82081 | D11: 5 | E11: Sideswipe - passing | F11: 26600.9104 | G11: 14670.51537 | H11: 19298.56496
B12: =IF(A$6:A$24="",COUNTIF('Crash Data'!M$21:M$64998,"Angle*")+COUNTIF('Crash Data'!M$21:M$64998,"Right*"),"") -> 4 | C12: 223057.5 | D12: 6 | E12: Angle | F12: 55764.37501 | G12: 25322.61513 | H12: 32709.09493
B13: =IF(A$6:A$24="",COUNTIF('Crash Data'!M$21:M$64998,"Parked vehicle*"),"") -> 0 | C13: 0 | D13: 7 | E13: Parked Vehicle | F13: 35409.75915 | G13: 16188.49189 | H13: 27492.29172
B14: =IF(A$6:A$24="",COUNTIF('Crash Data'!M$21:M$64998,"Pedestrian*"),"") -> 0 | C14: 0 | D14: 8 | E14: Pedestrian | F14: 215589.3359 | G14: 119669.7435 | H14: 341851.7047 | J14: DO NOT MODIFY CELLS IN THIS COLUMN
B15: =IF(A$6:A$24="",COUNTIF('Crash Data'!M$21:M$64998,"Animal*"),"") -> 2 | C15: 23495.71765 | D15: 9 | E15: Animal | F15: 11747.85882 | G15: 10844.95447 | H15: 11462.58579
B16: =IF(A$6:A$24="",COUNTIF('Crash Data'!M$21:M$64998,"Train*"),"") -> 0 | C16: 0 | D16: 10 | E16: Train | F16: 275021.6 | G16: 83116.81319 | H16: 13861.55556 | J16: Rural Non-Freeway
B17: =IF(A$6:A$24="",COUNTIF('Crash Data'!M$21:M$64998,"Pedalcycles*"),"") -> 0 | C17: 0 | D17: 11 | E17: Pedalcycles | F17: 138768.8235 | G17: 68156.19923 | H17: 75538.3125 | J17: Urban Non-Freeway
B18: =IF(A$6:A$24="",COUNTIF('Crash Data'!M$21:M$64998,"Other non-vehicle*"),"") -> 0 | C18: 0 | D18: 12 | E18: Other non-vehicle | F18: 111369.7647 | G18: 15371.71429 | H18: 14486.35714 | J18: Freeway
B19: =IF(A$6:A$24="",COUNTIF('Crash Data'!M$21:M$64998,"Fixed object*")+COUNTIF('Crash Data'!M$21:M$64998,"Ran*"),"") -> 5 | C19: 219760.9947 | D19: 13 | E19: Fixed object | F19: 43952.19895 | G19: 34873.37164 | H19: 30764.11973
B20: =IF(A$6:A$24="",COUNTIF('Crash Data'!M$21:M$64998,"Other object*"),"") -> 0 | C20: 0 | D20: 14 | E20: Other object | F20: 20739.64141 | G20: 21209.4257 | H20: 12977.75632
B21: =IF(A$6:A$24="",COUNTIF('Crash Data'!M$21:M$64998,"Falling from or in vehicle*"),"") -> 0 | C21: 0 | D21: 15 | E21: Falling from or in vehicle | F21: 1669104 | G21: 1669104 | H21: 0
B22: =IF(A$6:A$24="",COUNTIF('Crash Data'!M$21:M$64998,"Overturning*"),"") -> 0 | C22: 0 | D22: 16 | E22: Overturning | F22: 85223.09094 | G22: 77398.73699 | H22: 75502.29743
B23: =IF(A$6:A$24="",COUNTIF('Crash Data'!M$21:M$64998,"Other non-collision*"),"") -> 0 | C23: 0 | D23: 17 | E23: Other non-collision | F23: 21573.39737 | G23: 23556.73295 | H23: 15716.82255
B24: =IF(A$6:A$24="",COUNTIF('Crash Data'!M$21:M$64998,"Left*"),"") -> 2 | C24: =IF(C$1=F$5,IF(A24="",B24*F24,A24*F24),IF(C$1=G$5,IF(A24="",B24*G24,A24*G24),IF(C$1=H$5,IF(A24="",B24*H24,A24*H24)))) -> 124305.2332 | D24: 18 | E24: Left Turn | F24: 62152.61658 | G24: 32613.84873 | H24: 31612.37799
A25: =SUM(A6:A24) -> 0 | B25: =SUM(B6:B24) -> 19 | C25: =SUM(C6:C24) -> 757708.112
C29: Select Appropriate "Location Type" and Modify the "User Override" Cells in Yellow if Necessary | J29: TYPE_OF_CRASH_TXT
J30: LEFT TURN
J31: RIGHT TURN
J32: RAN OFF ROAD
J33: SIDESWIPE - MEETING
J34: HEAD ON
J35: OTHER NON-VEHICLE
J36: SIDESWIPE - PASSING
J37: OVERTURNING
J38: PARKED VEHICLE
J39: FIXED OBJECT
J40: NOT STATED
J41: BACKING
J42: PEDALCYCLES
J43: ANGLE
J44: PEDESTRIAN
J45: TRAIN
J46: ANIMAL
J47: OTHER OBJECT
J48: REAR END
J49: OTHER NON-COLLISION

Sheet ROR Analysis
N1: RATE OF RETURN - ECONOMIC ANALYSIS WORKSHEET
A2: Cells in Yellow Require User Input
A4: County | C4: ='Crash Data'!D12 -> 0 | G4: Main Roadway | K4: ='Crash Data'!D13 -> 0 | Q4: Begin SLM | S4: ='Crash Data'!D15 -> 0 | V4: End SLM | X4: ='Crash Data'!D16 -> 0 | AD4: Office of Systems Planning &
G5: Intersecting Roadway | AD5: Program Management
A6: Prepared by | C6: MM | G6: Date | H6: =NOW() -> 2017-04-27T21:06:56.570 | Q6: Crash BDate | S6: ='Crash Data'!D17 -> 0 | V6: Crash EDate | X6: ='Crash Data'!D18 -> 0
A8: Year | B8: TIME OF DAY | H8: ROADWAY CONDITION | N8: CRASH TYPE
B9: DAY | D9: DAWN/DUSK | F9: DARK | H9: DRY | J9: WET | L9: SNOW / ICE | N9: REAR END | P9: LEFT | R9: RIGHT | T9: ANGLE | V9: HEAD ON | X9: SS PASS | Z9: FIXED OBJ | AB9: RAN OFF RD | AD9: PEDESTRIAN | AF9: OTHER | AH9: TOTAL
B10: PDO | C10: I/F | D10: PDO | E10: I/F | F10: PDO | G10: I/F | H10: PDO | I10: I/F | J10: PDO | K10: I/F | L10: PDO | M10: I/F | N10: PDO | O10: I/F | P10: PDO | Q10: I/F | R10: PDO | S10: I/F | T10: PDO | U10: I/F | V10: PDO | W10: I/F | X10: PDO | Y10: I/F | Z10: PDO | AA10: I/F | AB10: PDO | AC10: I/F | AD10: PDO | AE10: I/F | AF10: PDO | AG10: I/F | AH10: PDO | AI10: I/F
A11: 2010 | B11: =COUNTIF('Crash Data'!BJ$21:BJ$64998,"="&$A11) -> 0 | C11: =COUNTIF('Crash Data'!BK$21:BK$64998,"="&$A11) -> 0 | D11: =COUNTIF('Crash Data'!BL$21:BL$64998,"="&$A11) -> 0 | E11: =COUNTIF('Crash Data'!BM$21:BM$64998,"="&$A11) -> 0 | F11: =COUNTIF('Crash Data'!BN$21:BN$64998,"="&$A11) -> 0 | G11: =COUNTIF('Crash Data'!BO$21:BO$64998,"="&$A11) -> 0 | H11: =COUNTIF('Crash Data'!BP$21:BP$64998,"="&$A11) -> 0 | I11: =COUNTIF('Crash Data'!BQ$21:BQ$64998,"="&$A11) -> 0 | J11: =COUNTIF('Crash Data'!BR$21:BR$64998,"="&$A11) -> 0 | K11: =COUNTIF('Crash Data'!BS$21:BS$64998,"="&$A11) -> 0 | L11: =COUNTIF('Crash Data'!BT$21:BT$64998,"="&$A11) -> 0 | M11: =COUNTIF('Crash Data'!BU$21:BU$64998,"="&$A11) -> 0 | N11: =COUNTIF('Crash Data'!BV$21:BV$64998,"="&$A11) -> 0 | O11: =COUNTIF('Crash Data'!BW$21:BW$64998,"="&$A11) -> 0 | P11: =COUNTIF('Crash Data'!BX$21:BX$64998,"="&$A11) -> 0 | Q11: =COUNTIF('Crash Data'!BY$21:BY$64998,"="&$A11) -> 0 | R11: =COUNTIF('Crash Data'!BZ$21:BZ$64998,"="&$A11) -> 0 | S11: =COUNTIF('Crash Data'!CA$21:CA$64998,"="&$A11) -> 0 | T11: =COUNTIF('Crash Data'!CB$21:CB$64998,"="&$A11) -> 0 | U11: =COUNTIF('Crash Data'!CC$21:CC$64998,"="&$A11) -> 0 | V11: =COUNTIF('Crash Data'!CD$21:CD$64998,"="&$A11) -> 0 | W11: =COUNTIF('Crash Data'!CE$21:CE$64998,"="&$A11) -> 0 | X11: =COUNTIF('Crash Data'!CF$21:CF$64998,"="&$A11) -> 0 | Y11: =COUNTIF('Crash Data'!CG$21:CG$64998,"="&$A11) -> 0 | Z11: =COUNTIF('Crash Data'!CH$21:CH$64998,"="&$A11) -> 0 | AA11: =COUNTIF('Crash Data'!CI$21:CI$64998,"="&$A11) -> 0 | AB11: =COUNTIF('Crash Data'!CJ$21:CJ$64998,"="&$A11) -> 0 | AC11: =COUNTIF('Crash Data'!CK$21:CK$64998,"="&$A11) -> 0 | AD11: =COUNTIF('Crash Data'!CL$21:CL$64998,"="&$A11) -> 0 | AE11: =COUNTIF('Crash Data'!CM$21:CM$64998,"="&$A11) -> 0 | AF11: =COUNTIF('Crash Data'!CN$21:CN$64998,"="&$A11) -> 0 | AG11: =COUNTIF('Crash Data'!CO$21:CO$64998,"="&$A11) -> 0 | AH11: =N11+P11+R11+T11+V11+X11+Z11+AB11+AD11+AF11 -> 0 | AI11: 0
A12: =A11+1 -> 2011 | B12: =COUNTIF('Crash Data'!BJ$21:BJ$64998,"="&$A12) -> 0 | C12: =COUNTIF('Crash Data'!BK$21:BK$64998,"="&$A12) -> 0 | D12: =COUNTIF('Crash Data'!BL$21:BL$64998,"="&$A12) -> 0 | E12: =COUNTIF('Crash Data'!BM$21:BM$64998,"="&$A12) -> 0 | F12: =COUNTIF('Crash Data'!BN$21:BN$64998,"="&$A12) -> 0 | G12: =COUNTIF('Crash Data'!BO$21:BO$64998,"="&$A12) -> 0 | H12: =COUNTIF('Crash Data'!BP$21:BP$64998,"="&$A12) -> 0 | I12: =COUNTIF('Crash Data'!BQ$21:BQ$64998,"="&$A12) -> 0 | J12: =COUNTIF('Crash Data'!BR$21:BR$64998,"="&$A12) -> 0 | K12: =COUNTIF('Crash Data'!BS$21:BS$64998,"="&$A12) -> 0 | L12: =COUNTIF('Crash Data'!BT$21:BT$64998,"="&$A12) -> 0 | M12: =COUNTIF('Crash Data'!BU$21:BU$64998,"="&$A12) -> 0 | N12: =COUNTIF('Crash Data'!BV$21:BV$64998,"="&$A12) -> 0 | O12: =COUNTIF('Crash Data'!BW$21:BW$64998,"="&$A12) -> 0 | P12: =COUNTIF('Crash Data'!BX$21:BX$64998,"="&$A12) -> 0 | Q12: =COUNTIF('Crash Data'!BY$21:BY$64998,"="&$A12) -> 0 | R12: =COUNTIF('Crash Data'!BZ$21:BZ$64998,"="&$A12) -> 0 | S12: =COUNTIF('Crash Data'!CA$21:CA$64998,"="&$A12) -> 0 | T12: =COUNTIF('Crash Data'!CB$21:CB$64998,"="&$A12) -> 0 | U12: =COUNTIF('Crash Data'!CC$21:CC$64998,"="&$A12) -> 0 | V12: =COUNTIF('Crash Data'!CD$21:CD$64998,"="&$A12) -> 0 | W12: =COUNTIF('Crash Data'!CE$21:CE$64998,"="&$A12) -> 0 | X12: =COUNTIF('Crash Data'!CF$21:CF$64998,"="&$A12) -> 0 | Y12: =COUNTIF('Crash Data'!CG$21:CG$64998,"="&$A12) -> 0 | Z12: =COUNTIF('Crash Data'!CH$21:CH$64998,"="&$A12) -> 0 | AA12: =COUNTIF('Crash Data'!CI$21:CI$64998,"="&$A12) -> 0 | AB12: =COUNTIF('Crash Data'!CJ$21:CJ$64998,"="&$A12) -> 0 | AC12: =COUNTIF('Crash Data'!CK$21:CK$64998,"="&$A12) -> 0 | AD12: =COUNTIF('Crash Data'!CL$21:CL$64998,"="&$A12) -> 0 | AE12: =COUNTIF('Crash Data'!CM$21:CM$64998,"="&$A12) -> 0 | AF12: =COUNTIF('Crash Data'!CN$21:CN$64998,"="&$A12) -> 0 | AG12: =COUNTIF('Crash Data'!CO$21:CO$64998,"="&$A12) -> 0 | AH12: 0 | AI12: 0
A13: =A12+1 -> 2012 | B13: =COUNTIF('Crash Data'!BJ$21:BJ$64998,"="&$A13) -> 0 | C13: =COUNTIF('Crash Data'!BK$21:BK$64998,"="&$A13) -> 0 | D13: =COUNTIF('Crash Data'!BL$21:BL$64998,"="&$A13) -> 0 | E13: =COUNTIF('Crash Data'!BM$21:BM$64998,"="&$A13) -> 0 | F13: =COUNTIF('Crash Data'!BN$21:BN$64998,"="&$A13) -> 0 | G13: =COUNTIF('Crash Data'!BO$21:BO$64998,"="&$A13) -> 0 | H13: =COUNTIF('Crash Data'!BP$21:BP$64998,"="&$A13) -> 0 | I13: =COUNTIF('Crash Data'!BQ$21:BQ$64998,"="&$A13) -> 0 | J13: =COUNTIF('Crash Data'!BR$21:BR$64998,"="&$A13) -> 0 | K13: =COUNTIF('Crash Data'!BS$21:BS$64998,"="&$A13) -> 0 | L13: =COUNTIF('Crash Data'!BT$21:BT$64998,"="&$A13) -> 0 | M13: =COUNTIF('Crash Data'!BU$21:BU$64998,"="&$A13) -> 0 | N13: =COUNTIF('Crash Data'!BV$21:BV$64998,"="&$A13) -> 0 | O13: =COUNTIF('Crash Data'!BW$21:BW$64998,"="&$A13) -> 0 | P13: =COUNTIF('Crash Data'!BX$21:BX$64998,"="&$A13) -> 0 | Q13: =COUNTIF('Crash Data'!BY$21:BY$64998,"="&$A13) -> 0 | R13: =COUNTIF('Crash Data'!BZ$21:BZ$64998,"="&$A13) -> 0 | S13: =COUNTIF('Crash Data'!CA$21:CA$64998,"="&$A13) -> 0 | T13: =COUNTIF('Crash Data'!CB$21:CB$64998,"="&$A13) -> 0 | U13: =COUNTIF('Crash Data'!CC$21:CC$64998,"="&$A13) -> 0 | V13: =COUNTIF('Crash Data'!CD$21:CD$64998,"="&$A13) -> 0 | W13: =COUNTIF('Crash Data'!CE$21:CE$64998,"="&$A13) -> 0 | X13: =COUNTIF('Crash Data'!CF$21:CF$64998,"="&$A13) -> 0 | Y13: =COUNTIF('Crash Data'!CG$21:CG$64998,"="&$A13) -> 0 | Z13: =COUNTIF('Crash Data'!CH$21:CH$64998,"="&$A13) -> 0 | AA13: =COUNTIF('Crash Data'!CI$21:CI$64998,"="&$A13) -> 0 | AB13: =COUNTIF('Crash Data'!CJ$21:CJ$64998,"="&$A13) -> 0 | AC13: =COUNTIF('Crash Data'!CK$21:CK$64998,"="&$A13) -> 0 | AD13: =COUNTIF('Crash Data'!CL$21:CL$64998,"="&$A13) -> 0 | AE13: =COUNTIF('Crash Data'!CM$21:CM$64998,"="&$A13) -> 0 | AF13: =COUNTIF('Crash Data'!CN$21:CN$64998,"="&$A13) -> 0 | AG13: =COUNTIF('Crash Data'!CO$21:CO$64998,"="&$A13) -> 0 | AH13: 0 | AI13: 0
A14: 2013 | B14: =COUNTIF('Crash Data'!BJ$21:BJ$64998,"="&$A14) -> 0 | C14: =COUNTIF('Crash Data'!BK$21:BK$64998,"="&$A14) -> 0 | D14: =COUNTIF('Crash Data'!BL$21:BL$64998,"="&$A14) -> 0 | E14: =COUNTIF('Crash Data'!BM$21:BM$64998,"="&$A14) -> 0 | F14: =COUNTIF('Crash Data'!BN$21:BN$64998,"="&$A14) -> 0 | G14: =COUNTIF('Crash Data'!BO$21:BO$64998,"="&$A14) -> 0 | H14: =COUNTIF('Crash Data'!BP$21:BP$64998,"="&$A14) -> 0 | I14: =COUNTIF('Crash Data'!BQ$21:BQ$64998,"="&$A14) -> 0 | J14: =COUNTIF('Crash Data'!BR$21:BR$64998,"="&$A14) -> 0 | K14: =COUNTIF('Crash Data'!BS$21:BS$64998,"="&$A14) -> 0 | L14: =COUNTIF('Crash Data'!BT$21:BT$64998,"="&$A14) -> 0 | M14: =COUNTIF('Crash Data'!BU$21:BU$64998,"="&$A14) -> 0 | N14: =COUNTIF('Crash Data'!BV$21:BV$64998,"="&$A14) -> 0 | O14: =COUNTIF('Crash Data'!BW$21:BW$64998,"="&$A14) -> 0 | P14: =COUNTIF('Crash Data'!BX$21:BX$64998,"="&$A14) -> 0 | Q14: =COUNTIF('Crash Data'!BY$21:BY$64998,"="&$A14) -> 0 | R14: =COUNTIF('Crash Data'!BZ$21:BZ$64998,"="&$A14) -> 0 | S14: =COUNTIF('Crash Data'!CA$21:CA$64998,"="&$A14) -> 0 | T14: =COUNTIF('Crash Data'!CB$21:CB$64998,"="&$A14) -> 0 | U14: =COUNTIF('Crash Data'!CC$21:CC$64998,"="&$A14) -> 0 | V14: =COUNTIF('Crash Data'!CD$21:CD$64998,"="&$A14) -> 0 | W14: =COUNTIF('Crash Data'!CE$21:CE$64998,"="&$A14) -> 0 | X14: =COUNTIF('Crash Data'!CF$21:CF$64998,"="&$A14) -> 0 | Y14: =COUNTIF('Crash Data'!CG$21:CG$64998,"="&$A14) -> 0 | Z14: =COUNTIF('Crash Data'!CH$21:CH$64998,"="&$A14) -> 0 | AA14: =COUNTIF('Crash Data'!CI$21:CI$64998,"="&$A14) -> 0 | AB14: =COUNTIF('Crash Data'!CJ$21:CJ$64998,"="&$A14) -> 0 | AC14: =COUNTIF('Crash Data'!CK$21:CK$64998,"="&$A14) -> 0 | AD14: =COUNTIF('Crash Data'!CL$21:CL$64998,"="&$A14) -> 0 | AE14: =COUNTIF('Crash Data'!CM$21:CM$64998,"="&$A14) -> 0 | AF14: =COUNTIF('Crash Data'!CN$21:CN$64998,"="&$A14) -> 0 | AG14: =COUNTIF('Crash Data'!CO$21:CO$64998,"="&$A14) -> 0 | AH14: 0 | AI14: 0
A15: 2014 | B15: =COUNTIF('Crash Data'!BJ$21:BJ$64998,"="&$A15) -> 0 | C15: =COUNTIF('Crash Data'!BK$21:BK$64998,"="&$A15) -> 0 | D15: =COUNTIF('Crash Data'!BL$21:BL$64998,"="&$A15) -> 0 | E15: =COUNTIF('Crash Data'!BM$21:BM$64998,"="&$A15) -> 0 | F15: =COUNTIF('Crash Data'!BN$21:BN$64998,"="&$A15) -> 0 | G15: =COUNTIF('Crash Data'!BO$21:BO$64998,"="&$A15) -> 0 | H15: =COUNTIF('Crash Data'!BP$21:BP$64998,"="&$A15) -> 0 | I15: =COUNTIF('Crash Data'!BQ$21:BQ$64998,"="&$A15) -> 0 | J15: =COUNTIF('Crash Data'!BR$21:BR$64998,"="&$A15) -> 0 | K15: =COUNTIF('Crash Data'!BS$21:BS$64998,"="&$A15) -> 0 | L15: =COUNTIF('Crash Data'!BT$21:BT$64998,"="&$A15) -> 0 | M15: =COUNTIF('Crash Data'!BU$21:BU$64998,"="&$A15) -> 0 | N15: =COUNTIF('Crash Data'!BV$21:BV$64998,"="&$A15) -> 0 | O15: =COUNTIF('Crash Data'!BW$21:BW$64998,"="&$A15) -> 0 | P15: =COUNTIF('Crash Data'!BX$21:BX$64998,"="&$A15) -> 0 | Q15: =COUNTIF('Crash Data'!BY$21:BY$64998,"="&$A15) -> 0 | R15: =COUNTIF('Crash Data'!BZ$21:BZ$64998,"="&$A15) -> 0 | S15: =COUNTIF('Crash Data'!CA$21:CA$64998,"="&$A15) -> 0 | T15: =COUNTIF('Crash Data'!CB$21:CB$64998,"="&$A15) -> 0 | U15: =COUNTIF('Crash Data'!CC$21:CC$64998,"="&$A15) -> 0 | V15: =COUNTIF('Crash Data'!CD$21:CD$64998,"="&$A15) -> 0 | W15: =COUNTIF('Crash Data'!CE$21:CE$64998,"="&$A15) -> 0 | X15: =COUNTIF('Crash Data'!CF$21:CF$64998,"="&$A15) -> 0 | Y15: =COUNTIF('Crash Data'!CG$21:CG$64998,"="&$A15) -> 0 | Z15: =COUNTIF('Crash Data'!CH$21:CH$64998,"="&$A15) -> 0 | AA15: =COUNTIF('Crash Data'!CI$21:CI$64998,"="&$A15) -> 0 | AB15: =COUNTIF('Crash Data'!CJ$21:CJ$64998,"="&$A15) -> 0 | AC15: =COUNTIF('Crash Data'!CK$21:CK$64998,"="&$A15) -> 0 | AD15: =COUNTIF('Crash Data'!CL$21:CL$64998,"="&$A15) -> 0 | AE15: =COUNTIF('Crash Data'!CM$21:CM$64998,"="&$A15) -> 0 | AF15: =COUNTIF('Crash Data'!CN$21:CN$64998,"="&$A15) -> 0 | AG15: =COUNTIF('Crash Data'!CO$21:CO$64998,"="&$A15) -> 0 | AH15: 0 | AI15: 0
A16: 2015 | B16: =COUNTIF('Crash Data'!BJ$21:BJ$64998,"="&$A16) -> 0 | C16: =COUNTIF('Crash Data'!BK$21:BK$64998,"="&$A16) -> 0 | D16: =COUNTIF('Crash Data'!BL$21:BL$64998,"="&$A16) -> 0 | E16: =COUNTIF('Crash Data'!BM$21:BM$64998,"="&$A16) -> 0 | F16: =COUNTIF('Crash Data'!BN$21:BN$64998,"="&$A16) -> 0 | G16: =COUNTIF('Crash Data'!BO$21:BO$64998,"="&$A16) -> 0 | H16: =COUNTIF('Crash Data'!BP$21:BP$64998,"="&$A16) -> 0 | I16: =COUNTIF('Crash Data'!BQ$21:BQ$64998,"="&$A16) -> 0 | J16: =COUNTIF('Crash Data'!BR$21:BR$64998,"="&$A16) -> 0 | K16: =COUNTIF('Crash Data'!BS$21:BS$64998,"="&$A16) -> 0 | L16: =COUNTIF('Crash Data'!BT$21:BT$64998,"="&$A16) -> 0 | M16: =COUNTIF('Crash Data'!BU$21:BU$64998,"="&$A16) -> 0 | N16: =COUNTIF('Crash Data'!BV$21:BV$64998,"="&$A16) -> 0 | O16: =COUNTIF('Crash Data'!BW$21:BW$64998,"="&$A16) -> 0 | P16: =COUNTIF('Crash Data'!BX$21:BX$64998,"="&$A16) -> 0 | Q16: =COUNTIF('Crash Data'!BY$21:BY$64998,"="&$A16) -> 0 | R16: =COUNTIF('Crash Data'!BZ$21:BZ$64998,"="&$A16) -> 0 | S16: =COUNTIF('Crash Data'!CA$21:CA$64998,"="&$A16) -> 0 | T16: =COUNTIF('Crash Data'!CB$21:CB$64998,"="&$A16) -> 0 | U16: =COUNTIF('Crash Data'!CC$21:CC$64998,"="&$A16) -> 0 | V16: =COUNTIF('Crash Data'!CD$21:CD$64998,"="&$A16) -> 0 | W16: =COUNTIF('Crash Data'!CE$21:CE$64998,"="&$A16) -> 0 | X16: =COUNTIF('Crash Data'!CF$21:CF$64998,"="&$A16) -> 0 | Y16: =COUNTIF('Crash Data'!CG$21:CG$64998,"="&$A16) -> 0 | Z16: =COUNTIF('Crash Data'!CH$21:CH$64998,"="&$A16) -> 0 | AA16: =COUNTIF('Crash Data'!CI$21:CI$64998,"="&$A16) -> 0 | AB16: =COUNTIF('Crash Data'!CJ$21:CJ$64998,"="&$A16) -> 0 | AC16: =COUNTIF('Crash Data'!CK$21:CK$64998,"="&$A16) -> 0 | AD16: =COUNTIF('Crash Data'!CL$21:CL$64998,"="&$A16) -> 0 | AE16: =COUNTIF('Crash Data'!CM$21:CM$64998,"="&$A16) -> 0 | AF16: =COUNTIF('Crash Data'!CN$21:CN$64998,"="&$A16) -> 0 | AG16: =COUNTIF('Crash Data'!CO$21:CO$64998,"="&$A16) -> 0 | AH16: 0 | AI16: 0
A18: TOTAL | B18: =SUM(B13:B15) -> 0 | C18: =SUM(C13:C15) -> 0 | D18: 0 | E18: 0 | F18: 0 | G18: 0 | H18: 0 | I18: 0 | J18: 0 | K18: 0 | L18: 0 | M18: 0 | N18: 0 | O18: 0 | P18: 0 | Q18: 0 | R18: 0 | S18: 0 | T18: 0 | U18: 0 | V18: 0 | W18: 0 | X18: 0 | Y18: 0 | Z18: 0 | AA18: 0 | AB18: 0 | AC18: 0 | AD18: 0 | AE18: 0 | AF18: 0 | AG18: 0 | AH18: 0 | AI18: 0
A19: AVG. | B19: =AVERAGE(B13:B15) -> 0 | C19: =AVERAGE(C13:C15) -> 0 | D19: 0 | E19: 0 | F19: 0 | G19: 0 | H19: 0 | I19: 0 | J19: 0 | K19: 0 | L19: 0 | M19: 0 | N19: 0 | O19: 0 | P19: 0 | Q19: 0 | R19: 0 | S19: 0 | T19: 0 | U19: 0 | V19: 0 | W19: 0 | X19: 0 | Y19: 0 | Z19: 0 | AA19: 0 | AB19: 0 | AC19: 0 | AD19: 0 | AE19: 0 | AF19: 0 | AG19: 0 | AH19: 0 | AI19: 0
A20: --The "TOTAL" and "AVERAGE" row formulas are set to only use 2009-2011 crash data. If the crash data is not for these three years, the formulas must be modified by the user to calculate the associated year data.
A21: RECOMMENDED IMPROVEMENTS | M21: CRASH TYPE | O21: PDO CRASHES | X21: INJ. - FAT. CRASHES | AL21: When using multiple countermeasures, the total reduction fator is:
B22: Select Countermeasures | O22: R1 | P22: R2 | Q22: R3 | R22: R4 | S22: RT | T22: AVG PDO | V22: EST. RED. | X22: R1 | Y22: R2 | Z22: R3 | AA22: R4 | AB22: RT | AC22: AVG INJ-FAT | AF22: EST. RED. | AL22: R1 + (1-R1)R2 + (1-R1)(1-R2)R3 + (1-R1) (1-R2)(1-R3)R4 + …….. = RT
A23: R1 | M23: =P9 -> LEFT | O23: =IF($B$23="",0,IF(OR($O$32>0,$O$33>0),,INDEX('CRF Table_Rev'!$D$5:$Z$60000,MATCH($B$23,'CRF Table_Rev'!$D$5:$D$60000,0),MATCH($M23,'CRF Table_Rev'!$D$5:$Z$5,0)))) -> 0 | P23: =IF($B$24="",0,IF(OR($P$32>0,$P$33>0),,INDEX('CRF Table_Rev'!$D$5:$Z$60000,MATCH($B$24,'CRF Table_Rev'!$D$5:$D$60000,0),MATCH($M23,'CRF Table_Rev'!$D$5:$Z$5,0)))) -> 0 | Q23: =IF($B$25="",0,IF(OR($Q$32>0,$Q$33>0),,INDEX('CRF Table_Rev'!$D$5:$Z$60000,MATCH($B$25,'CRF Table_Rev'!$D$5:$D$60000,0),MATCH($M23,'CRF Table_Rev'!$D$5:$Z$5,0)))) -> 0 | R23: =IF($B$26="",0,IF(OR($R$32>0,$R$33>0),,INDEX('CRF Table_Rev'!$D$5:$Z$60000,MATCH($B$26,'CRF Table_Rev'!$D$5:$D$60000,0),MATCH($M23,'CRF Table_Rev'!$D$5:$Z$5,0)))) -> 0 | S23: =O23+(1-O23)*P23+(1-O23)*(1-P23)*Q23+(1-O23)*(1-P23)*(1-Q23)*R23 -> 0 | T23: =P19 -> 0 | V23: =S23*T23 -> 0 | X23: =IF($B$23="",0,IF(OR($X$32>0,$X$33>0),,INDEX('CRF Table_Rev'!$AA$5:$AM$60000,MATCH($B$23,'CRF Table_Rev'!$D$5:$D$60000,0),MATCH($M23,'CRF Table_Rev'!$AA$5:$AM$5,0)))) -> 0 | Y23: =IF($B$24="",0,IF(OR($Y$32>0,$Y$33>0),,INDEX('CRF Table_Rev'!$AA$5:$AM$60000,MATCH($B$24,'CRF Table_Rev'!$D$5:$D$60000,0),MATCH($M23,'CRF Table_Rev'!$AA$5:$AM$5,0)))) -> 0 | Z23: =IF($B$25="",0,IF(OR($Z$32>0,$Z$33>0),,INDEX('CRF Table_Rev'!$AA$5:$AM$60000,MATCH($B$25,'CRF Table_Rev'!$D$5:$D$60000,0),MATCH($M23,'CRF Table_Rev'!$AA$5:$AM$5,0)))) -> 0 | AA23: =IF($B$26="",0,IF(OR($AA$32>0,$AA$33>0),,INDEX('CRF Table_Rev'!$AA$5:$AM$60000,MATCH($B$26,'CRF Table_Rev'!$D$5:$D$60000,0),MATCH($M23,'CRF Table_Rev'!$AA$5:$AM$5,0)))) -> 0 | AB23: =X23+(1-X23)*Y23+(1-X23)*(1-Y23)*Z23+(1-X23)*(1-Y23)*(1-Z23)*AA23 -> 0 | AC23: =Q19 -> 0 | AF23: =AB23*AC23 -> 0
A24: R2 | M24: =R9 -> RIGHT | O24: =IF($B$23="",0,IF(OR($O$32>0,$O$33>0),,INDEX('CRF Table_Rev'!$D$5:$Z$60000,MATCH($B$23,'CRF Table_Rev'!$D$5:$D$60000,0),MATCH($M24,'CRF Table_Rev'!$D$5:$Z$5,0)))) -> 0 | P24: =IF($B$24="",0,IF(OR($P$32>0,$P$33>0),,INDEX('CRF Table_Rev'!$D$5:$Z$60000,MATCH($B$24,'CRF Table_Rev'!$D$5:$D$60000,0),MATCH($M24,'CRF Table_Rev'!$D$5:$Z$5,0)))) -> 0 | Q24: =IF($B$25="",0,IF(OR($Q$32>0,$Q$33>0),,INDEX('CRF Table_Rev'!$D$5:$Z$60000,MATCH($B$25,'CRF Table_Rev'!$D$5:$D$60000,0),MATCH($M24,'CRF Table_Rev'!$D$5:$Z$5,0)))) -> 0 | R24: =IF($B$26="",0,IF(OR($R$32>0,$R$33>0),,INDEX('CRF Table_Rev'!$D$5:$Z$60000,MATCH($B$26,'CRF Table_Rev'!$D$5:$D$60000,0),MATCH($M24,'CRF Table_Rev'!$D$5:$Z$5,0)))) -> 0 | S24: 0 | T24: =R19 -> 0 | V24: 0 | X24: =IF($B$23="",0,IF(OR($X$32>0,$X$33>0),,INDEX('CRF Table_Rev'!$AA$5:$AM$60000,MATCH($B$23,'CRF Table_Rev'!$D$5:$D$60000,0),MATCH($M24,'CRF Table_Rev'!$AA$5:$AM$5,0)))) -> 0 | Y24: =IF($B$24="",0,IF(OR($Y$32>0,$Y$33>0),,INDEX('CRF Table_Rev'!$AA$5:$AM$60000,MATCH($B$24,'CRF Table_Rev'!$D$5:$D$60000,0),MATCH($M24,'CRF Table_Rev'!$AA$5:$AM$5,0)))) -> 0 | Z24: =IF($B$25="",0,IF(OR($Z$32>0,$Z$33>0),,INDEX('CRF Table_Rev'!$AA$5:$AM$60000,MATCH($B$25,'CRF Table_Rev'!$D$5:$D$60000,0),MATCH($M24,'CRF Table_Rev'!$AA$5:$AM$5,0)))) -> 0 | AA24: =IF($B$26="",0,IF(OR($AA$32>0,$AA$33>0),,INDEX('CRF Table_Rev'!$AA$5:$AM$60000,MATCH($B$26,'CRF Table_Rev'!$D$5:$D$60000,0),MATCH($M24,'CRF Table_Rev'!$AA$5:$AM$5,0)))) -> 0 | AB24: 0 | AC24: =S19 -> 0 | AF24: 0 | AL24: Cost of crashes for determing ROR (Updated - 2012)
A25: R3 | M25: =T9 -> ANGLE | O25: =IF($B$23="",0,IF(OR($O$32>0,$O$33>0),,INDEX('CRF Table_Rev'!$D$5:$Z$60000,MATCH($B$23,'CRF Table_Rev'!$D$5:$D$60000,0),MATCH($M25,'CRF Table_Rev'!$D$5:$Z$5,0)))) -> 0 | P25: =IF($B$24="",0,IF(OR($P$32>0,$P$33>0),,INDEX('CRF Table_Rev'!$D$5:$Z$60000,MATCH($B$24,'CRF Table_Rev'!$D$5:$D$60000,0),MATCH($M25,'CRF Table_Rev'!$D$5:$Z$5,0)))) -> 0 | Q25: =IF($B$25="",0,IF(OR($Q$32>0,$Q$33>0),,INDEX('CRF Table_Rev'!$D$5:$Z$60000,MATCH($B$25,'CRF Table_Rev'!$D$5:$D$60000,0),MATCH($M25,'CRF Table_Rev'!$D$5:$Z$5,0)))) -> 0 | R25: =IF($B$26="",0,IF(OR($R$32>0,$R$33>0),,INDEX('CRF Table_Rev'!$D$5:$Z$60000,MATCH($B$26,'CRF Table_Rev'!$D$5:$D$60000,0),MATCH($M25,'CRF Table_Rev'!$D$5:$Z$5,0)))) -> 0 | S25: 0 | T25: =T19 -> 0 | V25: 0 | X25: =IF($B$23="",0,IF(OR($X$32>0,$X$33>0),,INDEX('CRF Table_Rev'!$AA$5:$AM$60000,MATCH($B$23,'CRF Table_Rev'!$D$5:$D$60000,0),MATCH($M25,'CRF Table_Rev'!$AA$5:$AM$5,0)))) -> 0 | Y25: =IF($B$24="",0,IF(OR($Y$32>0,$Y$33>0),,INDEX('CRF Table_Rev'!$AA$5:$AM$60000,MATCH($B$24,'CRF Table_Rev'!$D$5:$D$60000,0),MATCH($M25,'CRF Table_Rev'!$AA$5:$AM$5,0)))) -> 0 | Z25: =IF($B$25="",0,IF(OR($Z$32>0,$Z$33>0),,INDEX('CRF Table_Rev'!$AA$5:$AM$60000,MATCH($B$25,'CRF Table_Rev'!$D$5:$D$60000,0),MATCH($M25,'CRF Table_Rev'!$AA$5:$AM$5,0)))) -> 0 | AA25: =IF($B$26="",0,IF(OR($AA$32>0,$AA$33>0),,INDEX('CRF Table_Rev'!$AA$5:$AM$60000,MATCH($B$26,'CRF Table_Rev'!$D$5:$D$60000,0),MATCH($M25,'CRF Table_Rev'!$AA$5:$AM$5,0)))) -> 0 | AB25: 0 | AC25: =U19 -> 0 | AF25: 0 | AL25: PDO | AM25: INJ/FAT | AN25: SYSTEM
A26: R4 | M26: =N9 -> REAR END | O26: =IF($B$23="",0,IF(OR($O$32>0,$O$33>0),,INDEX('CRF Table_Rev'!$D$5:$Z$60000,MATCH($B$23,'CRF Table_Rev'!$D$5:$D$60000,0),MATCH($M26,'CRF Table_Rev'!$D$5:$Z$5,0)))) -> 0 | P26: =IF($B$24="",0,IF(OR($P$32>0,$P$33>0),,INDEX('CRF Table_Rev'!$D$5:$Z$60000,MATCH($B$24,'CRF Table_Rev'!$D$5:$D$60000,0),MATCH($M26,'CRF Table_Rev'!$D$5:$Z$5,0)))) -> 0 | Q26: =IF($B$25="",0,IF(OR($Q$32>0,$Q$33>0),,INDEX('CRF Table_Rev'!$D$5:$Z$60000,MATCH($B$25,'CRF Table_Rev'!$D$5:$D$60000,0),MATCH($M26,'CRF Table_Rev'!$D$5:$Z$5,0)))) -> 0 | R26: =IF($B$26="",0,IF(OR($R$32>0,$R$33>0),,INDEX('CRF Table_Rev'!$D$5:$Z$60000,MATCH($B$26,'CRF Table_Rev'!$D$5:$D$60000,0),MATCH($M26,'CRF Table_Rev'!$D$5:$Z$5,0)))) -> 0 | S26: 0 | T26: =N19 -> 0 | V26: 0 | X26: =IF($B$23="",0,IF(OR($X$32>0,$X$33>0),,INDEX('CRF Table_Rev'!$AA$5:$AM$60000,MATCH($B$23,'CRF Table_Rev'!$D$5:$D$60000,0),MATCH($M26,'CRF Table_Rev'!$AA$5:$AM$5,0)))) -> 0 | Y26: =IF($B$24="",0,IF(OR($Y$32>0,$Y$33>0),,INDEX('CRF Table_Rev'!$AA$5:$AM$60000,MATCH($B$24,'CRF Table_Rev'!$D$5:$D$60000,0),MATCH($M26,'CRF Table_Rev'!$AA$5:$AM$5,0)))) -> 0 | Z26: =IF($B$25="",0,IF(OR($Z$32>0,$Z$33>0),,INDEX('CRF Table_Rev'!$AA$5:$AM$60000,MATCH($B$25,'CRF Table_Rev'!$D$5:$D$60000,0),MATCH($M26,'CRF Table_Rev'!$AA$5:$AM$5,0)))) -> 0 | AA26: =IF($B$26="",0,IF(OR($AA$32>0,$AA$33>0),,INDEX('CRF Table_Rev'!$AA$5:$AM$60000,MATCH($B$26,'CRF Table_Rev'!$D$5:$D$60000,0),MATCH($M26,'CRF Table_Rev'!$AA$5:$AM$5,0)))) -> 0 | AB26: 0 | AC26: =O19 -> 0 | AF26: 0 | AL26: 8576 | AM26: 78201 | AN26: Rural State Highways
M27: =V9 -> HEAD ON | O27: =IF($B$23="",0,IF(OR($O$32>0,$O$33>0),,INDEX('CRF Table_Rev'!$D$5:$Z$60000,MATCH($B$23,'CRF Table_Rev'!$D$5:$D$60000,0),MATCH($M27,'CRF Table_Rev'!$D$5:$Z$5,0)))) -> 0 | P27: =IF($B$24="",0,IF(OR($P$32>0,$P$33>0),,INDEX('CRF Table_Rev'!$D$5:$Z$60000,MATCH($B$24,'CRF Table_Rev'!$D$5:$D$60000,0),MATCH($M27,'CRF Table_Rev'!$D$5:$Z$5,0)))) -> 0 | Q27: =IF($B$25="",0,IF(OR($Q$32>0,$Q$33>0),,INDEX('CRF Table_Rev'!$D$5:$Z$60000,MATCH($B$25,'CRF Table_Rev'!$D$5:$D$60000,0),MATCH($M27,'CRF Table_Rev'!$D$5:$Z$5,0)))) -> 0 | R27: =IF($B$26="",0,IF(OR($R$32>0,$R$33>0),,INDEX('CRF Table_Rev'!$D$5:$Z$60000,MATCH($B$26,'CRF Table_Rev'!$D$5:$D$60000,0),MATCH($M27,'CRF Table_Rev'!$D$5:$Z$5,0)))) -> 0 | S27: 0 | T27: =V19 -> 0 | V27: 0 | X27: =IF($B$23="",0,IF(OR($X$32>0,$X$33>0),,INDEX('CRF Table_Rev'!$AA$5:$AM$60000,MATCH($B$23,'CRF Table_Rev'!$D$5:$D$60000,0),MATCH($M27,'CRF Table_Rev'!$AA$5:$AM$5,0)))) -> 0 | Y27: =IF($B$24="",0,IF(OR($Y$32>0,$Y$33>0),,INDEX('CRF Table_Rev'!$AA$5:$AM$60000,MATCH($B$24,'CRF Table_Rev'!$D$5:$D$60000,0),MATCH($M27,'CRF Table_Rev'!$AA$5:$AM$5,0)))) -> 0 | Z27: =IF($B$25="",0,IF(OR($Z$32>0,$Z$33>0),,INDEX('CRF Table_Rev'!$AA$5:$AM$60000,MATCH($B$25,'CRF Table_Rev'!$D$5:$D$60000,0),MATCH($M27,'CRF Table_Rev'!$AA$5:$AM$5,0)))) -> 0 | AA27: =IF($B$26="",0,IF(OR($AA$32>0,$AA$33>0),,INDEX('CRF Table_Rev'!$AA$5:$AM$60000,MATCH($B$26,'CRF Table_Rev'!$D$5:$D$60000,0),MATCH($M27,'CRF Table_Rev'!$AA$5:$AM$5,0)))) -> 0 | AB27: 0 | AC27: =W19 -> 0 | AF27: 0 | AL27: 8576 | AM27: 78201 | AN27: Counties and Unincorporated Villages
M28: =X9 -> SS PASS | O28: =IF($B$23="",0,IF(OR($O$32>0,$O$33>0),,INDEX('CRF Table_Rev'!$D$5:$Z$60000,MATCH($B$23,'CRF Table_Rev'!$D$5:$D$60000,0),MATCH($M28,'CRF Table_Rev'!$D$5:$Z$5,0)))) -> 0 | P28: =IF($B$24="",0,IF(OR($P$32>0,$P$33>0),,INDEX('CRF Table_Rev'!$D$5:$Z$60000,MATCH($B$24,'CRF Table_Rev'!$D$5:$D$60000,0),MATCH($M28,'CRF Table_Rev'!$D$5:$Z$5,0)))) -> 0 | Q28: =IF($B$25="",0,IF(OR($Q$32>0,$Q$33>0),,INDEX('CRF Table_Rev'!$D$5:$Z$60000,MATCH($B$25,'CRF Table_Rev'!$D$5:$D$60000,0),MATCH($M28,'CRF Table_Rev'!$D$5:$Z$5,0)))) -> 0 | R28: =IF($B$26="",0,IF(OR($R$32>0,$R$33>0),,INDEX('CRF Table_Rev'!$D$5:$Z$60000,MATCH($B$26,'CRF Table_Rev'!$D$5:$D$60000,0),MATCH($M28,'CRF Table_Rev'!$D$5:$Z$5,0)))) -> 0 | S28: 0 | T28: =X19 -> 0 | V28: 0 | X28: =IF($B$23="",0,IF(OR($X$32>0,$X$33>0),,INDEX('CRF Table_Rev'!$AA$5:$AM$60000,MATCH($B$23,'CRF Table_Rev'!$D$5:$D$60000,0),MATCH($M28,'CRF Table_Rev'!$AA$5:$AM$5,0)))) -> 0 | Y28: =IF($B$24="",0,IF(OR($Y$32>0,$Y$33>0),,INDEX('CRF Table_Rev'!$AA$5:$AM$60000,MATCH($B$24,'CRF Table_Rev'!$D$5:$D$60000,0),MATCH($M28,'CRF Table_Rev'!$AA$5:$AM$5,0)))) -> 0 | Z28: =IF($B$25="",0,IF(OR($Z$32>0,$Z$33>0),,INDEX('CRF Table_Rev'!$AA$5:$AM$60000,MATCH($B$25,'CRF Table_Rev'!$D$5:$D$60000,0),MATCH($M28,'CRF Table_Rev'!$AA$5:$AM$5,0)))) -> 0 | AA28: =IF($B$26="",0,IF(OR($AA$32>0,$AA$33>0),,INDEX('CRF Table_Rev'!$AA$5:$AM$60000,MATCH($B$26,'CRF Table_Rev'!$D$5:$D$60000,0),MATCH($M28,'CRF Table_Rev'!$AA$5:$AM$5,0)))) -> 0 | AB28: 0 | AC28: =Y19 -> 0 | AF28: 0 | AL28: 8576 | AM28: 78201 | AN28: Cities and Incorporated Villages
M29: =Z9 -> FIXED OBJ | O29: =IF($B$23="",0,IF(OR($O$32>0,$O$33>0),,INDEX('CRF Table_Rev'!$D$5:$Z$60000,MATCH($B$23,'CRF Table_Rev'!$D$5:$D$60000,0),MATCH($M29,'CRF Table_Rev'!$D$5:$Z$5,0)))) -> 0 | P29: =IF($B$24="",0,IF(OR($P$32>0,$P$33>0),,INDEX('CRF Table_Rev'!$D$5:$Z$60000,MATCH($B$24,'CRF Table_Rev'!$D$5:$D$60000,0),MATCH($M29,'CRF Table_Rev'!$D$5:$Z$5,0)))) -> 0 | Q29: =IF($B$25="",0,IF(OR($Q$32>0,$Q$33>0),,INDEX('CRF Table_Rev'!$D$5:$Z$60000,MATCH($B$25,'CRF Table_Rev'!$D$5:$D$60000,0),MATCH($M29,'CRF Table_Rev'!$D$5:$Z$5,0)))) -> 0 | R29: =IF($B$26="",0,IF(OR($R$32>0,$R$33>0),,INDEX('CRF Table_Rev'!$D$5:$Z$60000,MATCH($B$26,'CRF Table_Rev'!$D$5:$D$60000,0),MATCH($M29,'CRF Table_Rev'!$D$5:$Z$5,0)))) -> 0 | S29: 0 | T29: =Z19 -> 0 | V29: 0 | X29: =IF($B$23="",0,IF(OR($X$32>0,$X$33>0),,INDEX('CRF Table_Rev'!$AA$5:$AM$60000,MATCH($B$23,'CRF Table_Rev'!$D$5:$D$60000,0),MATCH($M29,'CRF Table_Rev'!$AA$5:$AM$5,0)))) -> 0 | Y29: =IF($B$24="",0,IF(OR($Y$32>0,$Y$33>0),,INDEX('CRF Table_Rev'!$AA$5:$AM$60000,MATCH($B$24,'CRF Table_Rev'!$D$5:$D$60000,0),MATCH($M29,'CRF Table_Rev'!$AA$5:$AM$5,0)))) -> 0 | Z29: =IF($B$25="",0,IF(OR($Z$32>0,$Z$33>0),,INDEX('CRF Table_Rev'!$AA$5:$AM$60000,MATCH($B$25,'CRF Table_Rev'!$D$5:$D$60000,0),MATCH($M29,'CRF Table_Rev'!$AA$5:$AM$5,0)))) -> 0 | AA29: =IF($B$26="",0,IF(OR($AA$32>0,$AA$33>0),,INDEX('CRF Table_Rev'!$AA$5:$AM$60000,MATCH($B$26,'CRF Table_Rev'!$D$5:$D$60000,0),MATCH($M29,'CRF Table_Rev'!$AA$5:$AM$5,0)))) -> 0 | AB29: 0 | AC29: =AA19 -> 0 | AF29: 0
M30: =AB9 -> RAN OFF RD | O30: =IF($B$23="",,IF(VLOOKUP($B$23,'CRF Table_Rev'!$D:$I,6,FALSE)="Yes",VLOOKUP($B$23,'CRF Table_Rev'!$D$5:$Q$60000,14,FALSE),0)) -> 0 | P30: =IF($B$24="",,IF(VLOOKUP($B$24,'CRF Table_Rev'!$D:$I,6,FALSE)="Yes",VLOOKUP($B$24,'CRF Table_Rev'!$D$5:$Q$60000,14,FALSE),0)) -> 0 | Q30: =IF($B$25="",,IF(VLOOKUP($B$25,'CRF Table_Rev'!$D:$I,6,FALSE)="Yes",VLOOKUP($B$25,'CRF Table_Rev'!$D$5:$Q$60000,14,FALSE),0)) -> 0 | R30: =IF($B$26="",,IF(VLOOKUP($B$26,'CRF Table_Rev'!$D:$I,6,FALSE)="Yes",VLOOKUP($B$26,'CRF Table_Rev'!$D$5:$Q$60000,14,FALSE),0)) -> 0 | S30: 0 | T30: =AB19 -> 0 | V30: 0 | X30: =IF($B$23="",,IF(VLOOKUP($B$23,'CRF Table_Rev'!$D:$I,6,FALSE)="Yes",VLOOKUP($B$23,'CRF Table_Rev'!$AA$5:$AD$60000,4,FALSE),0)) -> 0 | Y30: =IF($B$24="",,IF(VLOOKUP($B$24,'CRF Table_Rev'!$D:$I,6,FALSE)="Yes",VLOOKUP($B$24,'CRF Table_Rev'!$AA$5:$AD$60000,4,FALSE),0)) -> 0 | Z30: =IF($B$25="",,IF(VLOOKUP($B$25,'CRF Table_Rev'!$D:$I,6,FALSE)="Yes",VLOOKUP($B$25,'CRF Table_Rev'!$AA$5:$AD$60000,4,FALSE),0)) -> 0 | AA30: =IF($B$26="",,IF(VLOOKUP($B$26,'CRF Table_Rev'!$D:$I,6,FALSE)="Yes",VLOOKUP($B$26,'CRF Table_Rev'!$AA$5:$AD$60000,4,FALSE),0)) -> 0 | AB30: 0 | AC30: =AC19 -> 0 | AF30: 0
M31: =AF9 -> OTHER | O31: =IF($B$23="",0,IF(OR($O$32>0,$O$33>0),,INDEX('CRF Table_Rev'!$D$5:$Z$60000,MATCH($B$23,'CRF Table_Rev'!$D$5:$D$60000,0),MATCH($M31,'CRF Table_Rev'!$D$5:$Z$5,0)))) -> 0 | P31: =IF($B$24="",0,IF(OR($P$32>0,$P$33>0),,INDEX('CRF Table_Rev'!$D$5:$Z$60000,MATCH($B$24,'CRF Table_Rev'!$D$5:$D$60000,0),MATCH($M31,'CRF Table_Rev'!$D$5:$Z$5,0)))) -> 0 | Q31: =IF($B$25="",0,IF(OR($Q$32>0,$Q$33>0),,INDEX('CRF Table_Rev'!$D$5:$Z$60000,MATCH($B$25,'CRF Table_Rev'!$D$5:$D$60000,0),MATCH($M31,'CRF Table_Rev'!$D$5:$Z$5,0)))) -> 0 | R31: =IF($B$26="",0,IF(OR($R$32>0,$R$33>0),,INDEX('CRF Table_Rev'!$D$5:$Z$60000,MATCH($B$26,'CRF Table_Rev'!$D$5:$D$60000,0),MATCH($M31,'CRF Table_Rev'!$D$5:$Z$5,0)))) -> 0 | S31: 0 | T31: =AF19 -> 0 | V31: 0 | X31: =IF($B$23="",0,IF(OR($X$32>0,$X$33>0),,INDEX('CRF Table_Rev'!$AA$5:$AM$60000,MATCH($B$23,'CRF Table_Rev'!$D$5:$D$60000,0),MATCH($M31,'CRF Table_Rev'!$AA$5:$AM$5,0)))) -> 0 | Y31: =IF($B$24="",0,IF(OR($Y$32>0,$Y$33>0),,INDEX('CRF Table_Rev'!$AA$5:$AM$60000,MATCH($B$24,'CRF Table_Rev'!$D$5:$D$60000,0),MATCH($M31,'CRF Table_Rev'!$AA$5:$AM$5,0)))) -> 0 | Z31: =IF($B$25="",0,IF(OR($Z$32>0,$Z$33>0),,INDEX('CRF Table_Rev'!$AA$5:$AM$60000,MATCH($B$25,'CRF Table_Rev'!$D$5:$D$60000,0),MATCH($M31,'CRF Table_Rev'!$AA$5:$AM$5,0)))) -> 0 | AA31: =IF($B$26="",0,IF(OR($AA$32>0,$AA$33>0),,INDEX('CRF Table_Rev'!$AA$5:$AM$60000,MATCH($B$26,'CRF Table_Rev'!$D$5:$D$60000,0),MATCH($M31,'CRF Table_Rev'!$AA$5:$AM$5,0)))) -> 0 | AB31: 0 | AC31: =AG19 -> 0 | AF31: 0 | AL31: Do Not Modify Cells Below
M32: NIGHT | O32: =IF($B$23="",,IF(VLOOKUP($B$23,'CRF Table_Rev'!$D:$I,5,FALSE)="Yes",VLOOKUP($B$23,'CRF Table_Rev'!$D$5:$Q$60000,12,FALSE),0)) -> 0 | P32: =IF($B$24="",,IF(VLOOKUP($B$24,'CRF Table_Rev'!$D:$I,5,FALSE)="Yes",VLOOKUP($B$24,'CRF Table_Rev'!$D$5:$Q$60000,12,FALSE),0)) -> 0 | Q32: =IF($B$25="",,IF(VLOOKUP($B$25,'CRF Table_Rev'!$D:$I,5,FALSE)="Yes",VLOOKUP($B$25,'CRF Table_Rev'!$D$5:$Q$60000,12,FALSE),0)) -> 0 | R32: =IF($B$26="",,IF(VLOOKUP($B$26,'CRF Table_Rev'!$D:$I,5,FALSE)="Yes",VLOOKUP($B$26,'CRF Table_Rev'!$D$5:$Q$60000,12,FALSE),0)) -> 0 | S32: 0 | T32: =F19 -> 0 | V32: 0 | X32: =IF($B$23="",,IF(VLOOKUP($B$23,'CRF Table_Rev'!$D:$I,5,FALSE)="Yes",VLOOKUP($B$23,'CRF Table_Rev'!$AA$5:$AD$60000,2,FALSE),0)) -> 0 | Y32: =IF($B$24="",,IF(VLOOKUP($B$24,'CRF Table_Rev'!$D:$I,5,FALSE)="Yes",VLOOKUP($B$24,'CRF Table_Rev'!$AA$5:$AD$60000,2,FALSE),0)) -> 0 | Z32: =IF($B$25="",,IF(VLOOKUP($B$25,'CRF Table_Rev'!$D:$I,5,FALSE)="Yes",VLOOKUP($B$25,'CRF Table_Rev'!$AA$5:$AD$60000,2,FALSE),0)) -> 0 | AA32: =IF($B$26="",,IF(VLOOKUP($B$26,'CRF Table_Rev'!$D:$I,5,FALSE)="Yes",VLOOKUP($B$26,'CRF Table_Rev'!$AA$5:$AD$60000,2,FALSE),0)) -> 0 | AB32: 0 | AC32: =G19 -> 0 | AF32: 0 | AL32: 3
M33: =J9 -> WET | O33: =IF($B$23="",,IF(VLOOKUP($B$23,'CRF Table_Rev'!$D:$I,4,FALSE)="Yes",VLOOKUP($B$23,'CRF Table_Rev'!$D$5:$Q$60000,13,FALSE),0)) -> 0 | P33: =IF($B$24="",,IF(VLOOKUP($B$24,'CRF Table_Rev'!$D:$I,4,FALSE)="Yes",VLOOKUP($B$24,'CRF Table_Rev'!$D$5:$Q$60000,13,FALSE),0)) -> 0 | Q33: =IF($B$25="",,IF(VLOOKUP($B$25,'CRF Table_Rev'!$D:$I,4,FALSE)="Yes",VLOOKUP($B$25,'CRF Table_Rev'!$D$5:$Q$60000,13,FALSE),0)) -> 0 | R33: =IF($B$26="",,IF(VLOOKUP($B$26,'CRF Table_Rev'!$D:$I,4,FALSE)="Yes",VLOOKUP($B$26,'CRF Table_Rev'!$D$5:$Q$60000,13,FALSE),0)) -> 0 | S33: 0 | T33: =J19 -> 0 | V33: 0 | X33: =IF($B$23="",,IF(VLOOKUP($B$23,'CRF Table_Rev'!$D:$I,4,FALSE)="Yes",VLOOKUP($B$23,'CRF Table_Rev'!$AA$5:$AD$60000,3,FALSE),0)) -> 0 | Y33: =IF($B$24="",,IF(VLOOKUP($B$24,'CRF Table_Rev'!$D:$I,4,FALSE)="Yes",VLOOKUP($B$24,'CRF Table_Rev'!$AA$5:$AD$60000,3,FALSE),0)) -> 0 | Z33: =IF($B$25="",,IF(VLOOKUP($B$25,'CRF Table_Rev'!$D:$I,4,FALSE)="Yes",VLOOKUP($B$25,'CRF Table_Rev'!$AA$5:$AD$60000,3,FALSE),0)) -> 0 | AA33: =IF($B$26="",,IF(VLOOKUP($B$26,'CRF Table_Rev'!$D:$I,4,FALSE)="Yes",VLOOKUP($B$26,'CRF Table_Rev'!$AA$5:$AD$60000,3,FALSE),0)) -> 0 | AB33: 0 | AC33: =K19 -> 0 | AF33: 0 | AL33: 5
M34: =AD9 -> PEDESTRIAN | O34: =IF($B$23="",0,IF(OR($O$32>0,$O$33>0),,INDEX('CRF Table_Rev'!$D$5:$Z$60000,MATCH($B$23,'CRF Table_Rev'!$D$5:$D$60000,0),MATCH($M34,'CRF Table_Rev'!$D$5:$Z$5,0)))) -> 0 | P34: =IF($B$24="",0,IF(OR($P$32>0,$P$33>0),,INDEX('CRF Table_Rev'!$D$5:$Z$60000,MATCH($B$24,'CRF Table_Rev'!$D$5:$D$60000,0),MATCH($M34,'CRF Table_Rev'!$D$5:$Z$5,0)))) -> 0 | Q34: =IF($B$25="",0,IF(OR($Q$32>0,$Q$33>0),,INDEX('CRF Table_Rev'!$D$5:$Z$60000,MATCH($B$25,'CRF Table_Rev'!$D$5:$D$60000,0),MATCH($M34,'CRF Table_Rev'!$D$5:$Z$5,0)))) -> 0 | R34: =IF($B$26="",0,IF(OR($R$32>0,$R$33>0),,INDEX('CRF Table_Rev'!$D$5:$Z$60000,MATCH($B$26,'CRF Table_Rev'!$D$5:$D$60000,0),MATCH($M34,'CRF Table_Rev'!$D$5:$Z$5,0)))) -> 0 | S34: 0 | T34: =AD19 -> 0 | V34: 0 | X34: =IF($B$23="",0,IF(OR($X$32>0,$X$33>0),,INDEX('CRF Table_Rev'!$AA$5:$AM$60000,MATCH($B$23,'CRF Table_Rev'!$D$5:$D$60000,0),MATCH($M34,'CRF Table_Rev'!$AA$5:$AM$5,0)))) -> 0 | Y34: =IF($B$24="",0,IF(OR($Y$32>0,$Y$33>0),,INDEX('CRF Table_Rev'!$AA$5:$AM$60000,MATCH($B$24,'CRF Table_Rev'!$D$5:$D$60000,0),MATCH($M34,'CRF Table_Rev'!$AA$5:$AM$5,0)))) -> 0 | Z34: =IF($B$25="",0,IF(OR($Z$32>0,$Z$33>0),,INDEX('CRF Table_Rev'!$AA$5:$AM$60000,MATCH($B$25,'CRF Table_Rev'!$D$5:$D$60000,0),MATCH($M34,'CRF Table_Rev'!$AA$5:$AM$5,0)))) -> 0 | AA34: =IF($B$26="",0,IF(OR($AA$32>0,$AA$33>0),,INDEX('CRF Table_Rev'!$AA$5:$AM$60000,MATCH($B$26,'CRF Table_Rev'!$D$5:$D$60000,0),MATCH($M34,'CRF Table_Rev'!$AA$5:$AM$5,0)))) -> 0 | AB34: 0 | AC34: =AE19 -> 0 | AF34: 0 | AL34: 10
AL35: 15
AL36: 20
O37: ESTIMATED PDO CRASH REDUCTION = | V37: =SUM(V23:W34) -> 0 | X37: ESTIMATED INJ. - FAT. CRASH REDUCTION = | AF37: =SUM(AF23:AG34) -> 0 | AL37: 25
A38: ADT Factor | AL38: 30
A39: Project Service Life | F39: =IF($B$23="",0,VLOOKUP(B23,'CRF Table_Rev'!$D$5:$E$60000,2,FALSE)) -> 0 | G39: years
A40: Present ADT (PADT) | F40: 22465 | G40: veh / day | N40: Average ADT = | Q40: (PADT + FADT)/2 = ( | U40: =F40 -> 22465 | W40: + | X40: =F41 -> 24560 | Z40: ) = | AA40: =(U40+X40)/2 -> 23512.5
A41: Future ADT (FADT) | F41: 24560 | G41: veh / day | N41: ADT Factor = | Q41: Average ADT / PADT = | U41: =AA40 -> 23512.5 | W41: / | X41: =F40 -> 22465 | Z41: = | AA41: =U41/X41 -> 1.046628088 | AL41: NPV | AM41: 0 | AN41: 1 | AO41: 2 | AP41: 3 | AQ41: 4 | AR41: 5 | AS41: 6 | AT41: 7 | AU41: 8 | AV41: 9 | AW41: 10 | AX41: 11 | AY41: 12 | AZ41: 13 | BA41: 14 | BB41: 15 | BC41: 16 | BD41: 17 | BE41: 18 | BF41: 19 | BG41: 20 | BH41: 21 | BI41: 22 | BJ41: 23 | BK41: 24 | BL41: 25 | BM41: 26 | BN41: 27 | BO41: 28 | BP41: 29 | BQ41: 30
AK42: 3 Years | AL42: =NPV($Z$51,AN42:BG42,$K$52)-$K$50 ->  | AM42: =-$K$50 -> -1300000 | AN42: =$AC$47-$K$51 -> 0 | AO42: 0 | AP42: =$AC$47-$K$51+$K$52 -> 0
A43: Average Annual Benefits | AK43: 5 Years | AL43: =NPV($Z$51,AN43:BG43,$K$52)-$K$50 ->  | AM43: -1300000 | AN43: 0 | AO43: 0 | AP43: =$AC$47-$K$51 -> 0 | AQ43: 0 | AR43: =$AC$47-$K$51+$K$52 -> 0
A44: Annual PDO Benefits = Estimated PDO Crash Reduction * Avg PDO Cost | O44: Select Facility Type Below: | U44: = | V44: =V37 -> 0 | X44: * | Y44: =IF(O45="Rural State Highways",AL26,IF(O45="Counties and Unincorporated Villages",AL27,AL28)) -> 8576 | AB44: = | AC44: =V44*Y44 -> 0 | AK44: 10 Years | AL44: =NPV(Z51,AN44:AW44,K52)-K50 ->  | AM44: -1300000 | AN44: 0 | AO44: 0 | AP44: 0 | AQ44: 0 | AR44: =$AC$47-$K$51 -> 0 | AS44: 0 | AT44: 0 | AU44: 0 | AV44: 0 | AW44: =$AC$47-$K$51+$K$52 -> 0
A45: Annual INJ.-FAT. Benefits = Estimated INJ.-FAT. Crash Reduction * Avg INJ.-FAT. Cost | O45: Rural State Highways | U45: = | V45: =AF37 -> 0 | X45: * | Y45: =IF(O45="Rural State Highways",AM26,IF(O45="Counties and Unincorporated Villages",AM27,AM28)) -> 78201 | AB45: = | AC45: =V45*Y45 -> 0 | AK45: 15 Years | AL45: =NPV(Z51,AN45:BB45,K52)-K50 ->  | AM45: -1300000 | AN45: 0 | AO45: 0 | AP45: 0 | AQ45: 0 | AR45: 0 | AS45: 0 | AT45: 0 | AU45: 0 | AV45: 0 | AW45: =$AC$47-$K$51 -> 0 | AX45: 0 | AY45: 0 | AZ45: 0 | BA45: 0 | BB45: =$AC$47-$K$51+$K$52 -> 0
A46: Total Benefits | AB46: = | AC46: =SUM(AC44:AE45) -> 0 | AK46: 20 Years | AL46: =NPV($Z$51,AN46:BG46,$K$52)-$K$50 ->  | AM46: -1300000 | AN46: 0 | AO46: 0 | AP46: 0 | AQ46: 0 | AR46: 0 | AS46: 0 | AT46: 0 | AU46: 0 | AV46: 0 | AW46: 0 | AX46: 0 | AY46: 0 | AZ46: 0 | BA46: 0 | BB46: =$AC$47-$K$51 -> 0 | BC46: 0 | BD46: 0 | BE46: 0 | BF46: 0 | BG46: =$AC$47-$K$51+$K$52 -> 0
A47: AverageAnnual Benefits = Total Benefits * ADT Factor | U47: = | V47: =AA41 -> 1.046628088 | X47: * | Y47: =AC46 -> 0 | AB47: = | AC47: =Y47*V47 -> 0 | AK47: 25 Years | AL47: =NPV(Z51,AN47:BL47,K52)-K50 ->  | AM47: -1300000 | AN47: 0 | AO47: 0 | AP47: 0 | AQ47: 0 | AR47: 0 | AS47: 0 | AT47: 0 | AU47: 0 | AV47: 0 | AW47: 0 | AX47: 0 | AY47: 0 | AZ47: 0 | BA47: 0 | BB47: 0 | BC47: 0 | BD47: 0 | BE47: 0 | BF47: 0 | BG47: =$AC$47-$K$51 -> 0 | BH47: 0 | BI47: 0 | BJ47: 0 | BK47: 0 | BL47: =$AC$47-$K$51+$K$52 -> 0
AK48: 30 Years | AL48: =NPV(Z51,AN48:BQ48,K52)-K50 ->  | AM48: -1300000 | AN48: 0 | AO48: 0 | AP48: 0 | AQ48: 0 | AR48: 0 | AS48: 0 | AT48: 0 | AU48: 0 | AV48: 0 | AW48: 0 | AX48: 0 | AY48: 0 | AZ48: 0 | BA48: 0 | BB48: 0 | BC48: 0 | BD48: 0 | BE48: 0 | BF48: 0 | BG48: 0 | BH48: 0 | BI48: 0 | BJ48: 0 | BK48: 0 | BL48: =$AC$47-$K$51 -> 0 | BM48: =$AC$47-$K$51 -> 0 | BN48: =$AC$47-$K$51 -> 0 | BO48: =$AC$47-$K$51 -> 0 | BP48: =$AC$47-$K$51 -> 0 | BQ48: =$AC$47-$K$51+$K$52 -> 0
A49: Rate of Return
A50: Total Safety Project Cost (Design, Right-of-Way, and Construction) | K50: =R50+R51+R52 -> 1300000 | O50: Design (PE) | R50: =IF(R52<100000,0,R52*0.1) -> 100000
A51: Annual Maintenance and Energy Costs | K51: 0 | O51: Right-of-Way | R51: 200000 | V51: Rate of Return | Z51: =IF(F39=20,IRR(AM46:BG46,-0.2),IF(F39=10,IRR(AM44:AW44,-0.2),IF(F39=15,IRR(AM45:BB45,-0.2),IF(F39=25,IRR(AM47:BL47,-0.2),IF(F39=30,IRR(AM48:BQ48,-0.2),IF(F39=5,IRR(AM43:AR43,-0.2),IF(F39=3,IRR(AM42:AP42,-0.2),"Invalid Service Life"))))))) -> Invalid Service Life
A52: Salvage Value | K52: 0 | O52: Construction | R52: 1000000
A53: See Text Box Below for Additional Details on Project Costs for ODOT Safety Projects
V54: Please note: if the ROR value is displayed as #NUM! or #DIV/0!, the ROR is
V55: either an extremely large positive or negative value and cannot be calculated
V56: within a reasonable number of iterations.

Sheet Safety App
A6: Location | B6: Location Type | C6: Facility Type | D6: Begin Log | E6: End Log | F6: Length | G6: Fatal Crashes | H6: Injury Crashes | I6: PDO Crashes | J6: Total Crashes | K6: Fatalities | L6: Incapacitating Injuries | M6: # of Years | N6: ADT (Or Intersection Entering Volume) | O6: Truck ADT | P6: V/C
A7: ='Crash Data'!D12&"-"&'Crash Data'!D13&'Crash Data'!D14 -> - | C7: =G34 -> Rural Non-Freeway | D7: ='Crash Data'!D15 -> 0 | E7: ='Crash Data'!D16 -> 0 | F7: =IF(B7="Section",E7-D7,1) -> 1 | G7: =IF(ISERROR(VLOOKUP("FATAL CRASH",'Data Analysis'!$A$10:$B$12,2,FALSE)),VALUE(0),VLOOKUP("FATAL CRASH",'Data Analysis'!$A$10:$B$12,2,FALSE)) -> 0 | H7: =IF(ISERROR(VLOOKUP("INJURY CRASH",'Data Analysis'!$A$10:$B$12,2,FALSE)),VALUE(0),VLOOKUP("INJURY CRASH",'Data Analysis'!$A$10:$B$12,2,FALSE)) -> 7 | I7: =IF(ISERROR(VLOOKUP("PROPERTY DAMAGE CRASH",'Data Analysis'!$A$10:$B$12,2,FALSE)),VALUE(0),VLOOKUP("PROPERTY DAMAGE CRASH",'Data Analysis'!$A$10:$B$12,2,FALSE)) -> 14 | J7: =SUM(G7:I7) -> 21 | K7: =VLOOKUP("Grand Total",'Data Analysis'!$K$23:$M$39,2,FALSE) -> 0 | L7: =VLOOKUP("Grand Total",'Data Analysis'!$K$23:$M$39,3,FALSE) -> 0 | M7: 3
A9: Year | B9: 2012 | D9: Rate of Return: | E9: =IF('ROR Analysis'!Z51="Invalid Service Life","",IF(ISERROR('ROR Analysis'!Z51),VALUE(0),'ROR Analysis'!Z51)) ->  | K9: High Risk Rural Road Calculation: | L9: =IF(ISERROR(((K7+L7)*100000000)/(M7*365*F7*N7)),VALUE(0),((K7+L7)*100000000)/(M7*365*F7*N7)) -> 0
A10: SafetyAnalyst Rank | I10: (Fatalities & Incapacitating Injuries per 100 MVMT or Entering Vehicles)
A11: HRRR Rank
J12: Functional Class :
I13: (Must be Rural Major Collector, Minor Collector, or Rural Local Road for HRRR Funding)
J14: HRRR Eligible : | K14: =IF(K12=0,"",IF(L9>VLOOKUP(K12,$AK$36:$AL$38,2,FALSE),"Yes","No")) -> 
A19: Safety Project Scoring
A21: Crash Frequency (10) | C21: Crash Density (10) | E21: Crash Rate (10) | G21: RSI (15) | I21: EPDO Rate (5) | K21: % Trucks (5) | M21: Rate of Return (5) | O21: V/C Ratio (5)
A22: Value | B22: Score | C22: Value | D22: Score | E22: Value | F22: Score | G22: Value | H22: Score | I22: Value | J22: Score | K22: Value | L22: Score | M22: Value | N22: Score | O22: Value | P22: Score
A23: =IF(ISERROR(IF(B7="Intersection",J7,"")),VALUE(0),IF(B7="Intersection",J7,"")) ->  | B23: =IF(ISERROR(IF($B$7="Section","",VLOOKUP(A23,$Q$36:$R$46,2,TRUE))),VALUE(0),IF($B$7="Section","",VLOOKUP(A23,$Q$36:$R$46,2,TRUE))) -> 0 | C23: =IF(ISERROR(IF(B7="Section",J7/F7,"")),VALUE(0),IF(B7="Section",J7/F7,"")) ->  | D23: =IF(ISERROR(IF($B$7="Intersection","",VLOOKUP(C23,$S$36:$T$46,2,TRUE))),VALUE(0),IF($B$7="Intersection","",VLOOKUP(C23,$S$36:$T$46,2,TRUE))) -> 0 | E23: =IF(ISERROR((J7*1000000)/(M7*365*F7*N7)),VALUE(0),(J7*1000000)/(M7*365*F7*N7)) -> 0 | F23: =IF(ISERROR(VLOOKUP(E23,$U$36:$V$46,2,TRUE)),VALUE(0),(VLOOKUP(E23,$U$36:$V$46,2,TRUE))) -> 0 | G23: =IF(ISERROR(G32),VALUE(0),G32) -> 39879.37431 | H23: =IF(ISERROR(VLOOKUP(G23,$W$36:$X$51,2,TRUE)),VALUE(0),VLOOKUP(G23,$W$36:$X$51,2,TRUE)) -> 15 | I23: =IF(ISERROR(((AI36*G7+AI37*H7+AI38*I7)*1000000)/(N7*M7*365*F7)),VALUE(0),((AI36*G7+AI37*H7+AI38*I7)*1000000)/(N7*M7*365*F7)) -> 0 | J23: =IF(ISERROR(VLOOKUP(I23,$Y$36:$Z$51,2,TRUE)),VALUE(0),VLOOKUP(I23,$Y$36:$Z$51,2,TRUE)) -> 0 | K23: =IF(ISERROR(O7/N7),VALUE(0),O7/N7) -> 0 | L23: =IF(ISERROR(VLOOKUP(K23,$AA$36:$AB$51,2,TRUE)),VALUE(0),VLOOKUP(K23,$AA$36:$AB$51,2,TRUE)) -> 0 | M23: =IF(ISERROR(E9),VALUE(0),E9) ->  | N23: =IF(ISERROR(VLOOKUP(M23,$AC$36:$AD$51,2,TRUE)),VALUE(0),VLOOKUP(M23,$AC$36:$AD$51,2,TRUE)) -> 0 | O23: =IF(ISERROR(P7),VALUE(0),P7) -> 0 | P23: =IF(ISERROR(VLOOKUP(O23,$AE$36:$AF$51,2,TRUE)),VALUE(0),VLOOKUP(O23,$AE$36:$AF$51,2,TRUE)) -> 0
A25: Total Score = | B25: =IF(B7="Section",D23+F23+H23+J23+L23+N23+P23,IF(B7="Intersection",B23+F23+H23+J23+L23+N23+P23,"")) -> 
F32: RSI Value = | G32: ='Severity Calc Sheet'!C3 -> 39879.37431
G34: ='Severity Calc Sheet'!C1 -> Rural Non-Freeway
Q35: Crash Frequency | R35: Points | S35: Crash Density | T35: Points | U35: Crash Rate | V35: Points | W35: RSI | X35: Points | Y35: EPDO Rate | Z35: Points | AA35: % Trucks | AB35: Points | AC35: Rate of Return | AD35: Points | AE35: V/C | AF35: Points | AH35: 2012 EPDO Factors | AL35: 2011 HRRR Local Values
Q36: 0 | R36: 0 | S36: 0 | T36: 0 | U36: 0 | V36: 0 | W36: 0 | X36: 0 | Y36: 0 | Z36: 0 | AA36: 0 | AB36: 0 | AC36: 0 | AD36: 0 | AE36: 0 | AF36: 0 | AG36: Rural Non-Freeway | AH36: Fatal Crash | AI36: 194.63 | AJ36: Section | AK36: Rural Major Collector | AL36: 10.44
Q37: 10 | R37: 1 | S37: 10 | T37: 1 | U37: 1 | V37: 1 | W37: 21000 | X37: 1 | Y37: 5 | Z37: 1 | AA37: 0.05 | AB37: 1 | AC37: 0.05 | AD37: 1 | AE37: 0.6 | AF37: 1 | AG37: Urban Non-Freeway | AH37: Injury Crash | AI37: 6.58 | AJ37: Intersection | AK37: Rural Minor Collector | AL37: 12.65
Q38: 15 | R38: 2 | S38: 20 | T38: 2 | U38: 1.5 | V38: 2 | W38: 22000 | X38: 2 | Y38: 10 | Z38: 2 | AA38: 0.1 | AB38: 2 | AC38: 0.1 | AD38: 2 | AE38: 0.7 | AF38: 2 | AG38: Freeway | AH38: PDO Crash | AI38: 1 | AK38: Rural Local Road | AL38: 4.59
Q39: 20 | R39: 3 | S39: 30 | T39: 3 | U39: 2 | V39: 3 | W39: 23000 | X39: 3 | Y39: 20 | Z39: 3 | AA39: 0.15 | AB39: 3 | AC39: 0.15 | AD39: 3 | AE39: 0.8 | AF39: 3
Q40: 25 | R40: 4 | S40: 40 | T40: 4 | U40: 2.5 | V40: 4 | W40: 24000 | X40: 4 | Y40: 30 | Z40: 4 | AA40: 0.2 | AB40: 4 | AC40: 0.2 | AD40: 4 | AE40: 0.9 | AF40: 4
Q41: 30 | R41: 5 | S41: 50 | T41: 5 | U41: 3 | V41: 5 | W41: 25000 | X41: 5 | Y41: 40 | Z41: 5 | AA41: 0.25 | AB41: 5 | AC41: 0.25 | AD41: 5 | AE41: 1 | AF41: 5
Q42: 35 | R42: 6 | S42: 60 | T42: 6 | U42: 3.5 | V42: 6 | W42: 26000 | X42: 6
Q43: 40 | R43: 7 | S43: 70 | T43: 7 | U43: 4 | V43: 7 | W43: 27000 | X43: 7
Q44: 45 | R44: 8 | S44: 80 | T44: 8 | U44: 4.5 | V44: 8 | W44: 28000 | X44: 8
Q45: 50 | R45: 9 | S45: 90 | T45: 9 | U45: 5 | V45: 9 | W45: 29000 | X45: 9
Q46: 55 | R46: 10 | S46: 100 | T46: 10 | U46: 5.5 | V46: 10 | W46: 30000 | X46: 10
W47: 31000 | X47: 11
W48: 32000 | X48: 12
W49: 33000 | X49: 13
W50: 34000 | X50: 14
W51: 35000 | X51: 15

Sheet CRF Table_Rev
A1: Estimates of Countermeasure Effectiveness Reduction (CRF) Factors
O2: Property Damage Only Crashes | AB2: Injury / Fatal Crashes
A5: CMF ID | B5: Study Title | C5: Countermeasure Category | D5: Countermeasure | E5: Service Life | F5: Intersection Related (Y/N) | G5: Wet Pavement Related | H5: Night Related | I5: Ran off Road | J5: Publication Year | K5: Star Quality Rating | L5: All | M5: PDO | N5: INJ/FAT | O5: Night | P5: WET | Q5: RAN OFF RD | R5: LEFT | S5: RIGHT | T5: ANGLE | U5: REAR END | V5: HEAD ON | W5: SS PASS | X5: FIXED OBJ | Y5: PEDESTRIAN | Z5: OTHER | AA5: =D5 -> Countermeasure | AB5: Night | AC5: WET | AD5: RAN OFF RD | AE5: LEFT | AF5: RIGHT | AG5: ANGLE | AH5: REAR END | AI5: HEAD ON | AJ5: SS PASS | AK5: FIXED OBJ | AL5: PEDESTRIAN | AM5: OTHER
A6: 87 | B6: Handbook of Road Safety Measures | C6: Roadway delineation | D6: Add centerlines on roadway segments (2 lane roadway) | E6: 5 | F6: No | J6: 2004 | K6: 3 | M6: -0.01 | N6: 0.01 | R6: =$M6 -> -0.01 | S6: -0.01 | T6: -0.01 | U6: -0.01 | V6: -0.01 | W6: -0.01 | X6: -0.01 | Y6: -0.01 | Z6: -0.01 | AA6: Add centerlines on roadway segments (2 lane roadway) | AE6: =$N6 -> 0.01 | AF6: 0.01 | AG6: 0.01 | AH6: 0.01 | AI6: 0.01 | AJ6: 0.01 | AK6: 0.01 | AL6: 0.01 | AM6: 0.01
A7: 272 | B7: Safety Effectiveness of Intersection Left- and Right-Turn Lanes | C7: Intersection geometry | D7: Add left-turn lanes to major road approaches at intersections - Rural | E7: 20 | F7: Yes | J7: 2002 | K7: 5 | N7: 0.58 | R7: =$L7 -> 0 | S7: 0 | T7: 0 | U7: 0 | V7: 0 | W7: 0 | X7: 0 | Y7: 0 | Z7: 0 | AA7: Add left-turn lanes to major road approaches at intersections - Rural | AE7: 0.58 | AF7: 0.58 | AG7: 0.58 | AH7: 0.58 | AI7: 0.58 | AJ7: 0.58 | AK7: 0.58 | AL7: 0.58 | AM7: 0.58
A8: 269 | B8: Safety Effectiveness of Intersection Left- and Right-Turn Lanes | C8: Intersection geometry | D8: Add left-turn lanes to major road approaches at intersections - Urban | E8: 20 | F8: Yes | J8: 2002 | K8: 5 | L8: 0.47 | N8: 0.17 | R8: 0.47 | S8: 0.47 | T8: 0.47 | U8: 0.47 | V8: 0.47 | W8: 0.47 | X8: 0.47 | Y8: 0.47 | Z8: 0.47 | AA8: Add left-turn lanes to major road approaches at intersections - Urban | AE8: 0.17 | AF8: 0.17 | AG8: 0.17 | AH8: 0.17 | AI8: 0.17 | AJ8: 0.17 | AK8: 0.17 | AL8: 0.17 | AM8: 0.17
A9: 40 | B9: Handbook of Road Safety Measures | C9: Roadside | D9: Change barrier along embankment to less rigid type | E9: 20 | F9: No | I9: Yes | J9: 2004 | K9: 3 | AA9: Change barrier along embankment to less rigid type | AD9: 0.32 | AK9: 0.32
A10: 333 | B10: Accident Modification Factors for Traffic Engineering and ITS Improvements | C10: Intersection traffic control | D10: Change from permitted or permitted-protected to protected - Urban | E10: 5 | F10: Yes | I10: Yes | J10: 2008 | K10: 5 | L10: 0.01 | Q10: =$L10 -> 0.01 | R10: =$L10 -> 0.01 | S10: =$L10 -> 0.01 | T10: 0.99 | U10: =$L10 -> 0.01 | V10: 0.01 | W10: 0.01 | X10: 0.01 | Y10: 0.01 | Z10: 0.01 | AA10: Change from permitted or permitted-protected to protected - Urban | AE10: =$L10 -> 0.01 | AF10: =$L10 -> 0.01 | AG10: 0.99 | AH10: =$L10 -> 0.01 | AI10: 0.01 | AJ10: 0.01 | AK10: 0.01 | AL10: 0.01 | AM10: 0.01
A11: 209 | B11: Observational Before-After Study of the Safety Effect of U.S. Roundabout Conversions Using the Empirical Bayes Method | C11: Intersection traffic control | D11: Conversion of signalized intersection into single- or multi-lane roundabout - Urban | E11: 20 | F11: Yes | J11: 2001 | K11: 3 | L11: 0.35 | N11: 0.74 | R11: =$L11 -> 0.35 | S11: 0.35 | T11: 0.35 | U11: 0.35 | V11: 0.35 | W11: 0.35 | X11: 0.35 | Y11: 0.35 | Z11: 0.35 | AA11: Conversion of signalized intersection into single- or multi-lane roundabout - Urban | AE11: =$N11 -> 0.74 | AF11: 0.74 | AG11: 0.74 | AH11: 0.74 | AI11: 0.74 | AJ11: 0.74 | AK11: 0.74 | AL11: 0.74 | AM11: 0.74
A12: 208 | B12: Observational Before-After Study of the Safety Effect of U.S. Roundabout Conversions Using the Empirical Bayes Method | C12: Intersection traffic control | D12: Conversion of stop-controlled intersection into multi-lane roundabout - Urban | E12: 20 | F12: Yes | J12: 2001 | K12: 3 | L12: 0.05 | R12: 0.05 | S12: 0.05 | T12: 0.05 | U12: 0.05 | V12: 0.05 | W12: 0.05 | X12: 0.05 | Y12: 0.05 | Z12: 0.05 | AA12: Conversion of stop-controlled intersection into multi-lane roundabout - Urban | AE12: =$L12 -> 0.05 | AF12: 0.05 | AG12: 0.05 | AH12: 0.05 | AI12: 0.05 | AJ12: 0.05 | AK12: 0.05 | AL12: 0.05 | AM12: 0.05
A13: 459 | B13: Revision of the Hand Book of Road Safety Measures | C13: Interchange design | D13: Convert at-grade intersection to grade-separated interchange | E13: 30 | F13: Yes | J13: 2007 | K13: 4 | L13: 0.42 | M13: 0.36 | N13: 0.57 | R13: =$M13 -> 0.36 | S13: 0.36 | T13: 0.36 | U13: 0.36 | V13: 0.36 | W13: 0.36 | X13: 0.36 | Y13: 0.36 | Z13: 0.36 | AA13: Convert at-grade intersection to grade-separated interchange | AE13: =$N13 -> 0.57 | AF13: 0.57 | AG13: 0.57 | AH13: 0.57 | AI13: 0.57 | AJ13: 0.57 | AK13: 0.57 | AL13: 0.57 | AM13: 0.57
A14: 325 | B14: Accident Modification Factors for Traffic Engineering and ITS Improvements | C14: Intersection traffic control | D14: Convert stop-control to signal | E14: 10 | F14: Yes | I14: Yes | J14: 2008 | K14: 5 | L14: 0.44 | Q14: =$L14 -> 0.44 | R14: =$L14 -> 0.44 | S14: =$L14 -> 0.44 | T14: 0.77 | U14: -0.58 | V14: =$L14 -> 0.44 | W14: 0.44 | X14: 0.44 | Y14: 0.44 | Z14: =$L14 -> 0.44 | AA14: Convert stop-control to signal | AE14: =$L14 -> 0.44 | AF14: =$L14 -> 0.44 | AG14: 0.77 | AH14: -0.58 | AI14: =$L14 -> 0.44 | AJ14: =$L14 -> 0.44 | AK14: =$L14 -> 0.44 | AL14: =$L14 -> 0.44 | AM14: =$L14 -> 0.44
A15: 227 | B15: NCHRP Report 572: Applying Roundabouts in the United States | C15: Intersection traffic control | D15: Convert two-way stop-controlled intersection to roundabout | E15: 20 | F15: Yes | J15: 2007 | K15: 5 | L15: 0.44 | N15: 0.82 | R15: =$L15 -> 0.44 | S15: 0.44 | T15: 0.44 | U15: 0.44 | V15: 0.44 | W15: 0.44 | X15: 0.44 | Y15: =$L15 -> 0.44 | Z15: 0.44 | AA15: Convert two-way stop-controlled intersection to roundabout | AE15: =$N15 -> 0.82 | AF15: 0.82 | AG15: 0.82 | AH15: 0.82 | AI15: 0.82 | AJ15: 0.82 | AK15: 0.82 | AL15: 0.82 | AM15: 0.82
A16: 229 | B16: NCHRP Report 572: Applying Roundabouts in the United States | C16: Intersection traffic control | D16: Convert two-way stop-controlled intersection to roundabout - Rural | E16: 20 | F16: Yes | J16: 2007 | K16: 5 | L16: 0.71 | N16: 0.87 | R16: 0.71 | S16: 0.71 | T16: 0.71 | U16: 0.71 | V16: 0.71 | W16: 0.71 | X16: 0.71 | Y16: =$L16 -> 0.71 | Z16: 0.71 | AA16: Convert two-way stop-controlled intersection to roundabout - Rural | AE16: 0.87 | AF16: 0.87 | AG16: 0.87 | AH16: 0.87 | AI16: 0.87 | AJ16: 0.87 | AK16: 0.87 | AL16: 0.87 | AM16: 0.87
A17: 315 | B17: Prediction of the Expected Safety Performance of Rural Two-Lane Highways | C17: Intersection traffic control | D17: Convert two-way to all-way stop control | E17: 10 | F17: Yes | I17: Yes | J17: 1986 | K17: 5 | L17: 0.48 | N17: 0.77 | Q17: =$L17 -> 0.48 | R17: =$L17 -> 0.48 | S17: =$L17 -> 0.48 | T17: 0.75 | U17: 0.18 | V17: 0.48 | W17: 0.48 | X17: 0.48 | Y17: 0.43 | Z17: 0.48 | AA17: Convert two-way to all-way stop control | AE17: =$N17 -> 0.77 | AF17: =$N17 -> 0.77 | AG17: 0.75 | AH17: 0.18 | AI17: =$N17 -> 0.77 | AJ17: =$N17 -> 0.77 | AK17: =$N17 -> 0.77 | AL17: 0.43 | AM17: =$N17 -> 0.77
A18: 2841 | B18: Comparison of empirical Bayes and full Bayes approaches for beforeafter road safety evaluations | C18: Roadway | D18: Converting four-lane roadways to three-lane roadways with center turn lane (road diet) - Suburban | E18: 5 | J18: 2010 | K18: 4 | L18: 0.53 | R18: =$L18 -> 0.53 | S18: 0.53 | T18: 0.53 | U18: 0.53 | V18: 0.53 | W18: 0.53 | X18: 0.53 | Y18: =$L18 -> 0.53 | Z18: 0.53 | AA18: Converting four-lane roadways to three-lane roadways with center turn lane (road diet) - Suburban | AE18: =$L18 -> 0.53 | AF18: 0.53 | AG18: 0.53 | AH18: 0.53 | AI18: 0.53 | AJ18: 0.53 | AK18: 0.53 | AL18: 0.53 | AM18: 0.53
A19: 473 | B19: Revision of the Hand Book of Road Safety Measures | C19: Interchange design | D19: Design diamond, trumpet or cloverleaf interchange with crossroad above freeway | E19: 30 | F19: Yes | J19: 2007 | K19: 3 | L19: 0.04 | R19: 0.04 | S19: 0.04 | T19: 0.04 | U19: 0.04 | V19: 0.04 | W19: 0.04 | X19: 0.04 | Y19: 0.04 | Z19: 0.04 | AA19: Design diamond, trumpet or cloverleaf interchange with crossroad above freeway | AE19: 0.04 | AF19: 0.04 | AG19: 0.04 | AH19: 0.04 | AI19: 0.04 | AJ19: 0.04 | AK19: 0.04 | AL19: 0.04 | AM19: 0.04
A20: 474 | B20: Handbook of Road Safety Measures | C20: Interchange design | D20: Extend acceleration lane by approx. 98 ft (30 m) | E20: 20 | J20: 2004 | K20: 5 | L20: 0.11 | R20: 0.11 | S20: 0.11 | T20: 0.11 | U20: 0.11 | V20: 0.11 | W20: 0.11 | X20: 0.11 | Y20: 0.11 | Z20: 0.11 | AA20: Extend acceleration lane by approx. 98 ft (30 m) | AE20: 0.11 | AF20: 0.11 | AG20: 0.11 | AH20: 0.11 | AI20: 0.11 | AJ20: 0.11 | AK20: 0.11 | AL20: 0.11 | AM20: 0.11
A21: 475 | B21: Handbook of Road Safety Measures | C21: Interchange design | D21: Extend deceleration lane by approx. 98 ft (30 m) | E21: 20 | J21: 2004 | K21: 3 | L21: 0.07 | R21: 0.07 | S21: 0.07 | T21: 0.07 | U21: 0.07 | V21: 0.07 | W21: 0.07 | X21: 0.07 | Y21: 0.07 | Z21: 0.07 | AA21: Extend deceleration lane by approx. 98 ft (30 m) | AE21: 0.07 | AF21: 0.07 | AG21: 0.07 | AH21: 0.07 | AI21: 0.07 | AJ21: 0.07 | AK21: 0.07 | AL21: 0.07 | AM21: 0.07
A22: 446 | B22: Safety Evaluation of Flashing Beacons at Stop Controlled Intersections | C22: Intersection traffic control | D22: Flashing beacons at four leg stop controlled intersections on two lane roads; Standard and actuated beacons | E22: 10 | F22: Yes | J22: 2008 | K22: 3 | L22: 0.05 | N22: 0.1 | R22: =$L22 -> 0.05 | S22: =$L22 -> 0.05 | T22: 0.58 | U22: 0.08 | V22: 0.05 | W22: 0.05 | X22: 0.05 | Y22: 0.05 | Z22: 0.05 | AA22: Flashing beacons at four leg stop controlled intersections on two lane roads; Standard and actuated beacons | AE22: =$L22 -> 0.05 | AF22: =$L22 -> 0.05 | AG22: 0.13 | AH22: 0.08 | AI22: =$L22 -> 0.05 | AJ22: =$L22 -> 0.05 | AK22: =$L22 -> 0.05 | AL22: =$L22 -> 0.05 | AM22: =$L22 -> 0.05
A23: 721 | B23: Development of Crash Reduction Factors | C23: Alignment | D23: Flatten crest vertical curve | E23: 30 | J23: 2005 | K23: 3 | L23: 0.2 | N23: 0.51 | R23: =$L23 -> 0.2 | S23: =$L23 -> 0.2 | T23: =$L23 -> 0.2 | U23: =$L23 -> 0.2 | V23: 0.2 | W23: 0.2 | X23: 0.2 | Y23: 0.2 | Z23: 0.2 | AA23: Flatten crest vertical curve | AE23: =$N23 -> 0.51 | AF23: 0.51 | AG23: 0.51 | AH23: 0.51 | AI23: 0.51 | AJ23: 0.51 | AK23: 0.51 | AL23: 0.51 | AM23: 0.51
A24: 307 | B24: Handbook of Road Safety Measures | C24: Intersection geometry | D24: Increase triangle sight distance | E24: 10 | F24: Yes | J24: 2004 | K24: 3 | M24: 0.11 | N24: 0.48 | R24: =$M24 -> 0.11 | S24: 0.11 | T24: 0.11 | U24: 0.11 | V24: 0.11 | W24: 0.11 | X24: 0.11 | Y24: 0.11 | Z24: 0.11 | AA24: Increase triangle sight distance | AE24: 0.48 | AF24: 0.48 | AG24: 0.48 | AH24: 0.48 | AI24: 0.48 | AJ24: 0.48 | AK24: 0.48 | AL24: 0.48 | AM24: 0.48
A25: 194 | B25: Crash Reduction Factors for Traffic Engineering and ITS Improvements | C25: Roadway | D25: Increased pavement friction | E25: 10 | G25: Yes | J25: 2008 | K25: 5 | L25: 0.24 | P25: 0.57 | R25: =$L25 -> 0.24 | S25: =$L25 -> 0.24 | T25: =$L25 -> 0.24 | U25: 0.17 | V25: =$L25 -> 0.24 | W25: =$L25 -> 0.24 | X25: =$L25 -> 0.24 | Y25: =$L25 -> 0.24 | Z25: =$L25 -> 0.24 | AA25: Increased pavement friction | AC25: 0.57 | AE25: =$L25 -> 0.24 | AF25: =$L25 -> 0.24 | AG25: =$L25 -> 0.24 | AH25: 0.17 | AI25: =$L25 -> 0.24 | AJ25: =$L25 -> 0.24 | AK25: =$L25 -> 0.24 | AL25: =$L25 -> 0.24 | AM25: =$L25 -> 0.24
A26: 102 | B26: Handbook of Road Safety Measures | C26: Roadway delineation | D26: Install a combination of edgelines, centerlines and delineators on roadway segments | E26: 5 | F26: No | J26: 2004 | K26: 4 | N26: 0.45 | AA26: Install a combination of edgelines, centerlines and delineators on roadway segments | AE26: =$N26 -> 0.45 | AF26: 0.45 | AG26: 0.45 | AH26: 0.45 | AI26: 0.45 | AJ26: 0.45 | AK26: 0.45 | AL26: 0.45 | AM26: 0.45
A27: 1965 | B27: Safety Impact of Cable Barriers on Rural Interstates | C27: Roadway delineation | D27: Install cable median barrier (low or high tension) - Rural | E27: 20 | F27: No | I27: Yes | J27: 2009 | K27: 5 | Q27: 0.25 | U27: 0.14 | V27: 0.94 | W27: 0.14 | AA27: Install cable median barrier (low or high tension) - Rural | AH27: 0.14 | AI27: 0.94 | AJ27: 0.14 | AK27: 0.25 | AM27: 0.25
A28: 3341 | B28: NCHRP Report 641: Guidance for the Design and Application of Shoulder and Centerline Rumble Strips | C28: Roadway | D28: Install centerline rumble strips - Rural | E28: 20 | F28: No | J28: 2009 | K28: 5 | L28: 0.11 | N28: 0.09 | R28: =$L28 -> 0.11 | S28: 0.11 | T28: 0.11 | U28: 0.11 | V28: 0.49 | W28: 0.49 | X28: =$L28 -> 0.11 | Y28: 0.11 | Z28: 0.11 | AA28: Install centerline rumble strips - Rural | AE28: =$N28 -> 0.09 | AF28: 0.09 | AG28: 0.09 | AH28: 0.09 | AI28: 0.49 | AJ28: 0.49 | AK28: =$N28 -> 0.09 | AL28: 0.09 | AM28: 0.09
A29: 3341 | B29: NCHRP Report 641: Guidance for the Design and Application of Shoulder and Centerline Rumble Strips | C29: Roadway | D29: Install centerline rumble strips - Urban | E29: 20 | F29: No | J29: 2009 | K29: 5 | L29: -0.02 | N29: 0.09 | R29: -0.02 | S29: -0.02 | T29: -0.02 | U29: -0.02 | V29: 0.4 | W29: 0.4 | X29: -0.02 | Y29: -0.02 | Z29: -0.02 | AA29: Install centerline rumble strips - Urban | AE29: 0.09 | AF29: 0.09 | AG29: 0.09 | AH29: 0.09 | AI29: 0.4 | AJ29: 0.4 | AK29: 0.09 | AL29: 0.09 | AM29: 0.09
A30: 78 | B30: Handbook of Road Safety Measures | C30: Advanced technology and ITS | D30: Install changeable speed warning signs for individual drivers | E30: 5 | F30: Yes | J30: 2004 | K30: 4 | L30: 0.46 | R30: 0.46 | S30: 0.46 | T30: 0.46 | U30: 0.46 | V30: =$L30 -> 0.46 | W30: =$L30 -> 0.46 | X30: 0.46 | Y30: 0.46 | Z30: 0.46 | AA30: Install changeable speed warning signs for individual drivers | AE30: =$L30 -> 0.46 | AF30: 0.46 | AG30: 0.46 | AH30: 0.46 | AI30: 0.46 | AJ30: 0.46 | AK30: 0.46 | AL30: 0.46 | AM30: 0.46
A31: 2436 | B31: Safety Evaluation of Improved Curve Delineation | C31: Roadway signs and traffic control | D31: Install chevron signs on horizontal curves - Rural | E31: 5 | F31: No | H31: Yes | I31: Yes | J31: 2009 | K31: 4 | L31: 0.04 | N31: 0.16 | O31: 0.25 | Q31: 0.06 | R31: 0.04 | S31: 0.04 | T31: 0.04 | U31: 0.04 | V31: 0.06 | W31: 0.06 | X31: 0.06 | Y31: =$L31 -> 0.04 | Z31: =$L31 -> 0.04 | AA31: Install chevron signs on horizontal curves - Rural | AB31: 0.25 | AE31: =$N31 -> 0.16 | AF31: =$N31 -> 0.16 | AG31: =$N31 -> 0.16 | AH31: =$N31 -> 0.16 | AI31: 0.06 | AJ31: 0.06 | AK31: 0.06 | AL31: =$N31 -> 0.16 | AM31: 0.06
A32: 55 | B32: Handbook of Road Safety Measures | C32: Roadside | D32: Install crash cushions at permanent objects | E32: 20 | F32: No | J32: 2004 | K32: 3 | X32: 0.46 | AA32: Install crash cushions at permanent objects | AK32: 0.69
A33: 3388 | B33: NCHRP Report 641: Guidance for the Design and Application of Shoulder and Centerline Rumble Strips | C33: Roadway | D33: Install edgeline rumble strips - Undivided | E33: 20 | F33: No | J33: 2009 | K33: 4 | N33: 0.25 | AA33: Install edgeline rumble strips - Undivided | AE33: =$N33 -> 0.25 | AF33: 0.25 | AG33: 0.25 | AH33: 0.25 | AI33: 0.25 | AJ33: 0.25 | AK33: 0.25 | AL33: 0.25 | AM33: 0.25
A34: 974 | B34: Development of Crash Reduction Factors | C34: Roadside | D34: Install median barrier | E34: 20 | F34: No | J34: 2005 | K34: 3 | L34: 0.86 | N34: 0.88 | R34: =$L34 -> 0.86 | S34: 0.86 | T34: 0.86 | U34: 0.86 | V34: 0.86 | W34: 0.86 | X34: 0.86 | Y34: 0.86 | Z34: 0.86 | AA34: Install median barrier | AE34: 0.88 | AF34: 0.88 | AG34: 0.88 | AH34: 0.88 | AI34: 0.88 | AJ34: 0.88 | AK34: 0.88 | AL34: 0.88 | AM34: 0.88
A35: 42 | B35: Handbook of Road Safety Measures | C35: Roadside | D35: Install median guardrails on divided highways | E35: 20 | F35: No | J35: 2004 | K35: 4 | M35: -0.24 | N35: 0.3 | R35: =$M35 -> -0.24 | S35: -0.24 | T35: -0.24 | U35: -0.24 | V35: -0.24 | W35: -0.24 | X35: -0.24 | Y35: -0.24 | Z35: -0.24 | AA35: Install median guardrails on divided highways | AE35: 0.3 | AF35: 0.3 | AG35: 0.3 | AH35: 0.3 | AI35: 0.3 | AJ35: 0.3 | AK35: 0.3 | AL35: 0.3 | AM35: 0.3
A36: 2431 | B36: Safety Evaluation of Improved Curve Delineation | C36: Roadway signs and traffic control | D36: Install new fluorescent curve signs or upgrade existing curve signs to fluorescent sheeting - Rural | E36: 5 | F36: No | H36: Yes | I36: Yes | J36: 2009 | K36: 4 | L36: 0.18 | N36: 0.25 | O36: 0.35 | Q36: 0.34 | R36: =$L36 -> 0.18 | S36: 0.18 | T36: 0.18 | U36: 0.18 | V36: 0.34 | W36: 0.34 | X36: 0.34 | Y36: =$L36 -> 0.18 | Z36: 0.18 | AA36: Install new fluorescent curve signs or upgrade existing curve signs to fluorescent sheeting - Rural | AB36: 0.35 | AE36: =$N36 -> 0.25 | AF36: 0.25 | AG36: 0.25 | AH36: 0.25 | AI36: 0.34 | AJ36: 0.34 | AK36: 0.34 | AL36: =$N36 -> 0.25 | AM36: 0.34
A37: 3034 | B37: Analyzing Raised Median Safety Impacts Using Bayesian Methods | C37: Access management | D37: Install raised median | E37: 20 | J37: 2011 | K37: 4 | L37: 0.39 | N37: 0.44 | R37: 0.39 | S37: 0.39 | T37: 0.39 | U37: 0.39 | V37: =$L37 -> 0.39 | W37: 0.39 | X37: 0.39 | Y37: 0.39 | Z37: 0.39 | AA37: =D37 -> Install raised median | AE37: 0.44 | AF37: 0.44 | AG37: 0.44 | AH37: 0.44 | AI37: =$N37 -> 0.44 | AJ37: 0.44 | AK37: 0.44 | AL37: =$N37 -> 0.44 | AM37: =$N37 -> 0.44
A38: 2341 | B38: Safety Evaluation of Installing Center Two-Way Left-Turn Lanes on Two-Lane Roads | C38: Roadway | D38: Install TWLTL (two-way left turn lane) on two lane road | E38: 20 | J38: 2008 | K38: 5 | L38: 0.203 | N38: 0.261 | R38: =$L38 -> 0.203 | S38: 0.203 | T38: 0.203 | U38: 0.387 | V38: 0.203 | W38: 0.203 | X38: 0.203 | Y38: 0.203 | Z38: 0.203 | AA38: Install TWLTL (two-way left turn lane) on two lane road | AE38: =$N38 -> 0.261 | AF38: 0.261 | AG38: 0.261 | AH38: 0.387 | AI38: 0.261 | AJ38: 0.261 | AK38: 0.261 | AL38: =$N38 -> 0.261 | AM38: =$N38 -> 0.261
A39: 2341 | B39: Safety Evaluation of Installing Center Two-Way Left-Turn Lanes on Two-Lane Roads | C39: Roadway | D39: Install TWLTL (two-way left turn lane) on two lane road | E39: 20 | J39: 2008 | K39: 5 | L39: 0.203 | N39: 0.261 | R39: 0.203 | S39: 0.203 | T39: 0.203 | U39: 0.494 | V39: 0.203 | W39: 0.203 | X39: 0.203 | Y39: 0.203 | Z39: 0.203 | AA39: Install TWLTL (two-way left turn lane) on two lane road | AE39: 0.261 | AF39: 0.261 | AG39: 0.261 | AH39: 0.494 | AI39: 0.261 | AJ39: 0.261 | AK39: 0.261 | AL39: =$N39 -> 0.261 | AM39: =$N39 -> 0.261
A40: 2911 | B40: Safety Effectiveness of the HAWK Pedestrian Crossing Treatment | C40: Pedestrians and bicyclists | D40: Installation of a High intensity Activated crossWalK (HAWK) pedestrian-activated beacon at an intersection - Urban | E40: 10 | J40: 2010 | K40: 4 | L40: 0.29 | R40: 0.29 | S40: 0.29 | T40: 0.29 | U40: =$L40 -> 0.29 | V40: 0.29 | W40: 0.29 | X40: 0.29 | Y40: 0.29 | Z40: 0.29 | AA40: Installation of a High intensity Activated crossWalK (HAWK) pedestrian-activated beacon at an intersection - Urban | AE40: =$L40 -> 0.29 | AF40: 0.29 | AG40: 0.29 | AH40: 0.29 | AI40: 0.29 | AJ40: 0.29 | AK40: 0.29 | AL40: 0.29 | AM40: 0.29
A41: 3172 | B41: Hierarchical Bayesian Modeling for Before and After Studies | C41: Roadside | D41: Installation of cable barriers in freeway medians | E41: 20 | F41: No | J41: 2011 | K41: 3 | N41: 0.44 | AA41: Installation of cable barriers in freeway medians | AE41: =$N41 -> 0.44 | AF41: 0.44 | AG41: 0.44 | AH41: 0.44 | AI41: 0.44 | AJ41: 0.44 | AK41: 0.44 | AL41: 0.44 | AM41: 0.44
A42: 265 | B42: Safety Effectiveness of Intersection Left- and Right-Turn Lanes | C42: Intersection geometry | D42: Installation of left-turn lane on single major road approach - Rural | E42: 20 | F42: Yes | J42: 2002 | K42: 5 | L42: 0.28 | N42: 0.35 | R42: =$L42 -> 0.28 | S42: 0.28 | T42: 0.28 | U42: 0.28 | V42: 0.28 | W42: 0.28 | X42: 0.28 | Y42: 0.28 | Z42: 0.28 | AA42: Installation of left-turn lane on single major road approach - Rural | AE42: 0.35 | AF42: 0.35 | AG42: 0.35 | AH42: 0.35 | AI42: 0.35 | AJ42: 0.35 | AK42: 0.35 | AL42: 0.35 | AM42: 0.35
A43: 255 | B43: Safety Effectiveness of Intersection Left- and Right-Turn Lanes | C43: Intersection geometry | D43: Installation of left-turn lane on single major road approach - Urban | E43: 20 | F43: Yes | J43: 2002 | K43: 5 | L43: 0.27 | N43: 0.29 | R43: 0.27 | S43: 0.27 | T43: 0.27 | U43: 0.27 | V43: 0.27 | W43: 0.27 | X43: 0.27 | Y43: 0.27 | Z43: 0.27 | AA43: Installation of left-turn lane on single major road approach - Urban | AE43: 0.29 | AF43: 0.29 | AG43: 0.29 | AH43: 0.29 | AI43: 0.29 | AJ43: 0.29 | AK43: 0.29 | AL43: 0.29 | AM43: 0.29
A44: 290 | B44: Safety Effectiveness of Intersection Left- and Right-Turn Lanes | C44: Intersection geometry | D44: Installation of right-turn lane on both major road approaches - Signalized | E44: 20 | F44: Yes | J44: 2002 | K44: 5 | L44: 0.08 | R44: 0.08 | S44: 0.08 | T44: 0.08 | U44: 0.08 | V44: 0.08 | W44: 0.08 | X44: 0.08 | Y44: 0.08 | Z44: 0.08 | AA44: Installation of right-turn lane on both major road approaches - Signalized | AE44: =$L44 -> 0.08 | AF44: 0.08 | AG44: 0.08 | AH44: 0.08 | AI44: 0.08 | AJ44: 0.08 | AK44: 0.08 | AL44: 0.08 | AM44: 0.08
A45: 285 | B45: Safety Effectiveness of Intersection Left- and Right-Turn Lanes | C45: Intersection geometry | D45: Installation of right-turn lane on single major road approach - Stop Controlled | E45: 20 | F45: Yes | J45: 2002 | K45: 4 | L45: 0.14 | N45: 0.23 | R45: 0.14 | S45: 0.14 | T45: 0.14 | U45: 0.14 | V45: 0.14 | W45: 0.14 | X45: 0.14 | Y45: 0.14 | Z45: 0.14 | AA45: Installation of right-turn lane on single major road approach - Stop Controlled | AE45: =$N45 -> 0.23 | AF45: 0.23 | AG45: 0.23 | AH45: 0.23 | AI45: 0.23 | AJ45: 0.23 | AK45: 0.23 | AL45: 0.23 | AM45: 0.23
A46: 494 | B46: Handbook of Road Safety Measures | C46: Railroad grade crossings | D46: Installing gates at crossings with flashing lights and sound signals | E46: 20 | J46: 2004 | K46: 4 | L46: 0.45 | R46: 0.45 | S46: 0.45 | T46: 0.45 | U46: 0.45 | V46: 0.45 | W46: 0.45 | X46: 0.45 | Y46: 0.45 | Z46: 0.45 | AA46: Installing gates at crossings with flashing lights and sound signals | AE46: =$L46 -> 0.45 | AF46: 0.45 | AG46: 0.45 | AH46: 0.45 | AI46: 0.45 | AJ46: 0.45 | AK46: 0.45 | AL46: 0.45 | AM46: 0.45
A47: 493 | B47: Collision Frequency Analysis Using Tree-Based Stratification | C47: Railroad grade crossings | D47: Installing gates at crossings with signs | E47: 20 | J47: 2005 | K47: 5 | L47: 0.93 | R47: 0.93 | S47: 0.93 | T47: 0.93 | U47: 0.93 | V47: 0.93 | W47: 0.93 | X47: 0.93 | Y47: 0.93 | Z47: 0.93 | AA47: Installing gates at crossings with signs | AE47: 0.93 | AF47: 0.93 | AG47: 0.93 | AH47: 0.93 | AI47: 0.93 | AJ47: 0.93 | AK47: 0.93 | AL47: 0.93 | AM47: 0.93
A48: 583 | B48: Safety Evaluation of Installing Center Two-Way Left-Turn Lanes on Two-Lane Roads | C48: Roadway | D48: Introduce TWLTL (two-way left turn lanes) on rural two lane roads | E48: 20 | J48: 2008 | K48: 5 | L48: 0.36 | N48: 0.35 | R48: =$L48 -> 0.36 | S48: =$L48 -> 0.36 | T48: =$L48 -> 0.36 | U48: 0.47 | V48: =$L48 -> 0.36 | W48: =$L48 -> 0.36 | X48: =$L48 -> 0.36 | Y48: =$L48 -> 0.36 | Z48: =$L48 -> 0.36 | AA48: Introduce TWLTL (two-way left turn lanes) on rural two lane roads | AE48: =$N48 -> 0.35 | AF48: =$N48 -> 0.35 | AG48: =$N48 -> 0.35 | AH48: 0.47 | AI48: =$N48 -> 0.35 | AJ48: =$N48 -> 0.35 | AK48: =$N48 -> 0.35 | AL48: =$N48 -> 0.35 | AM48: =$N48 -> 0.35
A49: 276 | B49: Right-Angle Crash Occurance at Signalized Intersections | C49: Intersection geometry | D49: Introducing zero or positive offset left-turn lane on crossing roadway | E49: 20 | F49: Yes | J49: 2007 | K49: 3 | R49: 0.2 | T49: 0.26 | AA49: Introducing zero or positive offset left-turn lane on crossing roadway | AE49: 0.2 | AG49: 0.26
A50: 433 | B50: Handbook of Road Safety Measures | C50: Highway lighting | D50: Lighting in intersections | E50: 10 | F50: Yes | J50: 2004 | K50: 4 | M50: 0.31 | N50: 0.38 | R50: =$M50 -> 0.31 | S50: 0.31 | T50: 0.31 | U50: 0.31 | V50: 0.31 | W50: 0.31 | X50: 0.31 | Y50: 0.31 | Z50: 0.31 | AA50: Lighting in intersections | AE50: =$N50 -> 0.38 | AF50: 0.38 | AG50: 0.38 | AH50: 0.38 | AI50: 0.38 | AJ50: 0.38 | AK50: 0.38 | AL50: 0.42 | AM50: =$N50 -> 0.38
A51: 476 | B51: Revision of the Hand Book of Road Safety Measures | C51: Interchange design | D51: Modify two-lane to one-lane merge/ diverge area | E51: 20 | J51: 2007 | K51: 5 | L51: 0.32 | R51: =$L51 -> 0.32 | S51: 0.32 | T51: 0.32 | U51: 0.32 | V51: 0.32 | W51: 0.32 | X51: 0.32 | Y51: 0.32 | Z51: 0.32 | AA51: Modify two-lane to one-lane merge/ diverge area | AE51: =$L51 -> 0.32 | AF51: 0.32 | AG51: 0.32 | AH51: 0.32 | AI51: 0.32 | AJ51: 0.32 | AK51: 0.32 | AL51: 0.32 | AM51: 0.32
A52: 38 | B52: Handbook of Road Safety Measures | C52: Roadside | D52: New guardrail along embankment | E52: 20 | F52: No | I52: Yes | J52: 2004 | K52: 5 | Q52: 0.07 | AA52: New guardrail along embankment | AD52: 0.47 | AK52: 0.47
A53: 16 | B53: Paved Highway Shoulders and Accident Experience | C53: Shoulder treatments | D53: Pave a 3 to 4 ft sod shoulder | E53: 20 | J53: 2009 | K53: 3 | L53: 0.19 | M53: 0.22 | N53: 0.14 | R53: =$M53 -> 0.22 | S53: 0.22 | T53: 0.22 | U53: 0.22 | V53: 0.22 | W53: 0.22 | X53: 0.22 | Y53: 0.22 | Z53: 0.22 | AA53: Pave a 3 to 4 ft sod shoulder | AE53: =$N53 -> 0.14 | AF53: 0.14 | AG53: 0.14 | AH53: 0.14 | AI53: 0.14 | AJ53: 0.14 | AK53: 0.14 | AL53: 0.14 | AM53: 0.14
A54: 377 | B54: Handbook of Road Safety Measures | C54: Intersection traffic control | D54: Permit Right-Turn-On-Red | E54: 5 | F54: Yes | I54: Yes | J54: 2004 | K54: 5 | L54: -0.05 | Q54: =$L54 -> -0.05 | R54: =$L54 -> -0.05 | S54: =$L54 -> -0.05 | T54: -0.1 | U54: =$L54 -> -0.05 | V54: -0.05 | W54: -0.05 | X54: -0.05 | Y54: -0.05 | Z54: -0.05 | AA54: Permit Right-Turn-On-Red | AE54: =$L54 -> -0.05 | AF54: =$L54 -> -0.05 | AG54: -0.1 | AH54: =$L54 -> -0.05 | AI54: -0.05 | AJ54: -0.05 | AK54: -0.05 | AL54: -0.05 | AM54: -0.05
A55: 153 | B55: Handbook of Road Safety Measures | C55: On-street parking | D55: Prohibit on-street parking - Minor Arterial | E55: 10 | F55: No | J55: 2004 | K55: 5 | M55: 0.27 | N55: 0.2 | R55: =$M55 -> 0.27 | S55: 0.27 | T55: 0.27 | U55: 0.27 | V55: 0.27 | W55: 0.27 | X55: 0.27 | Y55: 0.27 | Z55: 0.27 | AA55: Prohibit on-street parking - Minor Arterial | AE55: =$N55 -> 0.2 | AF55: 0.2 | AG55: 0.2 | AH55: 0.2 | AI55: 0.2 | AJ55: 0.2 | AK55: 0.2 | AL55: 0.2 | AM55: 0.2
A56: 153 | B56: Handbook of Road Safety Measures | C56: On-street parking | D56: Prohibit on-street parking - Principal Arterial | E56: 10 | F56: No | J56: 2004 | K56: 4 | L56: 0.42 | M56: 0.48 | N56: 0.35 | R56: 0.48 | S56: 0.48 | T56: 0.48 | U56: 0.48 | V56: 0.48 | W56: 0.48 | X56: 0.48 | Y56: 0.48 | Z56: 0.48 | AA56: Prohibit on-street parking - Principal Arterial | AE56: 0.35 | AF56: 0.35 | AG56: 0.35 | AH56: 0.35 | AI56: 0.35 | AJ56: 0.35 | AK56: 0.35 | AL56: 0.35 | AM56: 0.35
A57: 24 | B57: Handbook of Road Safety Measures | C57: Access management | D57: Provide a median - Rural | E57: 20 | J57: 2004 | K57: 4 | M57: 0.18 | N57: 0.12 | R57: 0.18 | S57: 0.18 | T57: 0.18 | U57: 0.18 | V57: 0.18 | W57: 0.18 | X57: 0.18 | Y57: 0.18 | Z57: 0.18 | AA57: Provide a median - Rural | AE57: 0.12 | AF57: 0.12 | AG57: 0.12 | AH57: 0.12 | AI57: 0.12 | AJ57: 0.12 | AK57: 0.12 | AL57: 0.12 | AM57: 0.12
A58: 22 | B58: Handbook of Road Safety Measures | C58: Access management | D58: Provide a median - Urban | E58: 20 | J58: 2004 | K58: 4 | M58: -0.09 | N58: 0.39 | R58: -0.09 | S58: -0.09 | T58: -0.09 | U58: -0.09 | V58: -0.09 | W58: -0.09 | X58: -0.09 | Y58: -0.09 | Z58: -0.09 | AA58: Provide a median - Urban | AE58: 0.39 | AF58: 0.39 | AG58: 0.39 | AH58: 0.39 | AI58: 0.39 | AJ58: 0.39 | AK58: 0.39 | AL58: 0.39 | AM58: 0.39
A59: 192 | B59: Handbook of Road Safety Measures | C59: Highway lighting | D59: Provide highway lighting | E59: 10 | J59: 2004 | K59: 4 | M59: 0.18 | N59: 0.28 | R59: 0.18 | S59: 0.18 | T59: 0.18 | U59: 0.18 | V59: 0.18 | W59: 0.18 | X59: 0.18 | Y59: 0.18 | Z59: 0.18 | AA59: Provide highway lighting | AE59: 0.28 | AF59: 0.28 | AG59: 0.28 | AH59: 0.28 | AI59: 0.28 | AJ59: 0.28 | AK59: 0.28 | AL59: 0.28 | AM59: 0.28
A60: 73 | B60: Handbook of Road Safety Measures | C60: Roadway signs and traffic control | D60: Provide static combination horizontal alignment / advisory speed signs | E60: 5 | F60: No | J60: 2004 | K60: 3 | M60: 0.29 | N60: 0.13 | R60: 0.29 | S60: 0.29 | T60: 0.29 | U60: 0.29 | V60: 0.29 | W60: 0.29 | X60: 0.29 | Y60: 0.29 | Z60: 0.29 | AA60: Provide static combination horizontal alignment / advisory speed signs | AE60: 0.13 | AF60: 0.13 | AG60: 0.13 | AH60: 0.13 | AI60: 0.13 | AJ60: 0.13 | AK60: 0.13 | AL60: 0.13 | AM60: 0.13
A61: 329 | B61: Crash Reductions Related to Traffic Signal Removal in Philadelphia | C61: Intersection traffic control | D61: Remove an unwarranted signal (one-way streets) | E61: 5 | F61: Yes | J61: 1997 | K61: 4 | L61: 0.24 | R61: =$L61 -> 0.24 | S61: =$L61 -> 0.24 | T61: =$L61 -> 0.24 | U61: 0.29 | V61: =$L61 -> 0.24 | W61: 0.24 | X61: 0.24 | Y61: 0.18 | Z61: =$L61 -> 0.24 | AA61: Remove an unwarranted signal (one-way streets) | AE61: =$L61 -> 0.24 | AF61: =$L61 -> 0.24 | AG61: =$L61 -> 0.24 | AH61: 0.29 | AI61: =$L61 -> 0.24 | AJ61: 0.24 | AK61: 0.24 | AL61: 0.18 | AM61: =$L61 -> 0.24
A62: 2333 | B62: Evaluation of the Safety Effectiveness of Selected Treatments at Urban Signalized Intersections | C62: Intersection traffic control | D62: Replace 8-inch red signal heads with 12-inch | E62: 10 | F62: Yes | J62: 2008 | K62: 4 | L62: 0.03 | R62: =$L62 -> 0.03 | S62: =$L62 -> 0.03 | T62: 0.42 | U62: =$L62 -> 0.03 | V62: 0.03 | W62: 0.03 | X62: 0.03 | Y62: =$L62 -> 0.03 | Z62: =$L62 -> 0.03 | AA62: =D62 -> Replace 8-inch red signal heads with 12-inch | AE62: =$L62 -> 0.03 | AF62: =$L62 -> 0.03 | AG62: 0.42 | AH62: =$L62 -> 0.03 | AI62: 0.03 | AJ62: 0.03 | AK62: 0.03 | AL62: =$L62 -> 0.03 | AM62: =$L62 -> 0.03
A63: 388 | B63: Accident Modification Factors for Traffic Engineering and ITS Improvements | C63: Intersection traffic control | D63: Replace Night-Time Flash with Steady Operation | E63: 5 | F63: Yes | H63: Yes | J63: 2008 | K63: 3 | L63: 0.27 | N63: 0.23 | O63: 0.35 | R63: =$L63 -> 0.27 | S63: =$L63 -> 0.27 | T63: =$L63 -> 0.27 | U63: =$L63 -> 0.27 | V63: 0.27 | W63: 0.27 | X63: 0.27 | Y63: =$L63 -> 0.27 | Z63: =$L63 -> 0.27 | AA63: =D63 -> Replace Night-Time Flash with Steady Operation | AB63: 0.35 | AE63: =$N63 -> 0.23 | AF63: 0.23 | AG63: 0.23 | AH63: 0.23 | AI63: 0.23 | AJ63: 0.23 | AK63: 0.23 | AL63: 0.23 | AM63: 0.23
A64: 2514 | B64: Modeling and Evaluating the Safety Impacts of Access Management (AM) Features in the Las Vegas Valley | C64: Access management | D64: Replace TWLTL with raised median - Urban Only | E64: 20 | I64: Yes | J64: 2010 | K64: 3 | Q64: 0.33 | R64: 0.36 | T64: 0.36 | U64: 0.19 | V64: 0.47 | W64: 0.21 | X64: 0.33 | AA64: =D64 -> Replace TWLTL with raised median - Urban Only | AD64: 0.33 | AE64: 0.36 | AG64: 0.36 | AH64: 0.19 | AI64: 0.47 | AJ64: 0.21 | AK64: 0.21
A65: 2975 | B65: Safety Evaluation of Multilane Arterials in Florida | C65: Roadway | D65: Resurface pavement | E65: 20 | F65: No | J65: 2009 | K65: 4 | L65: -0.01 | N65: 0.05 | R65: =$L65 -> -0.01 | S65: =$L65 -> -0.01 | T65: =$L65 -> -0.01 | U65: 0.01 | V65: =$L65 -> -0.01 | W65: =$L65 -> -0.01 | X65: =$L65 -> -0.01 | Y65: =$L65 -> -0.01 | Z65: =$L65 -> -0.01 | AA65: =D65 -> Resurface pavement | AE65: =$N65 -> 0.05 | AF65: =$N65 -> 0.05 | AG65: =$N65 -> 0.05 | AH65: 0.01 | AI65: =$N65 -> 0.05 | AJ65: =$N65 -> 0.05 | AK65: =$N65 -> 0.05 | AL65: =$N65 -> 0.05 | AM65: =$N65 -> 0.05
A66: 380 | B66: Field Evaluation of Two Methods for Restricting Right Turn on Red to Promote Pedestrian Safety | C66: Intersection traffic control | D66: Retiming signal change intervals to ITE standards | E66: 5 | F66: Yes | J66: 2002 | K66: 3 | L66: 0.08 | N66: 0.12 | R66: =$L66 -> 0.08 | S66: 0.08 | T66: 0.04 | U66: -0.12 | V66: =$L66 -> 0.08 | W66: 0.08 | X66: 0.08 | Y66: 0.39 | Z66: =$L66 -> 0.08 | AA66: Retiming signal change intervals to ITE standards | AE66: =$N66 -> 0.12 | AF66: =$N66 -> 0.12 | AG66: 0.04 | AH66: -0.08 | AI66: =$N66 -> 0.12 | AJ66: =$N66 -> 0.12 | AK66: =$N66 -> 0.12 | AL66: 0.37 | AM66: =$N66 -> 0.12
A67: 199 | B67: Crash Reduction Factors for Traffic Engineering and ITS Improvements | C67: Roadway | D67: Road diet (Convert 4-lane undivided road to 2-lanes plus turning lane) - Minor Arterial | E67: 5 | J67: 2008 | K67: 5 | L67: 0.29 | R67: 0.29 | S67: 0.29 | T67: =$L67 -> 0.29 | U67: 0.29 | V67: 0.29 | W67: 0.29 | X67: 0.29 | Y67: =$L67 -> 0.29 | Z67: 0.29 | AA67: =D67 -> Road diet (Convert 4-lane undivided road to 2-lanes plus turning lane) - Minor Arterial | AE67: =$L67 -> 0.29 | AF67: 0.29 | AG67: 0.29 | AH67: 0.29 | AI67: 0.29 | AJ67: 0.29 | AK67: 0.29 | AL67: 0.29 | AM67: 0.29
A68: 487 | B68: Collision Frequency Analysis Using Tree-Based Stratification | C68: Railroad grade crossings | D68: Upgrade signs to flashing lights | E68: 5 | J68: 2005 | K68: 5 | L68: 0.77 | R68: 0.77 | S68: 0.77 | T68: 0.77 | U68: 0.77 | V68: 0.77 | W68: 0.77 | X68: 0.77 | Y68: 0.77 | Z68: 0.77 | AA68: Upgrade signs to flashing lights | AE68: 0.77 | AF68: 0.77 | AG68: 0.77 | AH68: 0.77 | AI68: 0.77 | AJ68: 0.77 | AK68: 0.77 | AL68: 0.77 | AM68: 0.77
A69: 482 | B69: Handbook of Road Safety Measures | C69: Railroad grade crossings | D69: Upgrading signs to flashing lights and sound signals | E69: 5 | J69: 2004 | K69: 5 | L69: 0.5 | R69: 0.5 | S69: 0.5 | T69: 0.5 | U69: 0.5 | V69: 0.5 | W69: 0.5 | X69: 0.5 | Y69: 0.5 | Z69: 0.5 | AA69: Upgrading signs to flashing lights and sound signals | AE69: 0.5 | AF69: 0.5 | AG69: 0.5 | AH69: 0.5 | AI69: 0.5 | AJ69: 0.5 | AK69: 0.5 | AL69: 0.5 | AM69: 0.5
A70: 10 | B70: Highway Safety Manual Knowledge Document | C70: Shoulder treatments | D70: Widen paved shoulder from 3 ft to 4 ft | E70: 20 | J70: 2009 | K70: 3 | L70: 0.03 | R70: 0.03 | S70: 0.03 | T70: 0.03 | U70: 0.03 | V70: 0.03 | W70: 0.03 | X70: 0.03 | Y70: 0.03 | Z70: 0.03 | AA70: Widen paved shoulder from 3 ft to 4 ft | AE70: 0.03 | AF70: 0.03 | AG70: 0.03 | AH70: 0.03 | AI70: 0.03 | AJ70: 0.03 | AK70: 0.03 | AL70: 0.03 | AM70: 0.03
A71: 11 | B71: Highway Safety Manual Knowledge Document | C71: Shoulder treatments | D71: Widen paved shoulder from 3 ft to 5 ft | E71: 20 | J71: 2009 | K71: 3 | L71: 0.05 | R71: 0.05 | S71: 0.05 | T71: 0.05 | U71: 0.05 | V71: 0.05 | W71: 0.05 | X71: 0.05 | Y71: 0.05 | Z71: 0.05 | AA71: Widen paved shoulder from 3 ft to 5 ft | AE71: 0.05 | AF71: 0.05 | AG71: 0.05 | AH71: 0.05 | AI71: 0.05 | AJ71: 0.05 | AK71: 0.05 | AL71: 0.05 | AM71: 0.05
A72: 12 | B72: Highway Safety Manual Knowledge Document | C72: Shoulder treatments | D72: Widen paved shoulder from 3 ft to 6 ft | E72: 20 | J72: 2009 | K72: 3 | L72: 0.07 | R72: 0.07 | S72: 0.07 | T72: 0.07 | U72: 0.07 | V72: 0.07 | W72: 0.07 | X72: 0.07 | Y72: 0.07 | Z72: 0.07 | AA72: Widen paved shoulder from 3 ft to 6 ft | AE72: 0.07 | AF72: 0.07 | AG72: 0.07 | AH72: 0.07 | AI72: 0.07 | AJ72: 0.07 | AK72: 0.07 | AL72: 0.07 | AM72: 0.07
A73: 13 | B73: Highway Safety Manual Knowledge Document | C73: Shoulder treatments | D73: Widen paved shoulder from 3 ft to 7 ft | E73: 20 | J73: 2009 | K73: 3 | L73: 0.1 | R73: 0.1 | S73: 0.1 | T73: 0.1 | U73: 0.1 | V73: 0.1 | W73: 0.1 | X73: 0.1 | Y73: 0.1 | Z73: 0.1 | AA73: Widen paved shoulder from 3 ft to 7 ft | AE73: 0.1 | AF73: 0.1 | AG73: 0.1 | AH73: 0.1 | AI73: 0.1 | AJ73: 0.1 | AK73: 0.1 | AL73: 0.1 | AM73: 0.1
A74: 14 | B74: Highway Safety Manual Knowledge Document | C74: Shoulder treatments | D74: Widen paved shoulder from 3 ft to 8 ft | E74: 20 | J74: 2009 | K74: 3 | L74: 0.12 | R74: 0.12 | S74: 0.12 | T74: 0.12 | U74: 0.12 | V74: 0.12 | W74: 0.12 | X74: 0.12 | Y74: 0.12 | Z74: 0.12 | AA74: Widen paved shoulder from 3 ft to 8 ft | AE74: 0.12 | AF74: 0.12 | AG74: 0.12 | AH74: 0.12 | AI74: 0.12 | AJ74: 0.12 | AK74: 0.12 | AL74: 0.12 | AM74: 0.12
AA75: 0
AA76: 0
AA77: 0
AA78: 0
AA79: 0
AA80: 0
AA81: 0
AA82: 0
AA83: 0
AA84: 0
AA85: 0
AA86: 0
AA87: 0
AA88: 0
AA89: 0
AA90: 0
AA91: 0
AA92: 0
AA93: 0
AA94: 0
AA95: 0
AA96: 0
AA97: 0
AA98: 0
AA99: =D99 -> 0
AA100: 0
AA101: 0
AA102: 0
AA103: 0
AA104: 0
AA105: 0
AA106: 0
AA107: 0
AA108: 0
AA109: 0
AA110: 0
AA111: 0
AA112: 0
AA113: 0
AA114: 0
AA115: 0
AA116: 0
AA117: 0
AA118: 0
AA119: 0
AA120: 0
AA121: 0
AA122: 0
AA123: 0
